Workbook

Sheet AER CF (hidden)
B1: AER CONDITIONAL FORMATTING
B4: CONDITIONAL FORMATTING MAP
F5: =INDEX(dms_CF_3.6.1, MATCH(dms_TradingName,dms_CF_TradingName))="Y" | G5: =INDEX(dms_CF_3.6.5, MATCH(dms_TradingName,dms_CF_TradingName))="Y" | H5: =INDEX(dms_CF_3.6.6, MATCH(dms_TradingName,dms_CF_TradingName))="Y" | I5: =INDEX(dms_CF_3.6.7.1, MATCH(dms_TradingName,dms_CF_TradingName))="Y" | J5: =INDEX(dms_CF_3.6.7.2, MATCH(dms_TradingName,dms_CF_TradingName))="Y" | K5: =INDEX(dms_CF_3.6.7.3, MATCH(dms_TradingName,dms_CF_TradingName))="Y" | L5: =INDEX(dms_CF_3.6.7.4, MATCH(dms_TradingName,dms_CF_TradingName))="Y" | M5: =INDEX(dms_CF_3.6.8, MATCH(dms_TradingName,dms_CF_TradingName))="Y" | N5: =INDEX(dms_CF_4.1, MATCH(dms_TradingName,dms_CF_TradingName))="Y" | O5: =INDEX(dms_CF_6.6.1, MATCH(dms_TradingName,dms_CF_TradingName))="Y" | P5: =INDEX(dms_CF_6.8, MATCH(dms_TradingName,dms_CF_TradingName))="Y" | Q5: =INDEX(dms_CF_7.12, MATCH(dms_TradingName,dms_CF_TradingName))="Y" | R5: =INDEX(dms_CF_8.1_A, MATCH(dms_TradingName,dms_CF_TradingName))="Y" | S5: =INDEX(dms_CF_8.1_B, MATCH(dms_TradingName,dms_CF_TradingName))="Y" | T5: =INDEX(dms_CF_8.1_Neg, MATCH(dms_TradingName,dms_CF_TradingName))="Y" | U5: =INDEX(dms_CF_4.4.1_Neg, MATCH(dms_TradingName,dms_CF_TradingName))="Y"
B6: dms_CF_TradingName | C6: JurisdictionList | D6: Sector | E6: Segment | F6: dms_CF_3.6.1 | G6: dms_CF_3.6.5 | H6: dms_CF_3.6.6 | I6: dms_CF_3.6.7.1 | J6: dms_CF_3.6.7.2 | K6: dms_CF_3.6.7.3 | L6: dms_CF_3.6.7.4 | M6: dms_CF_3.6.8 | N6: dms_CF_4.1 | O6: dms_CF_6.6.1 | P6: dms_CF_6.8 | Q6: dms_CF_7.12 | R6: dms_CF_8.1_A | S6: dms_CF_8.1_B | T6: dms_CF_8.1_Neg | U6: dms_CF_4.4.1 | V6: dms_CF_MAIFI_flag | W6: Spare1 | X6: Spare2
B7: ActewAGL Distribution | C7: ACT | D7: Electricity | E7: Distribution | G7: Y | I7: Y | J7: Y | K7: N | L7: Y | M7: N | N7: Y | O7: N | P7: Y | Q7: Y | R7: N | S7: Y | T7: Y | U7: N | V7: N | W7: N | X7: N
B8: Ausgrid | C8: NSW | D8: Electricity | E8: Distribution | G8: Y | I8: N | J8: N | K8: N | L8: Y | M8: N | N8: N | O8: N | P8: Y | Q8: Y | R8: N | S8: Y | T8: Y | U8: N | V8: N | W8: N | X8: N
B9: AusNet (D) | C9: Vic | D9: Electricity | E9: Distribution | G9: N | I9: N | J9: N | K9: N | L9: N | M9: N | N9: N | O9: N | P9: Y | Q9: N | R9: N | S9: N | T9: Y | U9: N | V9: N | W9: N | X9: N
B10: AusNet (T) | C10: Vic | D10: Electricity | E10: Transmission | G10: N | I10: N | J10: N | K10: N | L10: N | M10: N | N10: Y | O10: N | P10: Y | Q10: N | R10: N | S10: N | T10: Y | U10: N | V10: N | W10: N | X10: N
B11: Australian Distribution Co. (Vic) | C11: Vic | D11: Electricity | E11: Distribution | G11: N | I11: N | J11: N | K11: N | L11: N | M11: N | N11: N | O11: N | P11: Y | Q11: N | R11: N | S11: N | T11: Y | U11: N | V11: N | W11: N | X11: N
B12: CitiPower | C12: Vic | D12: Electricity | E12: Distribution | G12: N | I12: N | J12: N | K12: N | L12: N | M12: N | N12: N | O12: N | P12: Y | Q12: N | R12: N | S12: N | T12: Y | U12: N | V12: N | W12: N | X12: N
B13: Directlink | C13: Qld | D13: Electricity | E13: Transmission | G13: N | I13: N | J13: N | K13: N | L13: N | M13: N | N13: N | O13: N | P13: Y | Q13: N | R13: N | S13: Y | T13: Y | U13: N | V13: N | W13: N | X13: N
B14: ElectraNet | C14: SA | D14: Electricity | E14: Transmission | G14: N | I14: N | J14: N | K14: N | L14: N | M14: N | N14: Y | O14: N | P14: Y | Q14: N | R14: N | S14: Y | T14: Y | U14: N | V14: N | W14: N | X14: N
B15: Endeavour Energy | C15: NSW | D15: Electricity | E15: Distribution | G15: Y | I15: N | J15: N | K15: N | L15: Y | M15: N | N15: N | O15: N | P15: Y | Q15: Y | R15: N | S15: Y | T15: Y | U15: Y | V15: N | W15: N | X15: N
B16: Energex | C16: Qld | D16: Electricity | E16: Distribution | G16: Y | I16: N | J16: N | K16: N | L16: N | M16: N | N16: N | O16: N | P16: Y | Q16: Y | R16: N | S16: Y | T16: Y | U16: Y | V16: N | W16: N | X16: N
B17: Ergon Energy | C17: Qld | D17: Electricity | E17: Distribution | G17: Y | I17: N | J17: N | K17: N | L17: N | M17: N | N17: N | O17: N | P17: Y | Q17: Y | R17: N | S17: Y | T17: Y | U17: N | V17: N | W17: N | X17: N
B18: Essential Energy | C18: NSW | D18: Electricity | E18: Distribution | G18: Y | I18: N | J18: N | K18: N | L18: Y | M18: N | N18: N | O18: N | P18: Y | Q18: Y | R18: N | S18: Y | T18: Y | U18: N | V18: N | W18: N | X18: N
B19: Jemena Electricity | C19: Vic | D19: Electricity | E19: Distribution | G19: N | I19: N | J19: N | K19: N | L19: N | M19: N | N19: N | O19: N | P19: Y | Q19: N | R19: N | S19: N | T19: Y | U19: N | V19: N | W19: N | X19: N
B20: Murraylink | C20: SA | D20: Electricity | E20: Transmission | G20: N | I20: N | J20: N | K20: N | L20: N | M20: N | N20: Y | O20: N | P20: Y | Q20: N | R20: N | S20: Y | T20: Y | U20: N | V20: N | W20: N | X20: N
B21: Power and Water | C21: NT | D21: Electricity | E21: Distribution | G21: N | I21: N | J21: Y | K21: N | L21: N | M21: Y | N21: Y | O21: Y | P21: Y | Q21: Y | R21: N | S21: Y | T21: Y | U21: N | V21: N | W21: N | X21: N
B22: Powercor Australia | C22: Vic | D22: Electricity | E22: Distribution | G22: N | I22: N | J22: N | K22: N | L22: N | M22: N | N22: N | O22: N | P22: Y | Q22: N | R22: N | S22: N | T22: Y | U22: N | V22: N | W22: N | X22: N
B23: Powerlink | C23: Qld | D23: Electricity | E23: Transmission | G23: N | I23: N | J23: N | K23: N | L23: N | M23: N | N23: Y | O23: N | P23: Y | Q23: N | R23: N | S23: Y | T23: Y | U23: N | V23: N | W23: N | X23: N
B24: SA Power Networks | C24: SA | D24: Electricity | E24: Distribution | G24: Y | I24: N | J24: N | K24: N | L24: N | M24: N | N24: Y | O24: N | P24: Y | Q24: Y | R24: Y | S24: Y | T24: N | U24: N | V24: N | W24: N | X24: N
B25: TasNetworks (D) | C25: Tas | D25: Electricity | E25: Distribution | G25: Y | I25: N | J25: N | K25: N | L25: N | M25: N | N25: N | O25: N | P25: Y | Q25: Y | R25: N | S25: Y | T25: Y | U25: N | V25: N | W25: N | X25: N
B26: TasNetworks (T) | C26: Tas | D26: Electricity | E26: Transmission | G26: N | I26: N | J26: N | K26: N | L26: N | M26: N | N26: Y | O26: N | P26: Y | Q26: N | R26: N | S26: Y | T26: Y | U26: N | V26: N | W26: N | X26: N
B27: TransGrid | C27: NSW | D27: Electricity | E27: Transmission | G27: N | I27: N | J27: N | K27: N | L27: N | M27: N | N27: Y | O27: N | P27: Y | Q27: N | R27: N | S27: Y | T27: Y | U27: N | V27: N | W27: N | X27: N
B28: United Energy | C28: Vic | D28: Electricity | E28: Distribution | G28: N | I28: N | J28: N | K28: N | L28: N | M28: N | N28: N | O28: N | P28: Y | Q28: N | R28: N | S28: N | T28: Y | U28: N | V28: N | W28: N | X28: N
B31: Confidential
B32: Amended
B34: Worksheet 6.2 STPIS reliability
B35: Formula | F35: Applied to:
B37: =INDEX(dms_CBD_flag,MATCH(dms_TradingName,dms_TradingName_List))="NO" | F37: $D$11,$D$17,$D$23,$D$33,$D$39,$D$45,$D$55,$D$61,$D$67,$D$77,$D$83,$D$89
B38: =INDEX(dms_Urban_flag,MATCH(dms_TradingName,dms_TradingName_List))="NO" | F38: $D$12,$D$18,$D$24,$D$56,$D$62,$D$78,$D$68,$D$84
B39: =INDEX(dms_ShortRural_flag,MATCH(dms_TradingName,dms_TradingName_List))="NO" | F39: $D$13,$D$19,$D$25,$D$57,$D$63,$D$69,$D$79,$D$85
B40: =INDEX(dms_LongRural_flag,MATCH(dms_TradingName,dms_TradingName_List))="NO" | F40: $D$14,$D$20,$D$26,$D$58,$D$64,$D$65,$D$70,$D$71,$D$80,$D$86
B41: =INDEX(dms_FeederType_5_flag,MATCH(dms_TradingName,dms_TradingName_List))="NO" | F41: $D$87,$D$81,$D$71,$D$65,$D$59,$D$49,$D$43,$D$37,$D$21,$D$15
B42: =dms_MAIFI_Flag="No" | F42: $D$55:$D$72
B45: Business & other details
B46: =(INDEX(dms_Model_Span,MATCH(dms_Model,dms_Model_List))>1)
B47: =(INDEX(dms_Model_Span,MATCH(dms_Model,dms_Model_List))=1)
B50: STYLES IN USE | C50: dms_H
B51: HEADING ONE | C51: dms_1
B52: HEADING TWO | C52: dms_2
B53: HEADING THREE | C53: dms_3
B54: HEADING FOUR | C54: dms_4
B55: HEADING FIVE | C55: dms_5
C56: dms_NUM
C57: dms_NUM%
B58: 5.5555 | C58: dms_NUM3d
C59: dms_Row_Locked
C60: dms_Row1
C61: dms_Row2
C62: dms_T1
C63: dms_T2
C64: dms_BH
C65: dms_BY1
C66: dms_BY2
C67: dms_GH
C68: dms_GY1
C69: dms_GY2
C128: 0
C129: =IFERROR(IF(dms_Model="ARR",(MAX(0,dms_0608_LastRow-dms_0608_OffsetRows)),"not an ARR"),"0") -> 0

Sheet AER NRs (hidden)
B1: AER NAMED RANGES
B3: DROP DOWN SELECTORS USED IN WORKBOOKS
B5: COVER SHEET | C5: dms_DataQuality_List | D5: dms_Confid_status_List
C6: -- select -- | D6: -- select --
C7: Actual | D7: Public
C8: Estimate | D8: Confidential
C9: Consolidated
C12: For all files either AER or business needs to be able to specify the type of submission | D12: For PTRM & RFM templates we must provide a choice in case they change their form of control - otherwise it is drawn from the business specific lookup table above.
C13: dms_SourceList | D13: dms_FormControl_Choices
C14: -- select -- | D14: Revenue cap
C15: After appeal | D15: Revenue yield
C16: Draft decision | D16: Weighted average price cap
C17: Final decision
C18: PTRM update 1
C19: PTRM update 2
C20: PTRM update 3
C21: PTRM update 4
C22: PTRM update 5
C23: PTRM update 6
C24: PTRM update 7
C25: Regulatory proposal
C26: Reporting
C27: Revised regulatory proposal
L30: This is used to create an image to insert on 6.3 STPIS sheet - not for dropdown lists.
B31: CA & RESET RINS DNSP | C31: dms_DNSP_020301_SubstationType | D31: dms_DNSP_020301_ProjectType | E31: dms_DNSP_020301_ProjectTrigger | F31: dms_DNSP_020302_ProjectType | G31: dms_DNSP_020302_ProjectTrigger | H31: dms_STPIS_Exclusion_List | I31: dms_Reason_Interruption | J31: dms_Reason_Interruption_Detailed | L31: Reason for interruption
C32: Subtransmission substation | D32: New substation establishment | E32: Demand growth | F32: New line on new route - single circuit | G32: Demand growth | H32: Weather | I32: Animal | J32: Animal impact | L32: Animal | M32: Animal impact
C33: Zone substation | D33: Substation upgrade - capacity | E33: Voltage issues | F33: New line on new route - dual circuit | G33: Voltage issues | H33: Equipment failure | I33: Asset failure | J33: Animal nesting/burrowing, etc and other | M33: Animal nesting/burrowing, etc and other
C34: Switching station | D34: Substation upgrade - voltage | E34: Reactive power issue | F34: New line on new route - other | G34: Reactive power issue | H34: Operational error | I34: Other | J34: Other | M34: Other
C35: Other | D35: Other | E35: Fault level issues | F35: Line rebuild over existing route - single circuit | G35: Fault level issues | H35: Vegetation | I35: Overloads | J35: LV | L35: Asset failure | M35: LV
E36: Safety | F36: Line rebuild over existing route - dual circuit | G36: Net market benefit | H36: Animals | I36: Planned | J36: Distribution substation | M36: Distribution substation
E37: Environment | F37: Reconductor - Single circuit | G37: Safety | H37: Third party impacts | I37: Network business | J37: HV | M37: HV
E38: Other | F38: Reconductor - Dual circuit | G38: Environment | H38: Transmission failure | I38: Third party | J38: Zone substation | M38: Zone substation
F39: Reconductor - Other | G39: Other | H39: Load shedding | I39: Unknown | J39: Subtransmission | M39: Subtransmission
F40: Line upgrade - raising/retensoring | H40: Inter-distributor connection failure | I40: Vegetation | J40: insert description of 'other' | L40: Other | M40: insert description of 'other'
F41: Line upgrade - voltage upgrade | H41: Other | I41: Weather | J41: Network error | L41: Overloads
F42: Line upgrade - capacity | I42: 2 - STPIS Exclusion (3.3)(a) | J42: Switching and protection error | L42: Planned
F43: String spare circuit | I43: 3 - STPIS Exclusion (3.3)(a) | J43: Fire | L43: Network business | M43: Network error
F44: Other | I44: 4 - STPIS Exclusion (3.3)(a) | J44: Other | M44: Switching and protection error
I45: 5 - STPIS Exclusion (3.3)(a) | J45: Dig-in | L45: Third party | M45: Fire
I46: 6 - STPIS Exclusion (3.3)(a) | J46: Unauthorised access | M46: Other
I47: 7 - STPIS Exclusion (3.3)(a) | J47: Vehicle impact | M47: Dig-in
J48: Unknown | M48: Unauthorised access
J49: Blow-in/Fall-in - NSP responsibility | M49: Vehicle impact
J50: Grow-in - NSP responsibility | L50: Unknown | M50: Unknown
J51: Blow-in/Fall-in - Other responsible party | L51: Vegetation | M51: Blow-in/Fall-in - NSP responsibility
J52: Grow-in - Other responsible party | M52: Grow-in - NSP responsibility
M53: Blow-in/Fall-in - Other responsible party
M54: Grow-in - Other responsible party
L55: Weather
L56: 2 - STPIS Exclusion (3.3)(a)
L57: 3 - STPIS Exclusion (3.3)(a)
L58: 4 - STPIS Exclusion (3.3)(a)
L59: 5 - STPIS Exclusion (3.3)(a)
L60: 6 - STPIS Exclusion (3.3)(a)
L61: 7 - STPIS Exclusion (3.3)(a)
B64: CA & RESET RINS TNSP | C64: dms_TNSP_0203_SubstationType | D64: dms_TNSP_020301_ProjectType | E64: dms_TNSP_020301_ProjectTrigger | F64: dms_TNSP_020302_ProjectType | G64: dms_TNSP_0203_ProjectTrigger
C65: Terminal station | D65: New substation establishment | E65: Demand growth | F65: New line on new route - single circuit | G65: Demand growth
C66: Switching station | D66: Capacity upgrade | E66: Voltage issues | F66: New line on new route - dual circuit | G66: Voltage issues
C67: Transmission substation | D67: Voltage upgrade | E67: Reactive power issue | F67: New line on new route - other | G67: Reactive power issue
C68: Other | D68: Other | E68: Fault level issues | F68: Line rebuild over existing route - single circuit | G68: Fault level issues
E69: Net market benefit | F69: Line rebuild over existing route - dual circuit | G69: Net market benefit
E70: Safety | F70: Reconductor - Single circuit | G70: Safety
E71: Environment | F71: Reconductor - Dual circuit | G71: Environment
E72: Other | F72: Reconductor - Other | G72: Other
F73: Line upgrade - raising/retensoring
F74: Line upgrade - voltage upgrade
F75: Line upgrade - capacity
F76: String spare circuit
F77: Other
B81: NAMED RANGES USED IN ETL PROCESS
B83: CA & RESET RINS DNSP ONLY | C83: dms_020303_01_UOM | D83: dms_020501_01_UOM | E83: dms_020501_02_UOM | F83: dms_020501_03_UOM | G83: dms_020501_04_UOM | H83: dms_020701_01_UOM | I83: dms_020701_02_UOM | J83: dms_020701_01_Rows | K83: dms_040102_01_UOM | L83: dms_040102_04_UOM
C84: Circuit line length in km | D84: 0's | E84: 0's | F84: 0's | G84: 0's | H84: km | I84: km | J84: Route line length within zone | K84: 0's | L84: days
C85: Circuit line length in km | D85: 0's | E85: 0's | F85: 0's | G85: 0's | H85: 0's | I85: 0's | J85: Number of maintenance spans | K85: 0's | L85: 0's
C86: Circuit line length in km | D86: MVA added | E86: MVA added | F86: MVA added | G86: MVA added | H86: km | I86: km | J86: Total length of maintenance spans | K86: 0's | L86: $0s
C87: Circuit line length in km | D87: 0's | E87: 0's | F87: 0's | G87: 0's | H87: km | I87: km | J87: Length of vegetation corridors | K87: $0s | L87: 0's
C88: Number | D88: total spend $0s | E88: total spend $0s | F88: total spend $0s | G88: total spend $0s | H88: 0's | I88: 0's | J88: Average number of trees per maintenance span
C89: Number | D89: net circuit km added | E89: net circuit km added | F89: net circuit km added | G89: net circuit km added | H89: years | I89: years | J89: Average frequency of cutting cycle
C90: Number | D90: total spend $0s | E90: total spend $0s | F90: total spend $0s | G90: total spend $0s
D91: net circuit km added | E91: net circuit km added | F91: net circuit km added | G91: net circuit km added
D92: total spend $0s | E92: total spend $0s | F92: total spend $0s | G92: total spend $0s
D93: 0's | F93: $0s
D94: 0's
D95: 0's
D96: $0s
B99: CA & RESET RINS TNSP ONLY | C99: dms_020701_01_UOM
C100: km
C101: 0's
C102: km
C103: 0's
C104: km
C105: metres
C106: years
B109: CA & RESET RINS DNSP & TNSP | C109: dms_020603_01_UOM
C110: 0's
C111: 0's
C112: 0's
C113: 0's
C114: (per cent)
B117: EB & RESET RINS DNSP ONLY | C117: dms_030601_01_UOM | D117: dms_030601_02_UOM | E117: dms_030701_01_UOM | F117: dms_030702_01_UOM | G117: dms_030703_01_UOM
C118: minutes/customer | D118: minutes/customer | E118: Customer / km | F118: % | G118: km
C119: minutes/customer | D119: minutes/customer | E119: MWh/customer | F119: Number of spans
C120: interruptions/customer | D120: interruptions/customer | E120: kVA / customer | F120: Number of spans
C121: interruptions/customer | D121: interruptions/customer | F121: Number of spans
F122: Number of spans
F123: Years
F124: Years
F125: Trees
F126: Trees
F127: Defects
F128: Defects
F129: Spans
F130: km
F131: Spans
C133: WHEN INSERTING COVER SHEET INTO A TNSP FILE - APPLY THESE NAMED RANGES
B134: EB & RESET RINS TNSP ONLY | C134: dms_030601_01_UOM | E134: dms_030701_01_UOM | F134: dms_030702_01_UOM
C135: % | E135: Number of spans | F135: km
C136: number | E136: Years | F136: %
C137: number | E137: Trees | F137: km
C138: % | E138: Defects | F138: number
C139: number | E139: Number of spans
C140: number | E140: km
C141: % | E141: km
C142: number | E142: Number of spans
C143: number
C144: %
C145: number
C146: %
C147: number
C148: %
C149: number
B151: EB & RESET RINS DNSP & TNSP | C151: dms_EB_RAB_PIT
C152: Beginning of year
C153: End of year
C154: End of year
C155: End of year
C156: End of year
C157: End of year
B159: ARR DNSP ONLY | C159: dms_030605_UOM | D159: dms_03060703_UOM | E159: Spare | F159: Spare
C160: number | D160: number
C161: number | D161: number
C162: number | D162: number
C163: number | D163: number
C164: number | D164: (per cent)
C165: number
C166: number
C167: number
C168: number
C169: number
C170: number
C171: number
C172: (per cent)
C173: (per cent)
B175: RFM | C175: dms_Beg | D175: dms_Mid | E175: dms_End
C176: Beginning of year | D176: Mid year | E176: End of Year
B178: PTRM | C178: dms_PTRM_RAB_PIT | D178: dms_PTRM_TAB_PIT | E178: DMS_Xfactor
C179: Beginning of year | D179: Beginning of year | E179: x factors
C180: End of year | D180: End of year
C181: End of year | D181: End of year
C182: End of year | D182: End of year
C183: End of year
B186: STPIS & MIC NAMED RANGES
B188: These "row descriptions" are the column headings in the various templates but become row descriptions in the ETL process
B190: Table 6.3 sustained interruptions - row descriptions | C190: dms_060301_CustNo_Affected_Row | D190: dms_060301_Avg_Duration_Sustained_Int_Row | E190: dms_060301_Effect_unplanned_SAIDI_Row | F190: dms_060301_Effect_unplanned_SAIFI_Row
C191: Number of customers affected by the interruption | D191: Average duration of sustained customer interruption | E191: Effect on unplanned SAIDI | F191: Effect on unplanned SAIFI
B194: Table 6.1 telephone answering - row descriptions and start date | C194: dms_060101_Rows | D194: dms_060102_Rows | E194: dms_060101_StartDateTxt
C195: Total number of calls (after removing excluded events) | D195: Number of calls answered within 30 seconds (after excluding excluded events) | E195: =dms_060701_StartDateTxt -> 1-Jul-2011
B198: Table 6.8.1 - row descriptions | C198: dms_060801_01_Rows | D198: dms_060801_02_Rows | E198: dms_060801_03_Rows | F198: dms_060801_04_Rows
C199: Number of interruptions | D199: Duration of interruptions | E199: Total unplanned minutes off supply | F199: Effect on unplanned MAIFI
B202: Table 7.9.4 - market impact component - row descriptions | C202: dms_070904_01_Rows | D202: without exclusions | E202: with exclusions
B205: These headings (Lists) are determined from the INDEX/MATCH function on the NSP selected on the Business & other details sheet
B207: Table 6.7.1 - daily performance data - unplanned - MAIFI -- row descriptions and header named range values | C207: dms_060701_Feeder_Header_Lvl4 | D207: =INDEX(dms_FeederName_1,MATCH(dms_TradingName,dms_TradingName_List)) -> CBD | E207: =INDEX(dms_FeederName_1,MATCH(dms_TradingName,dms_TradingName_List)) -> CBD | F207: =INDEX(dms_FeederName_2,MATCH(dms_TradingName,dms_TradingName_List)) -> Urban | G207: =INDEX(dms_FeederName_2,MATCH(dms_TradingName,dms_TradingName_List)) -> Urban | H207: =INDEX(dms_FeederName_3,MATCH(dms_TradingName,dms_TradingName_List)) -> Short rural | I207: =INDEX(dms_FeederName_3,MATCH(dms_TradingName,dms_TradingName_List)) -> Short rural | J207: =INDEX(dms_FeederName_4,MATCH(dms_TradingName,dms_TradingName_List)) -> Long rural | K207: =INDEX(dms_FeederName_4,MATCH(dms_TradingName,dms_TradingName_List)) -> Long rural | L207: =IF((INDEX(dms_FeederName_5,MATCH(dms_TradingName,dms_TradingName_List))=0),"Network",(INDEX(dms_FeederName_5,MATCH(dms_TradingName,dms_TradingName_List)))) -> Network | M207: =IF((INDEX(dms_FeederName_5,MATCH(dms_TradingName,dms_TradingName_List))=0),"Network",(INDEX(dms_FeederName_5,MATCH(dms_TradingName,dms_TradingName_List)))) -> Network | N207: Network | O207: Network
C209: dms_060701_Rows | D209: All events | E209: After removing excluded events | F209: All events | G209: After removing excluded events | H209: All events | I209: After removing excluded events | J209: All events | K209: After removing excluded events | L209: All events | M209: After removing excluded events | N209: All events | O209: After removing excluded events
D210: the number of column headings changes from 10 to 12 depending on the number of feeder categories for the NSP
C212: dms_0603_FeederList | D212: =INDEX(dms_FeederName_1,MATCH(dms_TradingName,dms_TradingName_List)) -> CBD | E212: =INDEX(dms_FeederName_2,MATCH(dms_TradingName,dms_TradingName_List)) -> Urban | F212: =INDEX(dms_FeederName_3,MATCH(dms_TradingName,dms_TradingName_List)) -> Short rural | G212: =INDEX(dms_FeederName_4,MATCH(dms_TradingName,dms_TradingName_List)) -> Long rural
B215: Use these to add to specific worksheets in existing files | C215: Use these to add to specific worksheets in existing files
B218: ARRs 6.7 STPIS daily performance | C218: dms_060101_Values | D218: dms_060102_Values | E218: dms_060701_Values
C219: dms_LeapYear
B222: ARR's 6.8 STPIS exclusions | C222: dms_060801_Event_Date | D222: dms_060801_OutageID | E222: dms_060801_FeederID | F222: dms_060801_FeederClass | G222: dms_060801_CauseID | H222: dms_060801_01_Values | I222: dms_060801_02_Values | J222: dms_060801_03_Values | K222: dms_060801_Excl_Cat | L222: dms_060801_04_Values
C223: dms_060801_StartCell
B226: CA 6.3 sustained interruptions | C226: dms_060301_Event_Date | D226: dms_060301_Event_Time | E226: dms_060301_AssetID | F226: dms_060301_FeederClass | G226: dms_060301_Reason | H226: dms_060301_DetailedReason | I226: dms_060301_CustNo_Affected_Values | J226: dms_060301_Avg_Duration_Sustained_Int_Values | K226: dms_060301_Effect_unplanned_SAIDI_Values | L226: dms_060301_Effect_unplanned_SAIFI_Values | M226: dms_060301_MED

Sheet AER lookups (hidden)
B1: AER LOOKUP TABLES
B3: Data in these columns used for data validation and database purposes.
B4: Date last modified: | C4: 2017-01-16 | D4: added (Albury and Victora) for AGN
C5: 2016-10-17 | D5: updated TransGrid's correct legal name, corrected TasNetworks (T) to June financial year
C6: 2017-02-01 | D6: inserted Power and Water, added NRs (dms_FeederCat_1 and dms_FeederCat_2)
C7: 2017-03-03 | D7: inserted AEMO as a business | Z7: FOR ELECTRICITY BUSINESSES ONLY
C8: 2018-03-28 | D8: major changes to accommodate STPIS
C9: Template Version | D9: 5 | Z9: Feeder Types | AD9: TasNetworks (D) | AE9: MAIFI flag | AF9: Feeder Names
Z11: CBD | AA11: Urban | AB11: Short rural | AC11: long rural | AD11: EXTRA
B12: dms_TradingName_List | C12: dms_TradingNameFull_List | D12: dms_ABN_List | E12: dms_JurisdictionList | F12: dms_Sector_List | G12: dms_Segment_List | H12: dms_FormControl_List | I12: dms_RPT_List | J12: dms_RPTMonth_List | K12: dms_CRCPlength_List | L12: dms_FRCPlength_List | M12: dms_PRCPlength_List | N12: dms_663_List | O12: dms_DeterminationRef_List | P12: dms_Addr1_List | Q12: dms_Addr2_List | R12: dms_Suburb_List | S12: dms_State_List | T12: dms_PostCode_List | U12: dms_PAddr1_List | V12: dms_PAddr2_List | W12: dms_PSuburb_List | X12: dms_PState_List | Y12: dms_PPostCode_List | Z12: dms_CBD_flag | AA12: dms_Urban_flag | AB12: dms_ShortRural_flag | AC12: dms_LongRural_flag | AD12: dms_FeederType_5_flag | AE12: dms_MAIFI_flag_List | AF12: dms_FeederName_1 | AG12: dms_FeederName_2 | AH12: dms_FeederName_3 | AI12: dms_FeederName_4 | AJ12: dms_FeederName_5 | AK12: dms_Public_Lighting_List | AL12: Column1
B13: AusNet (D) | C13: AusNet Electricity Services Pty Ltd | D13: 91064651118 | E13: Vic | F13: Electricity | G13: Distribution | H13: Revenue cap | I13: Financial | J13: June | K13: 5 | L13: 5 | M13: 5 | N13: 2 | O13: 2016-20 Distribution Determination | P13: Level 32 | Q13: 2 Southbank Boulevard | R13: SOUTHBANK | S13: Vic | T13: 3006 | U13: Locked Bag 14051 | W13: MELBOURNE CITY MAIL CENTRE | X13: Vic | Y13: 8001 | Z13: NO | AA13: YES | AB13: YES | AC13: YES | AD13: NO | AE13: YES | AF13: CBD | AG13: Urban | AH13: Short rural | AI13: Long rural | AK13: YES | AL13: AusNet (D)
B14: Australian Distribution Co. (Vic) | C14: Australian Distribution Co. (Victoria) | D14: 11222333444 | E14: Vic | F14: Electricity | G14: Distribution | H14: Revenue cap | I14: Financial | J14: June | K14: 5 | L14: 5 | M14: 5 | N14: 2 | O14: distribution determination | P14: 123 Straight Street | R14: MELBOURNE | S14: Vic | T14: 3000 | U14: PO Box 123 | W14: MELBOURNE | X14: Vic | Y14: 3000 | Z14: NO | AA14: NO | AB14: NO | AC14: NO | AD14: NO | AE14: YES | AF14: CBD | AG14: Urban | AH14: Short rural | AI14: Long rural | AK14: YES | AL14: Australian Distribution Co. (Vic)
B15: CitiPower | C15: CitiPower | D15: 76064651056 | E15: Vic | F15: Electricity | G15: Distribution | H15: Revenue cap | I15: Financial | J15: June | K15: 5 | L15: 5 | M15: 5 | N15: 2 | O15: 2016-20 Distribution Determination | P15: 40 Market Street | R15: MELBOURNE | S15: Vic | T15: 3000 | U15: Locked Bag 14090 | W15: MELBOURNE | X15: Vic | Y15: 8001 | Z15: YES | AA15: YES | AB15: NO | AC15: NO | AD15: NO | AE15: YES | AF15: CBD | AG15: Urban | AH15: Short rural | AI15: Long rural | AK15: YES | AL15: CitiPower
B16: Jemena Electricity | C16: Jemena Electricity | D16: 82064651083 | E16: Vic | F16: Electricity | G16: Distribution | H16: Revenue cap | I16: Financial | J16: June | K16: 5 | L16: 5 | M16: 5 | N16: 2 | O16: 2016-20 Distribution Determination | P16: Level 16 | Q16: 567 Collins Street | R16: MELBOURNE | S16: Vic | T16: 3000 | U16: PO Box 16182 | W16: MELBOURNE | X16: Vic | Y16: 8001 | Z16: NO | AA16: YES | AB16: YES | AC16: NO | AD16: NO | AE16: YES | AF16: CBD | AG16: Urban | AH16: Short rural | AI16: Long rural | AK16: YES | AL16: Jemena Electricity
B17: Powercor Australia | C17: Powercor Australia | D17: 89064651109 | E17: Vic | F17: Electricity | G17: Distribution | H17: Revenue cap | I17: Financial | J17: June | K17: 5 | L17: 5 | M17: 5 | N17: 2 | O17: 2016-20 Distribution Determination | P17: 40 Market Street | R17: MELBOURNE | S17: Vic | T17: 3000 | U17: Locked bag 14090 | W17: MELBOURNE | X17: Vic | Y17: 8001 | Z17: NO | AA17: NO | AB17: YES | AC17: YES | AD17: NO | AE17: YES | AF17: CBD | AG17: Urban | AH17: Short rural | AI17: Long rural | AK17: YES | AL17: Powercor Australia
B18: United Energy | C18: United Energy | D18: 70064651029 | E18: Vic | F18: Electricity | G18: Distribution | H18: Revenue cap | I18: Financial | J18: June | K18: 5 | L18: 5 | M18: 5 | N18: 2 | O18: 2016-20 Distribution Determination | P18: 43-45 Centreway | R18: MOUNT WAVERLEY | S18: Vic | T18: 3149 | U18: PO Box 449 | W18: MOUNT WAVERLEY | X18: Vic | Y18: 3170 | Z18: NO | AA18: NO | AB18: YES | AC18: NO | AD18: NO | AE18: YES | AF18: CBD | AG18: Urban | AH18: Short rural | AI18: Long rural | AK18: YES | AL18: United Energy
B23: The Reg Year Ending (dms_RYE) must be set to the last year of the regulatory period. For forecast data is is usually (FRCP_y5) for actual it is a single year (CRY). For historical actual data the RYE will need to be set manually in the business details sheet by setting the dms_Multiyear_flag to 1 and putting the correct value in 'dms_Specified_FinalYear. See cells C67:C68
B24: dms_Model_List | C24: dms_Model_Name_Format1 | D24: dms_Worksheet_List | E24: dms_Model_Span_List
B25: ARR | C25: Annual Reporting | D25: HISTORICAL ANNUAL REPORTING - FINANCIAL YEARS | E25: 1
B26: CA | C26: Category Analysis | D26: =IF(dms_MultiYear_ResponseFlag="yes","HISTORICAL CATEGORY ANALYSIS","CATEGORY ANALYSIS") -> HISTORICAL CATEGORY ANALYSIS | E26: 1
B27: CESS | C27: Capitlal Expenditure | D27: CAPITLAL EXPENDITURE SHARING SCHEMING | E27: 5
B28: CPI | C28: CPI | D28: CPI | E28: 5
B29: EB | C29: Economic Benchmarking | D29: =IF(dms_MultiYear_ResponseFlag="yes","NEW HISTORICAL ECONOMIC BENCHMARKING","ECONOMIC BENCHMARKING") -> NEW HISTORICAL ECONOMIC BENCHMARKING | E29: 1
B30: Pricing | C30: Pricing Proposal | D30: PRICING PROPOSAL | E30: 5
B31: PTRM | C31: Post Tax Revenue Model | D31: POST TAX REVENUE MODEL | E31: 5
B32: Reset | C32: Regulatory Reporting (Reset) | D32: REGULATORY REPORTING STATEMENT | E32: 5
B33: RFM | C33: Roll Forward Model | D33: ROLL FORWARD MODEL | E33: 5
B34: WACC | C34: Weighted Average Cost of Capital | D34: WEIGHTED AVERAGE COST OF CAPITAL | E34: 1
B38: Financial | C38: Calendar | E38: PREVIOUS | G38: CURRENT | I38: FORTHCOMING
B39: 1987-88 | C39: 1988 | D39: PRCP_y1 | E39: =INDEX(INDIRECT(dms_RPT),dms_PRCP_start_row) -> 2009-10 | F39: CRCP_y1 | G39: =INDEX(INDIRECT(dms_RPT),dms_CRCP_start_row) -> 2014-15 | H39: =FRCP_y1 -> 2019-20 | I39: =INDEX(INDIRECT(dms_RPT),dms_FRCP_start_row) -> 2019-20
B40: 1988-89 | C40: 1989 | D40: PRCP_y2 | E40: =INDEX(INDIRECT(dms_RPT),dms_PRCP_start_row+1) -> 2010-11 | F40: CRCP_y2 | G40: =INDEX(INDIRECT(dms_RPT),dms_CRCP_start_row+1) -> 2015-16 | H40: FRCP_y2 | I40: =INDEX(INDIRECT(dms_RPT),dms_FRCP_start_row+1) -> 2020-21
B41: 1989-90 | C41: 1990 | D41: PRCP_y3 | E41: =INDEX(INDIRECT(dms_RPT),dms_PRCP_start_row+2) -> 2011-12 | F41: CRCP_y3 | G41: =INDEX(INDIRECT(dms_RPT),dms_CRCP_start_row+2) -> 2016-17 | H41: FRCP_y3 | I41: =INDEX(INDIRECT(dms_RPT),dms_FRCP_start_row+2) -> 2021-22
B42: 1990-91 | C42: 1991 | D42: PRCP_y4 | E42: =INDEX(INDIRECT(dms_RPT),dms_PRCP_start_row+3) -> 2012-13 | F42: CRCP_y4 | G42: =INDEX(INDIRECT(dms_RPT),dms_CRCP_start_row+3) -> 2017-18 | H42: FRCP_y4 | I42: =INDEX(INDIRECT(dms_RPT),dms_FRCP_start_row+3) -> 2022-23
B43: 1991-92 | C43: 1992 | D43: PRCP_y5 | E43: =INDEX(INDIRECT(dms_RPT),dms_PRCP_start_row+4) -> 2013-14 | F43: CRCP_y5 | G43: =INDEX(INDIRECT(dms_RPT),dms_CRCP_start_row+4) -> 2018-19 | H43: FRCP_y5 | I43: =INDEX(INDIRECT(dms_RPT),dms_FRCP_start_row+4) -> 2023-24
B44: 1992-93 | C44: 1993 | D44: PRCP_y6 | E44: =INDEX(INDIRECT(dms_RPT),dms_PRCP_start_row+5) -> 2014-15 | F44: CRCP_y6 | G44: =INDEX(INDIRECT(dms_RPT),dms_CRCP_start_row+5) -> 2019-20 | H44: FRCP_y6 | I44: =INDEX(INDIRECT(dms_RPT),dms_FRCP_start_row+5) -> 2024-25
B45: 1993-94 | C45: 1994 | D45: PRCP_y7 | E45: =INDEX(INDIRECT(dms_RPT),dms_PRCP_start_row+6) -> 2015-16 | F45: CRCP_y7 | G45: =INDEX(INDIRECT(dms_RPT),dms_CRCP_start_row+6) -> 2020-21 | H45: FRCP_y7 | I45: =INDEX(INDIRECT(dms_RPT),dms_FRCP_start_row+6) -> 2025-26
B46: 1994-95 | C46: 1995 | D46: PRCP_y8 | E46: =INDEX(INDIRECT(dms_RPT),dms_PRCP_start_row+7) -> 2016-17 | F46: CRCP_y8 | G46: =INDEX(INDIRECT(dms_RPT),dms_CRCP_start_row+7) -> 2021-22 | H46: FRCP_y8 | I46: =INDEX(INDIRECT(dms_RPT),dms_FRCP_start_row+7) -> 2026-27
B47: 1995-96 | C47: 1996 | D47: PRCP_y9 | E47: =INDEX(INDIRECT(dms_RPT),dms_PRCP_start_row+8) -> 2017-18 | F47: CRCP_y9 | G47: =INDEX(INDIRECT(dms_RPT),dms_CRCP_start_row+8) -> 2022-23 | H47: FRCP_y9 | I47: =INDEX(INDIRECT(dms_RPT),dms_FRCP_start_row+8) -> 2027-28
B48: 1996-97 | C48: 1997 | D48: PRCP_y10 | E48: =INDEX(INDIRECT(dms_RPT),dms_PRCP_start_row+9) -> 2018-19 | F48: CRCP_y10 | G48: =INDEX(INDIRECT(dms_RPT),dms_CRCP_start_row+9) -> 2023-24 | H48: FRCP_y10 | I48: =INDEX(INDIRECT(dms_RPT),dms_FRCP_start_row+9) -> 2028-29
B49: 1997-98 | C49: 1998 | D49: PRCP_y11 | E49: =INDEX(INDIRECT(dms_RPT),dms_PRCP_start_row+10) -> 2019-20 | F49: CRCP_y11 | G49: =INDEX(INDIRECT(dms_RPT),dms_CRCP_start_row+10) -> 2024-25 | H49: FRCP_y11 | I49: =INDEX(INDIRECT(dms_RPT),dms_FRCP_start_row+10) -> 2029-30
B50: 1998-99 | C50: 1999 | D50: PRCP_y12 | E50: =INDEX(INDIRECT(dms_RPT),dms_PRCP_start_row+11) -> 2020-21 | F50: CRCP_y12 | G50: =INDEX(INDIRECT(dms_RPT),dms_CRCP_start_row+11) -> 2025-26 | H50: FRCP_y12 | I50: =INDEX(INDIRECT(dms_RPT),dms_FRCP_start_row+11) -> 2030-31
B51: 1999-00 | C51: 2000 | D51: PRCP_y13 | E51: =INDEX(INDIRECT(dms_RPT),dms_PRCP_start_row+12) -> 2021-22 | F51: CRCP_y13 | G51: =INDEX(INDIRECT(dms_RPT),dms_CRCP_start_row+12) -> 2026-27 | H51: FRCP_y13 | I51: =INDEX(INDIRECT(dms_RPT),dms_FRCP_start_row+12) -> 2031-32
B52: 2000-01 | C52: 2001 | D52: PRCP_y14 | E52: =INDEX(INDIRECT(dms_RPT),dms_PRCP_start_row+13) -> 2022-23 | F52: CRCP_y14 | G52: =INDEX(INDIRECT(dms_RPT),dms_CRCP_start_row+13) -> 2027-28 | H52: FRCP_y14 | I52: =INDEX(INDIRECT(dms_RPT),dms_FRCP_start_row+13) -> 2032-33
B53: 2001-02 | C53: 2002 | D53: PRCP_y15 | E53: =INDEX(INDIRECT(dms_RPT),dms_PRCP_start_row+14) -> 2023-24 | F53: CRCP_y15 | G53: =INDEX(INDIRECT(dms_RPT),dms_CRCP_start_row+14) -> 2028-29 | H53: FRCP_y15 | I53: =INDEX(INDIRECT(dms_RPT),dms_FRCP_start_row+14) -> 2033-34
B54: 2002-03 | C54: 2003 | D54: PRCP_y16 | E54: =INDEX(INDIRECT(dms_RPT),dms_PRCP_start_row+15) -> 2024-25 | F54: CRCP_y16 | G54: =INDEX(INDIRECT(dms_RPT),dms_CRCP_start_row+15) -> 2029-30 | H54: FRCP_y16 | I54: =INDEX(INDIRECT(dms_RPT),dms_FRCP_start_row+15) -> 2034-35
B55: 2003-04 | C55: 2004
B56: 2004-05 | C56: 2005
B57: 2005-06 | C57: 2006 | E57: CRY - FRY
B58: 2006-07 | C58: 2007 | D58: dms_y1 | E58: =IFERROR(INDEX(INDIRECT(dms_RPT),dms_CRY_start_row),0) -> 2011-12
B59: 2007-08 | C59: 2008 | D59: dms_y2 | E59: =IFERROR(INDEX(INDIRECT(dms_RPT),dms_CRY_start_row+1),0) -> 2012-13
B60: 2008-09 | C60: 2009 | D60: dms_y3 | E60: =IFERROR(INDEX(INDIRECT(dms_RPT),dms_CRY_start_row+2),0) -> 2013-14
B61: 2009-10 | C61: 2010 | D61: dms_y4 | E61: =IFERROR(INDEX(INDIRECT(dms_RPT),dms_CRY_start_row+3),0) -> 2014-15
B62: 2010-11 | C62: 2011 | D62: dms_y5 | E62: =IFERROR(INDEX(INDIRECT(dms_RPT),dms_CRY_start_row+4),0) -> 2015-16
B63: 2011-12 | C63: 2012 | D63: dms_y6 | E63: =IFERROR(INDEX(INDIRECT(dms_RPT),dms_CRY_start_row+5),0) -> 2016-17
B64: 2012-13 | C64: 2013 | D64: dms_y7 | E64: =IFERROR(INDEX(INDIRECT(dms_RPT),dms_CRY_start_row+6),0) -> 2017-18
B65: 2013-14 | C65: 2014 | D65: dms_y8 | E65: =IFERROR(INDEX(INDIRECT(dms_RPT),dms_CRY_start_row+7),0) -> 2018-19
B66: 2014-15 | C66: 2015 | D66: dms_y9 | E66: =IFERROR(INDEX(INDIRECT(dms_RPT),dms_CRY_start_row+8),0) -> 2019-20
B67: 2015-16 | C67: 2016 | D67: dms_y10 | E67: =IFERROR(INDEX(INDIRECT(dms_RPT),dms_CRY_start_row+9),0) -> 2020-21
B68: 2016-17 | C68: 2017 | D68: dms_y11 | E68: =IFERROR(INDEX(INDIRECT(dms_RPT),dms_CRY_start_row+10),0) -> 2021-22
B69: 2017-18 | C69: 2018 | D69: dms_y12 | E69: =IFERROR(INDEX(INDIRECT(dms_RPT),dms_CRY_start_row+11),0) -> 2022-23
B70: 2018-19 | C70: 2019 | D70: dms_y13 | E70: =IFERROR(INDEX(INDIRECT(dms_RPT),dms_CRY_start_row+12),0) -> 2023-24
B71: 2019-20 | C71: 2020 | D71: dms_y14 | E71: =IFERROR(INDEX(INDIRECT(dms_RPT),dms_CRY_start_row+13),0) -> 2024-25
B72: 2020-21 | C72: 2021 | D72: dms_y15 | E72: =IFERROR(INDEX(INDIRECT(dms_RPT),dms_CRY_start_row+14),0) -> 2025-26
B73: 2021-22 | C73: 2022 | D73: dms_y16 | E73: =IFERROR(INDEX(INDIRECT(dms_RPT),dms_CRY_start_row+15),0) -> 2026-27
B74: 2022-23 | C74: 2023
B75: 2023-24 | C75: 2024
B76: 2024-25 | C76: 2025
B77: 2025-26 | C77: 2026
B78: 2026-27 | C78: 2027
B79: 2027-28 | C79: 2028
B80: 2028-29 | C80: 2029
B81: 2029-30 | C81: 2030
B82: 2030-31 | C82: 2031
B83: 2031-32 | C83: 2032
B84: 2032-33 | C84: 2033
B85: 2033-34 | C85: 2034
B86: 2034-35 | C86: 2035
B87: 2035-36 | C87: 2036
B88: 2036-37 | C88: 2037

Sheet AER ETL (hidden)
B1: AER ETL INFORMATION
B3: USES NAMED RANGES FLAG | C3: yes | D3: dms_Defined_Names_Used
B5: IF THIS IS AN ABC RIN - make sure the the named range CRY is applied and the named range dms_dollar_nom_UOM is applied
B6: IF THIS IS A RESET RIN - make sure the named ranges CRY and dms_dollar_nom_UOM are NOT present in the workbook
B7: FOR ABC RINS THAT SPAN MULTIPLE YEARS - make sure MultiYear Flag is set and final year entered as required
B9: Full trading name | C9: =INDEX(dms_TradingNameFull_List,MATCH(dms_TradingName,dms_TradingName_List)) -> Jemena Electricity | E9: dms_TradingNameFull
B10: Trading name | C10: =dms_TradingName -> Jemena Electricity
A11: Selected here | B11: Model / RIN | C11: ARR | D11: dms_Model
A12: Read from Business & other details | B12: Source | C12: Reporting | D12: dms_Source
B13: Data quality | C13: =dms_Selected_Quality -> Consolidated | D13: dms_DQ_1
B14: Data status | C14: =dms_Selected_Status -> Public | D14: dms_DQ_2
B15: Amendment reason | C15: =dms_Amendment_Text -> 0 | F15: dms_AmendmentReason
B16: Submission date | C16: =dms_Typed_Submission_Date -> 2020-01-31 | D16: dms_SubmissionDate
A18: Redundant | B18: EBSS - First application of scheme in forthcoming period? | C18: No
A19: Pre-populated from lookup table | B19: Data ingestion data quality | C19: =IF(dms_DQ_2="Confidential","Consolidated","Public") -> Public | D19: dms_DataQuality | E19: =IF(dms_DQ_2="Confidential","Consolidated","Public")
B20: Sector | C20: =INDEX(dms_Sector_List,MATCH(dms_TradingName,dms_TradingName_List)) -> Electricity | D20: dms_Sector | E20: =INDEX(dms_Sector_List,MATCH(dms_TradingName,dms_TradingName_List))
B21: Segment | C21: =INDEX(dms_Segment_List,MATCH(dms_TradingName,dms_TradingName_List)) -> Distribution | D21: dms_Segment | E21: =INDEX(dms_Segment_List,MATCH(dms_TradingName,dms_TradingName_List))
B22: Regulatory Year Ending | C22: =dms_RYE_result -> 2018 | D22: dms_RYE | E22: =IF(dms_MultiYear_Flag=1,LEFT(dms_Specified_FinalYear,2)&RIGHT(dms_Specified_FinalYear,2),INDEX(dms_RYE_Formula_Result,MATCH(dms_Model,dms_Model_List)))
B23: Reporting Period Type | C23: =INDEX(dms_RPT_List,MATCH(dms_TradingName,dms_TradingName_List)) -> Financial | D23: dms_RPT | E23: =INDEX(dms_RPT_List,MATCH(dms_TradingName,dms_TradingName_List))
B24: EB/CA Unit of Measure for Monetary Values | C24: $0s | D24: dms_dollar_nom_UOM | E24: If the cover sheet is attached to an ABC RIN apply the NAMED RANGE to the cell
B25: Security Classification | C25: Public | D25: dms_Classification | E25: Always Public
B26: Jurisdiction | C26: =INDEX(dms_JurisdictionList,MATCH(dms_TradingName,dms_TradingName_List)) -> Vic | D26: dms_Jurisdiction | E26: =INDEX(dms_JurisdictionList,MATCH(dms_TradingName,dms_TradingName_List))
A27: Relevant for PTRM, RFMs and Reset RINS | B27: $ REAL REFERENCES
B28: Does the named range CRY exist in this file? | C28: =IFERROR(CRY,"NO") -> 2011-12
B29: CRY-1 (last full calendar year before CRY) | C29: =IFERROR(IF(dms_RPT="calendar",CRY-1,LEFT(CRY,4)),"CRY not present") -> 2011 | D29: dms_Cal_Year_B4_CRY | E29: '=IF(dms_RPT="financial",VALUE(LEFT(dms_SingleYear_FinalYear_Result,4)),VALUE(LEFT(dms_SingleYear_FinalYear_Result,4)-1))
B30: Dollar $ real month | C30: =INDEX(dms_RPTMonth_List,MATCH(dms_TradingName,dms_TradingName_List)) -> June | D30: dms_RPTMonth | E30: =INDEX(dms_RPTMonth_List,MATCH(dms_TradingName,dms_TradingName_List))
B31: Dollar $ real (the last month before the FRCP_y1) | C31: =IF(dms_SingleYearModel="yes",CONCATENATE(dms_RPTMonth)&" "&VALUE((LEFT(CRY,2))&RIGHT(CRY,2)),CONCATENATE(dms_RPTMonth)&" "&dms_DollarReal_year) -> June 2012 | D31: dms_DollarReal | E31: =IF(SUM(dms_SingleYear_Model)>0,CONCATENATE(dms_RPTMonth)&" "&VALUE((LEFT(CRY,2))&RIGHT(CRY,2)),CONCATENATE(dms_RPTMonth)&" "&VALUE((LEFT(dms_RYE,2)&RIGHT(dms_RYE,2))))
B32: Dollar $ real previous year (PRCP_y5) | C32: =IF(dms_SingleYearModel="yes",CONCATENATE(dms_RPTMonth)&" "&VALUE((LEFT(CRY,2))&RIGHT(CRY,2)),CONCATENATE(dms_RPTMonth)&" "&dms_Previous_DollarReal_year) -> June 2012 | D32: dms_DollarReal_Prev | E32: =IF(SUM(dms_SingleYear_Model)>0,CONCATENATE(dms_RPTMonth)&" "&VALUE(((LEFT(CRY,2))&RIGHT(CRY,2))-1),CONCATENATE(dms_RPTMonth)&" "&VALUE(((LEFT(dms_CRCP_FirstYear_Result,2)&RIGHT(dms_CRCP_FirstYear_Result,2))))-1)
B33: PTRM/ RFMs
B34: Form of control | C34: =INDEX(dms_FormControl_List,MATCH(dms_TradingName,dms_TradingName_List)) -> Revenue cap | D34: dms_FormControl | E34: =INDEX(dms_FormControl_List,MATCH(dms_TradingName,dms_TradingName_List))
A35: All potential values for Regulatory Years or RYEs as calculated | B35: This block works out the various RYE's for ALL RIN types and MODELS
B36: dms_start_year | C36: =FRCP_y1 -> 2019-20 | D36: FRCP_y1 from cover sheet
B37: dms_CRY_start_year | C37: =IFERROR(CRY,CRCP_y4) -> 2011-12
B38: dms_CRY_start_row | C38: =IFERROR(MATCH(dms_CRY_start_year,INDIRECT(dms_RPT),0),0) -> 25
B39: dms_FRCP_start_row | C39: =MATCH(dms_start_year,INDIRECT(dms_RPT),0) -> 33 | D39: Uses FRCP_y1 as a start reference
B40: dms_CRCP_start_row | C40: =dms_FRCP_start_row-dms_CRCPlength_Num -> 28 | D40: Uses the value in dms_CRCPlength_Num
B41: dms_PRCP_start_row | C41: =dms_FRCP_start_row-dms_CRCPlength_Num-dms_PRCPlength_Num -> 23 | D41: Uses the value in dms_CRCPlength_Num and dms_PRCPlength_Num
B42: dms_RYE_start_row | C42: =dms_FRCP_start_row+(dms_FRCPlength_Num-1) -> 37 | D42: Uses the value in dms_FRCPlength_Num-1
B43: FRCP_start_year | C43: =INDEX(INDIRECT(dms_RPT),dms_FRCP_start_row) -> 2019-20 | D43: Converts the FRCP start row to display the year
B44: CRCP_start_year | C44: =INDEX(INDIRECT(dms_RPT),dms_CRCP_start_row) -> 2014-15 | D44: Converts the CRCP start row to display the year
B45: PRCP_start_year | C45: =INDEX(INDIRECT(dms_RPT),dms_PRCP_start_row) -> 2009-10 | D45: Converts the PRCP start row to display the year
B46: FRCP_final_year | C46: =INDEX(INDIRECT(dms_RPT),dms_FRCP_start_row+dms_FRCPlength_Num-1) -> 2023-24 | D46: Finds the FRCP final year
B47: CRCP_final_year | C47: =INDEX(INDIRECT(dms_RPT),dms_CRCP_start_row+dms_CRCPlength_Num-1) -> 2018-19 | D47: Finds the CRCP final year
B48: PRCP_final_year | C48: =INDEX(INDIRECT(dms_RPT),dms_PRCP_start_row+dms_FRCPlength_Num-1) -> 2013-14 | D48: Finds the PRCP final year
B49: dms_Reset_final_year | C49: =INDEX(INDIRECT(dms_RPT),dms_RYE_start_row) -> 2023-24 | D49: For Resets and PTRM/RFMs (same as FRCP_final_year)
B50: dms_SpecifiedYear_final_year | C50: =FRY -> 2017-18 | D50: FRY from cover sheet
B51: dms_DollarReal_year | C51: =LEFT(CRCP_final_year,2)&RIGHT(CRCP_final_year,2) -> 2019 | D51: Uses the value in CRCP_final_year
B52: dms_Previous_DollarReal_year | C52: =LEFT(PRCP_final_year,2)&RIGHT(PRCP_final_year,2) -> 2014 | D52: Uses the value in PRCP_final_year
B53: dms_CRY_RYE | C53: =IFERROR(LEFT(CRY,2)&RIGHT(CRY,2),0) -> 2012 | D53: For ABC single year RINS
B54: dms_Reset_RYE | C54: =IF(dms_Model_Span>1,IF(dms_Model="RFM",(LEFT(dms_DollarReal_year,2)&RIGHT(dms_DollarReal_year,2)),(LEFT(dms_Reset_final_year,2)&RIGHT(dms_Reset_final_year,2))),0) -> 0 | D54: If model span > 1 then uses dms_Reset_RYE otherwise it's a multi year ABC and uses dms_Specified_RYE
B55: dms_Specified_RYE | C55: =IF(dms_MultiYear_ResponseFlag="Yes",(LEFT(dms_Specified_FinalYear,2)&RIGHT(dms_Specified_FinalYear,2)),0) -> 2018 | D55: If multi year ABC - uses dms_Specified_FinalYear
B56: dms_Model_Span | C56: =INDEX(dms_Model_Span_List,MATCH(dms_Model,dms_Model_List)) -> 1 | D56: A result of 5 is used to signify that it is more than 1 year span
B57: dms_RYE_result | C57: =IF(dms_MultiYear_ResponseFlag="yes",dms_Specified_RYE,(IF(dms_Model_Span>1,dms_Reset_RYE,dms_CRY_RYE))) -> 2018 | D57: Nested IF - feeds into dms_RYE
B58: dms_Reset_Span | C58: =IF(dms_Reset_RYE>0,CONCATENATE(FRCP_y1," to ",FRCP_final_year),0) -> 0 | D58: Reset span of years as text
B59: dms_SpecifiedYear_Span | C59: =IF(dms_Specified_RYE>0,CONCATENATE(CRY," to ",dms_Specified_FinalYear),0) -> 2011-12 to 2017-18 | D59: Multi year ABC span of years as text
B60: dms_Header_Span | C60: =IF(dms_MultiYear_Flag=1,dms_SpecifiedYear_Span,IF(dms_Model_Span>1,dms_Reset_Span,CRY)) -> 2011-12 to 2017-18 | D60: NESTED IF - for Sheet Headers
B61: ABC RINS THAT SPAN MULTIPLE YEARS
B62: This is a multi year ABC RIN? | C62: Yes
C63: =IF(dms_MultiYear_ResponseFlag="No",0,1) -> 1 | D63: dms_MultiYear_Flag | E63: This is set from the answer provided above
C64: =IF(dms_MultiYear_Flag=1,FRY,"not a Multiple year submission") -> 2017-18 | D64: dms_Specified_FinalYear | E64: The result here is returned to dms_CRCP_FinalYear_Result if response to Q in C73 is "yes" and dms_MultiYear_Flag is set to 1
B65: Start year for 5.2 in Multi year ABC RINS | C65: =IFERROR(IF(dms_MultiYear_Flag=1,FRY,CRY),"not an ABC") -> 2017-18 | D65: dms_0502_Inst_Year | E65: =IF(dms_MultiYear_Flag=1,FRY,CRY) | G65: For single year RINS this is CRY - multi year RINS need to start a the end of the span of years (ie. FRY)
B66: WHAT IS THE RYE?
B67: Reg Period Lengths
B68: PRCP length in years | C68: =INDEX(dms_PRCPlength_List,MATCH(dms_TradingName,dms_TradingName_List)) -> 5 | D68: dms_PRCPlength_Num | E68: =INDEX(dms_PRCPlength_List,MATCH(dms_TradingName,dms_TradingName_List))
B69: CRCP length in years | C69: =INDEX(dms_CRCPlength_List,MATCH(dms_TradingName,dms_TradingName_List)) -> 5 | D69: dms_CRCPlength_Num | E69: =INDEX(dms_CRCPlength_List,MATCH(dms_TradingName,dms_TradingName_List))
B70: FRCP length in years | C70: =INDEX(dms_FRCPlength_List,MATCH(dms_TradingName,dms_TradingName_List)) -> 5 | D70: dms_FRCPlength_Num | E70: =INDEX(dms_FRCPlength_List,MATCH(dms_TradingName,dms_TradingName_List))
B71: Single year RIN?
B72: Single Year ABC RIN ? | C72: =IF(dms_Model="EB",1,0) -> 0 | D72: dms_EB
C73: =IF(dms_Model="CA",1,0) -> 0 | D73: dms_CA | E73: =dms_SingleYear_Model
C74: =IF(dms_Model="ARR",1,0) -> 1 | D74: dms_ARR
B75: Is this a single Year ABC RIN? | C75: =IF(SUM(dms_SingleYear_Model)=1,"yes","no") -> yes | D75: dms_SingleYearModel | E75: =IF(SUM(dms_SingleYear_Model)=1,"yes","no")
B76: Single Year Final Year Result | C76: =IF(AND(dms_SingleYearModel="yes",dms_MultiYear_Flag=0),CRY,0) -> 0 | D76: dms_SingleYear_FinalYear_Result | E76: =IFERROR(IF(SUM(dms_SingleYear_Model)<>0,(INDIRECT(dms_SingleYear_FinalYear_Ref)),"not a single year RIN"),"CRY not present")
B77: Multi year RIN?
B79: Multi Year Reset/Model? | C79: =IF(dms_Model_Span>1,"yes","no") -> no
B80: Final year result for Reset/Model | C80: =IF(dms_Model_Span>1,dms_Reset_final_year,0) -> 0
B82: Multi Year ABC RIN? | C82: =IF(dms_MultiYear_Flag=1,"yes","no") -> yes
B83: Final year result for ABC multi year | C83: =IF(dms_MultiYear_Flag=1,C50,0) -> 2017-18
B85: EB RINS
B86: Calendar Year for table 3.6 data | C86: =IFERROR(IF(dms_Segment="Transmission",dms_Cal_Year_B4_CRY,CRY),"CRY not present") -> 2011-12 | D86: dms_0306_Year | E86: =IF(dms_Segment="Transmission",dms_Cal_Year_B4_CRY,CRY)
B87: CA RINS
B88: Find how many rows in tables 6.3 sustained interruptions? | E88: dms_060301_MaxRows only returns a valid value when cover sheet is attached to a CA file
C89: =IF(dms_Model<>"CA","not a CA","Is a CA") -> not a CA | E89: =IF(dms_Model<>"CA","not a CA","Is a CA")
B90: dms_060301_Avg_Duration_Sustained_Int_Values present? | C90: =IFERROR(IF(INDEX(dms_060301_Avg_Duration_Sustained_Int_Values,1,1)<>"","yes","no"),"no") -> no | D90: dms_060301_checkvalue | E90: =IFERROR(IF(INDEX(dms_060301_Avg_Duration_Sustained_Int_Values,1,1)<>"","yes","no"),"no")
C91: =IF(AND(dms_Model="CA",(dms_060301_checkvalue="no")),"error - NR not present","no errors") -> no errors | E91: =IF(AND(dms_Model="CA",(dms_060301_checkvalue="no")),"error - NR not present","no errors")
B92: Table 6.3.1 - last row reference | C92: =IFERROR(IF(dms_Model="CA",LOOKUP(2,1/(dms_060301_Avg_Duration_Sustained_Int_Values<>""),(ROW(dms_060301_Avg_Duration_Sustained_Int_Values))),"not a CA"),"6.3 not present") -> not a CA | D92: dms_060301_LastRow | E92: =IFERROR(IF(dms_Model="CA",LOOKUP(2,1/(dms_060301_Avg_Duration_Sustained_Int_Values<>""),(ROW(dms_060301_Avg_Duration_Sustained_Int_Values))),"not a CA"),"6.3 not present")
B93: Table 6.3.1 - max number rows | C93: =IFERROR(IF(dms_Model="CA",(dms_060301_LastRow-15),"not a CA"),"error") -> not a CA | D93: dms_060301_MaxRows | E93: =IFERROR(IF(dms_Model="CA",(dms_060301_LastRow-15),"not a CA"),"error")
B94: Table 6.6.3 - Public lighting repair - no. business days | C94: =INDEX(dms_663_List,MATCH(dms_TradingName,dms_TradingName_List)) -> 2 | D94: dms_663 | E94: =INDEX(dms_663_List,MATCH(dms_TradingName,dms_TradingName_List))
B95: ARR or RESET RINS
B96: How many rows in tables 6.1 or 6.7? (leap year?) | C96: insert dms_LeapYear NR if required | E96: 'dms_LeapYear is used to determine dms_060701_Max_Rows BUT it is only found on worksheet 6.1 or 6.7 and the date value in the cell is used to determine whether it is a leap year
B97: Is dms_LeapYear named range present? | C97: =IFERROR(IF(dms_LeapYear,"yes"),"no") -> no
B98: Table 6.7.1 - includes a leap year? | C98: =IFERROR(IF(MONTH(DATE(YEAR(dms_LeapYear),2,29))=2,"is a leap year","not a leap year"), "dms_LeapYear not present") -> dms_LeapYear not present | D98: dms_LeapYear_Result | E98: =IFERROR(IF(MONTH(DATE(YEAR(dms_LeapYear),2,29))=2,"is a leap year","not a leap year"),"dms_LeapYear not present")
B99: MaxRows if Reset and leap year | C99: =IF(dms_LeapYear_Result="is a leap year",1827,1826) ->  | D99: dms_060701_Reset_MaxRows | E99: =IF(dms_LeapYear_Result="is a leap year",1827,1826) | H99: number of days present in Reset RIN table
B100: MaxRows if ARR and leap year | C100: =IF(dms_LeapYear_Result="is a leap year",366,365) ->  | D100: dms_060701_ARR_MaxRows | E100: =IF(dms_LeapYear_Result="is a leap year",366,365) | H100: number of days present in ARR RIN table
B101: Table 6.7.1 - Max Rows (leap year/ non leap year) | C101: =IF(dms_Model="ARR",dms_060701_ARR_MaxRows,IF(dms_Model="Reset",dms_060701_Reset_MaxRows,"not a relevant RIN type")) ->  | D101: dms_060701_MaxRows | E101: =IF(dms_Model="ARR",dms_060701_ARR_MaxRows,IF(dms_Model="Reset",dms_060701_Reset_MaxRows,"not a relevant RIN type"))
B102: How many columns in 6.7? (4 or 5 feeder categories) | C102: =IF(dms_FifthFeeder_flag_NSP="NO","This NSP has only 4 feeder categories","This NSP has 5 feeder categories") -> This NSP has only 4 feeder categories
B103: Table 6.7.1 - Last column (# of feeder categories > 4) | C103: =IF(dms_FifthFeeder_flag_NSP="NO",10,12) -> 10 | D103: dms_060701_MaxCols | E103: =IF(dms_FifthFeeder_flag_NSP="NO",8,10)
B104: Table 6.7.1 - Number of offset rows | C104: =IF(dms_Model="ARR",15,9) -> 15 | D104: dms_060701_OffsetRows | E104: =IF(dms_Model="ARR",15,9)
B105: Start date for telephone answering in 6.1 or 6.7? | E105: Using 060101 as naming standard not 060701 for start dates
B106: Table 6.1.1 and 6.7.1 - Start Date as Text | C106: =IF(dms_SingleYearModel="yes",(CONCATENATE(IF(LEN(CRY)=4,"1-Jan-","1-Jul-"),LEFT(CRY,4))),(CONCATENATE(IF(LEN(PRCP_y4)=4,"1-Jan-","1-Jul-"),LEFT(PRCP_y4,4)))) -> 1-Jul-2011 | D106: dms_060101_StartDateTxt | E106: =IF(SUM(dms_SingleYear_Model)>1,(CONCATENATE(IF(LEN(CRY)=4,"1-Jan-","1-Jul-"),LEFT(CRY,4))),(CONCATENATE(IF(LEN(CRCP_y4)=4,"1-Jan-","1-Jul-"),LEFT(CRCP_y4,4))))
B107: Table 6.1.1 and 6.7.1 - Start Date as Date Value | C107: =DATEVALUE(dms_060701_StartDateTxt) -> 40725 | D107: dms_060101_StartDateVal | E107: =DATEVALUE(dms_060701_StartDateTxt)
B108: ARRs
B109: How many rows in table 6.8? | C109: insert dms_060801_StartCell NR if required | E109: dms_060801_StartCell is only found on worksheet 6.8 and is used to determine the starting date for the date range
B110: Is dms_060801_StartCell named range present? | C110: yes | E110: =IFERROR(IF((ROW(dms_060801_StartCell)-1)=1,"yes","yes"),"no")
B111: Table 6.8 - Number of offset rows | C111: 12 | D111: dms_0608_OffsetRows | E111: =IFERROR(IF(dms_Model="ARR",(ROW(dms_060801_StartCell)-1),"not an ARR"),"6.8 error")
B112: Table 6.8 - Last row | C112: 0 | D112: dms_0608_LastRow | E112: =IFERROR(IF(dms_060801_StartCell<>"",IF(dms_Model="ARR",(LOOKUP(2,1/(dms_060801_01_Values<>""),(ROW(dms_060801_01_Values)))),"not an ARR"),0),"0")
B113: Table 6.8 - MaxRows | C113: =IFERROR(IF(dms_Model="ARR",(MAX(0,dms_0608_LastRow-dms_0608_OffsetRows)),"not an ARR"),"0") -> 0 | D113: dms_060801_MaxRows | E113: =IFERROR(IF(dms_Model="ARR",(MAX(0,dms_0608_LastRow-dms_0608_OffsetRows)),"not an ARR"),"0")
B114: TNSP RESET RINS
B115: Table 7.9.4 only appears in TNSPs Reset RIN
B116: Table 7.9.4 - first year | C116: =LEFT(PRCP_y3,4) -> 2011 | D116: dms_070904_Start_Year | E116: =LEFT(PRCP_y3,4)
B118: MISC
B119: Distribution Determination Reference | C119: =INDEX(dms_DeterminationRef_List,MATCH(dms_TradingName,dms_TradingName_List)) -> 2016-20 Distribution Determination | D119: dms_DeterminationRef
B120: Public lighting NSP? | C120: =INDEX(dms_Public_Lighting_List,MATCH(dms_TradingName,dms_TradingName_List)) -> YES | D120: dms_Public_Lighting | E120: =INDEX(dms_Public_Lighting_List,MATCH(dms_TradingName,dms_TradingName_List))
B121: CBD Feeder for this business | C121: =INDEX(dms_CBD_flag,MATCH(dms_TradingName,dms_TradingName_List)) -> NO | D121: dms_CBD_flag_NSP
B122: Urban Feeder for this business | C122: =INDEX(dms_Urban_flag,MATCH(dms_TradingName,dms_TradingName_List)) -> YES | D122: dms_Urban_flag_NSP
B123: Short rural Feeder for this business | C123: =INDEX(dms_ShortRural_flag,MATCH(dms_TradingName,dms_TradingName_List)) -> YES | D123: dms_ShortRural_flag_NSP
B124: Long rural Feeder for this business | C124: =INDEX(dms_LongRural_flag,MATCH(dms_TradingName,dms_TradingName_List)) -> NO | D124: dms_LongRural_flag_NSP
B125: Fifth Feeder Category (eg. TasNetworks (D)) | C125: =INDEX(dms_FeederType_5_flag,MATCH(dms_TradingName,dms_TradingName_List)) -> NO | D125: dms_FifthFeeder_flag_NSP | E125: =INDEX(dms_FeederType_5_flag,MATCH(dms_TradingName,dms_TradingName_List))
B127: DISCARD FILES
B128: discard this record? | C128: NO | D128: dms_DISCARD | E128: If record is to be discarded from DB set this flag to YES
B130: SUBSET FILES
B131: Is this Submission File a Subset File | C131: YES | D131: dms_Partial
B134: REGULATORY YEARS FOR MULTI RYE SUBMISSIONS
B135: Multiple RYE flag | C135: NO | D135: dms_Multi_RYE_flag
C136: Manually specify RYE | D136: Named ranges to apply
C137: 2013 | D137: dms_RYE_01
C138: 2014 | D138: dms_RYE_02
C139: 2015 | D139: dms_RYE_03
C140: 2016 | D140: dms_RYE_04
C141: 2017 | D141: dms_RYE_05
C142: 2018 | D142: dms_RYE_06
C143: 2019 | D143: dms_RYE_07
C144: 2020 | D144: dms_RYE_08
C145: 2021 | D145: dms_RYE_09

Sheet Instructions
B2: =CONCATENATE(dms_Sector," ",dms_Segment," ", "Network Service Provider") -> Electricity Distribution Network Service Provider
B3: Historical Annual Reporting RIN - Financial Years
B4: =CONCATENATE("This template is to be used by ",dms_TradingNameFull," to fulfil its reporting obligations to the AER.") -> This template is to be used by Jemena Electricity to fulfil its reporting obligations to the AER.
B5: INSTRUCTIONS
B6: GENERAL | C6: Complete the Business & other details worksheet before entering data or values in any other worksheets. The Business & other details worksheet is linked to other worksheets within the workbook and automatically generates certain column headings and conditional formatting.
B8: CONFIDENTIAL INFORMATION | C8: Businesses must use the macro at the top of each worksheet to identify confidential information in the confidential workbook.
C9: -Do this by selecting the cell or cells that contain confidential information and then run the Mark selection CONFIDENTIAL macro. This will format the cells a specific colour that is identified by the AER's database which in turn marks that information as confidential. -To reverse this, select the cell or cells and run the Return selection to NON-CONFIDENTIAL macro.
B11: RESPONSES | C11: Please return four (4) files to the AER: 1. A confidential version which must contain a complete set of all responses with confidential information marked using the Mark selection CONFIDENTIAL macro and which has been completed using the locked template file provided by the AER. 2. An actual and an estimate version with confidential information marked using the Mark selection CONFIDENTIAL macro and which has been completed using the locked template file provided by the AER. 3. A public version with confidential information either removed completely or aggregated in some form together with writtten consent to disclose the public version of the response. Use the drop down box on the Business and other details worksheet to identify the file as either confidential ('consolidated') or public.
B13: AMENDMENTS | C13: If an NSP wishes to correct data previously submitted to the AER it should resubmit that data using the original completed submission as the starting point. Please make any necessary changes to the data. Data that is not being amended should be left unchanged. NSPs must identify the reason for the amendments in the Amendment Reason box on the Business and other details worksheet. NSPs may provide further details regarding any amendments in the Amendments worksheet. .
C14: NSP may use Amended Data macro to highlight cells that contain amended data. NB: if data is also CONFIDENTIAL, re-apply the Confidentiality macro after applying the Amended macro
C15: Please resubmit two (2) files - a confidential version and a public version of the amended submission to the AER
B17: UNITS OF MEASURE | C17: All amounts are to be unrounded and reported on a one for one basis: that is 1000 is to be entered as '1000'. Applicable units of measure may be identified in the table column headings or row descriptors.
B19: INPUT / NON-INPUT CELLS
D20: Yellow = Input cell (mandatory)
D21: Darker yellow = input cell (mandatory)
D22: Orange = input cell (if data available)
D23: Grey = Not applicable/No inputs required
D24: PLEASE DO NOT ENTER TEXT into cells that are to contain numeric data.
B27: NAVIGATION | C27: Many tables in the worksheets have been "grouped" to allow for easy navigation. To ungroup or group data use the outline symbols in the left margin (for Row groupings) or above the columns (for column groupings).

Sheet Contents
C1: =INDEX(dms_Worksheet_List,MATCH(dms_Model,dms_Model_List)) -> HISTORICAL ANNUAL REPORTING - FINANCIAL YEARS
C2: =INDEX(dms_TradingNameFull_List,MATCH(dms_TradingName,dms_TradingName_List)) -> Jemena Electricity
C3: =dms_Header_Span -> 2011-12 to 2017-18
D6: CONTENTS
D8: SUBMISSION | E8: Business & other details
D10: EXPENDITURE | E10: 2.11 Labour
D12: ALTERNATIVE CONTROL | E12: 4.1 Public lighting
D14: SERVICE | E14: 3.6 Quality of services
E16: 3.6.8 Network-feeders 2011-12
E17: 3.6.8 Network-feeders 2012-13
E18: 3.6.8 Network-feeders 2013-14
E19: 3.6.8 Network-feeders 2014-15
E20: 3.6.8 Network-feeders 2015-16
E21: 3.6.8 Network-feeders 2016-17
E22: 3.6.9 Network-reliability 2017-18
E24: 6.2 STPIS Reliability
E25: 6.6 STPIS Customer Service
E26: 6.7 STPIS Daily Performance
E27: 6.8 STPIS Exclusions
E28: 6.9 STPIS - GSL
D30: OTHER | E30: 7.10 Juris Scheme
E31: 7.11 DMIA-DMIAM
E32: 7.8 Avoided TUOS Payments
E33: 9.5 TUoS
D35: FINANCIAL | E35: 8.1 Income
E36: 8.2 Capex
E37: 8.4 Opex

Sheet Business & other details
V1: =INDEX(dms_Worksheet_List,MATCH(dms_Model,dms_Model_List)) -> HISTORICAL ANNUAL REPORTING - FINANCIAL YEARS
V2: =INDEX(dms_TradingNameFull_List,MATCH(dms_TradingName,dms_TradingName_List)) -> Jemena Electricity
V3: =dms_Header_Span -> 2011-12 to 2017-18
V4: BUSINESS & OTHER DETAILS
V6: INSTRUCTIONS
V7: Complete the following business details regulatory template before entering data or values in any other regulatory template. This regulatory template is linked to other cells within the spreadsheet and automatically generates column headings and conditional formatting to distinguish business specific input and non-input cells.
Q9: SUBMISSION PARTICULARS INPUT SHEET
V12: ENTITY DETAILS
V14: Business Name
V16: Short name | AL16: Jemena Electricity
V17: ACN/ABN | AL17: =INDEX(dms_ABN_List,MATCH(dms_TradingName,dms_TradingName_List)) -> 82064651083
V21: Business Address | BQ21: Postal Address
V23: Address 1 | AL23: =INDEX(dms_Addr1_List,MATCH(dms_TradingName,dms_TradingName_List)) -> Level 16 | BI23: Address 1 | BQ23: =INDEX(dms_PAddr1_List,MATCH(dms_TradingName,dms_TradingName_List)) -> PO Box 16182
V24: Address 2 | AL24: =IF(ISBLANK(INDEX(dms_Addr2_List,MATCH(dms_TradingName,dms_TradingName_List))),"",(INDEX(dms_Addr2_List,MATCH(dms_TradingName,dms_TradingName_List)))) -> 567 Collins Street | BI24: Address 2 | BQ24: =IF(ISBLANK(INDEX(dms_PAddr2_List,MATCH(dms_TradingName,dms_TradingName_List))),"",(INDEX(dms_PAddr2_List,MATCH(dms_TradingName,dms_TradingName_List)))) -> 
V25: Suburb | AL25: =INDEX(dms_Suburb_List,MATCH(dms_TradingName,dms_TradingName_List)) -> MELBOURNE | BI25: Suburb | BQ25: =INDEX(dms_PSuburb_List,MATCH(dms_TradingName,dms_TradingName_List)) -> MELBOURNE
V26: State | AL26: =INDEX(dms_State_List,MATCH(dms_TradingName,dms_TradingName_List)) -> Vic | AV26: Post code | AX26: 3000 | BI26: State | BQ26: =INDEX(dms_PState_List,MATCH(dms_TradingName,dms_TradingName_List)) -> Vic | CA26: Post code | CC26: 3000
BA28: `
V30: Contact Names
V32: Name | AL32: Matthew Serpell | BI32: Name
V33: Phone | AL33: (03) 9173 7000 | BI33: Phone
V34: Email | AL34: matthew.serpell@jemena.com.au | BI34: Email
Q39: REGULATORY CONTROL PERIODS
Z42: Forthcoming period | AL42: 2019-20 | AU42: =FRCP_y2 -> 2020-21 | BD42: =FRCP_y3 -> 2021-22 | BM42: =FRCP_y4 -> 2022-23 | BV42: =FRCP_y5 -> 2023-24
AL43: =FRCP_y6 -> 2024-25 | AU43: =FRCP_y7 -> 2025-26 | BD43: =FRCP_y8 -> 2026-27 | BM43: =FRCP_y9 -> 2027-28 | BV43: =FRCP_y10 -> 2028-29
AL44: =FRCP_y11 -> 2029-30 | AU44: =FRCP_y12 -> 2030-31 | BD44: =FRCP_y13 -> 2031-32 | BM44: =FRCP_y14 -> 2032-33 | BV44: =FRCP_y15 -> 2033-34
X46: RESETS | Z46: Current period | AL46: =CRCP_y1 -> 2014-15 | AU46: =CRCP_y2 -> 2015-16 | BD46: =CRCP_y3 -> 2016-17 | BM46: =CRCP_y4 -> 2017-18 | BV46: =CRCP_y5 -> 2018-19
AL47: =CRCP_y6 -> 2019-20 | AU47: =CRCP_y7 -> 2020-21 | BD47: =CRCP_y8 -> 2021-22 | BM47: =CRCP_y9 -> 2022-23 | BV47: =CRCP_y10 -> 2023-24
AL48: =CRCP_y11 -> 2024-25 | AU48: =CRCP_y12 -> 2025-26 | BD48: =CRCP_y13 -> 2026-27 | BM48: =CRCP_y14 -> 2027-28 | BV48: =CRCP_y15 -> 2028-29
Z50: Previous period | AL50: =PRCP_y1 -> 2009-10 | AU50: =PRCP_y2 -> 2010-11 | BD50: =PRCP_y3 -> 2011-12 | BM50: =PRCP_y4 -> 2012-13 | BV50: =PRCP_y5 -> 2013-14
AL51: =PRCP_y6 -> 2014-15 | AU51: =PRCP_y7 -> 2015-16 | BD51: =PRCP_y8 -> 2016-17 | BM51: =PRCP_y9 -> 2017-18 | BV51: =PRCP_y10 -> 2018-19
AL52: =PRCP_y11 -> 2019-20 | AU52: =PRCP_y12 -> 2020-21 | BD52: =PRCP_y13 -> 2021-22 | BM52: =PRCP_y14 -> 2022-23 | BV52: =PRCP_y15 -> 2023-24
Z54: Commencing year | AL54: 2011-12
X55: ANNUAL RINS
Z56: Ending year | AL56: 2017-18
Q60: SUBMISSION DETAILS
Z62: RIN type | AL62: =INDIRECT(dms_Model) -> Annual Reporting
Z64: Source | AL64: Reporting
X66: THIS FILE | Z66: Data Quality | AL66: Consolidated
Z68: Confidentiality Status | AL68: Public
Z70: Amended RIN Amendment Reason
Z74: Submission Date | AL74: 2020-01-31

Sheet 2.11 Labour
B1: =INDEX(dms_Worksheet_List,MATCH(dms_Model,dms_Model_List)) -> HISTORICAL ANNUAL REPORTING - FINANCIAL YEARS
B2: =INDEX(dms_TradingNameFull_List,MATCH(dms_TradingName,dms_TradingName_List)) -> Jemena Electricity
B3: =dms_Header_Span -> 2011-12 to 2017-18
B4: 2.11 LABOUR
B6: Table numbering on this worksheet starts at 2.11.3.
B8: 2.11.3 - LABOUR / NON-LABOUR EXPENDITURE SPLIT - STANDARD CONTROL SERVICES
C9: EXPENDITURE
C10: ($0's, nominal)
C11: =dms_y1 -> 2011-12 | D11: =dms_y2 -> 2012-13 | E11: =dms_y3 -> 2013-14 | F11: =dms_y4 -> 2014-15 | G11: =dms_y5 -> 2015-16 | H11: =dms_y6 -> 2016-17 | I11: =dms_y7 -> 2017-18
B12: OPEX
B13: In-house labour expenditure | C13: 0 | D13: 0 | E13: 0 | F13: 0 | G13: 0 | H13: 0 | I13: 0
B14: Labour expenditure outsourced to related parties | C14: 28248449.83 | D14: 30413669.23 | E14: 30766746.74 | F14: 42557588.59 | G14: 57188390.57 | H14: 64308693.98 | I14: 59725920.61
B15: Labour expenditure outsourced to unrelated parties | C15: 0 | D15: 0 | E15: 0 | F15: 0 | G15: 0 | H15: 0 | I15: 0
B16: Controllable non-labour expenditure | C16: 37327602.06 | D16: 40098741.14 | E16: 39057987.73 | F16: 28426123 | G16: 18845598.2 | H16: 17938580.98 | I16: 22203703.75
B17: Uncontrollable non-labour expenditure | C17: 2555495.217 | D17: 2618812.74 | E17: 2677064.861 | F17: 2722653.477 | G17: 2765709.393 | H17: 2844245.475 | I17: 2787062.814
B18: Total | C18: =SUM(C13:C17) -> 68131547.1 | D18: 73131223.11 | E18: 72501799.33 | F18: 73706365.07 | G18: 78799698.16 | H18: 85091520.44 | I18: 84716687.17
B19: CAPEX
B20: In-house labour expenditure | C20: 0 | D20: 0 | E20: 0 | F20: 0 | G20: 0 | H20: 0 | I20: 0
B21: Labour expenditure outsourced to related parties | C21: 33889388.93 | D21: 40432876.69 | E21: 40329530.21 | F21: 38886151.94 | G21: 35973041.56 | H21: 36039025.96 | I21: 44931785.74
B22: Labour expenditure outsourced to unrelated parties | C22: 0 | D22: 0 | E22: 0 | F22: 0 | G22: 0 | H22: 0 | I22: 0
B23: Controllable non-labour expenditure | C23: 93636489.52 | D23: 82203184.79 | E23: 87203121.67 | F23: 94630828.2 | G23: 91591759.4 | H23: 102154239.4 | I23: 107887204
B24: Uncontrollable non-labour expenditure | C24: 0 | D24: 0 | E24: 0 | F24: 0 | G24: 0 | H24: 0 | I24: 0
B25: Total | C25: =SUM(C20:C24) -> 127525878.4 | D25: 122636061.5 | E25: 127532651.9 | F25: 133516980.1 | G25: 127564801 | H25: 138193265.3 | I25: 152818989.7

Sheet 4.1 Public lighting
B1: =INDEX(dms_Worksheet_List,MATCH(dms_Model,dms_Model_List)) -> HISTORICAL ANNUAL REPORTING - FINANCIAL YEARS
B2: =INDEX(dms_TradingNameFull_List,MATCH(dms_TradingName,dms_TradingName_List)) -> Jemena Electricity
B3: =dms_Header_Span -> 2011-12 to 2017-18
B4: 4.1 PUBLIC LIGHTING
B6: Tables 4.1.1 - 4.1.3 deliberately omitted.
B8: 4.1.4 - PUBLIC LIGHTING METRICS BY TARIFF
B9: NUMBER OF LIGHTS
C10: VOLUMES 0's
B11: Tariff categories | C11: =dms_y1 -> 2011-12 | D11: =dms_y2 -> 2012-13 | E11: =dms_y3 -> 2013-14 | F11: =dms_y4 -> 2014-15 | G11: =dms_y5 -> 2015-16 | H11: =dms_y6 -> 2016-17 | I11: =dms_y7 -> 2017-18
B12: Fluorescent 20 watt | C12: Incomplete | D12: Incomplete | E12: Incomplete | F12: Incomplete | G12: Incomplete | H12: 2.083333333 | I12: Incomplete
B13: Fluorescent 40 watt | C13: Incomplete | D13: Incomplete | E13: Incomplete | F13: Incomplete | G13: Incomplete | H13: 21.58333333 | I13: Incomplete
B14: Incandescent 150 watt | C14: Incomplete | D14: Incomplete | E14: Incomplete | F14: Incomplete | G14: Incomplete | H14: 1 | I14: Incomplete
B15: Metal Halide 70 watt | C15: Incomplete | D15: Incomplete | E15: Incomplete | F15: Incomplete | G15: Incomplete | H15: 10.33333333 | I15: Incomplete
B16: Metal Halide 150 watt | C16: Incomplete | D16: Incomplete | E16: Incomplete | F16: Incomplete | G16: Incomplete | H16: 43.95833333 | I16: Incomplete
B17: Metal Halide 250 watt | C17: Incomplete | D17: Incomplete | E17: Incomplete | F17: Incomplete | G17: Incomplete | H17: 55.05555556 | I17: Incomplete
B18: Mercury Vapour 50 watt | C18: Incomplete | D18: Incomplete | E18: Incomplete | F18: Incomplete | G18: Incomplete | H18: 1.708333333 | I18: Incomplete
B19: Mercury Vapour 80 watt | C19: Incomplete | D19: Incomplete | E19: Incomplete | F19: Incomplete | G19: Incomplete | H19: 8425.763889 | I19: Incomplete
B20: Mercury Vapour 125 watt | C20: Incomplete | D20: Incomplete | E20: Incomplete | F20: Incomplete | G20: Incomplete | H20: 108.9166667 | I20: Incomplete
B21: Mercury Vapour 250 watt | C21: Incomplete | D21: Incomplete | E21: Incomplete | F21: Incomplete | G21: Incomplete | H21: 115.9166667 | I21: Incomplete
B22: Mercury Vapour 400 watt | C22: Incomplete | D22: Incomplete | E22: Incomplete | F22: Incomplete | G22: Incomplete | H22: 153 | I22: Incomplete
B23: Sodium High Pressure 50 watt | C23: Incomplete | D23: Incomplete | E23: Incomplete | F23: Incomplete | G23: Incomplete | H23: 1.738095238 | I23: Incomplete
B24: Sodium Low Pressure 90 watt | C24: Incomplete | D24: Incomplete | E24: Incomplete | F24: Incomplete | G24: Incomplete | H24: 5.5 | I24: Incomplete
B25: Sodium High Pressure 100 watt | C25: Incomplete | D25: Incomplete | E25: Incomplete | F25: Incomplete | G25: Incomplete | H25: 1226.666667 | I25: Incomplete
B26: Sodium High Pressure 150 watt | C26: Incomplete | D26: Incomplete | E26: Incomplete | F26: Incomplete | G26: Incomplete | H26: 15880.68056 | I26: Incomplete
B27: Sodium High Pressure 250 watt | C27: Incomplete | D27: Incomplete | E27: Incomplete | F27: Incomplete | G27: Incomplete | H27: 5072.222222 | I27: Incomplete
B28: Sodium High Pressure 250 watt (24 hrs) | C28: Incomplete | D28: Incomplete | E28: Incomplete | F28: Incomplete | G28: Incomplete | H28: 10 | I28: Incomplete
B29: Sodium High Pressure 400 watt | C29: Incomplete | D29: Incomplete | E29: Incomplete | F29: Incomplete | G29: Incomplete | H29: 326.1666667 | I29: Incomplete
B30: T5 2X14W | C30: Incomplete | D30: Incomplete | E30: Incomplete | F30: Incomplete | G30: Incomplete | H30: 26873.48611 | I30: Incomplete
B31: T5 (2x24W) | C31: Incomplete | D31: Incomplete | E31: Incomplete | F31: Incomplete | G31: Incomplete | H31: 942.1388889 | I31: Incomplete
B32: LED 18W | C32: Incomplete | D32: Incomplete | E32: Incomplete | F32: Incomplete | G32: Incomplete | H32: Incomplete | I32: Incomplete
B33: LED 19W | C33: Incomplete | D33: Incomplete | E33: Incomplete | F33: Incomplete | G33: Incomplete | H33: 27.5 | I33: Incomplete
B34: LED 22W | C34: Incomplete | D34: Incomplete | E34: Incomplete | F34: Incomplete | G34: Incomplete | H34: 10783.57197 | I34: Incomplete
B35: LED 23W | C35: Incomplete | D35: Incomplete | E35: Incomplete | F35: Incomplete | G35: Incomplete | H35: 49.25 | I35: Incomplete
B36: LED 118W | C36: Incomplete | D36: Incomplete | E36: Incomplete | F36: Incomplete | G36: Incomplete | H36: 31.25 | I36: Incomplete
B37: Compact Fluoro 32W | C37: Incomplete | D37: Incomplete | E37: Incomplete | F37: Incomplete | G37: Incomplete | H37: 2389.736111 | I37: Incomplete
B38: Compact Fluoro 42W | C38: Incomplete | D38: Incomplete | E38: Incomplete | F38: Incomplete | G38: Incomplete | H38: 288.4305556 | I38: Incomplete
B39: Cash proceeds on Public Lighting scrapping | C39: Incomplete | D39: Incomplete | E39: Incomplete | F39: Incomplete | G39: Incomplete | H39: Incomplete | I39: Incomplete
B40: Avoided costs adjustment | C40: Incomplete | D40: Incomplete | E40: Incomplete | F40: Incomplete | G40: Incomplete | H40: 0 | I40: Incomplete
B41: LED 17W | C41: Incomplete | D41: Incomplete | E41: Incomplete | F41: Incomplete | G41: Incomplete | H41: Incomplete | I41: Incomplete
B42: Wrtten Down Value adjustment | C42: Incomplete | D42: Incomplete | E42: Incomplete | F42: Incomplete | G42: Incomplete | H42: Incomplete | I42: Incomplete
B52: To enter further tariff categories - please insert new rows above this row.
B53: Total | C53: =SUM(C12:C51) -> 0 | D53: =SUM(D12:D51) -> 0 | E53: 0 | F53: 0 | G53: 0 | H53: 72847.65729 | I53: 0
B56: REVENUE
C57: $0's, nominal
C58: =dms_y1 -> 2011-12 | D58: =dms_y2 -> 2012-13 | E58: =dms_y3 -> 2013-14 | F58: =dms_y4 -> 2014-15 | G58: =dms_y5 -> 2015-16 | H58: =dms_y6 -> 2016-17 | I58: =dms_y7 -> 2017-18
B59: =IF(ISBLANK(B12),"",B12) -> Fluorescent 20 watt | C59: Incomplete | D59: Incomplete | E59: Incomplete | F59: Incomplete | G59: Incomplete | H59: 124.55 | I59: Incomplete
B60: =IF(ISBLANK(B13),"",B13) -> Fluorescent 40 watt | C60: Incomplete | D60: Incomplete | E60: Incomplete | F60: Incomplete | G60: Incomplete | H60: 1334.28 | I60: Incomplete
B61: =IF(ISBLANK(B14),"",B14) -> Incandescent 150 watt | C61: Incomplete | D61: Incomplete | E61: Incomplete | F61: Incomplete | G61: Incomplete | H61: 67.81 | I61: Incomplete
B62: Metal Halide 70 watt | C62: Incomplete | D62: Incomplete | E62: Incomplete | F62: Incomplete | G62: Incomplete | H62: 1536.525 | I62: Incomplete
B63: Metal Halide 150 watt | C63: Incomplete | D63: Incomplete | E63: Incomplete | F63: Incomplete | G63: Incomplete | H63: 9415.415 | I63: Incomplete
B64: Metal Halide 250 watt | C64: Incomplete | D64: Incomplete | E64: Incomplete | F64: Incomplete | G64: Incomplete | H64: 11445.51 | I64: Incomplete
B65: Mercury Vapour 50 watt | C65: Incomplete | D65: Incomplete | E65: Incomplete | F65: Incomplete | G65: Incomplete | H65: 105.77 | I65: Incomplete
B66: Mercury Vapour 80 watt | C66: Incomplete | D66: Incomplete | E66: Incomplete | F66: Incomplete | G66: Incomplete | H66: 395112.935 | I66: Incomplete
B67: Mercury Vapour 125 watt | C67: Incomplete | D67: Incomplete | E67: Incomplete | F67: Incomplete | G67: Incomplete | H67: 7521.04 | I67: Incomplete
B68: Mercury Vapour 250 watt | C68: Incomplete | D68: Incomplete | E68: Incomplete | F68: Incomplete | G68: Incomplete | H68: 10710.14 | I68: Incomplete
B69: Mercury Vapour 400 watt | C69: Incomplete | D69: Incomplete | E69: Incomplete | F69: Incomplete | G69: Incomplete | H69: 15829.445 | I69: Incomplete
B70: Sodium High Pressure 50 watt | C70: Incomplete | D70: Incomplete | E70: Incomplete | F70: Incomplete | G70: Incomplete | H70: 84.65 | I70: Incomplete
B71: Sodium Low Pressure 90 watt | C71: Incomplete | D71: Incomplete | E71: Incomplete | F71: Incomplete | G71: Incomplete | H71: 557.425 | I71: Incomplete
B72: Sodium High Pressure 100 watt | C72: Incomplete | D72: Incomplete | E72: Incomplete | F72: Incomplete | G72: Incomplete | H72: 160318.36 | I72: Incomplete
B73: Sodium High Pressure 150 watt | C73: Incomplete | D73: Incomplete | E73: Incomplete | F73: Incomplete | G73: Incomplete | H73: 1510159.805 | I73: Incomplete
B74: Sodium High Pressure 250 watt | C74: Incomplete | D74: Incomplete | E74: Incomplete | F74: Incomplete | G74: Incomplete | H74: 489688.705 | I74: Incomplete
B75: Sodium High Pressure 250 watt (24 hrs) | C75: Incomplete | D75: Incomplete | E75: Incomplete | F75: Incomplete | G75: Incomplete | H75: 1510.135 | I75: Incomplete
B76: Sodium High Pressure 400 watt | C76: Incomplete | D76: Incomplete | E76: Incomplete | F76: Incomplete | G76: Incomplete | H76: 41634.22 | I76: Incomplete
B77: T5 2X14W | C77: Incomplete | D77: Incomplete | E77: Incomplete | F77: Incomplete | G77: Incomplete | H77: 890769.505 | I77: Incomplete
B78: T5 (2x24W) | C78: Incomplete | D78: Incomplete | E78: Incomplete | F78: Incomplete | G78: Incomplete | H78: 35153.05 | I78: Incomplete
B79: LED 18W | C79: Incomplete | D79: Incomplete | E79: Incomplete | F79: Incomplete | G79: Incomplete | H79: Incomplete | I79: Incomplete
B80: LED 19W | C80: Incomplete | D80: Incomplete | E80: Incomplete | F80: Incomplete | G80: Incomplete | H80: 532.73 | I80: Incomplete
B81: LED 22W | C81: Incomplete | D81: Incomplete | E81: Incomplete | F81: Incomplete | G81: Incomplete | H81: 206694.465 | I81: Incomplete
B82: LED 23W | C82: Incomplete | D82: Incomplete | E82: Incomplete | F82: Incomplete | G82: Incomplete | H82: 940.365 | I82: Incomplete
B83: LED 118W | C83: Incomplete | D83: Incomplete | E83: Incomplete | F83: Incomplete | G83: Incomplete | H83: 2278.065 | I83: Incomplete
B84: Compact Fluoro 32W | C84: Incomplete | D84: Incomplete | E84: Incomplete | F84: Incomplete | G84: Incomplete | H84: 68511.725 | I84: Incomplete
B85: Compact Fluoro 42W | C85: Incomplete | D85: Incomplete | E85: Incomplete | F85: Incomplete | G85: Incomplete | H85: 9308.46 | I85: Incomplete
B86: Cash proceeds on Public Lighting scrapping | C86: Incomplete | D86: Incomplete | E86: Incomplete | F86: Incomplete | G86: Incomplete | H86: Incomplete | I86: Incomplete
B87: Avoided costs adjustment | C87: Incomplete | D87: Incomplete | E87: Incomplete | F87: Incomplete | G87: Incomplete | H87: -200905.2586 | I87: Incomplete
B88: LED 17W | C88: Incomplete | D88: Incomplete | E88: Incomplete | F88: Incomplete | G88: Incomplete | H88: Incomplete | I88: Incomplete
B89: Wrtten Down Value adjustment | C89: Incomplete | D89: Incomplete | E89: Incomplete | F89: Incomplete | G89: Incomplete | H89: Incomplete | I89: Incomplete
B99: To enter further tariff categories - please insert new rows above this row.
B100: Total | C100: =SUM(C59:C98) -> 0 | D100: =SUM(D59:D98) -> 0 | E100: 0 | F100: 0 | G100: 0 | H100: 3670439.826 | I100: 0

Sheet 3.6 Quality of services
B1: =INDEX(dms_Worksheet_List,MATCH(dms_Model,dms_Model_List)) -> HISTORICAL ANNUAL REPORTING - FINANCIAL YEARS
B2: =INDEX(dms_TradingNameFull_List,MATCH(dms_TradingName,dms_TradingName_List)) -> Jemena Electricity
B3: =dms_Header_Span -> 2011-12 to 2017-18
B4: 3.6 QUALITY OF SERVICES
B6: 3.6.5 - QUALITY OF SUPPLY METRICS
D7: VOLUMES
C8: Units | D8: =dms_y1 -> 2011-12 | E8: =dms_y2 -> 2012-13 | F8: =dms_y3 -> 2013-14 | G8: =dms_y4 -> 2014-15 | H8: =dms_y5 -> 2015-16 | I8: =dms_y6 -> 2016-17 | J8: =dms_y7 -> 2017-18
B9: Over voltage events - due to high voltage injection | C9: number | D9: 6 | E9: 10.5 | F9: 12 | G9: 12.5 | H9: 11.5 | I9: 8 | J9: 6
B10: Customers receiving over-voltage - due to high voltage injection | C10: number | D10: 39 | E10: 277 | F10: 372 | G10: 179 | H10: 294.5 | I10: 313.5 | J10: 95
B11: Over voltage events - due to lightning | C11: number | D11: 1.5 | E11: 1.5 | F11: 2 | G11: 2 | H11: 0 | I11: 0 | J11: 0
B12: Customers receiving over-voltage - due to lightning | C12: number | D12: 2.5 | E12: 2.5 | F12: 23.5 | G12: 23.5 | H12: 0 | I12: 0 | J12: 0
B13: Over voltage events - due to voltage regulation or other cause | C13: number | D13: 41.5 | E13: 43 | F13: 43 | G13: 44 | H13: 46 | I13: 64 | J13: 86.5
B14: Customers receiving over-voltage - due to voltage regulation or other cause | C14: number | D14: 3571.5 | E14: 4656 | F14: 4344.5 | G14: 4062 | H14: 4288.5 | I14: 6524.5 | J14: 8606
B15: Voltage variations - steady state (zone sub) | C15: number | D15: 178.5 | E15: 143 | F15: 110 | G15: 99.5 | H15: 79.5 | I15: 127.5 | J15: 239
B16: Voltage variations - one minute (zone sub) | C16: number | D16: 36.5 | E16: 42 | F16: 38.5 | G16: 193.5 | H16: 189.5 | I16: 34 | J16: 46.5
B17: Voltage variations - 10 seconds (zone sub) Min<0.7 | C17: number | D17: 462 | E17: 310.5 | F17: 182.5 | G17: 145.5 | H17: 166.5 | I17: 256 | J17: 323.5
B18: Voltage variations - 10 seconds (zone sub) Min<0.8 | C18: number | D18: 657 | E18: 468 | F18: 280 | G18: 231.5 | H18: 269.5 | I18: 397 | J18: 462.5
B19: Voltage variations - 10 seconds (zone sub) Min<0.9 | C19: number | D19: 1381 | E19: 1122.5 | F19: 805 | G19: 673.5 | H19: 779.5 | I19: 1178 | J19: 1467
B20: Voltage variations - steady state (feeder) | C20: number | D20: 2259.5 | E20: 3410 | F20: 2507 | G20: 2095.5 | H20: 1542.5 | I20: 309 | J20: 492
B21: Voltage variations - % zone subs monitored | C21: (per cent) | D21: 1 | E21: 1 | F21: 1 | G21: 1 | H21: 1 | I21: 1 | J21: 1
B22: Voltage variations - % feeders monitored | C22: (per cent) | D22: 0.935 | E22: 0.935 | F22: 0.935 | G22: 0.9383333333 | H22: 0.8783333333 | I22: 0.92 | J22: 1
B24: 3.6.6 - COMPLAINTS - TECHNICAL QUALITY OF SUPPLY
D25: VOLUMES
C26: Units | D26: =dms_y1 -> 2011-12 | E26: =dms_y2 -> 2012-13 | F26: =dms_y3 -> 2013-14 | G26: =dms_y4 -> 2014-15 | H26: =dms_y5 -> 2015-16 | I26: =dms_y6 -> 2016-17 | J26: =dms_y7 -> 2017-18
B27: 3.6.6.1 - TECHNICAL QUALITY OF SUPPLY
B28: Number of complaints - technical quality of supply | C28: number | D28: 109 | E28: 134 | F28: 155 | G28: 126.5 | H28: 118 | I28: 140.5 | J28: 164.5
B29: 3.6.6.2 - PERCENTAGE OF COMPLAINTS BY CATEGORY
B30: Low voltage supply | C30: (per cent) | D30: 0.1945925362 | E30: 0.1690282801 | F30: 0.1912189607 | G30: 0.2059440559 | H30: 0.2196248196 | I30: 0.1795954941 | J30: 0.1507230256
B31: Voltage dips | C31: (per cent) | D31: 0.1156384869 | E31: 0.09130254343 | F31: 0.06191114275 | G31: 0.06223776224 | H31: 0.0987012987 | I31: 0.1198156682 | J31: 0.1058583611
B32: Voltage swell | C32: (per cent) | D32: 0.009900990099 | E32: 0.01289500208 | F32: 0.006490515473 | G32: 0.003496503497 | H32: 0.007936507937 | I32: 0.007936507937 | J32: 0.01436781609
B33: Voltage spike (impulsive transient) | C33: (per cent) | D33: 0.009900990099 | E33: 0.01289500208 | F33: 0.006490515473 | G33: 0.008041958042 | H33: 0.008513708514 | I33: 0.003968253968 | J33: 0.005747126437
B34: Waveform distortion | C34: (per cent) | D34: Incomplete | E34: Incomplete | F34: Incomplete | G34: Incomplete | H34: Incomplete | I34: 0 | J34: 0.002873563218
B35: TV or radio interference | C35: (per cent) | D35: 0.009900990099 | E35: 0.01289500208 | F35: 0.002994011976 | G35: 0 | H35: 0 | I35: 0 | J35: 0
B36: Solar related | C36: (per cent) | D36: Incomplete | E36: Incomplete | F36: Incomplete | G36: Incomplete | H36: Incomplete | I36: 0.345483871 | J36: 0.4912309974
B37: Noise from appliances | C37: (per cent) | D37: 0.02136752137 | E37: 0 | F37: 0 | G37: 0 | H37: 0 | I37: 0 | J37: 0
B38: Other | C38: (per cent) | D38: 0.6386984852 | E38: 0.7009841703 | F38: 0.7308948536 | G38: 0.7202797203 | H38: 0.5536363636 | I38: 0.3416129032 | J38: 0.2291991101
B39: 3.6.6.3 - PERCENTAGE OF COMPLAINTS BY LIKELY CAUSE
B40: Network equipment faulty | C40: (per cent) | D40: 0.1518574934 | E40: 0.1301061244 | F40: 0.1418072945 | G40: 0.1545454545 | H40: 0.1549062049 | I40: 0.1461085509 | J40: 0.1065628476
B41: Network interference by NSP equipment | C41: (per cent) | D41: 0 | E41: 0 | F41: 0 | G41: 0 | H41: 0.003968253968 | I41: 0.003968253968 | J41: 0.005747126437
B42: Network interference by another customer | C42: (per cent) | D42: 0.0233984937 | E42: 0.01485148515 | F42: 0 | G42: 0 | H42: 0.0119047619 | I42: 0.02158218126 | J42: 0.01542454579
B43: Network limitation | C43: (per cent) | D43: 0.332952526 | E43: 0.4289144483 | F43: 0.5097148361 | G43: 0.406993007 | H43: 0.3354256854 | I43: 0.2885048643 | J43: 0.2464961068
B44: Customer internal problem | C44: (per cent) | D44: 0.05602098671 | E44: 0.04962352523 | F44: 0.03594908086 | G44: 0.03461538462 | H44: 0.06919191919 | I44: 0.07813620072 | J44: 0.04844271413
B45: No problem identified | C45: (per cent) | D45: 0.009900990099 | E45: 0.009900990099 | F45: 0 | G45: 0 | H45: 0 | I45: 0 | J45: 0
B46: Environmental | C46: (per cent) | D46: 0 | E46: 0 | F46: 0 | G46: 0 | H46: 0 | I46: 0 | J46: 0.005747126437
B47: Other | C47: (per cent) | D47: 0.42586951 | E47: 0.3666034268 | F47: 0.3125287886 | G47: 0.4038461538 | H47: 0.4246031746 | I47: 0.4616999488 | J47: 0.5715795328
B51: 3.6.7 - CUSTOMER SERVICE METRICS
D52: VOLUMES
C53: Unit | D53: =dms_y1 -> 2011-12 | E53: =dms_y2 -> 2012-13 | F53: =dms_y3 -> 2013-14 | G53: =dms_y4 -> 2014-15 | H53: =dms_y5 -> 2015-16 | I53: =dms_y6 -> 2016-17 | J53: =dms_y7 -> 2017-18
B54: 3.6.7.1 - TIMELY PROVISIONS OF SERVICES
B55: Number of connections made | C55: number | D55: 6728.5 | E55: 7272.5 | F55: 7838.5 | G55: 8486 | H55: 8597 | I55: 9412 | J55: 9893
B56: Number of connections not made on or before agreed date | C56: number | D56: 5 | E56: 7 | F56: 6 | G56: 15.5 | H56: 59.5 | I56: 477.5 | J56: 535.5
B57: 3.6.7.2 - TIMELY REPAIR OF FAULTY STREET LIGHTS
B58: Street lights - average monthly number "out" | C58: number | D58: 333.9583333 | E58: 271.2083333 | F58: 282.0833333 | G58: 361.5833333 | H58: 450.7083333 | I58: 488.0833333 | J58: 467.2083333
B59: Street lights - not repaired by "fix by" date | C59: number | D59: 0 | E59: 0 | F59: 0 | G59: 1.5 | H59: 13 | I59: 24.5 | J59: 17
B60: Street lights - average number of days to repair | C60: number | D60: 2.935296671 | E60: 3.339454197 | F60: 3.362959273 | G60: 2.901574486 | H60: 2.682926525 | I60: 2.975220279 | J60: 3.235959906
B61: Total number of street lights | C61: number | D61: 68223.5 | E61: 68998.5 | F61: 69891.5 | G61: 71249 | H61: 72140.5 | I61: 73439.5 | J61: 74750
B62: 3.6.7.3 - CALL CENTRE PERFORMANCE
B63: Calls to call centre fault line | C63: number | D63: 109280 | E63: 122775.5 | F63: 124147 | G63: 104992 | H63: 94543 | I63: 90653 | J63: 86988
B64: Calls to fault line answered within 30 seconds | C64: number | D64: 24504 | E64: 26678.5 | F64: 38782.5 | G64: 42040.5 | H64: 36479 | I64: 37420.5 | J64: 38576.5
B65: Calls to fault line - average waiting time before call answered | C65: number | D65: 65.9583919 | E65: 66.09100937 | F65: 53.78143099 | G65: 47.86376229 | H65: 56.40362274 | I65: 49.49547286 | J65: 37.6314692
B66: Call centre - number of overload events | C66: number | D66: 6 | E66: 2 | F66: 0.5 | G66: 0 | H66: 0 | I66: 0 | J66: 0
B67: Percentage of calls abandoned | C67: (per cent) | D67: 0.2681605396 | E67: 0.2825478286 | F67: 0.2846670308 | G67: 0.2605938745 | H67: 0.2644087556 | I67: 0.2724680979 | J67: 0.1551616792
B68: 3.6.7.4 - NUMBER OF CUSTOMER COMPLAINTS
B69: Complaint - reliability of supply | C69: number | D69: 28 | E69: 28.5 | F69: 33 | G69: 41.5 | H69: 36.5 | I69: 27 | J69: 23
B70: Complaint - technical quality of supply | C70: number | D70: =IF(ISBLANK(dms_030606_01_Values),"",dms_030606_01_Values) -> 109 | E70: 109 | F70: 109 | G70: 109 | H70: 109 | I70: 109 | J70: 109
B71: Complaint - administrative process or customer service | C71: number | D71: 164 | E71: 84 | F71: 193.5 | G71: 250 | H71: 147.5 | I71: 110.5 | J71: 98.5
B72: Complaint - connection or augmentation | C72: number | D72: 57.5 | E72: 72 | F72: 64 | G72: 86.5 | H72: 67 | I72: 25 | J72: 87.5
B73: Complaint - other | C73: number | D73: 264.5 | E73: 399.5 | F73: 357.5 | G73: 402 | H73: 441.5 | I73: 356 | J73: 347
B74: Total number of complaints | C74: number | D74: =IF(SUM(D69:D73)=0,"",(SUM(D69:D73))) -> 623 | E74: =IF(SUM(E69:E73)=0,"",(SUM(E69:E73))) -> 693 | F74: 757 | G74: 889 | H74: 801.5 | I74: =IF(SUM(I69:I73)=0,"",(SUM(I69:I73))) -> 627.5 | J74: =IF(SUM(J69:J73)=0,"",(SUM(J69:J73))) -> 665

Sheet 3.6.8 Network-feeders (2011-12)
B1: =INDEX(dms_Worksheet_List,MATCH(dms_Model,dms_Model_List)) -> HISTORICAL ANNUAL REPORTING - FINANCIAL YEARS
B2: =INDEX(dms_TradingNameFull_List,MATCH(dms_TradingName,dms_TradingName_List)) -> Jemena Electricity
B3: =dms_Header_Span -> 2011-12 to 2017-18
B4: 3.6 QUALITY OF SERVICES
B6: Did the MAIFI parameter of the STPIS apply during the period? | F6: No | G6: ** IMPORTANT Please ensure this question is answered correctly. Your response will affect other tables throughout this workbook and will determine which cells are grey and which are input cells.
B10: 3.6.8 - NETWORK FEEDER RELIABILITY
B11: Feeder ID / name | C11: Description of the service area for the feeder | D11: Feeder classification (drop down) | E11: Number of distribution customers | F11: Length of high voltage distribution lines | H11: Maximum demand (MVA) | I11: Energy not supplied (MWh) | K11: Unplanned Outages | P11: Planned Outages | U11: Momentary feeder outages
F12: Overhead | G12: Underground | I12: Unplanned | J12: Planned | K12: Total number of unplanned outages | L12: Unplanned customer minutes off-supply (SAIDI) | N12: Unplanned interruptions (SAIFI) | P12: Total number of planned outages | Q12: Planned customer minutes off-supply (SAIDI) | S12: Planned interruptions (SAIFI) | U12: Total number of momentary feeder outages | V12: Momentary interruptions due to feeder outages (MAIFI)
L13: Including excluded events and MEDs | M13: After removing excluded events and MED | N13: Including excluded events and MEDs | O13: After removing excluded events and MED | Q13: Including MEDs | R13: After removing MED | S13: Including MEDs | T13: After removing MED | V13: Including excluded events and MEDs | W13: After removing excluded events and MED
B14: AW 01 | C14: Airport West | D14: Urban | E14: 714 | F14: 4.746985746 | G14: 4.058650149 | H14: 8.935388 | I14: 0.5952006733 | J14: 0 | K14: 5 | L14: 7421 | M14: 7421 | N14: 59 | O14: 59 | P14: 0 | Q14: 0 | R14: 0 | S14: 0 | T14: 0
B15: AW 02 | C15: Airport West | D15: Urban | E15: 2395 | F15: 11.03227221 | G15: 2.888350342 | H15: 10.154716 | I15: 13.68224999 | J15: 0 | K15: 12 | L15: 464886 | M15: 222232 | N15: 6046 | O15: 5104 | P15: 0 | Q15: 0 | R15: 0 | S15: 0 | T15: 0
B16: AW 03 | C16: Airport West | D16: Urban | E16: 247.5 | F16: 6.118539861 | G16: 3.882348802 | H16: 13.507868 | I16: 1.020929098 | J16: 0 | K16: 1 | L16: 2521 | M16: 2521 | N16: 12 | O16: 12 | P16: 0 | Q16: 0 | R16: 0 | S16: 0 | T16: 0
B17: AW 04 | C17: Airport West | D17: Urban | E17: 1905 | F17: 11.38629196 | G17: 10.21534416 | H17: 11.678876 | I17: 14.06719375 | J17: 0.03723891409 | K17: 5 | L17: 362645 | M17: 9288 | N17: 1956 | O17: 51 | P17: 3 | Q17: 3200 | R17: 3200 | S17: 59 | T17: 59
B18: AW 05 | C18: Airport West | D18: Urban | E18: 534 | F18: 4.996907466 | G18: 0.8723862812 | H18: 7.944684 | I18: 0.1037387447 | J18: 0.0042127409 | K18: 2 | L18: 1182 | M18: 1182 | N18: 18 | O18: 18 | P18: 1 | Q18: 160 | R18: 160 | S18: 4 | T18: 4
B19: AW 06 | C19: Airport West | D19: Urban | E19: 4700 | F19: 16.66889246 | G19: 1.703876215 | H19: 10.554808 | I19: 2.022126191 | J19: 0.6397515468 | K19: 9 | L19: 177098 | M19: 177098 | N19: 940 | O19: 940 | P19: 5 | Q19: 186765 | R19: 186765 | S19: 631 | T19: 631
B20: AW 07 | C20: Airport West | D20: Urban | E20: 4446.5 | F20: 17.62080338 | G20: 5.405348974 | H20: 9.221168 | I20: 1.06122019 | J20: 0.4495836779 | K20: 13 | L20: 99510 | M20: 99510 | N20: 797 | O20: 797 | P20: 8 | Q20: 140524 | R20: 140524 | S20: 349 | T20: 349
B21: AW 08 | C21: Airport West | D21: Urban | E21: 2309.5 | F21: 14.39976544 | G21: 7.738613436 | H21: 10.135664 | I21: 1.051420199 | J21: 0.08739150193 | K21: 6 | L21: 39165 | M21: 39165 | N21: 112 | O21: 112 | P21: 4 | Q21: 10851 | R21: 10851 | S21: 34 | T21: 34
B22: AW 09 | C22: Airport West | D22: Urban | E22: 2424 | F22: 9.647654222 | G22: 6.832358451 | H22: 8.211412 | I22: 3.422087838 | J22: 0.06976223079 | K22: 10 | L22: 178403 | M22: 144449 | N22: 2869 | O22: 2802 | P22: 3 | Q22: 12123 | R22: 12123 | S22: 55 | T22: 55
B23: AW 11 | C23: Airport West | D23: Urban | E23: 471.5 | F23: 5.997796362 | G23: 3.798476174 | H23: 9.164012 | I23: 0.0719670173 | J23: 0.5793965298 | K23: 1 | L23: 580 | M23: 580 | N23: 4 | O23: 4 | P23: 2 | Q23: 15565 | R23: 15565 | S23: 9 | T23: 9
B24: AW 12 | C24: Airport West | D24: Urban | E24: 1768.5 | F24: 5.708644953 | G24: 6.460277573 | H24: 10.459548 | I24: 0.5784697876 | J24: 0.3644249706 | K24: 4 | L24: 17361 | M24: 17361 | N24: 151 | O24: 151 | P24: 4 | Q24: 36457 | R24: 36457 | S24: 113 | T24: 113
B25: AW 14 | C25: Airport West | D25: Urban | E25: 1256 | F25: 9.015768853 | G25: 4.819080044 | H25: 10.116612 | I25: 2.43583051 | J25: 0.005638341173 | K25: 3 | L25: 36289 | M25: 35568 | N25: 1303 | O25: 1302 | P25: 1 | Q25: 280 | R25: 280 | S25: 2 | T25: 2
B26: BD 01 | C26: Broadmeadows | D26: Urban | E26: 1651.5 | F26: 10.96985553 | G26: 5.200518948 | H26: 10.0023 | I26: 0.6214409387 | J26: 0.09615968593 | K26: 3 | L26: 16024 | M26: 16024 | N26: 86 | O26: 86 | P26: 2 | Q26: 8265 | R26: 8265 | S26: 30 | T26: 30
B27: BD 02 | C27: Broadmeadows | D27: Urban | E27: 1 | F27: 0.879162276 | G27: 0.071699015 | I27: 0 | J27: 0 | K27: 0 | L27: 0 | M27: 0 | N27: 0 | O27: 0 | P27: 0 | Q27: 0 | R27: 0 | S27: 0 | T27: 0
B28: BD 03 | C28: Broadmeadows | D28: Urban | E28: 339.5 | F28: 3.992257592 | G28: 5.273330994 | H28: 9.564104 | I28: 0.2493427394 | J28: 0 | K28: 1 | L28: 1123 | M28: 1123 | N28: 9 | O28: 9 | P28: 0 | Q28: 0 | R28: 0 | S28: 0 | T28: 0
B29: BD 04 | C29: Broadmeadows | D29: Urban | E29: 1035.5 | F29: 8.859723599 | G29: 4.140743322 | H29: 13.507868 | I29: 0.8791333376 | J29: 0.6278949978 | K29: 3 | L29: 16195 | M29: 16195 | N29: 90 | O29: 90 | P29: 1 | Q29: 38556 | R29: 38556 | S29: 102 | T29: 102
B30: BD 06 | C30: Broadmeadows | D30: Urban | E30: 1 | F30: 0.749390879 | G30: 0.0798603705 | I30: 0 | J30: 0 | K30: 0 | L30: 0 | M30: 0 | N30: 0 | O30: 0 | P30: 0 | Q30: 0 | R30: 0 | S30: 0 | T30: 0
B31: BD 07 | C31: Broadmeadows | D31: Urban | E31: 4614.5 | F31: 25.03517834 | G31: 2.050287732 | H31: 13.603128 | I31: 6.681334291 | J31: 0.4970366882 | K31: 13 | L31: 478855 | M31: 478633 | N31: 10092 | O31: 10091 | P31: 10 | Q31: 118743 | R31: 118743 | S31: 353 | T31: 353
B32: BD 08 | C32: Broadmeadows | D32: Urban | E32: 1837 | F32: 10.69069375 | G32: 1.284529015 | H32: 8.516244 | I32: 1.028378731 | J32: 0.1886578368 | K32: 6 | L32: 38155 | M32: 38155 | N32: 2118 | O32: 2118 | P32: 2 | Q32: 23332 | R32: 23332 | S32: 76 | T32: 76
B33: BD 09 | C33: Broadmeadows | D33: Urban | E33: 690 | F33: 5.272551426 | G33: 1.290757574 | H33: 3.924712 | I33: 0.1117558138 | J33: 0 | K33: 2 | L33: 2960 | M33: 2960 | N33: 43 | O33: 43 | P33: 0 | Q33: 0 | R33: 0 | S33: 0 | T33: 0
B34: BD 10 | C34: Broadmeadows | D34: Urban | E34: 1087 | F34: 6.525138427 | G34: 4.325371293 | H34: 12.593372 | I34: 0.226160325 | J34: 0.01553927277 | K34: 1 | L34: 3362 | M34: 3362 | N34: 32 | O34: 32 | P34: 1 | Q34: 770 | R34: 770 | S34: 154 | T34: 154
B35: BD 11 | C35: Broadmeadows | D35: Urban | E35: 2749.5 | F35: 10.08876405 | G35: 1.72015181 | H35: 8.154256 | I35: 2.2853461 | J35: 0.08765154636 | K35: 5 | L35: 102960 | M35: 8500 | N35: 198 | O35: 78 | P35: 5 | Q35: 13163 | R35: 13163 | S35: 47 | T35: 47
B36: BD 13 | C36: Broadmeadows | D36: Urban | E36: 679 | F36: 10.89793948 | G36: 3.023164082 | H36: 11.945604 | I36: 3.233500717 | J36: 0.3177486 | K36: 4 | L36: 34751 | M36: 34751 | N36: 684 | O36: 684 | P36: 4 | Q36: 11383 | R36: 11383 | S36: 32 | T36: 32
B37: BD 14 | C37: Broadmeadows | D37: Urban | E37: 553 | F37: 6.741351735 | G37: 2.952415404 | H37: 9.945144 | I37: 0.01506239692 | J37: 0.4504642068 | K37: 1 | L37: 321 | M37: 321 | N37: 6 | O37: 6 | P37: 8 | Q37: 32000 | R37: 32000 | S37: 106 | T37: 106
B38: BD 15 | C38: Broadmeadows | D38: Urban | E38: 820.5 | F38: 9.056113943 | G38: 1.62230407 | H38: 11.126368 | I38: 10.67078299 | J38: 0.4992013037 | K38: 8 | L38: 101789 | M38: 89066 | N38: 346 | O38: 332 | P38: 5 | Q38: 15873 | R38: 15873 | S38: 39 | T38: 39
B39: BD 16 | C39: Broadmeadows | D39: Urban | E39: 156 | F39: 5.879962588 | G39: 1.861539368 | H39: 6.687252 | I39: 0.02736391469 | J39: 0.163484835 | K39: 0 | L39: 94 | M39: 94 | N39: 1 | O39: 1 | P39: 3 | Q39: 1872 | R39: 1872 | S39: 38 | T39: 38
B40: BY 11 | C40: Braybrook | D40: Urban | E40: 3995.5 | F40: 13.40308818 | G40: 1.424412337 | H40: 7.830372 | I40: 0.9316600222 | J40: 0.2162299591 | K40: 6 | L40: 66464 | M40: 66464 | N40: 472 | O40: 472 | P40: 6 | Q40: 51419 | R40: 51419 | S40: 152 | T40: 152
B41: BY 12 | C41: Braybrook | D41: Urban | E41: 1224 | F41: 4.680295275 | G41: 0.6979144985 | H41: 2.57202 | I41: 0.9848760728 | J41: 0.008383591073 | K41: 2 | L41: 56565 | M41: 56565 | N41: 1261 | O41: 1261 | P41: 2 | Q41: 1605 | R41: 1605 | S41: 5 | T41: 5
B42: BY 13 | C42: Braybrook | D42: Urban | E42: 763.5 | F42: 2.981261264 | G42: 1.608976208 | H42: 11.71698 | I42: 1.798823308 | J42: 0 | K42: 3 | L42: 20688 | M42: 20688 | N42: 122 | O42: 122 | P42: 0 | Q42: 0 | R42: 0 | S42: 0 | T42: 0
B43: BY 14 | C43: Braybrook | D43: Urban | E43: 2917 | F43: 12.03664934 | G43: 3.125919362 | H43: 8.058996 | I43: 0.4648465675 | J43: 0.004517766109 | K43: 4 | L43: 28275 | M43: 28275 | N43: 193 | O43: 193 | P43: 2 | Q43: 916 | R43: 916 | S43: 7 | T43: 7
B44: BY 15 | C44: Braybrook | D44: Urban | E44: 970.5 | F44: 7.439785344 | G44: 2.938341187 | H44: 8.230464 | I44: 2.973289514 | J44: 0.06140358346 | K44: 3 | L44: 46921 | M44: 46921 | N44: 1930 | O44: 1930 | P44: 1 | Q44: 3230 | R44: 3230 | S44: 17 | T44: 17
B45: CN 01 | C45: Coburg North | D45: Urban | E45: 101.5 | F45: 1.869374091 | G45: 0.310055386 | H45: 7.697008 | I45: 0.518372456 | J45: 0 | K45: 0 | L45: 733 | M45: 733 | N45: 4 | O45: 4 | P45: 0 | Q45: 0 | R45: 0 | S45: 0 | T45: 0
B46: CN 02 | C46: Coburg North | D46: Urban | E46: 439 | F46: 4.786286654 | G46: 0.9012641664 | H46: 10.497652 | I46: 5.583565373 | J46: 0.003594107222 | K46: 5 | L46: 46606 | M46: 46606 | N46: 491 | O46: 491 | P46: 1 | Q46: 100 | R46: 100 | S46: 1 | T46: 1
B47: CN 03 | C47: Coburg North | D47: Urban | E47: 2431.5 | F47: 8.141171388 | G47: 1.296230814 | H47: 3.924712 | I47: 0.8261459542 | J47: 0.1125354592 | K47: 2 | L47: 80384 | M47: 80384 | N47: 102 | O47: 102 | P47: 4 | Q47: 36499 | R47: 36499 | S47: 141 | T47: 141
B48: CN 04 | C48: Coburg North | D48: Urban | E48: 1362.5 | F48: 7.471757453 | G48: 4.559721116 | H48: 8.878232 | I48: 6.698992291 | J48: 0.7095602273 | K48: 4 | L48: 115363 | M48: 115363 | N48: 1465 | O48: 1465 | P48: 5 | Q48: 40731 | R48: 40731 | S48: 142 | T48: 142
B49: CN 05 | C49: Coburg North | D49: Urban | E49: 3864 | F49: 13.0713785 | G49: 1.626777595 | H49: 7.563644 | I49: 7.951467968 | J49: 0.170564693 | K49: 14 | L49: 656034 | M49: 656034 | N49: 10430 | O49: 10430 | P49: 10 | Q49: 46908 | R49: 46908 | S49: 254 | T49: 254
B50: CN 06 | C50: Coburg North | D50: Urban | E50: 2083.5 | F50: 9.870873084 | G50: 1.330515356 | H50: 7.487436 | I50: 3.499886972 | J50: 0.4981097845 | K50: 2 | L50: 176562 | M50: 11189 | N50: 2142 | O50: 63 | P50: 10 | Q50: 83762 | R50: 83762 | S50: 336 | T50: 336
B51: CN 07 | C51: Coburg North | D51: Urban | E51: 5440.5 | F51: 15.7152795 | G51: 0.931902816 | H51: 8.802024 | I51: 11.43804602 | J51: 0.224849944 | K51: 6 | L51: 990036 | M51: 257281 | N51: 11253 | O51: 5588 | P51: 10 | Q51: 64874 | R51: 64874 | S51: 259 | T51: 259
B52: CN 08 | C52: Coburg North | D52: Urban | E52: 1789.5 | F52: 6.708060882 | G52: 0.501518507 | H52: 5.086884 | I52: 3.528655289 | J52: 0.3733985908 | K52: 5 | L52: 271922 | M52: 271922 | N52: 3740 | O52: 3740 | P52: 3 | Q52: 95915 | R52: 95915 | S52: 249 | T52: 249
B53: CN 09 | C53: Coburg North | D53: Urban | E53: 49 | F53: 2.441585173 | G53: 0.5408582678 | H53: 4.95352 | I53: 5.625095113 | J53: 0.4491703148 | K53: 3 | L53: 7390 | M53: 7390 | N53: 103 | O53: 103 | P53: 1 | Q53: 1967 | R53: 1967 | S53: 7 | T53: 7
B54: CN 10 | C54: Coburg North | D54: Urban | E54: 1896.5 | F54: 6.424042979 | G54: 1.068270494 | H54: 7.544592 | I54: 0.8424284142 | J54: 0.2090138217 | K54: 4 | L54: 24507 | M54: 9755 | N54: 169 | O54: 86 | P54: 5 | Q54: 20268 | R54: 20268 | S54: 90 | T54: 90
B55: CN 11 | C55: Coburg North | D55: Urban | E55: 2456.5 | F55: 8.975822855 | G55: 1.356420491 | H55: 8.173308 | I55: 3.161383409 | J55: 0.08986214894 | K55: 5 | L55: 213383 | M55: 213383 | N55: 3654 | O55: 3654 | P55: 2 | Q55: 20218 | R55: 20218 | S55: 62 | T55: 62
B56: COO11 | C56: Coolaroo | D56: Rural-short | E56: 1927.5 | F56: 144.1057199 | G56: 24.44667327 | H56: 9.945144 | I56: 5.323513665 | J56: 2.405158809 | K56: 23 | L56: 154742 | M56: 43826 | N56: 482 | O56: 374 | P56: 34 | Q56: 233041 | R56: 233041 | S56: 649 | T56: 649
B57: COO12 | C57: Coolaroo | D57: Urban | E57: 718.5 | F57: 0.269686684 | G57: 4.433176655 | H57: 6.363368 | I57: 0.01574982714 | J57: 0.003421765218 | K57: 1 | L57: 649 | M57: 649 | N57: 167 | O57: 167 | P57: 1 | Q57: 470 | R57: 470 | S57: 1 | T57: 1
B58: COO13 | C58: Coolaroo | D58: Urban | E58: 3902 | F58: 6.216396624 | G58: 11.27506813 | H58: 9.564104 | I58: 0.449725749 | J58: 0.07716724902 | K58: 7 | L58: 40218 | M58: 40218 | N58: 328 | O58: 328 | P58: 4 | Q58: 23003 | R58: 23003 | S58: 72 | T58: 72
B59: COO14 | C59: Coolaroo | D59: Urban | E59: 3576.5 | F59: 9.863386725 | G59: 14.82757552 | H59: 9.830832 | I59: 0.05654037692 | J59: 0 | K59: 4 | L59: 4190 | M59: 4190 | N59: 51 | O59: 51 | P59: 0 | Q59: 0 | R59: 0 | S59: 0 | T59: 0
B60: CS 02 | C60: Coburg South | D60: Urban | E60: 5633 | F60: 14.51307482 | G60: 0.8580347173 | H60: 10.021352 | I60: 2.165837581 | J60: 0.02559749892 | K60: 14 | L60: 227689 | M60: 227689 | N60: 2677 | O60: 2677 | P60: 3 | Q60: 8970 | R60: 8970 | S60: 46 | T60: 46
B61: CS 03 | C61: Coburg South | D61: Urban | E61: 3598 | F61: 11.16627248 | G61: 2.461510922 | H61: 7.011136 | I61: 2.549094961 | J61: 0.0481765581 | K61: 7 | L61: 187656 | M61: 187351 | N61: 2563 | O61: 2562 | P61: 7 | Q61: 11822 | R61: 11822 | S61: 48 | T61: 48
B62: CS 05 | C62: Coburg South | D62: Urban | E62: 4626.5 | F62: 12.10275383 | G62: 0.882252608 | H62: 8.802024 | I62: 4.87234 | J62: 0.3595225167 | K62: 18 | L62: 459832 | M62: 459832 | N62: 5558 | O62: 5558 | P62: 11 | Q62: 113101 | R62: 113101 | S62: 330 | T62: 330
B63: CS 08 | C63: Coburg South | D63: Urban | E63: 4527 | F63: 12.11357123 | G63: 3.367846668 | H63: 7.735112 | I63: 2.864257478 | J63: 0.2155934394 | K63: 6 | L63: 235041 | M63: 235041 | N63: 4476 | O63: 4476 | P63: 3 | Q63: 58972 | R63: 58972 | S63: 162 | T63: 162
B64: CS 12 | C64: Coburg South | D64: Urban | E64: 2005 | F64: 9.200743085 | G64: 0.8392405 | H64: 6.725356 | I64: 3.28445998 | J64: 0.01240585491 | K64: 3 | L64: 132799 | M64: 132799 | N64: 2075 | O64: 2075 | P64: 3 | Q64: 1672 | R64: 1672 | S64: 9 | T64: 9
B65: CS 13 | C65: Coburg South | D65: Urban | E65: 1987 | F65: 5.577952672 | G65: 2.5977105 | H65: 6.706304 | I65: 0.2913487775 | J65: 0.04806398516 | K65: 4 | L65: 15821 | M65: 15821 | N65: 130 | O65: 130 | P65: 2 | Q65: 8700 | R65: 8700 | S65: 33 | T65: 33
B66: EP 02 | C66: East Preston | D66: Urban | E66: 70 | F66: 0.771821858 | G66: 0.4706196675 | H66: 2.5205796 | I66: 0.05765083356 | J66: 0 | K66: 0 | L66: 440 | M66: 440 | N66: 1 | O66: 1 | P66: 0 | Q66: 0 | R66: 0 | S66: 0 | T66: 0
B67: EP 03 | C67: East Preston | D67: Urban | E67: 93.5 | F67: 1.046332946 | G67: 0.4390501385 | H67: 1.3031568 | I67: 0.5123337002 | J67: 0 | K67: 1 | L67: 6856 | M67: 6856 | N67: 92 | O67: 92 | P67: 0 | Q67: 0 | R67: 0 | S67: 0 | T67: 0
B68: EP 04 | C68: East Preston | D68: Urban | E68: 20 | F68: 1.12797633 | G68: 0.3685585715 | H68: 1.0402392 | I68: 0.01931592759 | J68: 0 | K68: 0 | L68: 72 | M68: 72 | N68: 1 | O68: 1 | P68: 0 | Q68: 0 | R68: 0 | S68: 0 | T68: 0
B69: EP 07 | C69: East Preston | D69: Urban | E69: 44.5 | F69: 1.91236 | G69: 0.719267 | H69: 2.4348456 | I69: 0 | J69: 0 | K69: 0 | L69: 0 | M69: 0 | N69: 0 | O69: 0 | P69: 0 | Q69: 0 | R69: 0 | S69: 0 | T69: 0
B70: EP 09 | C70: East Preston | D70: Urban | E70: 259 | F70: 2.567140792 | G70: 0.724385917 | H70: 3.6808464 | I70: 2.164746934 | J70: 0.01016464611 | K70: 5 | L70: 26834 | M70: 26834 | N70: 412 | O70: 412 | P70: 1 | Q70: 420 | R70: 420 | S70: 1 | T70: 1
B71: EP 11 | C71: East Preston | D71: Urban | E71: 519.5 | F71: 3.850129358 | G71: 0.5520835225 | H71: 2.3091024 | I71: 0.06593395608 | J71: 0.01389959074 | K71: 2 | L71: 3145 | M71: 3145 | N71: 21 | O71: 21 | P71: 2 | Q71: 2210 | R71: 2210 | S71: 5 | T71: 5
B72: EP 16 | C72: East Preston | D72: Urban | E72: 58 | F72: 1.950897 | G72: 0.15031 | H72: 3.2407452 | I72: 0.8472052428 | J72: 0 | K72: 1 | L72: 2773 | M72: 2773 | N72: 60 | O72: 60 | P72: 0 | Q72: 0 | R72: 0 | S72: 0 | T72: 0
B73: EP 17 | C73: East Preston | D73: Urban | E73: 128 | F73: 1.020419943 | G73: 0.659005723 | H73: 3.457938 | I73: 0.02744680877 | J73: 0 | K73: 0 | L73: 167 | M73: 167 | N73: 1 | O73: 1 | P73: 0 | Q73: 0 | R73: 0 | S73: 0 | T73: 0
B74: EP 18 | C74: East Preston | D74: Urban | E74: 16.5 | F74: 1.26997075 | G74: 0.5909200575 | H74: 1.5889368 | I74: 0 | J74: 0 | K74: 0 | L74: 0 | M74: 0 | N74: 0 | O74: 0 | P74: 0 | Q74: 0 | R74: 0 | S74: 0 | T74: 0
B75: EP 20 | C75: East Preston | D75: Urban | E75: 256 | F75: 2.400165523 | G75: 0.1721340715 | H75: 3.457938 | I75: 2.112168232 | J75: 0 | K75: 2 | L75: 30106 | M75: 30106 | N75: 114 | O75: 114 | P75: 0 | Q75: 0 | R75: 0 | S75: 0 | T75: 0
B76: EP 27 | C76: East Preston | D76: Urban | E76: 1 | F76: 0.025 | G76: 0.951761955 | I76: 0 | J76: 0 | K76: 0 | L76: 0 | M76: 0 | N76: 0 | O76: 0 | P76: 0 | Q76: 0 | R76: 0 | S76: 0 | T76: 0
B77: EP 34 | C77: East Preston | D77: Urban | E77: 1436 | F77: 5.797792122 | G77: 0.752037042 | H77: 2.5891668 | I77: 0.2307187341 | J77: 0.03212035496 | K77: 1 | L77: 23012 | M77: 23012 | N77: 97 | O77: 97 | P77: 2 | Q77: 10679 | R77: 10679 | S77: 48 | T77: 48
B78: EP 35 | C78: East Preston | D78: Urban | E78: 31 | F78: 1.874127518 | G78: 0.3983281248 | H78: 2.7892128 | I78: 0.04067246448 | J78: 0 | K78: 0 | L78: 64 | M78: 64 | N78: 1 | O78: 1 | P78: 0 | Q78: 0 | R78: 0 | S78: 0 | T78: 0
B79: EP 36 | C79: East Preston | D79: Urban | E79: 940 | F79: 5.317581651 | G79: 0.1503309745 | H79: 1.9032948 | I79: 0.05680745179 | J79: 0.02450876924 | K79: 3 | L79: 4339 | M79: 4339 | N79: 162 | O79: 162 | P79: 2 | Q79: 6240 | R79: 6240 | S79: 18 | T79: 18
B80: EP 37 | C80: East Preston | D80: Urban | E80: 788.5 | F80: 3.631733239 | G80: 0.309437761 | H80: 2.9606808 | I80: 0.2156854911 | J80: 0 | K80: 1 | L80: 8406 | M80: 8406 | N80: 131 | O80: 131 | P80: 0 | Q80: 0 | R80: 0 | S80: 0 | T80: 0
B81: EP 41 | C81: East Preston | D81: Urban | E81: 56.5 | F81: 1.402228816 | G81: 0.5162361655 | H81: 2.7320568 | I81: 2.836114865 | J81: 0.04397773051 | K81: 3 | L81: 9480 | M81: 9480 | N81: 39 | O81: 39 | P81: 1 | Q81: 490 | R81: 490 | S81: 2 | T81: 2
B82: EP 42 | C82: East Preston | D82: Urban | E82: 308.5 | F82: 2.665311384 | G82: 0.5199647405 | H82: 3.1550112 | I82: 0.2392617312 | J82: 0 | K82: 1 | L82: 3800 | M82: 3800 | N82: 24 | O82: 24 | P82: 0 | Q82: 0 | R82: 0 | S82: 0 | T82: 0
B83: ES 01 | C83: Essendon | D83: Urban | E83: 1752 | F83: 4.330191883 | G83: 0.540032124 | H83: 5.629866 | I83: 5.363724004 | J83: 0.05930157393 | K83: 3 | L83: 332126 | M83: 42345 | N83: 1900 | O83: 148 | P83: 2 | Q83: 12240 | R83: 12240 | S83: 57 | T83: 57
B84: ES 02 | C84: Essendon | D84: Urban | E84: 1496.5 | F84: 5.018537488 | G84: 0.7218953302 | H84: 2.95306 | I84: 0.08396493999 | J84: 0.1038426092 | K84: 1 | L84: 6051 | M84: 6006 | N84: 76 | O84: 75 | P84: 5 | Q84: 24945 | R84: 24945 | S84: 112 | T84: 112
B85: ES 03 | C85: Essendon | D85: Urban | E85: 2619 | F85: 7.566164429 | G85: 0.5184981872 | H85: 5.963276 | I85: 0.06408310995 | J85: 0.1335177693 | K85: 1 | L85: 5203 | M85: 4856 | N85: 49 | O85: 48 | P85: 2 | Q85: 36135 | R85: 36135 | S85: 117 | T85: 117
B86: ES 06 | C86: Essendon | D86: Urban | E86: 2042.5 | F86: 5.729446967 | G86: 1.960913927 | H86: 4.963046 | I86: 0.2574048749 | J86: 0.1130914569 | K86: 7 | L86: 16863 | M86: 16863 | N86: 218 | O86: 218 | P86: 1 | Q86: 24696 | R86: 24696 | S86: 63 | T86: 63
B87: ES 07 | C87: Essendon | D87: Urban | E87: 1311 | F87: 4.001895865 | G87: 0.2927285135 | H87: 3.105476 | I87: 0.6951919546 | J87: 0.1988138553 | K87: 2 | L87: 47967 | M87: 47967 | N87: 302 | O87: 302 | P87: 4 | Q87: 45726 | R87: 45726 | S87: 109 | T87: 109
B88: ES 11 | C88: Essendon | D88: Urban | E88: 1550.5 | F88: 3.428271063 | G88: 0.5509850805 | H88: 5.353612 | I88: 3.036413868 | J88: 0 | K88: 5 | L88: 177733 | M88: 12573 | N88: 1663 | O88: 115 | P88: 0 | Q88: 0 | R88: 0 | S88: 0 | T88: 0
B89: ES 12 | C89: Essendon | D89: Urban | E89: 1164.5 | F89: 2.75839 | G89: 1.7989555 | H89: 3.991394 | I89: 0.1965710652 | J89: 0.008880335606 | K89: 1 | L89: 10811 | M89: 10811 | N89: 32 | O89: 32 | P89: 1 | Q89: 1628 | R89: 1628 | S89: 11 | T89: 11
B90: ES 13 | C90: Essendon | D90: Urban | E90: 1828.5 | F90: 4.190387396 | G90: 1.051395063 | H90: 5.325034 | I90: 0.189885626 | J90: 0.04046902173 | K90: 1 | L90: 9769 | M90: 9769 | N90: 58 | O90: 58 | P90: 2 | Q90: 6940 | R90: 6940 | S90: 29 | T90: 29
B91: ES 14 | C91: Essendon | D91: Urban | E91: 971.5 | F91: 3.889081247 | G91: 1.729541006 | H91: 4.724896 | I91: 0.0364118207 | J91: 0.009262361763 | K91: 0 | L91: 1519 | M91: 1519 | N91: 10 | O91: 10 | P91: 1 | Q91: 1288 | R91: 1288 | S91: 4 | T91: 4
B92: FE 05 | C92: Footscray | D92: Urban | E92: 3023.5 | F92: 8.383909915 | G92: 0.8175744351 | H92: 5.791808 | I92: 5.901316035 | J92: 0.1729570145 | K92: 11 | L92: 463754 | M92: 463754 | N92: 9645 | O92: 9645 | P92: 11 | Q92: 45306 | R92: 45306 | S92: 172 | T92: 172
B93: FE 06 | C93: Footscray | D93: Urban | E93: 4153 | F93: 10.40881022 | G93: 7.308095278 | H93: 10.726276 | I93: 2.980968827 | J93: 0.134469602 | K93: 15 | L93: 151698 | M93: 151698 | N93: 9067 | O93: 9067 | P93: 7 | Q93: 22810 | R93: 22810 | S93: 92 | T93: 92
B94: FE 08 | C94: Footscray | D94: Urban | E94: 2279 | F94: 3.801457068 | G94: 4.769618403 | H94: 9.792728 | I94: 4.45841745 | J94: 0.22212985 | K94: 9 | L94: 149643 | M94: 149586 | N94: 7130 | O94: 7129 | P94: 6 | Q94: 24852 | R94: 24852 | S94: 70 | T94: 70
B95: FE 09 | C95: Footscray | D95: Urban | E95: 3990.5 | F95: 7.875035067 | G95: 1.078826597 | H95: 5.52508 | I95: 2.633108083 | J95: 0.2405172227 | K95: 20 | L95: 243400 | M95: 243400 | N95: 13251 | O95: 13251 | P95: 6 | Q95: 74110 | R95: 74110 | S95: 249 | T95: 249
B96: FF 87 | C96: Fairfield | D96: Urban | E96: 1003.5 | F96: 2.637752837 | G96: 0.2389016675 | H96: 2.0519004 | I96: 0.04249504345 | J96: 0.06087899752 | K96: 0 | L96: 2827 | M96: 2827 | N96: 16 | O96: 16 | P96: 3 | Q96: 13500 | R96: 13500 | S96: 69 | T96: 69
B97: FF 88 | C97: Fairfield | D97: Urban | E97: 1185 | F97: 3.979866151 | G97: 0.3581652275 | H97: 1.9947444 | I97: 0.8743108503 | J97: 0 | K97: 2 | L97: 79042 | M97: 79042 | N97: 1200 | O97: 1200 | P97: 0 | Q97: 0 | R97: 0 | S97: 0 | T97: 0
B98: FF 89 | C98: Fairfield | D98: Urban | E98: 353 | F98: 3.928558359 | G98: 0.7282740165 | H98: 2.3319648 | I98: 0.1454404329 | J98: 0 | K98: 1 | L98: 3310 | M98: 3310 | N98: 20 | O98: 20 | P98: 0 | Q98: 0 | R98: 0 | S98: 0 | T98: 0
B99: FF 90 | C99: Fairfield | D99: Urban | E99: 1036 | F99: 3.420650243 | G99: 0.391896578 | H99: 2.3834052 | I99: 0.2673105532 | J99: 0.006081896569 | K99: 2 | L99: 18618 | M99: 18618 | N99: 140 | O99: 140 | P99: 2 | Q99: 1412 | R99: 1412 | S99: 67 | T99: 67
B100: FF 95 | C100: Fairfield | D100: Urban | E100: 1615.5 | F100: 4.794727586 | G100: 0.06238599965 | H100: 2.657754 | I100: 0.07807562106 | J100: 0.3019639957 | K100: 1 | L100: 7561 | M100: 7561 | N100: 57 | O100: 57 | P100: 5 | Q100: 97476 | R100: 97476 | S100: 280 | T100: 280
B101: FF 96 | C101: Fairfield | D101: Urban | E101: 1002 | F101: 3.690372589 | G101: 0.3878277126 | H101: 1.971882 | I101: 0.8696486167 | J101: 0.3650995224 | K101: 2 | L101: 79857 | M101: 79857 | N101: 110 | O101: 110 | P101: 8 | Q101: 111753 | R101: 111753 | S101: 389 | T101: 389
B102: FT 01 | C102: Flemington | D102: Urban | E102: 3758 | F102: 7.052146216 | G102: 2.518910367 | H102: 5.81086 | I102: 1.124570114 | J102: 0.0007620903208 | K102: 4 | L102: 106246 | M102: 106246 | N102: 3846 | O102: 3846 | P102: 1 | Q102: 240 | R102: 240 | S102: 1 | T102: 1
B103: FT 02 | C103: Flemington | D103: Urban | E103: 280 | F103: 1.589863018 | G103: 5.380492534 | H103: 2.81017 | I103: 0.649416369 | J103: 0 | K103: 2 | L103: 9755 | M103: 9755 | N103: 42 | O103: 42 | P103: 0 | Q103: 0 | R103: 0 | S103: 0 | T103: 0
B104: FT 04 | C104: Flemington | D104: Urban | E104: 1017.5 | F104: 2.850279824 | G104: 2.187568955 | H104: 4.23907 | I104: 1.518718455 | J104: 0 | K104: 1 | L104: 55956 | M104: 55956 | N104: 1021 | O104: 1021 | P104: 0 | Q104: 0 | R104: 0 | S104: 0 | T104: 0
B105: FT 05 | C105: Flemington | D105: Urban | E105: 2375.5 | F105: 4.901856153 | G105: 2.019085713 | H105: 3.8104 | I105: 5.89771658 | J105: 0 | K105: 4 | L105: 485057 | M105: 485057 | N105: 6299 | O105: 6299 | P105: 0 | Q105: 0 | R105: 0 | S105: 0 | T105: 0
B106: FT 06 | C106: Flemington | D106: Urban | E106: 533 | F106: 0.8172596755 | G106: 1.252428913 | H106: 2.210032 | I106: 0.6629896024 | J106: 0.1868122657 | K106: 2 | L106: 25297 | M106: 25297 | N106: 557 | O106: 557 | P106: 1 | Q106: 23760 | R106: 23760 | S106: 80 | T106: 80
B107: FT 09 | C107: Flemington | D107: Urban | E107: 1648.5 | F107: 2.772328303 | G107: 3.118110326 | H107: 4.582006 | I107: 0.3545233005 | J107: 0 | K107: 3 | L107: 15974 | M107: 15974 | N107: 79 | O107: 79 | P107: 0 | Q107: 0 | R107: 0 | S107: 0 | T107: 0
B108: FT 10 | C108: Flemington | D108: Urban | E108: 2062.5 | F108: 4.249685965 | G108: 1.708961063 | H108: 3.438886 | I108: 0.2351370857 | J108: 0.1383663498 | K108: 1 | L108: 17558 | M108: 17558 | N108: 66 | O108: 66 | P108: 3 | Q108: 34440 | R108: 34440 | S108: 111 | T108: 111
B109: FT 13 | C109: Flemington | D109: Urban | E109: 1746 | F109: 3.007245863 | G109: 5.560968542 | H109: 5.296456 | I109: 2.113786918 | J109: 0.1082329561 | K109: 3 | L109: 128517 | M109: 128517 | N109: 2011 | O109: 2011 | P109: 1 | Q109: 21935 | R109: 21935 | S109: 107 | T109: 107
B110: FT 14 | C110: Flemington | D110: Urban | E110: 1380.5 | F110: 1.829416506 | G110: 1.759597076 | H110: 4.00092 | I110: 2.019959236 | J110: 0.006230217518 | K110: 4 | L110: 85594 | M110: 85594 | N110: 2772 | O110: 2772 | P110: 1 | Q110: 880 | R110: 880 | S110: 4 | T110: 4
B111: FT 15 | C111: Flemington | D111: Urban | E111: 90 | F111: 0.1283294125 | G111: 0.9408183585 | H111: 3.23884 | I111: 1.526270519 | J111: 0 | K111: 1 | L111: 5011 | M111: 5011 | N111: 91 | O111: 91 | P111: 0 | Q111: 0 | R111: 0 | S111: 0 | T111: 0
B112: FW 04 | C112: Footscray West | D112: Urban | E112: 1364 | F112: 5.568014023 | G112: 1.194562263 | H112: 8.078048 | I112: 5.071052042 | J112: 0.09765104401 | K112: 2 | L112: 111079 | M112: 111079 | N112: 748 | O112: 748 | P112: 3 | Q112: 7130 | R112: 7130 | S112: 26 | T112: 26
B113: FW 05 | C113: Footscray West | D113: Urban | E113: 2711 | F113: 7.616525484 | G113: 1.108792426 | H113: 3.772296 | I113: 1.877544819 | J113: 0.188683263 | K113: 5 | L113: 190831 | M113: 190831 | N113: 2906 | O113: 2906 | P113: 3 | Q113: 63925 | R113: 63925 | S113: 181 | T113: 181
B114: FW 06 | C114: Footscray West | D114: Urban | E114: 941.5 | F114: 5.61121988 | G114: 2.673875014 | H114: 4.820156 | I114: 2.818448942 | J114: 0.02998777434 | K114: 3 | L114: 84165 | M114: 84165 | N114: 1570 | O114: 1570 | P114: 3 | Q114: 2985 | R114: 2985 | S114: 18 | T114: 18
B115: FW 08 | C115: Footscray West | D115: Urban | E115: 2876.5 | F115: 8.324098983 | G115: 0.8911096167 | H115: 7.315968 | I115: 5.220513586 | J115: 0.5364776076 | K115: 6 | L115: 309983 | M115: 309983 | N115: 3151 | O115: 3151 | P115: 10 | Q115: 106183 | R115: 106183 | S115: 295 | T115: 295
B116: FW 09 | C116: Footscray West | D116: Urban | E116: 1424.5 | F116: 9.052150394 | G116: 3.825483444 | H116: 9.640312 | I116: 1.939716856 | J116: 0.4798978068 | K116: 9 | L116: 35468 | M116: 35468 | N116: 160 | O116: 160 | P116: 5 | Q116: 29250 | R116: 29250 | S116: 90 | T116: 90
B117: FW 13 | C117: Footscray West | D117: Urban | E117: 470.5 | F117: 5.140043174 | G117: 0.6421174263 | H117: 10.688172 | I117: 1.821492661 | J117: 3.418334561 | K117: 2 | L117: 10620 | M117: 10620 | N117: 62 | O117: 62 | P117: 7 | Q117: 66434 | R117: 66434 | S117: 172 | T117: 172
B118: FW 16 | C118: Footscray West | D118: Urban | E118: 2535 | F118: 9.172426363 | G118: 0.24001825 | H118: 4.039024 | I118: 2.922410782 | J118: 0.3114672989 | K118: 7 | L118: 208485 | M118: 208485 | N118: 3031 | O118: 3031 | P118: 4 | Q118: 74067 | R118: 74067 | S118: 282 | T118: 282
B119: FW 17 | C119: Footscray West | D119: Urban | E119: 2218 | F119: 8.612363532 | G119: 0.302339667 | H119: 3.467464 | I119: 2.395504508 | J119: 0.05662081238 | K119: 5 | L119: 235697 | M119: 235697 | N119: 1878 | O119: 1878 | P119: 3 | Q119: 18570 | R119: 18570 | S119: 115 | T119: 115
B120: HB 05 | C120: Heidelberg | D120: Urban | E120: 1640 | F120: 5.295457433 | G120: 2.004518279 | H120: 4.505798 | I120: 7.717631137 | J120: 0.5864153798 | K120: 8 | L120: 413551 | M120: 413170 | N120: 5152 | O120: 5151 | P120: 6 | Q120: 104744 | R120: 104744 | S120: 287 | T120: 287
B121: HB 06 | C121: Heidelberg | D121: Urban | E121: 1467 | F121: 5.20996994 | G121: 0.4282337085 | H121: 3.3341 | I121: 0.2173441115 | J121: 0.04724495183 | K121: 4 | L121: 17555 | M121: 17555 | N121: 171 | O121: 171 | P121: 1 | Q121: 12720 | R121: 12720 | S121: 53 | T121: 53
B122: HB 08 | C122: Heidelberg | D122: Urban | E122: 750.5 | F122: 1.510292379 | G122: 0.5245711545 | H122: 3.648458 | I122: 0.02454760425 | J122: 0 | K122: 1 | L122: 751 | M122: 751 | N122: 4 | O122: 4 | P122: 0 | Q122: 0 | R122: 0 | S122: 0 | T122: 0
B123: HB 09 | C123: Heidelberg | D123: Urban | E123: 1140.5 | F123: 5.009240122 | G123: 0.899431423 | H123: 3.61988 | I123: 1.58050941 | J123: 0.001295623415 | K123: 3 | L123: 73193 | M123: 73193 | N123: 1286 | O123: 1286 | P123: 1 | Q123: 200 | R123: 200 | S123: 2 | T123: 2
B124: HB 10 | C124: Heidelberg | D124: Urban | E124: 905 | F124: 6.391806338 | G124: 0.3908772525 | H124: 3.019742 | I124: 0.1884290086 | J124: 0.2769822109 | K124: 1 | L124: 9386 | M124: 9386 | N124: 79 | O124: 79 | P124: 4 | Q124: 45990 | R124: 45990 | S124: 148 | T124: 148
B125: HB 12 | C125: Heidelberg | D125: Urban | E125: 2486 | F125: 9.356059925 | G125: 1.00066776 | H125: 5.753704 | I125: 3.534672654 | J125: 0.3800913179 | K125: 6 | L125: 259192 | M125: 259192 | N125: 4006 | O125: 4006 | P125: 11 | Q125: 92905 | R125: 92905 | S125: 271 | T125: 271
B126: HB 13 | C126: Heidelberg | D126: Urban | E126: 514 | F126: 2.06977059 | G126: 0.569806138 | H126: 2.90543 | I126: 0.6682641264 | J126: 0 | K126: 1 | L126: 18009 | M126: 18009 | N126: 92 | O126: 92 | P126: 0 | Q126: 0 | R126: 0 | S126: 0 | T126: 0
B127: NH 02 | C127: North Heidelberg | D127: Urban | E127: 4253.5 | F127: 16.27711138 | G127: 4.10918283 | H127: 8.325724 | I127: 0.6171859299 | J127: 0.4994832167 | K127: 6 | L127: 54524 | M127: 54421 | N127: 462 | O127: 461 | P127: 8 | Q127: 147086 | R127: 147086 | S127: 667 | T127: 667
B128: NH 03 | C128: North Heidelberg | D128: Urban | E128: 1270 | F128: 9.150260674 | G128: 0.7792071218 | H128: 7.658904 | I128: 8.439731445 | J128: 0.8425895493 | K128: 7 | L128: 254364 | M128: 254364 | N128: 2818 | O128: 2818 | P128: 14 | Q128: 84649 | R128: 84649 | S128: 370 | T128: 370
B129: NH 05 | C129: North Heidelberg | D129: Urban | E129: 4744.5 | F129: 16.61984625 | G129: 1.043486893 | H129: 6.725356 | I129: 2.731130379 | J129: 0.07881407662 | K129: 11 | L129: 307925 | M129: 307925 | N129: 5868 | O129: 5868 | P129: 3 | Q129: 29620 | R129: 29620 | S129: 123 | T129: 123
B130: NH 08 | C130: North Heidelberg | D130: Urban | E130: 2605.5 | F130: 11.63813565 | G130: 1.331465976 | H130: 4.95352 | I130: 4.442260288 | J130: 0.02083411113 | K130: 5 | L130: 446100 | M130: 446100 | N130: 6856 | O130: 6856 | P130: 2 | Q130: 6974 | R130: 6974 | S130: 23 | T130: 23
B131: NH 09 | C131: North Heidelberg | D131: Urban | E131: 629 | F131: 6.480844482 | G131: 1.272244588 | H131: 9.468844 | I131: 0.6934450539 | J131: 0.3516983791 | K131: 3 | L131: 8083 | M131: 8083 | N131: 58 | O131: 58 | P131: 2 | Q131: 13665 | R131: 13665 | S131: 40 | T131: 40
B132: NH 12 | C132: North Heidelberg | D132: Urban | E132: 18 | F132: 0.15001085 | G132: 4.032841 | H132: 5.372664 | I132: 0 | J132: 0 | K132: 0 | L132: 0 | M132: 0 | N132: 0 | O132: 0 | P132: 0 | Q132: 0 | R132: 0 | S132: 0 | T132: 0
B133: NH 13 | C133: North Heidelberg | D133: Urban | E133: 855.5 | F133: 2.204060747 | G133: 2.379283113 | H133: 5.753704 | I133: 2.844835584 | J133: 0.04389981224 | K133: 1 | L133: 48991 | M133: 48991 | N133: 868 | O133: 868 | P133: 1 | Q133: 2520 | R133: 2520 | S133: 12 | T133: 12
B134: NH 16 | C134: North Heidelberg | D134: Urban | E134: 2493.5 | F134: 7.176983 | G134: 4.4796475 | H134: 7.792268 | I134: 1.226476436 | J134: 0.2815747897 | K134: 4 | L134: 59276 | M134: 59276 | N134: 251 | O134: 251 | P134: 6 | Q134: 45362 | R134: 45362 | S134: 178 | T134: 178
B135: NH 17 | C135: North Heidelberg | D135: Urban | E135: 1465.5 | F135: 6.91613 | G135: 2.1445315 | H135: 5.563184 | I135: 0.3804251064 | J135: 0.08877241204 | K135: 2 | L135: 13544 | M135: 13544 | N135: 163 | O135: 163 | P135: 1 | Q135: 10535 | R135: 10535 | S135: 49 | T135: 49
B136: NH 20 | C136: North Heidelberg | D136: Urban | E136: 1904.5 | F136: 7.558061011 | G136: 2.19369307 | H136: 7.754164 | I136: 4.628308499 | J136: 0.6242912099 | K136: 4 | L136: 179439 | M136: 179439 | N136: 2131 | O136: 2131 | P136: 10 | Q136: 80679 | R136: 80679 | S136: 343 | T136: 343
B137: NS 07 | C137: North Essendon | D137: Urban | E137: 914 | F137: 3.689922599 | G137: 1.393946558 | H137: 4.124758 | I137: 0.04359570401 | J137: 0 | K137: 2 | L137: 1437 | M137: 1437 | N137: 11 | O137: 11 | P137: 0 | Q137: 0 | R137: 0 | S137: 0 | T137: 0
B138: NS 08 | C138: North Essendon | D138: Urban | E138: 1152 | F138: 2.939660926 | G138: 0.2612323423 | H138: 2.52439 | I138: 0.4489834583 | J138: 0.05149708292 | K138: 1 | L138: 30006 | M138: 30006 | N138: 123 | O138: 123 | P138: 1 | Q138: 11472 | R138: 11472 | S138: 24 | T138: 24
B139: NS 09 | C139: North Essendon | D139: Urban | E139: 964.5 | F139: 3.65961145 | G139: 1.078871486 | H139: 4.38196 | I139: 0.1694938585 | J139: 0 | K139: 1 | L139: 5790 | M139: 5790 | N139: 44 | O139: 44 | P139: 0 | Q139: 0 | R139: 0 | S139: 0 | T139: 0
B140: NS 11 | C140: North Essendon | D140: Rural-short | E140: 0 | F140: 0 | G140: 0.0486123745 | I140: 0 | J140: 0 | K140: 0 | L140: 0 | M140: 0 | N140: 0 | O140: 0 | P140: 0 | Q140: 0 | R140: 0 | S140: 0 | T140: 0
B141: NS 12 | C141: North Essendon | D141: Urban | E141: 1292.5 | F141: 3.678221012 | G141: 1.170151776 | H141: 3.134054 | I141: 0.01485631287 | J141: 0 | K141: 1 | L141: 1302 | M141: 1302 | N141: 20 | O141: 20 | P141: 0 | Q141: 0 | R141: 0 | S141: 0 | T141: 0
B142: NS 14 | C142: North Essendon | D142: Urban | E142: 2915 | F142: 5.611595828 | G142: 1.261304777 | H142: 4.534376 | I142: 2.191838003 | J142: 0 | K142: 2 | L142: 265897 | M142: 265897 | N142: 5643 | O142: 5643 | P142: 0 | Q142: 0 | R142: 0 | S142: 0 | T142: 0
B143: NS 15 | C143: North Essendon | D143: Urban | E143: 1539.5 | F143: 4.424814752 | G143: 1.113942657 | H143: 4.172388 | I143: 0.8337877471 | J143: 0.1634401155 | K143: 3 | L143: 46120 | M143: 46120 | N143: 163 | O143: 163 | P143: 2 | Q143: 30135 | R143: 30135 | S143: 81 | T143: 81
B144: NS 16 | C144: North Essendon | D144: Urban | E144: 707 | F144: 3.197644047 | G144: 0.4209682031 | H144: 1.61942 | I144: 0.05518312122 | J144: 0 | K144: 1 | L144: 4539 | M144: 4539 | N144: 39 | O144: 39 | P144: 0 | Q144: 0 | R144: 0 | S144: 0 | T144: 0
B145: NS 17 | C145: North Essendon | D145: Urban | E145: 824.5 | F145: 3.575744988 | G145: 0.5114770522 | H145: 2.133824 | I145: 1.724300612 | J145: 0 | K145: 2 | L145: 113530 | M145: 113530 | N145: 877 | O145: 877 | P145: 0 | Q145: 0 | R145: 0 | S145: 0 | T145: 0
B146: NS 18 | C146: North Essendon | D146: Urban | E146: 1753 | F146: 3.45 | G146: 2.615 | H146: 5.201196 | I146: 0.4030513629 | J146: 0 | K146: 4 | L146: 18291 | M146: 18291 | N146: 122 | O146: 122 | P146: 0 | Q146: 0 | R146: 0 | S146: 0 | T146: 0
B147: NT 01 | C147: Newport | D147: Urban | E147: 2 | F147: 0.6690992365 | G147: 5.625229686 | I147: 4.636274387 | J147: 0 | K147: 1 | L147: 249 | M147: 249 | N147: 1 | O147: 1 | P147: 0 | Q147: 0 | R147: 0 | S147: 0 | T147: 0
B148: NT 03 | C148: Newport | D148: Urban | E148: 3117.5 | F148: 11.66886929 | G148: 3.69091877 | H148: 9.90704 | I148: 4.810999296 | J148: 0.9102632339 | K148: 7 | L148: 274330 | M148: 274330 | N148: 3577 | O148: 3577 | P148: 12 | Q148: 173015 | R148: 173015 | S148: 542 | T148: 542
B149: NT 04 | C149: Newport | D149: Urban | E149: 1907.5 | F149: 3.482005021 | G149: 1.959506795 | H149: 9.545052 | I149: 2.89697792 | J149: 0.04934070871 | K149: 5 | L149: 93531 | M149: 93477 | N149: 2007 | O149: 2006 | P149: 2 | Q149: 5310 | R149: 5310 | S149: 19 | T149: 19
B150: NT 10 | C150: Newport | D150: Urban | E150: 64 | F150: 1.891544003 | G150: 0.8320581236 | H150: 2.210032 | I150: 0.7046312666 | J150: 0.02015042651 | K150: 1 | L150: 2780 | M150: 2780 | N150: 33 | O150: 33 | P150: 1 | Q150: 265 | R150: 265 | S150: 1 | T150: 1
B151: NT 11 | C151: Newport | D151: Urban | E151: 2752 | F151: 7.980351516 | G151: 1.998345303 | H151: 5.258352 | I151: 0.7389561647 | J151: 0.0004754534972 | K151: 4 | L151: 58283 | M151: 58283 | N151: 490 | O151: 490 | P151: 1 | Q151: 125 | R151: 125 | S151: 1 | T151: 1
B152: NT 15 | C152: Newport | D152: Urban | E152: 2360 | F152: 5.07157 | G152: 2.34188 | H152: 3.943764 | I152: 0.07897148438 | J152: 0.004853915842 | K152: 3 | L152: 9835 | M152: 9835 | N152: 103 | O152: 103 | P152: 2 | Q152: 2015 | R152: 2015 | S152: 8 | T152: 8
B153: NT 16 | C153: Newport | D153: Urban | E153: 206.5 | F153: 2.940237717 | G153: 1.609543711 | H153: 5.42982 | I153: 0.6374114683 | J153: 0 | K153: 2 | L153: 12183 | M153: 12183 | N153: 105 | O153: 105 | P153: 0 | Q153: 0 | R153: 0 | S153: 0 | T153: 0
B154: NT 17 | C154: Newport | D154: Urban | E154: 3551 | F154: 9.249252219 | G154: 3.547857473 | H154: 7.925632 | I154: 4.356003844 | J154: 0.005160717371 | K154: 6 | L154: 303865 | M154: 303865 | N154: 5314 | O154: 5314 | P154: 1 | Q154: 1200 | R154: 1200 | S154: 4 | T154: 4
B155: P 55 | C155: Preston | D155: Urban | E155: 39 | F155: 0.809619643 | G155: 0.391269705 | H155: 2.1376344 | I155: 0 | J155: 1.073740204 | K155: 0 | L155: 0 | M155: 0 | N155: 0 | O155: 0 | P155: 1 | Q155: 18900 | R155: 18900 | S155: 35 | T155: 35
B156: P 56 | C156: Preston | D156: Urban | E156: 2 | F156: 2.049427575 | G156: 0.2576854075 | I156: 0.9681067968 | J156: 0 | K156: 1 | L156: 601 | M156: 601 | N156: 2 | O156: 2 | P156: 0 | Q156: 0 | R156: 0 | S156: 0 | T156: 0
B157: P 57 | C157: Preston | D157: Urban | E157: 245 | F157: 1.78178759 | G157: 0.2809138905 | H157: 1.0631016 | I157: 0.2389394747 | J157: 0.137840233 | K157: 1 | L157: 11070 | M157: 11070 | N157: 102 | O157: 102 | P157: 6 | Q157: 21287 | R157: 21287 | S157: 70 | T157: 70
B158: P 59 | C158: Preston | D158: Urban | E158: 840 | F158: 2.5 | G158: 1.725 | H158: 2.4519924 | I158: 0.008366124341 | J158: 0.1372538177 | K158: 0 | L158: 593 | M158: 593 | N158: 6 | O158: 6 | P158: 4 | Q158: 32429 | R158: 32429 | S158: 89 | T158: 89
B159: P 60 | C159: Preston | D159: Rural-short | E159: 206 | F159: 0.995982 | G159: 0.03613055514 | H159: 0.1943304 | I159: 0.00518333883 | J159: 0.01451495347 | K159: 0 | L159: 1292 | M159: 1292 | N159: 2 | O159: 2 | P159: 1 | Q159: 12060 | R159: 12060 | S159: 36 | T159: 36
B160: P 61 | C160: Preston | D160: Urban | E160: 520.5 | F160: 0.617245 | G160: 0.32403 | H160: 1.5946524 | I160: 0.2608652382 | J160: 0.4074411938 | K160: 2 | L160: 19779 | M160: 19779 | N160: 99 | O160: 99 | P160: 26 | Q160: 102975 | R160: 102975 | S160: 626 | T160: 626
B161: P 62 | C161: Preston | D161: Urban | E161: 694.5 | F161: 2.010885 | G161: 0.886125 | H161: 3.3036168 | I161: 0.05069845203 | J161: 0.2005173854 | K161: 1 | L161: 1873 | M161: 1873 | N161: 8 | O161: 8 | P161: 5 | Q161: 24693 | R161: 24693 | S161: 98 | T161: 98
B162: P 63 | C162: Preston | D162: Urban | E162: 829 | F162: 2.828127127 | G162: 0.1495753175 | H162: 2.1947904 | I162: 0.02962029908 | J162: 0 | K162: 0 | L162: 1856 | M162: 1856 | N162: 5 | O162: 5 | P162: 0 | Q162: 0 | R162: 0 | S162: 0 | T162: 0
B163: P 65 | C163: Preston | D163: Urban | E163: 256.5 | F163: 0.4079985325 | G163: 0.1295381813 | H163: 1.0116612 | I163: 0.00305744611 | J163: 0.4651989185 | K163: 0 | L163: 108 | M163: 108 | N163: 1 | O163: 1 | P163: 4 | Q163: 54775 | R163: 54775 | S163: 140 | T163: 140
B164: P 66 | C164: Preston | D164: Urban | E164: 1000 | F164: 2.800123067 | G164: 0.7065483285 | H164: 3.4693692 | I164: 0.8342846044 | J164: 1.228442558 | K164: 4 | L164: 36719 | M164: 36468 | N164: 315 | O164: 314 | P164: 18 | Q164: 180223 | R164: 180223 | S164: 811 | T164: 811
B165: PV 02 | C165: Pascoe Vale | D165: Urban | E165: 429.5 | F165: 2.60333 | G165: 1.614916 | H165: 2.133824 | I165: 0.3863470128 | J165: 0.01394934411 | K165: 2 | L165: 13959 | M165: 13959 | N165: 33 | O165: 33 | P165: 1 | Q165: 1680 | R165: 1680 | S165: 4 | T165: 4
B166: PV 03 | C166: Pascoe Vale | D166: Urban | E166: 1697.5 | F166: 5.39 | G166: 0.36 | H166: 3.067372 | I166: 0.1904769808 | J166: 0.1171483536 | K166: 1 | L166: 18248 | M166: 18248 | N166: 1711 | O166: 1711 | P166: 1 | Q166: 37410 | R166: 37410 | S166: 87 | T166: 87
B167: PV 04 | C167: Pascoe Vale | D167: Urban | E167: 3041.5 | F167: 10.058365 | G167: 0.4852985 | H167: 4.515324 | I167: 0.1343507201 | J167: 0.04597891867 | K167: 1 | L167: 14705 | M167: 14705 | N167: 49 | O167: 49 | P167: 1 | Q167: 16775 | R167: 16775 | S167: 61 | T167: 61
B168: PV 05 | C168: Pascoe Vale | D168: Urban | E168: 2728 | F168: 10.05652 | G168: 0.93248 | H168: 5.010676 | I168: 4.959944459 | J168: 0.01545317984 | K168: 4 | L168: 466524 | M168: 466524 | N168: 2854 | O168: 2854 | P168: 1 | Q168: 4845 | R168: 4845 | S168: 19 | T168: 19
B169: PV 06 | C169: Pascoe Vale | D169: Urban | E169: 2303.5 | F169: 8.18 | G169: 0.16 | H169: 4.267648 | I169: 1.698127835 | J169: 0 | K169: 2 | L169: 155008 | M169: 154752 | N169: 2410 | O169: 2409 | P169: 0 | Q169: 0 | R169: 0 | S169: 0 | T169: 0
B170: PV 07 | C170: Pascoe Vale | D170: Urban | E170: 2459 | F170: 9.882794025 | G170: 0.4080809385 | H170: 5.086884 | I170: 2.947330018 | J170: 0.05639042117 | K170: 4 | L170: 315951 | M170: 18765 | N170: 2560 | O170: 100 | P170: 3 | Q170: 20150 | R170: 20150 | S170: 79 | T170: 79
B171: PV 08 | C171: Pascoe Vale | D171: Urban | E171: 1235 | F171: 5.59194 | G171: 0.1802605 | H171: 2.514864 | I171: 0.2001048754 | J171: 0.1048494724 | K171: 2 | L171: 14746 | M171: 14746 | N171: 1286 | O171: 1286 | P171: 3 | Q171: 25755 | R171: 25755 | S171: 79 | T171: 79
B172: PV 09 | C172: Pascoe Vale | D172: Urban | E172: 1619 | F172: 6.89014 | G172: 0.532425 | H172: 4.09618 | I172: 0.3838952196 | J172: 0 | K172: 3 | L172: 21276 | M172: 20423 | N172: 1673 | O172: 1672 | P172: 0 | Q172: 0 | R172: 0 | S172: 0 | T172: 0
B173: PV 11 | C173: Pascoe Vale | D173: Urban | E173: 1887 | F173: 5.805 | G173: 1.47 | H173: 4.315278 | I173: 1.003114055 | J173: 0.09859948117 | K173: 3 | L173: 57248 | M173: 31933 | N173: 332 | O173: 156 | P173: 3 | Q173: 18757 | R173: 18757 | S173: 55 | T173: 55
B174: SA 02 | C174: St Alban | D174: Rural-short | E174: 61 | F174: 15.08501708 | G174: 0 | H174: 0.514404 | I174: 1.875609399 | J174: 0.2617504443 | K174: 6 | L174: 40124 | M174: 40124 | N174: 122 | O174: 122 | P174: 3 | Q174: 18665 | R174: 18665 | S174: 55 | T174: 55
B175: SA 06 | C175: St Alban | D175: Rural-short | E175: 144 | F175: 4.309920353 | G175: 1.201470519 | H175: 0.609664 | I175: 0.04006132016 | J175: 0.0149825113 | K175: 1 | L175: 1707 | M175: 1707 | N175: 29 | O175: 29 | P175: 2 | Q175: 2128 | R175: 2128 | S175: 24 | T175: 24
B176: SA 10 | C176: St Alban | D176: Rural-short | E176: 43 | F176: 0.63 | G176: 0.64 | H176: 0.038104 | I176: 0.02086653305 | J176: 0 | K176: 2 | L176: 4248 | M176: 4248 | N176: 57 | O176: 57 | P176: 0 | Q176: 0 | R176: 0 | S176: 0 | T176: 0
B177: SA 12 | C177: St Alban | D177: Urban | E177: 1816 | F177: 1.082425466 | G177: 6.188767196 | H177: 4.38196 | I177: 0.005577663326 | J177: 0.2957124613 | K177: 0 | L177: 417 | M177: 417 | N177: 2 | O177: 2 | P177: 5 | Q177: 73694 | R177: 73694 | S177: 423 | T177: 423
B178: SBY11 | C178: Sunbury | D178: Rural-short | E178: 2443 | F178: 62.06740767 | G178: 10.55957979 | H178: 6.172848 | I178: 7.83972524 | J178: 0.1903601967 | K178: 36 | L178: 456360 | M178: 456360 | N178: 5762 | O178: 5762 | P178: 14 | Q178: 36937 | R178: 36937 | S178: 130 | T178: 130
B179: SBY14 | C179: Sunbury | D179: Rural-short | E179: 4054.5 | F179: 95.08752574 | G179: 22.90201152 | H179: 10.821536 | I179: 9.797793787 | J179: 0.871662753 | K179: 24 | L179: 573622 | M179: 210432 | N179: 8264 | O179: 4210 | P179: 23 | Q179: 170108 | R179: 170108 | S179: 659 | T179: 659
B180: SBY31 | C180: Sunbury | D180: Urban | E180: 2096 | F180: 6.810545428 | G180: 7.906169448 | H180: 6.782512 | I180: 0.5005495056 | J180: 1.273675848 | K180: 7 | L180: 21268 | M180: 21268 | N180: 119 | O180: 119 | P180: 3 | Q180: 180392 | R180: 180392 | S180: 319 | T180: 319
B181: SBY32 | C181: Sunbury | D181: Rural-short | E181: 2810 | F181: 121.7260149 | G181: 10.39222634 | H181: 5.391716 | I181: 7.278153346 | J181: 1.190065506 | K181: 45 | L181: 531416 | M181: 527996 | N181: 2473 | O181: 2453 | P181: 35 | Q181: 289643 | R181: 289643 | S181: 907 | T181: 907
B182: SBY33 | C182: Sunbury | D182: Urban | E182: 3516.5 | F182: 18.30492515 | G182: 3.343294564 | H182: 7.23976 | I182: 0.8592022705 | J182: 0 | K182: 15 | L182: 74149 | M182: 74149 | N182: 581 | O182: 581 | P182: 0 | Q182: 0 | R182: 0 | S182: 0 | T182: 0
B183: SHM11 | C183: Sydenham | D183: Rural-short | E183: 1018 | F183: 64.46713699 | G183: 1.917436552 | H183: 2.781592 | I183: 0.7427077887 | J183: 2.193982868 | K183: 14 | L183: 35190 | M183: 35190 | N183: 296 | O183: 296 | P183: 24 | Q183: 346508 | R183: 346508 | S183: 1187 | T183: 1187
B184: SHM12 | C184: Sydenham | D184: Urban | E184: 2821.5 | F184: 4.76012992 | G184: 14.03671958 | H184: 7.6208 | I184: 0.2601118149 | J184: 0.01428572065 | K184: 2 | L184: 17698 | M184: 17698 | N184: 163 | O184: 163 | P184: 1 | Q184: 3240 | R184: 3240 | S184: 8 | T184: 8
B185: SHM14 | C185: Sydenham | D185: Rural-short | E185: 3681.5 | F185: 18.95850468 | G185: 20.94908281 | H185: 9.259272 | I185: 8.338438603 | J185: 0.3343615536 | K185: 11 | L185: 564862 | M185: 564862 | N185: 7544 | O185: 7544 | P185: 6 | Q185: 75501 | R185: 75501 | S185: 251 | T185: 251
B186: SHM21 | C186: Sydenham | D186: Urban | E186: 4805 | F186: 3.88249 | G186: 19.449072 | H186: 8.66866 | I186: 0.3751327877 | J186: 0 | K186: 5 | L186: 34198 | M186: 34198 | N186: 223 | O186: 223 | P186: 0 | Q186: 0 | R186: 0 | S186: 0 | T186: 0
B187: ST 11 | C187: Somerton | D187: Urban | E187: 171.5 | F187: 7.240663336 | G187: 3.238840933 | H187: 7.373124 | I187: 0.4677362191 | J187: 0.2395722098 | K187: 1 | L187: 1435 | M187: 1435 | N187: 6 | O187: 6 | P187: 3 | Q187: 2450 | R187: 2450 | S187: 9 | T187: 9
B188: ST 12 | C188: Somerton | D188: Urban | E188: 237.5 | F188: 14.768992 | G188: 3.132081658 | H188: 9.183064 | I188: 2.230509329 | J188: 0.04234072379 | K188: 1 | L188: 7902 | M188: 7902 | N188: 15 | O188: 15 | P188: 1 | Q188: 500 | R188: 500 | S188: 2 | T188: 2
B189: ST 13 | C189: Somerton | D189: Urban | E189: 186 | F189: 4.885917165 | G189: 4.308926793 | H189: 6.153796 | I189: 0.1719142733 | J189: 0.4399847425 | K189: 1 | L189: 772 | M189: 772 | N189: 9 | O189: 9 | P189: 3 | Q189: 6586 | R189: 6586 | S189: 17 | T189: 17
B190: ST 14 | C190: Somerton | D190: Urban | E190: 40 | F190: 0 | G190: 4.136985781 | H190: 6.38242 | I190: 0 | J190: 0 | K190: 0 | L190: 0 | M190: 0 | N190: 0 | O190: 0 | P190: 0 | Q190: 0 | R190: 0 | S190: 0 | T190: 0
B191: ST 21 | C191: Somerton | D191: Rural-short | E191: 1.5 | F191: 0.197551587 | G191: 2.455453655 | I191: 0 | J191: 0 | K191: 0 | L191: 0 | M191: 0 | N191: 0 | O191: 0 | P191: 0 | Q191: 0 | R191: 0 | S191: 0 | T191: 0
B192: ST 22 | C192: Somerton | D192: Urban | E192: 6240.5 | F192: 18.264195 | G192: 32.28959 | H192: 16.28946 | I192: 15.63473056 | J192: 0.4845993959 | K192: 8 | L192: 929161 | M192: 929161 | N192: 7117 | O192: 7117 | P192: 14 | Q192: 95998 | R192: 95998 | S192: 481 | T192: 481
B193: ST 23 | C193: Somerton | D193: Urban | E193: 141 | F193: 7.931673622 | G193: 3.497725277 | H193: 12.498112 | I193: 4.064899872 | J193: 0.1247387686 | K193: 2 | L193: 6159 | M193: 6159 | N193: 145 | O193: 145 | P193: 1 | Q193: 630 | R193: 630 | S193: 3 | T193: 3
B194: ST 24 | C194: Somerton | D194: Urban | E194: 1 | F194: 0 | G194: 3.762446434 | I194: 0 | J194: 0 | K194: 0 | L194: 0 | M194: 0 | N194: 0 | O194: 0 | P194: 0 | Q194: 0 | R194: 0 | S194: 0 | T194: 0
B195: ST 31 | C195: Somerton | D195: Urban | E195: 1 | F195: 0 | G195: 0.61837395 | I195: 0 | J195: 0 | K195: 0 | L195: 0 | M195: 0 | N195: 0 | O195: 0 | P195: 0 | Q195: 0 | R195: 0 | S195: 0 | T195: 0
B196: ST 32 | C196: Somerton | D196: Urban | E196: 6524 | F196: 12.27979902 | G196: 22.61607392 | H196: 11.450252 | I196: 3.245463946 | J196: 0.2790748813 | K196: 8 | L196: 318633 | M196: 318633 | N196: 6521 | O196: 6521 | P196: 11 | Q196: 91330 | R196: 91330 | S196: 274 | T196: 274
B197: ST 33 | C197: Somerton | D197: Urban | E197: 3335 | F197: 7.155 | G197: 8.815 | H197: 7.201656 | I197: 0.8388816373 | J197: 0.3987489667 | K197: 5 | L197: 59730 | M197: 59730 | N197: 1127 | O197: 1127 | P197: 17 | Q197: 94639 | R197: 94639 | S197: 329 | T197: 329
B198: ST 34 | C198: Somerton | D198: Urban | E198: 268 | F198: 7.191448741 | G198: 6.765347941 | H198: 10.364288 | I198: 7.779279168 | J198: 0.02705361667 | K198: 2 | L198: 29934 | M198: 29934 | N198: 292 | O198: 292 | P198: 1 | Q198: 347 | R198: 347 | S198: 1 | T198: 1
B199: TH 11 | C199: Tottenham | D199: Urban | E199: 60 | F199: 3.098576812 | G199: 0.8301505225 | H199: 5.62034 | I199: 1.83805124 | J199: 0.6346794277 | K199: 2 | L199: 3298 | M199: 3298 | N199: 63 | O199: 63 | P199: 4 | Q199: 3796 | R199: 3796 | S199: 19 | T199: 19
B200: TH 12 | C200: Tottenham | D200: Urban | E200: 27 | F200: 3.480448353 | G200: 0.5781742169 | H200: 10.421444 | I200: 8.726631158 | J200: 0 | K200: 3 | L200: 4001 | M200: 4001 | N200: 39 | O200: 39 | P200: 0 | Q200: 0 | R200: 0 | S200: 0 | T200: 0
B201: TH 13 | C201: Tottenham | D201: Urban | E201: 56.5 | F201: 3.215262889 | G201: 0.5008573481 | H201: 5.868016 | I201: 8.949226059 | J201: 1.880291804 | K201: 4 | L201: 10409 | M201: 10409 | N201: 67 | O201: 67 | P201: 2 | Q201: 7290 | R201: 7290 | S201: 25 | T201: 25
B202: TH 14 | C202: Tottenham | D202: Rural-short | E202: 0.5 | F202: 0 | G202: 0.07150517 | I202: 0 | J202: 0 | K202: 0 | L202: 0 | M202: 0 | N202: 0 | O202: 0 | P202: 0 | Q202: 0 | R202: 0 | S202: 0 | T202: 0
B203: TH 21 | C203: Tottenham | D203: Urban | E203: 176 | F203: 7.388239306 | G203: 1.422397656 | H203: 19.052 | I203: 3.997445903 | J203: 0.05302734361 | K203: 3 | L203: 17640 | M203: 6526 | N203: 200 | O203: 22 | P203: 4 | Q203: 780 | R203: 780 | S203: 6 | T203: 6
B204: TH 22 | C204: Tottenham | D204: Urban | E204: 870 | F204: 8.738759822 | G204: 2.661069399 | H204: 5.887068 | I204: 1.582758214 | J204: 0.4907962669 | K204: 4 | L204: 45167 | M204: 45167 | N204: 291 | O204: 291 | P204: 9 | Q204: 46686 | R204: 46686 | S204: 223 | T204: 223
... 16 more rows

Sheet 3.6.8 Network-feeders (2012-13)
B1: =INDEX(dms_Worksheet_List,MATCH(dms_Model,dms_Model_List)) -> HISTORICAL ANNUAL REPORTING - FINANCIAL YEARS
B2: =INDEX(dms_TradingNameFull_List,MATCH(dms_TradingName,dms_TradingName_List)) -> Jemena Electricity
B3: =dms_Header_Span -> 2011-12 to 2017-18
B4: 3.6 QUALITY OF SERVICES
B6: Did the MAIFI parameter of the STPIS apply during the period? | F6: No | G6: ** IMPORTANT Please ensure this question is answered correctly. Your response will affect other tables throughout this workbook and will determine which cells are grey and which are input cells.
B10: 3.6.8 - NETWORK FEEDER RELIABILITY
B11: Feeder ID / name | C11: Description of the service area for the feeder | D11: Feeder classification (drop down) | E11: Number of distribution customers | F11: Length of high voltage distribution lines | H11: Maximum demand (MVA) | I11: Energy not supplied (MWh) | K11: Unplanned Outages | P11: Planned Outages | U11: Momentary feeder outages
F12: Overhead | G12: Underground | I12: Unplanned | J12: Planned | K12: Total number of unplanned outages | L12: Unplanned customer minutes off-supply (SAIDI) | N12: Unplanned interruptions (SAIFI) | P12: Total number of planned outages | Q12: Planned customer minutes off-supply (SAIDI) | S12: Planned interruptions (SAIFI) | U12: Total number of momentary feeder outages | V12: Momentary interruptions due to feeder outages (MAIFI)
L13: Including excluded events and MEDs | M13: After removing excluded events and MED | N13: Including excluded events and MEDs | O13: After removing excluded events and MED | Q13: Including MEDs | R13: After removing MED | S13: Including MEDs | T13: After removing MED | V13: Including excluded events and MEDs | W13: After removing excluded events and MED
B14: AW 01 | C14: Airport West | D14: Urban | E14: 716 | F14: 4.6725 | G14: 4.318 | H14: 8.76392 | I14: 1.120598996 | J14: 0.1136998771 | K14: 4 | L14: 14281 | M14: 14281 | N14: 202 | O14: 202 | P14: 1 | Q14: 4830 | R14: 4830 | S14: 14 | T14: 14
B15: AW 02 | C15: Airport West | D15: Urban | E15: 2401 | F15: 11.05 | G15: 2.97 | H15: 9.62126 | I15: 6.214699632 | J15: 0.07601337923 | K15: 7 | L15: 222071 | M15: 222071 | N15: 5104 | O15: 5104 | P15: 2 | Q15: 9054 | R15: 9054 | S15: 46 | T15: 46
B16: AW 03 | C16: Airport West | D16: Urban | E16: 251 | F16: 6.1135 | G16: 3.9205 | H16: 12.917256 | I16: 9.02169429 | J16: 0.3535608474 | K16: 3 | L16: 24496 | M16: 24496 | N16: 312 | O16: 312 | P16: 1 | Q16: 3200 | R16: 3200 | S16: 10 | T16: 10
B17: AW 04 | C17: Airport West | D17: Urban | E17: 1929 | F17: 11.393 | G17: 10.543 | H17: 12.8601 | I17: 7.950950056 | J17: 0.4154516548 | K17: 15 | L17: 173104 | M17: 173104 | N17: 5874 | O17: 5874 | P17: 5 | Q17: 30150 | R17: 30150 | S17: 109 | T17: 109
B18: AW 05 | C18: Airport West | D18: Urban | E18: 538 | F18: 4.937 | G18: 0.8725 | H18: 7.639852 | I18: 3.453355802 | J18: 0.09172935768 | K18: 3 | L18: 39891 | M18: 39891 | N18: 1081 | O18: 1081 | P18: 2 | Q18: 3532 | R18: 3532 | S18: 12 | T18: 12
B19: AW 06 | C19: Airport West | D19: Urban | E19: 4809 | F19: 16.6845 | G19: 1.673 | H19: 11.450252 | I19: 2.310086876 | J19: 0.8290009514 | K19: 12 | L19: 206881 | M19: 206881 | N19: 5228 | O19: 5228 | P19: 10 | Q19: 247472 | R19: 247472 | S19: 772 | T19: 772
B20: AW 07 | C20: Airport West | D20: Urban | E20: 4516 | F20: 16.037 | G20: 5.6415 | H20: 10.021352 | I20: 1.027978558 | J20: 0.2381529116 | K20: 6 | L20: 97619 | M20: 97619 | N20: 4627 | O20: 4627 | P20: 12 | Q20: 75385 | R20: 75385 | S20: 275 | T20: 275
B21: AW 08 | C21: Airport West | D21: Urban | E21: 2327 | F21: 14.4255 | G21: 8.023 | H21: 9.849884 | I21: 1.126837664 | J21: 0.9045292617 | K21: 4 | L21: 42250 | M21: 42250 | N21: 2398 | O21: 2398 | P21: 5 | Q21: 113049 | R21: 113049 | S21: 304 | T21: 304
B22: AW 09 | C22: Airport West | D22: Urban | E22: 2442 | F22: 9.5705 | G22: 7.0455 | H22: 7.697008 | I22: 0.3589612893 | J22: 0.008630398622 | K22: 6 | L22: 18829 | M22: 18829 | N22: 105 | O22: 105 | P22: 2 | Q22: 1509 | R22: 1509 | S22: 5 | T22: 5
B23: AW 11 | C23: Airport West | D23: Urban | E23: 475 | F23: 5.9995 | G23: 3.555 | H23: 9.164012 | I23: 2.84486487 | J23: 0.3178900129 | K23: 4 | L23: 22748 | M23: 22748 | N23: 493 | O23: 493 | P23: 4 | Q23: 8473 | R23: 8473 | S23: 23 | T23: 23
B24: AW 12 | C24: Airport West | D24: Urban | E24: 1766 | F24: 5.704 | G24: 6.712 | H24: 6.591992 | I24: 1.658331658 | J24: 0.05361155257 | K24: 7 | L24: 63334 | M24: 63334 | N24: 2000 | O24: 2000 | P24: 1 | Q24: 6825 | R24: 6825 | S24: 35 | T24: 35
B25: AW 14 | C25: Airport West | D25: Urban | E25: 1258 | F25: 8.9325 | G25: 4.7665 | H25: 9.90704 | I25: 1.203477213 | J25: 0.2602855627 | K25: 3 | L25: 18393 | M25: 18393 | N25: 1320 | O25: 1320 | P25: 1 | Q25: 13260 | R25: 13260 | S25: 34 | T25: 34
B26: BD 01 | C26: Broadmeadows | D26: Urban | E26: 1669 | F26: 11.0885 | G26: 5.3635 | H26: 10.249976 | I26: 4.206968686 | J26: 0.958503265 | K26: 4 | L26: 112882 | M26: 112882 | N26: 1692 | O26: 1692 | P26: 6 | Q26: 85729 | R26: 85729 | S26: 260 | T26: 260
B27: BD 02 | C27: Broadmeadows | D27: Urban | E27: 1 | F27: 0.7725 | G27: 0.0715 | I27: 1.580354195 | J27: 0 | K27: 1 | L27: 31 | M27: 31 | N27: 1 | O27: 1 | P27: 0 | Q27: 0 | R27: 0 | S27: 0 | T27: 0
B28: BD 03 | C28: Broadmeadows | D28: Urban | E28: 348 | F28: 3.9925 | G28: 5.4875 | H28: 10.173768 | I28: 2.586983203 | J28: 0.02879030291 | K28: 1 | L28: 11861 | M28: 11861 | N28: 342 | O28: 342 | P28: 2 | Q28: 440 | R28: 440 | S28: 2 | T28: 2
B29: BD 04 | C29: Broadmeadows | D29: Urban | E29: 1038 | F29: 8.4665 | G29: 4.337 | H29: 11.888448 | I29: 7.384573211 | J29: 0.2419861656 | K29: 8 | L29: 165430 | M29: 165430 | N29: 3221 | O29: 3221 | P29: 4 | Q29: 18070 | R29: 18070 | S29: 102 | T29: 102
B30: BD 06 | C30: Broadmeadows | D30: Urban | E30: 1 | F30: 0.749 | G30: 0.08 | I30: 1.453811562 | J30: 0 | K30: 1 | L30: 31 | M30: 31 | N30: 1 | O30: 1 | P30: 0 | Q30: 0 | R30: 0 | S30: 0 | T30: 0
B31: BD 07 | C31: Broadmeadows | D31: Urban | E31: 4642 | F31: 25.2 | G31: 2.05 | H31: 13.793648 | I31: 5.11182285 | J31: 0.1653441068 | K31: 8 | L31: 400174 | M31: 400174 | N31: 12266 | O31: 12266 | P31: 7 | Q31: 43146 | R31: 43146 | S31: 170 | T31: 170
B32: BD 08 | C32: Broadmeadows | D32: Urban | E32: 1310 | F32: 8.4835 | G32: 0.859 | H32: 7.754164 | I32: 1.091834294 | J32: 0.6520561883 | K32: 3 | L32: 32923 | M32: 32923 | N32: 816 | O32: 816 | P32: 6 | Q32: 65540 | R32: 65540 | S32: 184 | T32: 184
B33: BD 09 | C33: Broadmeadows | D33: Urban | E33: 689 | F33: 5.187 | G33: 1.291 | H33: 4.743948 | I33: 1.487658739 | J33: 0.004755470207 | K33: 4 | L33: 34255 | M33: 34255 | N33: 304 | O33: 304 | P33: 1 | Q33: 365 | R33: 365 | S33: 5 | T33: 5
B34: BD 10 | C34: Broadmeadows | D34: Urban | E34: 1112 | F34: 6.6295 | G34: 4.3205 | H34: 12.040864 | I34: 2.230406668 | J34: 0.002107470868 | K34: 2 | L34: 36830 | M34: 36830 | N34: 1170 | O34: 1170 | P34: 1 | Q34: 116 | R34: 116 | S34: 1 | T34: 1
B35: BD 11 | C35: Broadmeadows | D35: Urban | E35: 2792 | F35: 10.0775 | G35: 1.72 | H35: 7.544592 | I35: 0.7586821714 | J35: 0.1814070902 | K35: 8 | L35: 39020 | M35: 39020 | N35: 354 | O35: 354 | P35: 5 | Q35: 31100 | R35: 31100 | S35: 77 | T35: 77
B36: BD 13 | C36: Broadmeadows | D36: Urban | E36: 603 | F36: 9.999 | G36: 3.0985 | H36: 12.307592 | I36: 2.956806547 | J36: 0.2268210107 | K36: 4 | L36: 30719 | M36: 30719 | N36: 552 | O36: 552 | P36: 3 | Q36: 7855 | R36: 7855 | S36: 30 | T36: 30
B37: BD 14 | C37: Broadmeadows | D37: Urban | E37: 563 | F37: 6.6925 | G37: 2.9765 | H37: 10.173768 | I37: 0.01498811351 | J37: 0.2328969312 | K37: 0 | L37: 343 | M37: 343 | N37: 3 | O37: 3 | P37: 1 | Q37: 17766 | R37: 17766 | S37: 63 | T37: 63
B38: BD 15 | C38: Broadmeadows | D38: Urban | E38: 807 | F38: 8.6405 | G38: 1.598 | H38: 10.57386 | I38: 0.2359565858 | J38: 0.1032026105 | K38: 1 | L38: 2389 | M38: 2389 | N38: 15 | O38: 15 | P38: 2 | Q38: 3483 | R38: 3483 | S38: 12 | T38: 12
B39: BD 16 | C39: Broadmeadows | D39: Urban | E39: 800 | F39: 9.0515 | G39: 2.4 | H39: 7.33502 | I39: 0.4035070477 | J39: 0.7644060086 | K39: 2 | L39: 6435 | M39: 6435 | N39: 41 | O39: 41 | P39: 1 | Q39: 40635 | R39: 40635 | S39: 129 | T39: 129
B40: BY 11 | C40: Braybrook | D40: Urban | E40: 4001 | F40: 16.429 | G40: 2.4385 | H40: 8.554348 | I40: 3.340745834 | J40: 0 | K40: 6 | L40: 250165 | M40: 250165 | N40: 4275 | O40: 4275 | P40: 0 | Q40: 0 | R40: 0 | S40: 0 | T40: 0
B41: BY 12 | C41: Braybrook | D41: Urban | E41: 1244 | F41: 4.6795 | G41: 0.698 | H41: 2.838748 | I41: 1.562939184 | J41: 0.0006222282766 | K41: 7 | L41: 85905 | M41: 85905 | N41: 1616 | O41: 1616 | P41: 2 | Q41: 114 | R41: 114 | S41: 2 | T41: 2
B42: BY 13 | C42: Braybrook | D42: Urban | E42: 752 | F42: 2.989 | G42: 1.8065 | H42: 12.021812 | I42: 2.409463793 | J42: 0.01781436673 | K42: 3 | L42: 25563 | M42: 25563 | N42: 93 | O42: 93 | P42: 1 | Q42: 630 | R42: 630 | S42: 7 | T42: 7
B43: BY 14 | C43: Braybrook | D43: Urban | E43: 2877 | F43: 12.0415 | G43: 3.322 | H43: 7.544592 | I43: 2.649114166 | J43: 0.5542960645 | K43: 7 | L43: 168603 | M43: 168603 | N43: 2001 | O43: 2001 | P43: 9 | Q43: 117594 | R43: 117594 | S43: 813 | T43: 813
B44: BY 15 | C44: Braybrook | D44: Urban | E44: 966 | F44: 6.1415 | G44: 2.2105 | H44: 7.582696 | I44: 14.18590895 | J44: 0.1388761644 | K44: 8 | L44: 231365 | M44: 231365 | N44: 2960 | O44: 2960 | P44: 3 | Q44: 7550 | R44: 7550 | S44: 34 | T44: 34
B45: CN 01 | C45: Coburg North | D45: Urban | E45: 103 | F45: 1.8685 | G45: 0.31 | H45: 7.887528 | I45: 8.135244224 | J45: 0.06307726857 | K45: 1 | L45: 11801 | M45: 11801 | N45: 102 | O45: 102 | P45: 1 | Q45: 305 | R45: 305 | S45: 1 | T45: 1
B46: CN 02 | C46: Coburg North | D46: Urban | E46: 456 | F46: 4.887 | G46: 0.921 | H46: 9.964196 | I46: 4.128669077 | J46: 0.9008345115 | K46: 3 | L46: 39758 | M46: 39758 | N46: 495 | O46: 495 | P46: 5 | Q46: 28916 | R46: 28916 | S46: 108 | T46: 108
B47: CN 03 | C47: Coburg North | D47: Urban | E47: 2671 | F47: 9.26 | G47: 1.92 | H47: 5.372664 | I47: 5.077955827 | J47: 0.3479143003 | K47: 9 | L47: 414599 | M47: 414599 | N47: 5373 | O47: 5373 | P47: 6 | Q47: 94687 | R47: 94687 | S47: 283 | T47: 283
B48: CN 04 | C48: Coburg North | D48: Urban | E48: 1354 | F48: 7.398 | G48: 5.3705 | H48: 9.164012 | I48: 3.068620245 | J48: 1.087726826 | K48: 4 | L48: 49119 | M48: 49119 | N48: 1387 | O48: 1387 | P48: 11 | Q48: 58037 | R48: 58037 | S48: 286 | T48: 286
B49: CN 05 | C49: Coburg North | D49: Urban | E49: 3907 | F49: 13.0605 | G49: 1.5895 | H49: 7.296916 | I49: 7.14589227 | J49: 0.2451663816 | K49: 10 | L49: 608924 | M49: 608924 | N49: 10801 | O49: 10801 | P49: 12 | Q49: 69638 | R49: 69638 | S49: 292 | T49: 292
B50: CN 06 | C50: Coburg North | D50: Urban | E50: 2087 | F50: 9.8445 | G50: 1.3315 | H50: 7.220708 | I50: 0.2766620099 | J50: 0.6354249615 | K50: 4 | L50: 11835 | M50: 11835 | N50: 102 | O50: 102 | P50: 13 | Q50: 90607 | R50: 90607 | S50: 525 | T50: 525
B51: CN 07 | C51: Coburg North | D51: Urban | E51: 5420 | F51: 15.783 | G51: 1.115 | H51: 8.5734 | I51: 2.366562807 | J51: 0.7929248482 | K51: 6 | L51: 219685 | M51: 219685 | N51: 3956 | O51: 3956 | P51: 14 | Q51: 245354 | R51: 245354 | S51: 847 | T51: 847
B52: CN 08 | C52: Coburg North | D52: Urban | E52: 1250 | F52: 6.71 | G52: 0.704 | H52: 3.029268 | I52: 0.8496619898 | J52: 0.1948229456 | K52: 3 | L52: 61175 | M52: 61175 | N52: 1325 | O52: 1325 | P52: 3 | Q52: 46757 | R52: 46757 | S52: 116 | T52: 116
B53: CN 09 | C53: Coburg North | D53: Urban | E53: 48 | F53: 2.4365 | G53: 0.541 | H53: 4.401012 | I53: 0 | J53: 0 | K53: 0 | L53: 0 | M53: 0 | N53: 0 | O53: 0 | P53: 0 | Q53: 0 | R53: 0 | S53: 0 | T53: 0
B54: CN 10 | C54: Coburg North | D54: Urban | E54: 1948 | F54: 6.3935 | G54: 1.0685 | H54: 7.90658 | I54: 5.417916018 | J54: 0.354871345 | K54: 1 | L54: 168514 | M54: 168514 | N54: 2013 | O54: 2013 | P54: 11 | Q54: 36792 | R54: 36792 | S54: 194 | T54: 194
B55: CN 11 | C55: Coburg North | D55: Urban | E55: 2489 | F55: 8.94 | G55: 1.343 | H55: 7.944684 | I55: 0.9550426062 | J55: 0.4284663621 | K55: 11 | L55: 67845 | M55: 67845 | N55: 488 | O55: 488 | P55: 8 | Q55: 101459 | R55: 101459 | S55: 359 | T55: 359
B56: COO11 | C56: Coolaroo | D56: Rural-short | E56: 1809 | F56: 139.97636 | G56: 24.40533663 | H56: 9.583156 | I56: 5.12288283 | J56: 5.235051764 | K56: 19 | L56: 136543 | M56: 136543 | N56: 4735 | O56: 4735 | P56: 53 | Q56: 465109 | R56: 465109 | S56: 1419 | T56: 1419
B57: COO12 | C57: Coolaroo | D57: Urban | E57: 719 | F57: 0.6295 | G57: 11.1145 | H57: 6.420524 | I57: 1.437655423 | J57: 0.0183782446 | K57: 2 | L57: 57543 | M57: 57543 | N57: 2860 | O57: 2860 | P57: 2 | Q57: 2452 | R57: 2452 | S57: 10 | T57: 10
B58: COO13 | C58: Coolaroo | D58: Urban | E58: 3908 | F58: 6.2305 | G58: 11.2985 | H58: 10.326184 | I58: 5.755724731 | J58: 0.3449249579 | K58: 5 | L58: 481058 | M58: 481058 | N58: 11733 | O58: 11733 | P58: 3 | Q58: 96095 | R58: 96095 | S58: 203 | T58: 203
B59: COO14 | C59: Coolaroo | D59: Urban | E59: 2840 | F59: 5.623193362 | G59: 16.59366337 | H59: 7.754164 | I59: 0.9969756167 | J59: 0.3962657781 | K59: 5 | L59: 68401 | M59: 68401 | N59: 7222 | O59: 7222 | P59: 6 | Q59: 90624 | R59: 90624 | S59: 238 | T59: 238
B60: COO21 | C60: Coolaroo | D60: Rural-short | E60: 0 | F60: 16.845 | G60: 10.581 | I60: 0 | J60: 0 | K60: 2 | L60: 15040 | M60: 15040 | N60: 71 | O60: 71 | P60: 2 | Q60: 14049 | R60: 14049 | S60: 39 | T60: 39
B61: COO22 | C61: Coolaroo | D61: Urban | E61: 0 | F61: 0.713 | G61: 19.29 | I61: 0 | J61: 0 | K61: 1 | L61: 1912 | M61: 1912 | N61: 11 | O61: 11 | P61: 0 | Q61: 0 | R61: 0 | S61: 0 | T61: 0
B62: CS 02 | C62: Coburg South | D62: Urban | E62: 5529 | F62: 14.541 | G62: 0.9545 | H62: 10.135664 | I62: 2.976063805 | J62: 0.658443584 | K62: 14 | L62: 305152 | M62: 305152 | N62: 6250 | O62: 6250 | P62: 17 | Q62: 225046 | R62: 225046 | S62: 829 | T62: 829
B63: CS 03 | C63: Coburg South | D63: Urban | E63: 3828 | F63: 10.912 | G63: 2.3805 | H63: 8.821076 | I63: 2.57408177 | J63: 0.04069178564 | K63: 5 | L63: 158746 | M63: 158746 | N63: 3982 | O63: 3982 | P63: 4 | Q63: 8365 | R63: 8365 | S63: 34 | T63: 34
B64: CS 05 | C64: Coburg South | D64: Urban | E64: 4671 | F64: 12.103 | G64: 0.7155 | H64: 8.611504 | I64: 1.540664436 | J64: 0.3437664203 | K64: 11 | L64: 143722 | M64: 143722 | N64: 2355 | O64: 2355 | P64: 14 | Q64: 106895 | R64: 106895 | S64: 357 | T64: 357
B65: CS 08 | C65: Coburg South | D65: Urban | E65: 3929 | F65: 10.6015 | G65: 3.0525 | H65: 7.71606 | I65: 8.486522815 | J65: 0.4345805262 | K65: 14 | L65: 540381 | M65: 540381 | N65: 6808 | O65: 6808 | P65: 5 | Q65: 92240 | R65: 92240 | S65: 277 | T65: 277
B66: CS 09 | C66: Coburg South | D66: Urban | E66: 0 | F66: 4.034 | G66: 1.828 | I66: 0 | J66: 0 | K66: 8 | L66: 119674 | M66: 119674 | N66: 4006 | O66: 4006 | P66: 0 | Q66: 0 | R66: 0 | S66: 0 | T66: 0
B67: CS 12 | C67: Coburg South | D67: Urban | E67: 1988 | F67: 9.0895 | G67: 0.862 | H67: 6.344316 | I67: 4.31096764 | J67: 0.01059677481 | K67: 8 | L67: 168423 | M67: 168423 | N67: 831 | O67: 831 | P67: 1 | Q67: 1380 | R67: 1380 | S67: 4 | T67: 4
B68: CS 13 | C68: Coburg South | D68: Urban | E68: 1819 | F68: 5.5775 | G68: 2.5575 | H68: 4.839208 | I68: 2.161968074 | J68: 0.1715004298 | K68: 7 | L68: 143635 | M68: 143635 | N68: 2053 | O68: 2053 | P68: 3 | Q68: 37980 | R68: 37980 | S68: 116 | T68: 116
B69: EP 02 | C69: East Preston | D69: Urban | E69: 71 | F69: 0.7715 | G69: 0.4705 | H69: 2.6234604 | I69: 0.02722019729 | J69: 0 | K69: 0 | L69: 203 | M69: 203 | N69: 1 | O69: 1 | P69: 0 | Q69: 0 | R69: 0 | S69: 0 | T69: 0
B70: EP 03 | C70: East Preston | D70: Urban | E70: 94 | F70: 1.038 | G70: 0.4525 | H70: 1.4689092 | I70: 0.01408512461 | J70: 0 | K70: 0 | L70: 164 | M70: 164 | N70: 1 | O70: 1 | P70: 0 | Q70: 0 | R70: 0 | S70: 0 | T70: 0
B71: EP 04 | C71: East Preston | D71: Urban | E71: 14 | F71: 1.1285 | G71: 0.3685 | H71: 1.0745328 | I71: 0.05675109762 | J71: 0 | K71: 0 | L71: 147 | M71: 147 | N71: 1 | O71: 1 | P71: 0 | Q71: 0 | R71: 0 | S71: 0 | T71: 0
B72: EP 07 | C72: East Preston | D72: Urban | E72: 45 | F72: 1.913 | G72: 0.7195 | H72: 2.600598 | I72: 0.2625232542 | J72: 0 | K72: 2 | L72: 937 | M72: 937 | N72: 9 | O72: 9 | P72: 0 | Q72: 0 | R72: 0 | S72: 0 | T72: 0
B73: EP 09 | C73: East Preston | D73: Urban | E73: 247 | F73: 2.546 | G73: 0.6605 | H73: 3.4750848 | I73: 0.04962702744 | J73: 0.0007000677851 | K73: 0 | L73: 638 | M73: 638 | N73: 5 | O73: 5 | P73: 1 | Q73: 30 | R73: 30 | S73: 2 | T73: 2
B74: EP 11 | C74: East Preston | D74: Urban | E74: 520 | F74: 3.851 | G74: 0.552 | H74: 2.0519004 | I74: 0.2557345439 | J74: 0 | K74: 1 | L74: 13139 | M74: 13139 | N74: 235 | O74: 235 | P74: 0 | Q74: 0 | R74: 0 | S74: 0 | T74: 0
B75: EP 16 | C75: East Preston | D75: Urban | E75: 57 | F75: 1.952 | G75: 0.1505 | H75: 3.0064056 | I75: 0.08399506815 | J75: 0 | K75: 1 | L75: 283 | M75: 283 | N75: 4 | O75: 4 | P75: 0 | Q75: 0 | R75: 0 | S75: 0 | T75: 0
B76: EP 17 | C76: East Preston | D76: Urban | E76: 129 | F76: 1.0205 | G76: 0.6285 | H76: 3.3893508 | I76: 0 | J76: 0 | K76: 0 | L76: 0 | M76: 0 | N76: 0 | O76: 0 | P76: 0 | Q76: 0 | R76: 0 | S76: 0 | T76: 0
B77: EP 18 | C77: East Preston | D77: Urban | E77: 16 | F77: 1.2705 | G77: 0.591 | H77: 1.5775056 | I77: 0.7361496728 | J77: 0 | K77: 1 | L77: 1553 | M77: 1553 | N77: 9 | O77: 9 | P77: 0 | Q77: 0 | R77: 0 | S77: 0 | T77: 0
B78: EP 20 | C78: East Preston | D78: Urban | E78: 264 | F78: 2.449 | G78: 0.1645 | H78: 3.3950664 | I78: 0.411329782 | J78: 0.005999788786 | K78: 3 | L78: 6273 | M78: 6273 | N78: 90 | O78: 90 | P78: 2 | Q78: 305 | R78: 305 | S78: 2 | T78: 2
B79: EP 27 | C79: East Preston | D79: Urban | E79: 14 | F79: 0.051 | G79: 1.48 | H79: 1.5489276 | I79: 0 | J79: 0 | K79: 0 | L79: 0 | M79: 0 | N79: 0 | O79: 0 | P79: 0 | Q79: 0 | R79: 0 | S79: 0 | T79: 0
B80: EP 34 | C80: East Preston | D80: Urban | E80: 1443 | F80: 5.502 | G80: 0.752 | H80: 2.7492036 | I80: 0.05649667862 | J80: 0.009009293452 | K80: 2 | L80: 5879 | M80: 5879 | N80: 43 | O80: 43 | P80: 2 | Q80: 3125 | R80: 3125 | S80: 30 | T80: 30
B81: EP 35 | C81: East Preston | D81: Urban | E81: 31 | F81: 1.88 | G81: 0.3985 | H81: 2.8349376 | I81: 0 | J81: 0 | K81: 0 | L81: 0 | M81: 0 | N81: 0 | O81: 0 | P81: 0 | Q81: 0 | R81: 0 | S81: 0 | T81: 0
B82: EP 36 | C82: East Preston | D82: Urban | E82: 947 | F82: 5.2705 | G82: 0.1505 | H82: 2.0118912 | I82: 0.1347187002 | J82: 0.0222794685 | K82: 2 | L82: 11120 | M82: 11120 | N82: 123 | O82: 123 | P82: 2 | Q82: 6130 | R82: 6130 | S82: 29 | T82: 29
B83: EP 37 | C83: East Preston | D83: Urban | E83: 812 | F83: 3.663 | G83: 0.318 | H83: 3.0464148 | I83: 0.1410500368 | J83: 0.1078955792 | K83: 1 | L83: 5771 | M83: 5771 | N83: 82 | O83: 82 | P83: 2 | Q83: 14715 | R83: 14715 | S83: 69 | T83: 69
B84: EP 41 | C84: East Preston | D84: Urban | E84: 56 | F84: 1.4035 | G84: 0.528 | H84: 2.6806164 | I84: 0.11130959 | J84: 0.1061675709 | K84: 0 | L84: 368 | M84: 368 | N84: 4 | O84: 4 | P84: 1 | Q84: 1170 | R84: 1170 | S84: 2 | T84: 2
B85: EP 42 | C85: East Preston | D85: Urban | E85: 297 | F85: 2.6445 | G85: 0.53 | H85: 3.029268 | I85: 0.08670818497 | J85: 0.07054225218 | K85: 1 | L85: 1357 | M85: 1357 | N85: 7 | O85: 7 | P85: 1 | Q85: 3680 | R85: 3680 | S85: 8 | T85: 8
B86: ES 01 | C86: Essendon | D86: Urban | E86: 1134 | F86: 4.3315 | G86: 0.54 | H86: 4.982098 | I86: 0.222984397 | J86: 0 | K86: 1 | L86: 9490 | M86: 9490 | N86: 36 | O86: 36 | P86: 0 | Q86: 0 | R86: 0 | S86: 0 | T86: 0
B87: ES 02 | C87: Essendon | D87: Urban | E87: 1474 | F87: 5.0215 | G87: 0.722 | H87: 3.724666 | I87: 0.4224053484 | J87: 0.1068415887 | K87: 5 | L87: 29341 | M87: 29341 | N87: 274 | O87: 274 | P87: 1 | Q87: 24738 | R87: 24738 | S87: 133 | T87: 133
B88: ES 03 | C88: Essendon | D88: Urban | E88: 2622 | F88: 7.593 | G88: 0.823 | H88: 6.258582 | I88: 0.1214561161 | J88: 0 | K88: 4 | L88: 10230 | M88: 10230 | N88: 117 | O88: 117 | P88: 0 | Q88: 0 | R88: 0 | S88: 0 | T88: 0
B89: ES 06 | C89: Essendon | D89: Urban | E89: 2041 | F89: 5.7305 | G89: 1.9605 | H89: 4.95352 | I89: 0.07385443288 | J89: 0 | K89: 2 | L89: 4869 | M89: 4869 | N89: 38 | O89: 38 | P89: 0 | Q89: 0 | R89: 0 | S89: 0 | T89: 0
B90: ES 07 | C90: Essendon | D90: Urban | E90: 1272 | F90: 3.89 | G90: 0.37 | H90: 2.95306 | I90: 0.3112413749 | J90: 0.004031266977 | K90: 2 | L90: 22583 | M90: 22583 | N90: 127 | O90: 127 | P90: 2 | Q90: 975 | R90: 975 | S90: 9 | T90: 9
B91: ES 11 | C91: Essendon | D91: Urban | E91: 1553 | F91: 3.426 | G91: 0.551 | H91: 4.23907 | I91: 0.4851551935 | J91: 0.02449626596 | K91: 7 | L91: 31936 | M91: 31936 | N91: 211 | O91: 211 | P91: 1 | Q91: 5375 | R91: 5375 | S91: 25 | T91: 25
B92: ES 12 | C92: Essendon | D92: Urban | E92: 1197 | F92: 2.759 | G92: 1.799 | H92: 4.52485 | I92: 0.4204551023 | J92: 0.008753149448 | K92: 2 | L92: 20751 | M92: 20751 | N92: 103 | O92: 103 | P92: 1 | Q92: 1440 | R92: 1440 | S92: 6 | T92: 6
B93: ES 13 | C93: Essendon | D93: Urban | E93: 1846 | F93: 4.2235 | G93: 1.0315 | H93: 5.353612 | I93: 0.3353350384 | J93: 0.489984079 | K93: 3 | L93: 17271 | M93: 17271 | N93: 167 | O93: 167 | P93: 3 | Q93: 84120 | R93: 84120 | S93: 284 | T93: 284
B94: ES 14 | C94: Essendon | D94: Urban | E94: 1058 | F94: 3.8755 | G94: 1.763 | H94: 4.66774 | I94: 0.2746264312 | J94: 0.00683612198 | K94: 3 | L94: 13016 | M94: 13016 | N94: 120 | O94: 120 | P94: 1 | Q94: 1080 | R94: 1080 | S94: 4 | T94: 4
B95: FE 05 | C95: Footscray | D95: Urban | E95: 3049 | F95: 8.4225 | G95: 0.8575 | H95: 6.496732 | I95: 7.571492395 | J95: 0.1469346966 | K95: 10 | L95: 606777 | M95: 606777 | N95: 9482 | O95: 9482 | P95: 4 | Q95: 39251 | R95: 39251 | S95: 237 | T95: 237
B96: FE 06 | C96: Footscray | D96: Urban | E96: 4166 | F96: 10.173 | G96: 7.9165 | H96: 11.012056 | I96: 3.121469704 | J96: 0.001123572875 | K96: 6 | L96: 155855 | M96: 155855 | N96: 288 | O96: 288 | P96: 1 | Q96: 187 | R96: 187 | S96: 1 | T96: 1
B97: FE 08 | C97: Footscray | D97: Urban | E97: 2271 | F97: 3.5835 | G97: 5.0035 | H97: 9.106856 | I97: 0.1668992988 | J97: 0.4647432898 | K97: 2 | L97: 5633 | M97: 5633 | N97: 51 | O97: 51 | P97: 6 | Q97: 52285 | R97: 52285 | S97: 169 | T97: 169
B98: FE 09 | C98: Footscray | D98: Urban | E98: 3976 | F98: 7.734 | G98: 1.115 | H98: 5.829912 | I98: 1.90138461 | J98: 0.1215872974 | K98: 12 | L98: 188116 | M98: 188116 | N98: 4677 | O98: 4677 | P98: 2 | Q98: 40098 | R98: 40098 | S98: 105 | T98: 105
B99: FF 87 | C99: Fairfield | D99: Urban | E99: 969 | F99: 2.6385 | G99: 0.239 | H99: 1.914726 | I99: 0.07248191207 | J99: 0.2844812008 | K99: 1 | L99: 4924 | M99: 4924 | N99: 45 | O99: 45 | P99: 8 | Q99: 64420 | R99: 64420 | S99: 320 | T99: 320
B100: FF 88 | C100: Fairfield | D100: Urban | E100: 1218 | F100: 3.9615 | G100: 0.3765 | H100: 1.971882 | I100: 0.01659471511 | J100: 0.3091763808 | K100: 0 | L100: 1567 | M100: 1567 | N100: 8 | O100: 8 | P100: 9 | Q100: 97316 | R100: 97316 | S100: 324 | T100: 324
B101: FF 89 | C101: Fairfield | D101: Urban | E101: 352 | F101: 3.9195 | G101: 0.7875 | H101: 2.3262492 | I101: 0.1822563899 | J101: 0.4309827572 | K101: 1 | L101: 4131 | M101: 4131 | N101: 57 | O101: 57 | P101: 4 | Q101: 32562 | R101: 32562 | S101: 77 | T101: 77
B102: FF 90 | C102: Fairfield | D102: Urban | E102: 1031 | F102: 3.4215 | G102: 0.392 | H102: 2.3776896 | I102: 0.0147259221 | J102: 0 | K102: 0 | L102: 1033 | M102: 1033 | N102: 4 | O102: 4 | P102: 0 | Q102: 0 | R102: 0 | S102: 0 | T102: 0
B103: FF 95 | C103: Fairfield | D103: Urban | E103: 1645 | F103: 4.7895 | G103: 0.0625 | H103: 2.8406532 | I103: 0.1325212524 | J103: 0.1964663542 | K103: 1 | L103: 13169 | M103: 13169 | N103: 107 | O103: 107 | P103: 9 | Q103: 65078 | R103: 65078 | S103: 259 | T103: 259
B104: FF 96 | C104: Fairfield | D104: Urban | E104: 1025 | F104: 3.6915 | G104: 0.388 | H104: 2.1090564 | I104: 0.18580468 | J104: 0.2426067115 | K104: 1 | L104: 17641 | M104: 17641 | N104: 54 | O104: 54 | P104: 5 | Q104: 76780 | R104: 76780 | S104: 238 | T104: 238
B105: FT 01 | C105: Flemington | D105: Urban | E105: 3746 | F105: 6.8535 | G105: 2.5825 | H105: 6.601518 | I105: 0.2308928471 | J105: 0.04445641342 | K105: 4 | L105: 21237 | M105: 21237 | N105: 159 | O105: 159 | P105: 4 | Q105: 13630 | R105: 13630 | S105: 48 | T105: 48
B106: FT 02 | C106: Flemington | D106: Urban | E106: 278 | F106: 1.5905 | G106: 5.3805 | H106: 2.52439 | I106: 0 | J106: 0 | K106: 0 | L106: 0 | M106: 0 | N106: 0 | O106: 0 | P106: 0 | Q106: 0 | R106: 0 | S106: 0 | T106: 0
B107: FT 04 | C107: Flemington | D107: Urban | E107: 1013 | F107: 2.8495 | G107: 2.1875 | H107: 3.867556 | I107: 0.1278161968 | J107: 0.0005964203609 | K107: 2 | L107: 4629 | M107: 4629 | N107: 42 | O107: 42 | P107: 1 | Q107: 72 | R107: 72 | S107: 2 | T107: 2
B108: FT 05 | C108: Flemington | D108: Urban | E108: 2406 | F108: 4.7845 | G108: 2.031 | H108: 3.886608 | I108: 0.07382951939 | J108: 0 | K108: 1 | L108: 6042 | M108: 6042 | N108: 41 | O108: 41 | P108: 0 | Q108: 0 | R108: 0 | S108: 0 | T108: 0
B109: FT 06 | C109: Flemington | D109: Urban | E109: 348 | F109: 0.952 | G109: 1.2525 | H109: 2.114772 | I109: 0.1569127001 | J109: 0.06357519627 | K109: 2 | L109: 4145 | M109: 4145 | N109: 50 | O109: 50 | P109: 1 | Q109: 5598 | R109: 5598 | S109: 18 | T109: 18
B110: FT 09 | C110: Flemington | D110: Urban | E110: 1643 | F110: 2.925 | G110: 3.1675 | H110: 4.505798 | I110: 2.002560069 | J110: 0 | K110: 8 | L110: 89356 | M110: 89356 | N110: 1949 | O110: 1949 | P110: 0 | Q110: 0 | R110: 0 | S110: 0 | T110: 0
B111: FT 10 | C111: Flemington | D111: Urban | E111: 2054 | F111: 4.204 | G111: 1.709 | H111: 3.772296 | I111: 3.48998851 | J111: 0.08743452988 | K111: 4 | L111: 245013 | M111: 245013 | N111: 4505 | O111: 4505 | P111: 3 | Q111: 20461 | R111: 20461 | S111: 101 | T111: 101
B112: FT 13 | C112: Flemington | D112: Urban | E112: 1819 | F112: 3.006 | G112: 5.561 | H112: 5.47745 | I112: 0.06614451628 | J112: 0 | K112: 2 | L112: 4168 | M112: 4168 | N112: 50 | O112: 50 | P112: 0 | Q112: 0 | R112: 0 | S112: 0 | T112: 0
B113: FT 14 | C113: Flemington | D113: Urban | E113: 1488 | F113: 1.881 | G113: 1.73 | H113: 4.324804 | I113: 4.417658651 | J113: 0 | K113: 2 | L113: 188499 | M113: 188499 | N113: 2964 | O113: 2964 | P113: 0 | Q113: 0 | R113: 0 | S113: 0 | T113: 0
B114: FT 15 | C114: Flemington | D114: Urban | E114: 90 | F114: 0.128 | G114: 0.941 | H114: 3.353152 | I114: 0 | J114: 0 | K114: 0 | L114: 0 | M114: 0 | N114: 0 | O114: 0 | P114: 0 | Q114: 0 | R114: 0 | S114: 0 | T114: 0
B115: FW 04 | C115: Footscray West | D115: Urban | E115: 1399 | F115: 5.5255 | G115: 1.499 | H115: 7.677956 | I115: 8.792860685 | J115: 0.1341147928 | K115: 9 | L115: 203964 | M115: 203964 | N115: 2614 | O115: 2614 | P115: 2 | Q115: 10370 | R115: 10370 | S115: 71 | T115: 71
B116: FW 05 | C116: Footscray West | D116: Urban | E116: 1641 | F116: 7.4735 | G116: 1.1475 | H116: 4.153336 | I116: 4.121209997 | J116: 0.03436644395 | K116: 5 | L116: 255033 | M116: 255033 | N116: 3351 | O116: 3351 | P116: 3 | Q116: 7089 | R116: 7089 | S116: 29 | T116: 29
B117: FW 06 | C117: Footscray West | D117: Urban | E117: 951 | F117: 5.6185 | G117: 2.6505 | H117: 4.686792 | I117: 1.291065812 | J117: 0.03021615378 | K117: 2 | L117: 39224 | M117: 39224 | N117: 963 | O117: 963 | P117: 3 | Q117: 3060 | R117: 3060 | S117: 12 | T117: 12
B118: FW 08 | C118: Footscray West | D118: Urban | E118: 2915 | F118: 8.444 | G118: 0.829 | H118: 7.792268 | I118: 3.09682759 | J118: 0.0052788464 | K118: 7 | L118: 194298 | M118: 194298 | N118: 3350 | O118: 3350 | P118: 1 | Q118: 1104 | R118: 1104 | S118: 4 | T118: 4
B119: FW 09 | C119: Footscray West | D119: Urban | E119: 1417 | F119: 9.066 | G119: 3.7475 | H119: 9.087804 | I119: 5.733084514 | J119: 0.1166749951 | K119: 4 | L119: 120966 | M119: 120966 | N119: 1582 | O119: 1582 | P119: 2 | Q119: 8206 | R119: 8206 | S119: 31 | T119: 31
B120: FW 13 | C120: Footscray West | D120: Urban | E120: 473 | F120: 5.1395 | G120: 0.642 | H120: 11.069212 | I120: 13.84294755 | J120: 0.07839020201 | K120: 5 | L120: 76287 | M120: 76287 | N120: 1008 | O120: 1008 | P120: 1 | Q120: 1440 | R120: 1440 | S120: 4 | T120: 4
B121: FW 16 | C121: Footscray West | D121: Urban | E121: 2519 | F121: 9.175 | G121: 0.247 | H121: 4.420064 | I121: 4.739298076 | J121: 0.06270781599 | K121: 17 | L121: 332231 | M121: 332231 | N121: 4572 | O121: 4572 | P121: 2 | Q121: 14653 | R121: 14653 | S121: 52 | T121: 52
B122: FW 17 | C122: Footscray West | D122: Urban | E122: 2259 | F122: 8.5985 | G122: 0.3025 | H122: 3.71514 | I122: 3.216200127 | J122: 0.2185390953 | K122: 7 | L122: 318625 | M122: 318625 | N122: 3849 | O122: 3849 | P122: 1 | Q122: 72168 | R122: 72168 | S122: 186 | T122: 186
B123: HB 14 | C123: Heidelberg | D123: Urban | E123: 1699 | F123: 5.304 | G123: 2.001 | H123: 4.648688 | I123: 0.2644166103 | J123: 0.9807271023 | K123: 3 | L123: 14309 | M123: 14309 | N123: 173 | O123: 173 | P123: 26 | Q123: 176908 | R123: 176908 | S123: 839 | T123: 839
B124: HB 15 | C124: Heidelberg | D124: Urban | E124: 2403 | F124: 9.3715 | G124: 1.146 | H124: 5.62034 | I124: 1.619904865 | J124: 0.4367009569 | K124: 7 | L124: 117423 | M124: 117423 | N124: 2710 | O124: 2710 | P124: 19 | Q124: 105518 | R124: 105518 | S124: 539 | T124: 539
B125: HB 22 | C125: Heidelberg | D125: Urban | E125: 1134 | F125: 5.0115 | G125: 0.902 | H125: 3.543672 | I125: 0.3397358913 | J125: 0.09624950053 | K125: 2 | L125: 15725 | M125: 15725 | N125: 57 | O125: 57 | P125: 2 | Q125: 14850 | R125: 14850 | S125: 53 | T125: 53
B126: HB 23 | C126: Heidelberg | D126: Urban | E126: 1480 | F126: 5.3635 | G126: 0.4735 | H126: 3.400782 | I126: 0.2848320935 | J126: 0.2085089982 | K126: 2 | L126: 23254 | M126: 23254 | N126: 242 | O126: 242 | P126: 7 | Q126: 56743 | R126: 56743 | S126: 216 | T126: 216
B127: HB 24 | C127: Heidelberg | D127: Urban | E127: 876 | F127: 6.4295 | G127: 0.348 | H127: 3.267418 | I127: 1.440595038 | J127: 0.2403706451 | K127: 5 | L127: 67217 | M127: 67217 | N127: 1486 | O127: 1486 | P127: 8 | Q127: 37385 | R127: 37385 | S127: 155 | T127: 155
B128: HB 31 | C128: Heidelberg | D128: Urban | E128: 748 | F128: 1.51 | G128: 0.529 | H128: 3.543672 | I128: 5.767929728 | J128: 0.0006791126054 | K128: 1 | L128: 178360 | M128: 178360 | N128: 752 | O128: 752 | P128: 1 | Q128: 70 | R128: 70 | S128: 1 | T128: 1
B129: HB 32 | C129: Heidelberg | D129: Urban | E129: 514 | F129: 2.0695 | G129: 0.579 | H129: 2.962586 | I129: 0.03422092861 | J129: 0 | K129: 0 | L129: 917 | M129: 917 | N129: 4 | O129: 4 | P129: 0 | Q129: 0 | R129: 0 | S129: 0 | T129: 0
B130: NH 02 | C130: North Heidelberg | D130: Urban | E130: 4236 | F130: 16.2945 | G130: 4.109 | H130: 8.47814 | I130: 5.53273297 | J130: 0.1108350587 | K130: 9 | L130: 495617 | M130: 495617 | N130: 7655 | O130: 7655 | P130: 3 | Q130: 33095 | R130: 33095 | S130: 183 | T130: 183
B131: NH 03 | C131: North Heidelberg | D131: Urban | E131: 1279 | F131: 9.156 | G131: 0.78 | H131: 7.43028 | I131: 6.936582256 | J131: 0.3638188017 | K131: 4 | L131: 210306 | M131: 210306 | N131: 3870 | O131: 3870 | P131: 13 | Q131: 36768 | R131: 36768 | S131: 128 | T131: 128
B132: NH 05 | C132: North Heidelberg | D132: Urban | E132: 4535 | F132: 16.2465 | G132: 1.132 | H132: 6.534836 | I132: 1.846322571 | J132: 0.5519258633 | K132: 5 | L132: 208810 | M132: 208810 | N132: 4895 | O132: 4895 | P132: 26 | Q132: 208067 | R132: 208067 | S132: 887 | T132: 887
B133: NH 08 | C133: North Heidelberg | D133: Urban | E133: 2617 | F133: 11.6385 | G133: 1.3315 | H133: 5.029728 | I133: 1.074737467 | J133: 0.2393925102 | K133: 3 | L133: 109096 | M133: 109096 | N133: 2742 | O133: 2742 | P133: 7 | Q133: 81002 | R133: 81002 | S133: 292 | T133: 292
B134: NH 09 | C134: North Heidelberg | D134: Urban | E134: 633 | F134: 6.4865 | G134: 1.2725 | H134: 9.564104 | I134: 0.5322579369 | J134: 0.3379886633 | K134: 3 | L134: 6007 | M134: 6007 | N134: 60 | O134: 60 | P134: 3 | Q134: 12715 | R134: 12715 | S134: 41 | T134: 41
B135: NH 12 | C135: North Heidelberg | D135: Urban | E135: 18 | F135: 0.075 | G135: 4.028880125 | H135: 4.66774 | I135: 0 | J135: 0 | K135: 0 | L135: 0 | M135: 0 | N135: 0 | O135: 0 | P135: 0 | Q135: 0 | R135: 0 | S135: 0 | T135: 0
B136: NH 13 | C136: North Heidelberg | D136: Urban | E136: 631 | F136: 0.962 | G136: 2.8165 | H136: 6.058536 | I136: 2.074824599 | J136: 1.936767254 | K136: 3 | L136: 23813 | M136: 23813 | N136: 318 | O136: 318 | P136: 6 | Q136: 74095 | R136: 74095 | S136: 307 | T136: 307
B137: NH 16 | C137: North Heidelberg | D137: Urban | E137: 2522 | F137: 7.1815 | G137: 4.483 | H137: 6.934928 | I137: 1.802411482 | J137: 0.02626530873 | K137: 5 | L137: 104376 | M137: 104376 | N137: 2749 | O137: 2749 | P137: 1 | Q137: 5070 | R137: 5070 | S137: 26 | T137: 26
B138: NH 17 | C138: North Heidelberg | D138: Urban | E138: 1969 | F138: 8.1585 | G138: 2.2625 | H138: 6.28716 | I138: 0.7950856947 | J138: 0.3502315293 | K138: 4 | L138: 34846 | M138: 34846 | N138: 161 | O138: 161 | P138: 8 | Q138: 51165 | R138: 51165 | S138: 194 | T138: 194
B139: NH 20 | C139: North Heidelberg | D139: Urban | E139: 1905 | F139: 7.6135 | G139: 2.2835 | H139: 6.630096 | I139: 0.1813196282 | J139: 0.8454827328 | K139: 1 | L139: 7766 | M139: 7766 | N139: 48 | O139: 48 | P139: 8 | Q139: 120708 | R139: 120708 | S139: 395 | T139: 395
B140: NS 07 | C140: North Essendon | D140: Urban | E140: 943 | F140: 3.706 | G140: 1.555 | H140: 4.14381 | I140: 0.03464076365 | J140: 0.001917722416 | K140: 0 | L140: 1138 | M140: 1138 | N140: 5 | O140: 5 | P140: 1 | Q140: 210 | R140: 210 | S140: 2 | T140: 2
B141: NS 08 | C141: North Essendon | D141: Urban | E141: 1150 | F141: 2.9425 | G141: 0.261 | H141: 2.657754 | I141: 0.1965776134 | J141: 0.005997283121 | K141: 2 | L141: 13334 | M141: 13334 | N141: 66 | O141: 66 | P141: 1 | Q141: 1356 | R141: 1356 | S141: 12 | T141: 12
B142: NS 09 | C142: North Essendon | D142: Urban | E142: 955 | F142: 3.6595 | G142: 1.1435 | H142: 3.772296 | I142: 0.77912781 | J142: 0.04343653019 | K142: 1 | L142: 27686 | M142: 27686 | N142: 128 | O142: 128 | P142: 1 | Q142: 5145 | R142: 5145 | S142: 21 | T142: 21
B143: NS 11 | C143: North Essendon | D143: Rural-short | E143: 0 | F143: 0 | G143: 0.0485 | I143: 0 | J143: 0 | K143: 0 | L143: 0 | M143: 0 | N143: 0 | O143: 0 | P143: 0 | Q143: 0 | R143: 0 | S143: 0 | T143: 0
B144: NS 12 | C144: North Essendon | D144: Urban | E144: 1295 | F144: 3.6785 | G144: 1.17 | H144: 3.181684 | I144: 0.5263810868 | J144: 0.02219660254 | K144: 3 | L144: 46663 | M144: 46663 | N144: 336 | O144: 336 | P144: 2 | Q144: 6559 | R144: 6559 | S144: 35 | T144: 35
B145: NS 14 | C145: North Essendon | D145: Urban | E145: 1401 | F145: 5.612 | G145: 1.2615 | H145: 4.553428 | I145: 0.9332941605 | J145: 0.3353921209 | K145: 2 | L145: 54887 | M145: 54887 | N145: 1447 | O145: 1447 | P145: 2 | Q145: 65748 | R145: 65748 | S145: 148 | T145: 148
B146: NS 15 | C146: North Essendon | D146: Urban | E146: 1546 | F146: 4.4085 | G146: 1.1425 | H146: 4.067602 | I146: 0.1460769815 | J146: 0.5054939399 | K146: 3 | L146: 8516 | M146: 8516 | N146: 55 | O146: 55 | P146: 4 | Q146: 98231 | R146: 98231 | S146: 327 | T146: 327
B147: NS 16 | C147: North Essendon | D147: Urban | E147: 708 | F147: 3.194 | G147: 0.421 | H147: 1.66705 | I147: 0.3859439202 | J147: 0.009693200507 | K147: 2 | L147: 31367 | M147: 31367 | N147: 729 | O147: 729 | P147: 1 | Q147: 2626 | R147: 2626 | S147: 13 | T147: 13
B148: NS 17 | C148: North Essendon | D148: Urban | E148: 822 | F148: 3.5785 | G148: 0.5115 | H148: 2.352922 | I148: 1.694546229 | J148: 0 | K148: 6 | L148: 110841 | M148: 110841 | N148: 1201 | O148: 1201 | P148: 0 | Q148: 0 | R148: 0 | S148: 0 | T148: 0
B149: NS 18 | C149: North Essendon | D149: Urban | E149: 1744 | F149: 3.448 | G149: 2.639 | H149: 4.924942 | I149: 0.03239847864 | J149: 0 | K149: 0 | L149: 1546 | M149: 1546 | N149: 12 | O149: 12 | P149: 0 | Q149: 0 | R149: 0 | S149: 0 | T149: 0
B150: NT 01 | C150: Newport | D150: Urban | E150: 2 | F150: 0.669 | G150: 5.6425 | I150: 0 | J150: 0 | K150: 0 | L150: 0 | M150: 0 | N150: 0 | O150: 0 | P150: 0 | Q150: 0 | R150: 0 | S150: 0 | T150: 0
B151: NT 03 | C151: Newport | D151: Urban | E151: 3242 | F151: 11.3 | G151: 3.91 | H151: 10.745328 | I151: 0.5407062982 | J151: 0.3470627065 | K151: 5 | L151: 31233 | M151: 31233 | N151: 222 | O151: 222 | P151: 3 | Q151: 66825 | R151: 66825 | S151: 159 | T151: 159
B152: NT 04 | C152: Newport | D152: Urban | E152: 1751 | F152: 3.349 | G152: 1.948 | H152: 8.744868 | I152: 0.6546416185 | J152: 0.2261646964 | K152: 3 | L152: 19242 | M152: 19242 | N152: 72 | O152: 72 | P152: 5 | Q152: 22159 | R152: 22159 | S152: 70 | T152: 70
B153: NT 10 | C153: Newport | D153: Urban | E153: 929 | F153: 1.892 | G153: 0.832 | H153: 2.038564 | I153: 0.9832432644 | J153: 0.000617528917 | K153: 1 | L153: 64485 | M153: 64485 | N153: 932 | O153: 932 | P153: 1 | Q153: 135 | R153: 135 | S153: 1 | T153: 1
B154: NT 11 | C154: Newport | D154: Urban | E154: 2981 | F154: 9.2865 | G154: 2.237 | H154: 7.068292 | I154: 5.323679115 | J154: 0.1931772546 | K154: 7 | L154: 366972 | M154: 366972 | N154: 3561 | O154: 3561 | P154: 8 | Q154: 44387 | R154: 44387 | S154: 173 | T154: 173
B155: NT 15 | C155: Newport | D155: Urban | E155: 1082 | F155: 5.4115 | G155: 2.838 | H155: 4.66774 | I155: 1.400698164 | J155: 0.01625919625 | K155: 5 | L155: 62957 | M155: 62957 | N155: 1130 | O155: 1130 | P155: 3 | Q155: 2436 | R155: 2436 | S155: 19 | T155: 19
B156: NT 16 | C156: Newport | D156: Urban | E156: 209 | F156: 2.94 | G156: 1.6095 | H156: 5.277404 | I156: 0.0114885531 | J156: 0 | K156: 0 | L156: 193 | M156: 193 | N156: 2 | O156: 2 | P156: 0 | Q156: 0 | R156: 0 | S156: 0 | T156: 0
B157: NT 17 | C157: Newport | D157: Urban | E157: 3180 | F157: 8.545 | G157: 2.88 | H157: 8.611504 | I157: 6.692703446 | J157: 0.5672658419 | K157: 5 | L157: 411734 | M157: 411734 | N157: 3418 | O157: 3418 | P157: 8 | Q157: 116327 | R157: 116327 | S157: 420 | T157: 420
B158: P 56 | C158: Preston | D158: Urban | E158: 2 | F158: 2.05 | G158: 0.2575 | I158: 0 | J158: 0 | K158: 0 | L158: 0 | M158: 0 | N158: 0 | O158: 0 | P158: 0 | Q158: 0 | R158: 0 | S158: 0 | T158: 0
B159: P 57 | C159: Preston | D159: Rural-short | E159: 102 | F159: 1.7825 | G159: 0.281 | H159: 0.2743488 | I159: 0 | J159: 0.02385888736 | K159: 0 | L159: 0 | M159: 0 | N159: 0 | O159: 0 | P159: 2 | Q159: 5625 | R159: 5625 | S159: 17 | T159: 17
B160: P 58 | C160: Preston | D160: Rural-short | E160: 0 | F160: 0.1285 | G160: 0.0405 | I160: 0 | J160: 0 | K160: 0 | L160: 0 | M160: 0 | N160: 0 | O160: 0 | P160: 0 | Q160: 0 | R160: 0 | S160: 0 | T160: 0
B161: P 59 | C161: Preston | D161: Urban | E161: 867 | F161: 2.889 | G161: 1.6085 | H161: 1.6117992 | I161: 0.0971098251 | J161: 0.06934908162 | K161: 2 | L161: 10304 | M161: 10304 | N161: 60 | O161: 60 | P161: 5 | Q161: 24528 | R161: 24528 | S161: 143 | T161: 143
B162: P 61 | C162: Preston | D162: Urban | E162: 86 | F162: 0.508 | G162: 0.1515 | H162: 0.4801104 | I162: 0.004222743261 | J162: 0 | K162: 0 | L162: 239 | M162: 239 | N162: 2 | O162: 2 | P162: 0 | Q162: 0 | R162: 0 | S162: 0 | T162: 0
B163: P 62 | C163: Preston | D163: Urban | E163: 677 | F163: 1.821 | G163: 0.81 | H163: 3.3321948 | I163: 0.1978355353 | J163: 0.07212416611 | K163: 1 | L163: 7332 | M163: 7332 | N163: 60 | O163: 60 | P163: 1 | Q163: 8910 | R163: 8910 | S163: 27 | T163: 27
B164: P 63 | C164: Preston | D164: Urban | E164: 834 | F164: 2.8295 | G164: 0.139 | H164: 2.1604968 | I164: 0.01432292122 | J164: 0.1002192998 | K164: 0 | L164: 905 | M164: 905 | N164: 8 | O164: 8 | P164: 3 | Q164: 21108 | R164: 21108 | S164: 70 | T164: 70
B165: P 65 | C165: Preston | D165: Urban | E165: 257 | F165: 0.408 | G165: 0.1295 | H165: 0.9545052 | I165: 0.001932578141 | J165: 0 | K165: 0 | L165: 71 | M165: 71 | N165: 1 | O165: 1 | P165: 0 | Q165: 0 | R165: 0 | S165: 0 | T165: 0
B166: P 66 | C166: Preston | D166: Urban | E166: 712 | F166: 2.1715 | G166: 0.6585 | H166: 3.28647 | I166: 0.4542747921 | J166: 0.0179132917 | K166: 3 | L166: 17346 | M166: 17346 | N166: 52 | O166: 52 | P166: 1 | Q166: 2280 | R166: 2280 | S166: 24 | T166: 24
B167: PV 12 | C167: Pascoe Vale | D167: Urban | E167: 456 | F167: 2.6125 | G167: 1.6485 | H167: 2.171928 | I167: 0.007298792122 | J167: 0.07561238051 | K167: 0 | L167: 235 | M167: 235 | N167: 3 | O167: 3 | P167: 2 | Q167: 8115 | R167: 8115 | S167: 35 | T167: 35
B168: PV 13 | C168: Pascoe Vale | D168: Urban | E168: 3077 | F168: 10.059 | G168: 0.5285 | H168: 4.658214 | I168: 0.3563951529 | J168: 0.2143881493 | K168: 3 | L168: 39969 | M168: 39969 | N168: 229 | O168: 229 | P168: 5 | Q168: 80144 | R168: 80144 | S168: 271 | T168: 271
B169: PV 14 | C169: Pascoe Vale | D169: Urban | E169: 2743 | F169: 10.0545 | G169: 0.932 | H169: 5.277404 | I169: 0.3717933297 | J169: 0.2025465581 | K169: 5 | L169: 35842 | M169: 35842 | N169: 271 | O169: 271 | P169: 4 | Q169: 65087 | R169: 65087 | S169: 170 | T169: 170
B170: PV 15 | C170: Pascoe Vale | D170: Urban | E170: 1702 | F170: 5.3915 | G170: 0.371 | H170: 3.229314 | I170: 0.1051985015 | J170: 0.1993424334 | K170: 3 | L170: 10427 | M170: 10427 | N170: 69 | O170: 69 | P170: 2 | Q170: 65861 | R170: 65861 | S170: 161 | T170: 161
B171: PV 21 | C171: Pascoe Vale | D171: Urban | E171: 1239 | F171: 5.5955 | G171: 0.1805 | H171: 2.467234 | I171: 0.03369176013 | J171: 0 | K171: 0 | L171: 2586 | M171: 2586 | N171: 17 | O171: 17 | P171: 0 | Q171: 0 | R171: 0 | S171: 0 | T171: 0
B172: PV 22 | C172: Pascoe Vale | D172: Urban | E172: 2466 | F172: 9.8915 | G172: 0.429 | H172: 5.439346 | I172: 0.07573817174 | J172: 0.08846720473 | K172: 2 | L172: 7121 | M172: 7121 | N172: 59 | O172: 59 | P172: 4 | Q172: 27726 | R172: 27726 | S172: 84 | T172: 84
B173: PV 23 | C173: Pascoe Vale | D173: Urban | E173: 2331 | F173: 8.19 | G173: 0.1685 | H173: 4.562954 | I173: 0.3279489732 | J173: 0.005306837223 | K173: 3 | L173: 31424 | M173: 31424 | N173: 153 | O173: 153 | P173: 2 | Q173: 1695 | R173: 1695 | S173: 7 | T173: 7
B174: PV 24 | C174: Pascoe Vale | D174: Urban | E174: 1637 | F174: 6.891 | G174: 0.5325 | H174: 4.277174 | I174: 0.6610735025 | J174: 0.07004003374 | K174: 1 | L174: 38696 | M174: 38696 | N174: 84 | O174: 84 | P174: 4 | Q174: 13666 | R174: 13666 | S174: 44 | T174: 44
B175: PV 31 | C175: Pascoe Vale | D175: Urban | E175: 1929 | F175: 5.8085 | G175: 1.4705 | H175: 4.267648 | I175: 0.2278646979 | J175: 0.06756860642 | K175: 2 | L175: 13658 | M175: 13658 | N175: 67 | O175: 67 | P175: 3 | Q175: 13500 | R175: 13500 | S175: 64 | T175: 64
B176: SA 02 | C176: St Alban | D176: Rural-short | E176: 61 | F176: 14.558 | G176: 0 | H176: 0.457248 | I176: 0.1791900778 | J176: 0 | K176: 3 | L176: 4646 | M176: 4646 | N176: 27 | O176: 27 | P176: 0 | Q176: 0 | R176: 0 | S176: 0 | T176: 0
B177: SA 06 | C177: St Alban | D177: Rural-short | E177: 144 | F177: 4.31 | G177: 1.2015 | H177: 0.457248 | I177: 0.02315111678 | J177: 0.03883898011 | K177: 2 | L177: 1417 | M177: 1417 | N177: 5 | O177: 5 | P177: 1 | Q177: 7924 | R177: 7924 | S177: 28 | T177: 28
B178: SA 10 | C178: St Alban | D178: Rural-short | E178: 43 | F178: 1.261 | G178: 0.818 | H178: 0.038104 | I178: 0 | J178: 0 | K178: 0 | L178: 0 | M178: 0 | N178: 0 | O178: 0 | P178: 0 | Q178: 0 | R178: 0 | S178: 0 | T178: 0
B179: SA 12 | C179: St Alban | D179: Urban | E179: 1821 | F179: 1.0825 | G179: 6.189 | H179: 3.8104 | I179: 0.6258872886 | J179: 0 | K179: 4 | L179: 58133 | M179: 58133 | N179: 1970 | O179: 1970 | P179: 0 | Q179: 0 | R179: 0 | S179: 0 | T179: 0
B180: SBY11 | C180: Sunbury | D180: Rural-short | E180: 2954 | F180: 62.088 | G180: 10.738 | H180: 7.04924 | I180: 1.358567542 | J180: 1.031554518 | K180: 20 | L180: 90106 | M180: 90106 | N180: 3339 | O180: 3339 | P180: 28 | Q180: 228057 | R180: 228057 | S180: 1754 | T180: 1754
B181: SBY14 | C181: Sunbury | D181: Rural-short | E181: 4084 | F181: 93.0095 | G181: 22.9295 | H181: 10.66912 | I181: 12.22451103 | J181: 2.518523234 | K181: 27 | L181: 720542 | M181: 720542 | N181: 15725 | O181: 15725 | P181: 35 | Q181: 494826 | R181: 494826 | S181: 1816 | T181: 1816
B182: SBY31 | C182: Sunbury | D182: Urban | E182: 2101 | F182: 6.8445 | G182: 7.9785 | H182: 6.839668 | I182: 3.317622004 | J182: 0.2011567225 | K182: 3 | L182: 138242 | M182: 138242 | N182: 4229 | O182: 4229 | P182: 2 | Q182: 27940 | R182: 27940 | S182: 62 | T182: 62
B183: SBY32 | C183: Sunbury | D183: Rural-short | E183: 2877 | F183: 119.1875 | G183: 10.325 | H183: 5.925172 | I183: 9.589522635 | J183: 0.194919046 | K183: 37 | L183: 716074 | M183: 716074 | N183: 11870 | O183: 11870 | P183: 22 | Q183: 48517 | R183: 48517 | S183: 226 | T183: 226
B184: SBY33 | C184: Sunbury | D184: Rural-short | E184: 2956 | F184: 16.2335 | G184: 4.091 | H184: 6.058536 | I184: 0.06557503874 | J184: 0.5216767765 | K184: 3 | L184: 5372 | M184: 5372 | N184: 190 | O184: 190 | P184: 3 | Q184: 142455 | R184: 142455 | S184: 527 | T184: 527
B185: SHM11 | C185: Sydenham | D185: Rural-short | E185: 3841 | F185: 64.554 | G185: 2.21665 | H185: 2.781592 | I185: 0.6401862326 | J185: 0.008398718929 | K185: 11 | L185: 114062 | M185: 114062 | N185: 4100 | O185: 4100 | P185: 8 | Q185: 4988 | R185: 4988 | S185: 72 | T185: 72
B186: SHM12 | C186: Sydenham | D186: Urban | E186: 2827 | F186: 4.7115 | G186: 14.03695 | H186: 7.944684 | I186: 2.114638748 | J186: 0.01343889098 | K186: 1 | L186: 145299 | M186: 145299 | N186: 2830 | O186: 2830 | P186: 2 | Q186: 3078 | R186: 3078 | S186: 18 | T186: 18
B187: SHM14 | C187: Sydenham | D187: Rural-short | E187: 3772 | F187: 18.931 | G187: 21.65505 | H187: 10.040404 | I187: 6.207802957 | J187: 0.5034677149 | K187: 16 | L187: 423313 | M187: 423313 | N187: 8262 | O187: 8262 | P187: 5 | Q187: 114439 | R187: 114439 | S187: 302 | T187: 302
B188: SHM21 | C188: Sydenham | D188: Urban | E188: 4850 | F188: 3.8825 | G188: 19.44925 | H188: 9.71652 | I188: 1.739301539 | J188: 0.0003871208099 | K188: 2 | L188: 161745 | M188: 161745 | N188: 3645 | O188: 3645 | P188: 1 | Q188: 120 | R188: 120 | S188: 1 | T188: 1
B189: SHM24 | C189: Sydenham | D189: Urban | E189: 1 | F189: 0 | G189: 0.40425 | I189: 0 | J189: 0 | K189: 0 | L189: 0 | M189: 0 | N189: 0 | O189: 0 | P189: 0 | Q189: 0 | R189: 0 | S189: 0 | T189: 0
B190: ST 11 | C190: Somerton | D190: Urban | E190: 178 | F190: 7.0555 | G190: 3.288 | H190: 5.944224 | I190: 0.4267293016 | J190: 1.247859927 | K190: 1 | L190: 1485 | M190: 1485 | N190: 23 | O190: 23 | P190: 2 | Q190: 14475 | R190: 14475 | S190: 48 | T190: 48
B191: ST 12 | C191: Somerton | D191: Urban | E191: 240 | F191: 12.1895 | G191: 3.133 | H191: 8.420984 | I191: 8.063257727 | J191: 0 | K191: 4 | L191: 28840 | M191: 28840 | N191: 506 | O191: 506 | P191: 0 | Q191: 0 | R191: 0 | S191: 0 | T191: 0
B192: ST 13 | C192: Somerton | D192: Urban | E192: 187 | F192: 4.8405 | G192: 4.291 | H192: 6.268108 | I192: 0.2039788931 | J192: 0.1413077564 | K192: 1 | L192: 925 | M192: 925 | N192: 12 | O192: 12 | P192: 5 | Q192: 2136 | R192: 2136 | S192: 7 | T192: 7
B193: ST 14 | C193: Somerton | D193: Urban | E193: 70 | F193: 0 | G193: 4.9825 | H193: 6.725356 | I193: 0 | J193: 0.09469149104 | K193: 0 | L193: 0 | M193: 0 | N193: 0 | O193: 0 | P193: 1 | Q193: 346 | R193: 346 | S193: 1 | T193: 1
B194: ST 21 | C194: Somerton | D194: Rural-short | E194: 2 | F194: 0.1 | G194: 1.779 | I194: 0.3441371805 | J194: 0.001401916739 | K194: 1 | L194: 1031 | M194: 1031 | N194: 2 | O194: 2 | P194: 1 | Q194: 14 | R194: 14 | S194: 2 | T194: 2
B195: ST 22 | C195: Somerton | D195: Urban | E195: 5761 | F195: 17.9285 | G195: 31.401 | H195: 16.841968 | I195: 0.9542648158 | J195: 0.3114775373 | K195: 11 | L195: 57033 | M195: 57033 | N195: 248 | O195: 248 | P195: 14 | Q195: 62053 | R195: 62053 | S195: 330 | T195: 330
B196: ST 23 | C196: Somerton | D196: Urban | E196: 141 | F196: 7.524 | G196: 3.4975 | H196: 12.19328 | I196: 0.3001270705 | J196: 2.884305861 | K196: 1 | L196: 496 | M196: 496 | N196: 4 | O196: 4 | P196: 4 | Q196: 15889 | R196: 15889 | S196: 54 | T196: 54
B197: ST 24 | C197: Somerton | D197: Urban | E197: 1 | F197: 0 | G197: 3.7625 | I197: 0 | J197: 0 | K197: 0 | L197: 0 | M197: 0 | N197: 0 | O197: 0 | P197: 0 | Q197: 0 | R197: 0 | S197: 0 | T197: 0
B198: ST 31 | C198: Somerton | D198: Urban | E198: 1 | F198: 0 | G198: 0.6185 | I198: 0 | J198: 0 | K198: 0 | L198: 0 | M198: 0 | N198: 0 | O198: 0 | P198: 0 | Q198: 0 | R198: 0 | S198: 0 | T198: 0
B199: ST 32 | C199: Somerton | D199: Rural-short | E199: 5842 | F199: 11.4605 | G199: 24.49 | H199: 10.631016 | I199: 0.2674979208 | J199: 0.02590499314 | K199: 6 | L199: 24603 | M199: 24603 | N199: 164 | O199: 164 | P199: 3 | Q199: 7942 | R199: 7942 | S199: 25 | T199: 25
B200: ST 33 | C200: Somerton | D200: Urban | E200: 3171 | F200: 10.2605 | G200: 4.847 | H200: 7.658904 | I200: 0.06636635843 | J200: 0.08142421145 | K200: 3 | L200: 4630 | M200: 4630 | N200: 50 | O200: 50 | P200: 12 | Q200: 18935 | R200: 18935 | S200: 116 | T200: 116
B201: ST 34 | C201: Somerton | D201: Urban | E201: 289 | F201: 7.1925 | G201: 6.758 | H201: 10.173768 | I201: 1.731953594 | J201: 1.096923913 | K201: 5 | L201: 8673 | M201: 8673 | N201: 43 | O201: 43 | P201: 3 | Q201: 18310 | R201: 18310 | S201: 45 | T201: 45
B202: TH 11 | C202: Tottenham | D202: Urban | E202: 60 | F202: 3.099 | G202: 0.83 | H202: 4.877312 | I202: 8.79116057 | J202: 0 | K202: 2 | L202: 14328 | M202: 14328 | N202: 69 | O202: 69 | P202: 0 | Q202: 0 | R202: 0 | S202: 0 | T202: 0
B203: TH 12 | C203: Tottenham | D203: Urban | E203: 25 | F203: 3.489 | G203: 0.6625 | H203: 10.878692 | I203: 11.49641111 | J203: 0 | K203: 3 | L203: 5019 | M203: 5019 | N203: 57 | O203: 57 | P203: 0 | Q203: 0 | R203: 0 | S203: 0 | T203: 0
B204: TH 13 | C204: Tottenham | D204: Urban | E204: 56 | F204: 3.229 | G204: 0.501 | H204: 6.09664 | I204: 6.395326743 | J204: 0 | K204: 3 | L204: 7589 | M204: 7589 | N204: 66 | O204: 66 | P204: 0 | Q204: 0 | R204: 0 | S204: 0 | T204: 0
... 19 more rows

Sheet 3.6.8 Network-feeders (2013-14)
B1: =INDEX(dms_Worksheet_List,MATCH(dms_Model,dms_Model_List)) -> HISTORICAL ANNUAL REPORTING - FINANCIAL YEARS
B2: =INDEX(dms_TradingNameFull_List,MATCH(dms_TradingName,dms_TradingName_List)) -> Jemena Electricity
B3: =dms_Header_Span -> 2011-12 to 2017-18
B4: 3.6 QUALITY OF SERVICES
B6: Did the MAIFI parameter of the STPIS apply during the period? | F6: No | G6: ** IMPORTANT Please ensure this question is answered correctly. Your response will affect other tables throughout this workbook and will determine which cells are grey and which are input cells.
B10: 3.6.8 - NETWORK FEEDER RELIABILITY
B11: Feeder ID / name | C11: Description of the service area for the feeder | D11: Feeder classification (drop down) | E11: Number of distribution customers | F11: Length of high voltage distribution lines | H11: Maximum demand (MVA) | I11: Energy not supplied (MWh) | K11: Unplanned Outages | P11: Planned Outages | U11: Momentary feeder outages
F12: Overhead | G12: Underground | I12: Unplanned | J12: Planned | K12: Total number of unplanned outages | L12: Unplanned customer minutes off-supply (SAIDI) | N12: Unplanned interruptions (SAIFI) | P12: Total number of planned outages | Q12: Planned customer minutes off-supply (SAIDI) | S12: Planned interruptions (SAIFI) | U12: Total number of momentary feeder outages | V12: Momentary interruptions due to feeder outages (MAIFI)
L13: Including excluded events and MEDs | M13: After removing excluded events and MED | N13: Including excluded events and MEDs | O13: After removing excluded events and MED | Q13: Including MEDs | R13: After removing MED | S13: Including MEDs | T13: After removing MED | V13: Including excluded events and MEDs | W13: After removing excluded events and MED
B14: AW 01 | C14: Airport West | D14: Urban | E14: 712 | F14: 4.6765 | G14: 4.316 | H14: 8.85918 | I14: 1.860185813 | J14: 0.4124375646 | K14: 5 | L14: 23998 | M14: 23998 | N14: 1528 | O14: 1528 | P14: 2 | Q14: 17736 | R14: 17736 | S14: 56 | T14: 56
B15: AW 02 | C15: Airport West | D15: Urban | E15: 3070 | F15: 16.3105 | G15: 3.419 | H15: 11.52646 | I15: 3.372225237 | J15: 1.141533596 | K15: 8 | L15: 148518 | M15: 148518 | N15: 6589 | O15: 6589 | P15: 11 | Q15: 167583 | R15: 167583 | S15: 481 | T15: 481
B16: AW 03 | C16: Airport West | D16: Urban | E16: 251 | F16: 6.1015 | G16: 4.2245 | H16: 12.783892 | I16: 14.24137511 | J16: 1.727684849 | K16: 3 | L16: 39438 | M16: 842 | N16: 271 | O16: 6 | P16: 2 | Q16: 15948 | R16: 15948 | S16: 35 | T16: 35
B17: AW 04 | C17: Airport West | D17: Urban | E17: 1955 | F17: 11.43 | G17: 10.756 | H17: 13.965116 | I17: 0.7233312287 | J17: 0.2038322786 | K17: 5 | L17: 15162 | M17: 15162 | N17: 97 | O17: 97 | P17: 4 | Q17: 14242 | R17: 14242 | S17: 52 | T17: 52
B18: AW 05 | C18: Airport West | D18: Urban | E18: 542 | F18: 4.896 | G18: 0.875 | H18: 7.52554 | I18: 0.1693190166 | J18: 0.2103955031 | K18: 3 | L18: 1986 | M18: 1986 | N18: 23 | O18: 23 | P18: 3 | Q18: 8226 | R18: 8226 | S18: 31 | T18: 31
B19: AW 06 | C19: Airport West | D19: Urban | E19: 4949 | F19: 16.713 | G19: 1.646 | H19: 12.745788 | I19: 3.254792924 | J19: 0.4465633916 | K19: 12 | L19: 308961 | M19: 308467 | N19: 6452 | O19: 6451 | P19: 6 | Q19: 141300 | R19: 141300 | S19: 596 | T19: 596
B20: AW 07 | C20: Airport West | D20: Urban | E20: 4574 | F20: 15.923 | G20: 5.713 | H20: 11.488356 | I20: 1.724956165 | J20: 0.08562823288 | K20: 12 | L20: 171361 | M20: 35121 | N20: 560 | O20: 272 | P20: 3 | Q20: 28355 | R20: 28355 | S20: 83 | T20: 83
B21: AW 08 | C21: Airport West | D21: Urban | E21: 2342 | F21: 14.5675 | G21: 8.408 | H21: 10.535756 | I21: 10.10978965 | J21: 0.6608953337 | K21: 11 | L21: 378397 | M21: 356297 | N21: 7387 | O21: 7314 | P21: 4 | Q21: 82455 | R21: 82455 | S21: 220 | T21: 220
B22: AW 09 | C22: Airport West | D22: Urban | E22: 2449 | F22: 9.4895 | G22: 7.261 | H22: 8.325724 | I22: 4.985895011 | J22: 0.4705324783 | K22: 8 | L22: 275053 | M22: 275053 | N22: 4998 | O22: 4998 | P22: 5 | Q22: 86525 | R22: 86525 | S22: 346 | T22: 346
B23: AW 11 | C23: Airport West | D23: Urban | E23: 474 | F23: 5.998 | G23: 3.315 | H23: 8.744868 | I23: 5.388378035 | J23: 0.1756022432 | K23: 9 | L23: 48191 | M23: 48191 | N23: 1069 | O23: 1069 | P23: 2 | Q23: 5235 | R23: 5235 | S23: 16 | T23: 16
B24: AW 12 | C24: Airport West | D24: Urban | E24: 1783 | F24: 5.6985 | G24: 6.954 | H24: 7.373124 | I24: 0.2425584903 | J24: 0 | K24: 1 | L24: 7627 | M24: 7179 | N24: 67 | O24: 66 | P24: 0 | Q24: 0 | R24: 0 | S24: 0 | T24: 0
B25: AW 14 | C25: Airport West | D25: Urban | E25: 1252 | F25: 8.908 | G25: 4.713 | H25: 9.411688 | I25: 0.4270335149 | J25: 0.3872059927 | K25: 1 | L25: 7083 | M25: 7083 | N25: 51 | O25: 51 | P25: 6 | Q25: 21408 | R25: 21408 | S25: 121 | T25: 121
B26: BD 01 | C26: Broadmeadows | D26: Urban | E26: 1691 | F26: 11.209 | G26: 5.4755 | H26: 10.09756 | I26: 13.28350603 | J26: 0.2172102707 | K26: 5 | L26: 379461 | M26: 379461 | N26: 5179 | O26: 5179 | P26: 5 | Q26: 20683 | R26: 20683 | S26: 66 | T26: 66
B27: BD 02 | C27: Broadmeadows | D27: Urban | E27: 1 | F27: 0.665 | G27: 0.073 | I27: 0 | J27: 0 | K27: 0 | L27: 0 | M27: 0 | N27: 0 | O27: 0 | P27: 0 | Q27: 0 | R27: 0 | S27: 0 | T27: 0
B28: BD 03 | C28: Broadmeadows | D28: Urban | E28: 360 | F28: 4.0035 | G28: 5.9965 | H28: 10.631016 | I28: 0.02927724694 | J28: 0.003874929742 | K28: 0 | L28: 136 | M28: 136 | N28: 1 | O28: 1 | P28: 1 | Q28: 60 | R28: 60 | S28: 1 | T28: 1
B29: BD 04 | C29: Broadmeadows | D29: Urban | E29: 1036 | F29: 8.1555 | G29: 4.434 | H29: 10.459548 | I29: 12.25080933 | J29: 0.6344216658 | K29: 7 | L29: 285314 | M29: 285314 | N29: 4165 | O29: 4165 | P29: 2 | Q29: 49251 | R29: 49251 | S29: 161 | T29: 161
B30: BD 06 | C30: Broadmeadows | D30: Urban | E30: 1 | F30: 0.7485 | G30: 0.08 | I30: 0 | J30: 0 | K30: 0 | L30: 0 | M30: 0 | N30: 0 | O30: 0 | P30: 0 | Q30: 0 | R30: 0 | S30: 0 | T30: 0
B31: BD 07 | C31: Broadmeadows | D31: Urban | E31: 3984 | F31: 19.257 | G31: 1.5915 | H31: 13.8127 | I31: 2.683402691 | J31: 0.2234523518 | K31: 13 | L31: 206032 | M31: 193815 | N31: 5965 | O31: 5912 | P31: 3 | Q31: 57189 | R31: 57189 | S31: 209 | T31: 209
B32: BD 08 | C32: Broadmeadows | D32: Urban | E32: 771 | F32: 8.9965 | G32: 1.177 | H32: 7.6208 | I32: 4.211567217 | J32: 0 | K32: 7 | L32: 73645 | M32: 73645 | N32: 1116 | O32: 1116 | P32: 0 | Q32: 0 | R32: 0 | S32: 0 | T32: 0
B33: BD 09 | C33: Broadmeadows | D33: Urban | E33: 690 | F33: 5.1775 | G33: 1.292 | H33: 5.2393 | I33: 0.0870032588 | J33: 0.03357085654 | K33: 1 | L33: 1796 | M33: 1796 | N33: 16 | O33: 16 | P33: 1 | Q33: 2310 | R33: 2310 | S33: 7 | T33: 7
B34: BD 10 | C34: Broadmeadows | D34: Urban | E34: 1137 | F34: 6.651 | G34: 4.311 | H34: 11.926552 | I34: 4.472148647 | J34: 0 | K34: 2 | L34: 75948 | M34: 69818 | N34: 1162 | O34: 1144 | P34: 0 | Q34: 0 | R34: 0 | S34: 0 | T34: 0
B35: BD 11 | C35: Broadmeadows | D35: Urban | E35: 2827 | F35: 10.069 | G35: 1.72 | H35: 7.52554 | I35: 0.7402585132 | J35: 0.2739868557 | K35: 6 | L35: 42692 | M35: 31725 | N35: 410 | O35: 346 | P35: 5 | Q35: 52671 | R35: 52671 | S35: 159 | T35: 159
B36: BD 13 | C36: Broadmeadows | D36: Urban | E36: 514 | F36: 9.389 | G36: 2.803 | H36: 12.040864 | I36: 9.420043274 | J36: 0.0476998523 | K36: 9 | L36: 83418 | M36: 80246 | N36: 1599 | O36: 1571 | P36: 1 | Q36: 1408 | R36: 1408 | S36: 8 | T36: 8
B37: BD 14 | C37: Broadmeadows | D37: Urban | E37: 573 | F37: 6.663 | G37: 3.018 | H37: 10.57386 | I37: 0.0383460765 | J37: 0.6128644859 | K37: 0 | L37: 855 | M37: 855 | N37: 6 | O37: 6 | P37: 4 | Q37: 45550 | R37: 45550 | S37: 107 | T37: 107
B38: BD 15 | C38: Broadmeadows | D38: Urban | E38: 808 | F38: 8.64 | G38: 1.596 | H38: 10.66912 | I38: 4.670690218 | J38: 0 | K38: 4 | L38: 46967 | M38: 46967 | N38: 600 | O38: 600 | P38: 0 | Q38: 0 | R38: 0 | S38: 0 | T38: 0
B39: BD 16 | C39: Broadmeadows | D39: Urban | E39: 1447 | F39: 9.0465 | G39: 2.4 | H39: 7.925632 | I39: 2.534547798 | J39: 0 | K39: 3 | L39: 65871 | M39: 65286 | N39: 1511 | O39: 1510 | P39: 0 | Q39: 0 | R39: 0 | S39: 0 | T39: 0
B40: BY 11 | C40: Braybrook | D40: Urban | E40: 4018 | F40: 16.276 | G40: 2.437 | H40: 9.602208 | I40: 2.840965078 | J40: 0.4412512814 | K40: 16 | L40: 208072 | M40: 198165 | N40: 3363 | O40: 3348 | P40: 11 | Q40: 107724 | R40: 107724 | S40: 347 | T40: 347
B41: BY 12 | C41: Braybrook | D41: Urban | E41: 1255 | F41: 4.6775 | G41: 0.696 | H41: 3.04832 | I41: 1.438361771 | J41: 0.01468264895 | K41: 10 | L41: 80232 | M41: 44547 | N41: 453 | O41: 398 | P41: 1 | Q41: 2730 | R41: 2730 | S41: 7 | T41: 7
B42: BY 13 | C42: Braybrook | D42: Urban | E42: 746 | F42: 2.989 | G42: 1.753 | H42: 13.412608 | I42: 3.398198852 | J42: 0.052839205 | K42: 3 | L42: 32066 | M42: 19779 | N42: 76 | O42: 52 | P42: 1 | Q42: 1662 | R42: 1662 | S42: 6 | T42: 6
B43: BY 14 | C43: Braybrook | D43: Urban | E43: 2872 | F43: 12.1335 | G43: 3.324 | H43: 7.468384 | I43: 7.498152896 | J43: 0.2198621611 | K43: 12 | L43: 532041 | M43: 166409 | N43: 6026 | O43: 3095 | P43: 12 | Q43: 52002 | R43: 52002 | S43: 278 | T43: 278
B44: BY 15 | C44: Braybrook | D44: Urban | E44: 975 | F44: 6.1415 | G44: 2.211 | H44: 7.754164 | I44: 6.825524944 | J44: 0 | K44: 7 | L44: 114697 | M44: 102046 | N44: 1781 | O44: 1738 | P44: 0 | Q44: 0 | R44: 0 | S44: 0 | T44: 0
B45: CN 01 | C45: Coburg North | D45: Urban | E45: 103 | F45: 1.8665 | G45: 0.31 | H45: 7.544592 | I45: 11.34809983 | J45: 1.816453355 | K45: 5 | L45: 16182 | M45: 16182 | N45: 249 | O45: 249 | P45: 3 | Q45: 8634 | R45: 8634 | S45: 28 | T45: 28
B46: CN 02 | C46: Coburg North | D46: Urban | E46: 464 | F46: 4.854 | G46: 0.932 | H46: 8.630556 | I46: 9.787351677 | J46: 0.4352101292 | K46: 6 | L46: 109390 | M46: 109390 | N46: 1474 | O46: 1474 | P46: 2 | Q46: 16214 | R46: 16214 | S46: 67 | T46: 67
B47: CN 03 | C47: Coburg North | D47: Urban | E47: 2045 | F47: 4.8255 | G47: 0.952 | H47: 4.47722 | I47: 2.557191607 | J47: 0.3974090077 | K47: 5 | L47: 237964 | M47: 237964 | N47: 5662 | O47: 5662 | P47: 8 | Q47: 123272 | R47: 123272 | S47: 397 | T47: 397
B48: CN 04 | C48: Coburg North | D48: Urban | E48: 1368 | F48: 7.371 | G48: 5.7565 | H48: 10.554808 | I48: 16.16625698 | J48: 1.297184726 | K48: 8 | L48: 238571 | M48: 238571 | N48: 4246 | O48: 4246 | P48: 6 | Q48: 63810 | R48: 63810 | S48: 173 | T48: 173
B49: CN 05 | C49: Coburg North | D49: Urban | E49: 3953 | F49: 13.0415 | G49: 1.584 | H49: 8.211412 | I49: 9.901598251 | J49: 0.2325581246 | K49: 15 | L49: 848489 | M49: 842695 | N49: 10933 | O49: 10914 | P49: 14 | Q49: 66428 | R49: 66428 | S49: 208 | T49: 208
B50: CN 06 | C50: Coburg North | D50: Urban | E50: 2090 | F50: 9.859 | G50: 1.333 | H50: 7.487436 | I50: 3.406246005 | J50: 0.2624214272 | K50: 7 | L50: 144581 | M50: 105989 | N50: 4376 | O50: 4230 | P50: 4 | Q50: 37129 | R50: 37129 | S50: 111 | T50: 111
B51: CN 07 | C51: Coburg North | D51: Urban | E51: 5406 | F51: 15.9305 | G51: 1.341 | H51: 9.221168 | I51: 4.940128544 | J51: 0.571745682 | K51: 14 | L51: 488523 | M51: 488438 | N51: 16740 | O51: 16739 | P51: 15 | Q51: 188464 | R51: 188464 | S51: 783 | T51: 783
B52: CN 08 | C52: Coburg North | D52: Urban | E52: 2069 | F52: 11.3865 | G52: 2.167 | H52: 4.591532 | I52: 4.131218777 | J52: 0.3191522819 | K52: 7 | L52: 287217 | M52: 287217 | N52: 5607 | O52: 5607 | P52: 6 | Q52: 73962 | R52: 73962 | S52: 250 | T52: 250
B53: CN 09 | C53: Coburg North | D53: Urban | E53: 48 | F53: 2.4325 | G53: 0.542 | H53: 4.534376 | I53: 0.5429562359 | J53: 5.920037478 | K53: 3 | L53: 778 | M53: 778 | N53: 51 | O53: 51 | P53: 5 | Q53: 28276 | R53: 28276 | S53: 61 | T53: 61
B54: CN 10 | C54: Coburg North | D54: Urban | E54: 1948 | F54: 6.247 | G54: 1.067 | H54: 7.982788 | I54: 2.484388974 | J54: 0.009958456359 | K54: 8 | L54: 80830 | M54: 80347 | N54: 2112 | O54: 2111 | P54: 1 | Q54: 1080 | R54: 1080 | S54: 4 | T54: 4
B55: CN 11 | C55: Coburg North | D55: Urban | E55: 3219 | F55: 10.3335 | G55: 1.392 | H55: 7.735112 | I55: 3.666324077 | J55: 0.2918815186 | K55: 15 | L55: 312475 | M55: 312475 | N55: 8786 | O55: 8786 | P55: 7 | Q55: 82922 | R55: 82922 | S55: 362 | T55: 362
B56: COO11 | C56: Coolaroo | D56: Rural-short | E56: 1668 | F56: 134.189 | G56: 24.974 | H56: 8.973492 | I56: 27.13237084 | J56: 3.376065861 | K56: 19 | L56: 723463 | M56: 723195 | N56: 1262 | O56: 1261 | P56: 45 | Q56: 300067 | R56: 300067 | S56: 1052 | T56: 1052
B57: COO12 | C57: Coolaroo | D57: Urban | E57: 1 | F57: 0.269 | G57: 0.549 | I57: 0 | J57: 0 | K57: 0 | L57: 0 | M57: 0 | N57: 0 | O57: 0 | P57: 0 | Q57: 0 | R57: 0 | S57: 0 | T57: 0
B58: COO13 | C58: Coolaroo | D58: Urban | E58: 3913 | F58: 6.23 | G58: 11.297 | H58: 11.031108 | I58: 2.766965659 | J58: 0.02961667182 | K58: 9 | L58: 228987 | M58: 178137 | N58: 4981 | O58: 4815 | P58: 2 | Q58: 8170 | R58: 8170 | S58: 25 | T58: 25
B59: COO14 | C59: Coolaroo | D59: Urban | E59: 2514 | F59: 1.3825 | G59: 13.884 | H59: 6.077588 | I59: 0.4357033047 | J59: 0 | K59: 8 | L59: 34404 | M59: 34404 | N59: 158 | O59: 158 | P59: 0 | Q59: 0 | R59: 0 | S59: 0 | T59: 0
B60: COO21 | C60: Coolaroo | D60: Rural-short | E60: 1928 | F60: 16.845 | G60: 10.7215 | H60: 7.373124 | I60: 1.15147709 | J60: 0.2007886844 | K60: 4 | L60: 64788 | M60: 5840 | N60: 907 | O60: 26 | P60: 5 | Q60: 37658 | R60: 37658 | S60: 157 | T60: 157
B61: COO22 | C61: Coolaroo | D61: Urban | E61: 3883 | F61: 0.713 | G61: 19.278 | H61: 9.373584 | I61: 0.7160312299 | J61: 0 | K61: 4 | L61: 48546 | M61: 48546 | N61: 195 | O61: 195 | P61: 0 | Q61: 0 | R61: 0 | S61: 0 | T61: 0
B62: CS 02 | C62: Coburg South | D62: Urban | E62: 5540 | F62: 14.7635 | G62: 1.045 | H62: 10.878692 | I62: 1.768663251 | J62: 0.472539267 | K62: 16 | L62: 190280 | M62: 158773 | N62: 2447 | O62: 2343 | P62: 20 | Q62: 169459 | R62: 169459 | S62: 666 | T62: 666
B63: CS 03 | C63: Coburg South | D63: Urban | E63: 3858 | F63: 10.8875 | G63: 2.404 | H63: 9.125908 | I63: 13.17585285 | J63: 0.3492959338 | K63: 22 | L63: 877221 | M63: 560296 | N63: 21590 | O63: 17300 | P63: 9 | Q63: 77518 | R63: 77518 | S63: 311 | T63: 311
B64: CS 05 | C64: Coburg South | D64: Urban | E64: 4717 | F64: 12.1095 | G64: 0.711 | H64: 8.916336 | I64: 1.986516394 | J64: 0.3021312574 | K64: 9 | L64: 194118 | M64: 64231 | N64: 682 | O64: 414 | P64: 9 | Q64: 98412 | R64: 98412 | S64: 369 | T64: 369
B65: CS 08 | C65: Coburg South | D65: Urban | E65: 2955 | F65: 8.5 | G65: 2.255 | H65: 7.963736 | I65: 3.063010971 | J65: 0.5958804774 | K65: 4 | L65: 156029 | M65: 19504 | N65: 3196 | O65: 156 | P65: 6 | Q65: 101180 | R65: 101180 | S65: 259 | T65: 259
B66: CS 09 | C66: Coburg South | D66: Urban | E66: 1989 | F66: 4.034 | G66: 1.828 | H66: 4.610584 | I66: 3.200675659 | J66: 0.03217180465 | K66: 5 | L66: 267421 | M66: 250288 | N66: 1275 | O66: 1226 | P66: 1 | Q66: 8960 | R66: 8960 | S66: 35 | T66: 35
B67: CS 12 | C67: Coburg South | D67: Urban | E67: 1944 | F67: 9.0695 | G67: 0.96 | H67: 6.6682 | I67: 1.797140036 | J67: 0.3891688506 | K67: 14 | L67: 67980 | M67: 41890 | N67: 456 | O67: 381 | P67: 4 | Q67: 49070 | R67: 49070 | S67: 183 | T67: 183
B68: CS 13 | C68: Coburg South | D68: Urban | E68: 1768 | F68: 5.5755 | G68: 2.515 | H68: 3.353152 | I68: 1.192060984 | J68: 0.02849295058 | K68: 7 | L68: 89502 | M68: 89502 | N68: 526 | O68: 526 | P68: 3 | Q68: 7131 | R68: 7131 | S68: 66 | T68: 66
B69: EP 02 | C69: East Preston | D69: Urban | E69: 65 | F69: 0.7745 | G69: 0.3655 | H69: 2.7377724 | I69: 0.01492156253 | J69: 2.117229833 | K69: 1 | L69: 96 | M69: 96 | N69: 2 | O69: 2 | P69: 3 | Q69: 45405 | R69: 45405 | S69: 114 | T69: 114
B70: EP 03 | C70: East Preston | D70: Urban | E70: 93 | F70: 1.0355 | G70: 0.4565 | H70: 1.71468 | I70: 0 | J70: 0 | K70: 0 | L70: 0 | M70: 0 | N70: 0 | O70: 0 | P70: 0 | Q70: 0 | R70: 0 | S70: 0 | T70: 0
B71: EP 04 | C71: East Preston | D71: Urban | E71: 6 | F71: 1.1265 | G71: 0.367 | H71: 1.0745328 | I71: 0.6347019516 | J71: 0 | K71: 1 | L71: 745 | M71: 745 | N71: 2 | O71: 2 | P71: 0 | Q71: 0 | R71: 0 | S71: 0 | T71: 0
B72: EP 07 | C72: East Preston | D72: Urban | E72: 45 | F72: 1.9155 | G72: 0.719 | H72: 2.457708 | I72: 0 | J72: 0.0411247148 | K72: 0 | L72: 0 | M72: 0 | N72: 0 | O72: 0 | P72: 1 | Q72: 485 | R72: 485 | S72: 5 | T72: 5
B73: EP 09 | C73: East Preston | D73: Urban | E73: 236 | F73: 2.5505 | G73: 0.661 | H73: 3.086424 | I73: 0.4536268583 | J73: 0.02812395432 | K73: 6 | L73: 5976 | M73: 2908 | N73: 64 | O73: 54 | P73: 1 | Q73: 1235 | R73: 1235 | S73: 19 | T73: 19
B74: EP 11 | C74: East Preston | D74: Urban | E74: 472 | F74: 3.851 | G74: 0.554 | H74: 1.9204416 | I74: 0.04166243161 | J74: 0.1805404438 | K74: 1 | L74: 2143 | M74: 2143 | N74: 26 | O74: 26 | P74: 2 | Q74: 30955 | R74: 30955 | S74: 96 | T74: 96
B75: EP 16 | C75: East Preston | D75: Urban | E75: 58 | F75: 1.953 | G75: 0.151 | H75: 2.8463688 | I75: 0.2064389416 | J75: 0 | K75: 1 | L75: 706 | M75: 706 | N75: 5 | O75: 5 | P75: 0 | Q75: 0 | R75: 0 | S75: 0 | T75: 0
B76: EP 17 | C76: East Preston | D76: Urban | E76: 131 | F76: 1.0295 | G76: 0.477 | H76: 3.1607268 | I76: 0 | J76: 3.865334852 | K76: 0 | L76: 0 | M76: 0 | N76: 0 | O76: 0 | P76: 5 | Q76: 87945 | R76: 87945 | S76: 194 | T76: 194
B77: EP 18 | C77: East Preston | D77: Urban | E77: 18 | F77: 1.271 | G77: 0.4615 | H77: 1.6117992 | I77: 0.326823607 | J77: 0 | K77: 1 | L77: 800 | M77: 800 | N77: 16 | O77: 16 | P77: 0 | Q77: 0 | R77: 0 | S77: 0 | T77: 0
B78: EP 20 | C78: East Preston | D78: Urban | E78: 309 | F78: 2.4975 | G78: 0.1615 | H78: 3.1664424 | I78: 2.678620481 | J78: 0.2465181978 | K78: 6 | L78: 49095 | M78: 49095 | N78: 413 | O78: 413 | P78: 5 | Q78: 15061 | R78: 15061 | S78: 62 | T78: 62
B79: EP 27 | C79: East Preston | D79: Urban | E79: 26 | F79: 0.0525 | G79: 1.49 | H79: 1.9890288 | I79: 0.02768653229 | J79: 0 | K79: 1 | L79: 120 | M79: 120 | N79: 3 | O79: 3 | P79: 0 | Q79: 0 | R79: 0 | S79: 0 | T79: 0
B80: EP 34 | C80: East Preston | D80: Urban | E80: 1431 | F80: 5.215 | G80: 0.754 | H80: 3.0406992 | I80: 0.1228916659 | J80: 0.1655203709 | K80: 4 | L80: 13415 | M80: 12952 | N80: 159 | O80: 157 | P80: 9 | Q80: 60228 | R80: 60228 | S80: 228 | T80: 228
B81: EP 35 | C81: East Preston | D81: Urban | E81: 31 | F81: 1.881 | G81: 0.397 | H81: 2.6520384 | I81: 0.1987374371 | J81: 0 | K81: 0 | L81: 326 | M81: 326 | N81: 2 | O81: 2 | P81: 0 | Q81: 0 | R81: 0 | S81: 0 | T81: 0
B82: EP 36 | C82: East Preston | D82: Urban | E82: 966 | F82: 5.218 | G82: 0.2095 | H82: 2.1947904 | I82: 0.6552328645 | J82: 0.1491594106 | K82: 4 | L82: 56292 | M82: 56292 | N82: 1195 | O82: 1195 | P82: 4 | Q82: 42715 | R82: 42715 | S82: 82 | T82: 82
B83: EP 37 | C83: East Preston | D83: Urban | E83: 833 | F83: 3.6755 | G83: 0.326 | H83: 3.3036168 | I83: 0.3348297253 | J83: 0.6907522483 | K83: 4 | L83: 14301 | M83: 14301 | N83: 155 | O83: 155 | P83: 7 | Q83: 98343 | R83: 98343 | S83: 332 | T83: 332
B84: EP 41 | C84: East Preston | D84: Urban | E84: 56 | F84: 1.4055 | G84: 0.536 | H84: 2.9321028 | I84: 0 | J84: 0 | K84: 0 | L84: 0 | M84: 0 | N84: 0 | O84: 0 | P84: 0 | Q84: 0 | R84: 0 | S84: 0 | T84: 0
B85: EP 42 | C85: East Preston | D85: Urban | E85: 286 | F85: 2.6545 | G85: 0.54 | H85: 3.0121212 | I85: 2.307290619 | J85: 0 | K85: 1 | L85: 35742 | M85: 35742 | N85: 284 | O85: 284 | P85: 0 | Q85: 0 | R85: 0 | S85: 0 | T85: 0
B86: ES 01 | C86: Essendon | D86: Urban | E86: 1139 | F86: 4.3335 | G86: 0.5495 | H86: 5.153566 | I86: 0.1095013856 | J86: 0.02798593639 | K86: 2 | L86: 4869 | M86: 4869 | N86: 58 | O86: 58 | P86: 1 | Q86: 4148 | R86: 4148 | S86: 17 | T86: 17
B87: ES 02 | C87: Essendon | D87: Urban | E87: 1469 | F87: 5.023 | G87: 0.751 | H87: 3.705614 | I87: 0.2813427426 | J87: 0.2574426676 | K87: 4 | L87: 20113 | M87: 18475 | N87: 156 | O87: 142 | P87: 4 | Q87: 61348 | R87: 61348 | S87: 352 | T87: 352
B88: ES 03 | C88: Essendon | D88: Urban | E88: 2631 | F88: 7.5505 | G88: 1.133 | H88: 6.963506 | I88: 1.987064153 | J88: 0.2312473551 | K88: 3 | L88: 177188 | M88: 165698 | N88: 1945 | O88: 1912 | P88: 10 | Q88: 68735 | R88: 68735 | S88: 284 | T88: 284
B89: ES 06 | C89: Essendon | D89: Urban | E89: 2029 | F89: 5.73 | G89: 1.9705 | H89: 5.563184 | I89: 0.7462253109 | J89: 0.2342031888 | K89: 5 | L89: 50944 | M89: 35131 | N89: 297 | O89: 236 | P89: 4 | Q89: 53296 | R89: 53296 | S89: 129 | T89: 129
B90: ES 07 | C90: Essendon | D90: Urban | E90: 1303 | F90: 3.7895 | G90: 0.46 | H90: 3.038794 | I90: 0.04248987773 | J90: 0.05570781009 | K90: 1 | L90: 3311 | M90: 3311 | N90: 19 | O90: 19 | P90: 2 | Q90: 14470 | R90: 14470 | S90: 43 | T90: 43
B91: ES 11 | C91: Essendon | D91: Urban | E91: 1546 | F91: 3.4235 | G91: 0.5625 | H91: 4.753474 | I91: 0.587575366 | J91: 0.1246436794 | K91: 10 | L91: 39564 | M91: 39347 | N91: 321 | O91: 320 | P91: 6 | Q91: 27976 | R91: 27976 | S91: 127 | T91: 127
B92: ES 12 | C92: Essendon | D92: Urban | E92: 1242 | F92: 2.749 | G92: 1.819 | H92: 5.010676 | I92: 0.3290023053 | J92: 0.1968583659 | K92: 3 | L92: 16904 | M92: 16904 | N92: 118 | O92: 118 | P92: 2 | Q92: 33715 | R92: 33715 | S92: 113 | T92: 113
B93: ES 13 | C93: Essendon | D93: Urban | E93: 1840 | F93: 4.2435 | G93: 1.0255 | H93: 5.829912 | I93: 0.1330749907 | J93: 0.2031302586 | K93: 2 | L93: 7093 | M93: 7093 | N93: 74 | O93: 74 | P93: 9 | Q93: 36090 | R93: 36090 | S93: 143 | T93: 143
B94: ES 14 | C94: Essendon | D94: Urban | E94: 1060 | F94: 3.8605 | G94: 1.9025 | H94: 4.763 | I94: 0.2237428411 | J94: 0 | K94: 3 | L94: 11555 | M94: 3401 | N94: 59 | O94: 28 | P94: 0 | Q94: 0 | R94: 0 | S94: 0 | T94: 0
B95: FE 05 | C95: Footscray | D95: Urban | E95: 3098 | F95: 8.4225 | G95: 0.854 | H95: 8.039944 | I95: 5.256911314 | J95: 0.4313288611 | K95: 15 | L95: 385284 | M95: 351673 | N95: 3702 | O95: 3611 | P95: 5 | Q95: 105375 | R95: 105375 | S95: 418 | T95: 418
B96: FE 06 | C96: Footscray | D96: Urban | E96: 4021 | F96: 9.89 | G96: 8.7515 | H96: 12.593372 | I96: 1.165947906 | J96: 0.3252318439 | K96: 5 | L96: 52968 | M96: 35217 | N96: 286 | O96: 240 | P96: 5 | Q96: 49250 | R96: 49250 | S96: 169 | T96: 169
B97: FE 08 | C97: Footscray | D97: Urban | E97: 2216 | F97: 3.64 | G97: 5.0765 | H97: 8.821076 | I97: 2.117114684 | J97: 1.469326575 | K97: 9 | L97: 72697 | M97: 34045 | N97: 373 | O97: 235 | P97: 13 | Q97: 168178 | R97: 168178 | S97: 591 | T97: 591
B98: FE 09 | C98: Footscray | D98: Urban | E98: 4128 | F98: 7.586 | G98: 1.149 | H98: 6.496732 | I98: 4.479042475 | J98: 0.5139898673 | K98: 14 | L98: 471310 | M98: 471310 | N98: 11233 | O98: 11233 | P98: 11 | Q98: 180283 | R98: 180283 | S98: 521 | T98: 521
B99: FF 87 | C99: Fairfield | D99: Urban | E99: 737 | F99: 2.6345 | G99: 0.238 | H99: 1.9547352 | I99: 1.06386007 | J99: 0.02602453397 | K99: 2 | L99: 55800 | M99: 55800 | N99: 1011 | O99: 1011 | P99: 1 | Q99: 4550 | R99: 4550 | S99: 13 | T99: 13
B100: FF 88 | C100: Fairfield | D100: Urban | E100: 1269 | F100: 3.951 | G100: 0.4135 | H100: 2.1604968 | I100: 0.01523352965 | J100: 0.1393637152 | K100: 0 | L100: 1485 | M100: 1485 | N100: 9 | O100: 9 | P100: 7 | Q100: 45285 | R100: 45285 | S100: 204 | T100: 204
B101: FF 89 | C101: Fairfield | D101: Urban | E101: 591 | F101: 3.9105 | G101: 0.8405 | H101: 2.3891208 | I101: 0.8287843196 | J101: 0.04919579876 | K101: 2 | L101: 36692 | M101: 36692 | N101: 382 | O101: 382 | P101: 1 | Q101: 7260 | R101: 7260 | S101: 22 | T101: 22
B102: FF 90 | C102: Fairfield | D102: Urban | E102: 1036 | F102: 3.425 | G102: 0.394 | H102: 2.600598 | I102: 0.1836345406 | J102: 0 | K102: 3 | L102: 12636 | M102: 12636 | N102: 109 | O102: 109 | P102: 0 | Q102: 0 | R102: 0 | S102: 0 | T102: 0
B103: FF 95 | C103: Fairfield | D103: Urban | E103: 1646 | F103: 4.792 | G103: 0.065 | H103: 3.1550112 | I103: 1.203319585 | J103: 0.320699905 | K103: 9 | L103: 118827 | M103: 118827 | N103: 518 | O103: 518 | P103: 7 | Q103: 105563 | R103: 103163 | S103: 455 | T103: 440
B104: FF 96 | C104: Fairfield | D104: Urban | E104: 1034 | F104: 3.692 | G104: 0.386 | H104: 2.371974 | I104: 0.05106085099 | J104: 0.004801088419 | K104: 1 | L104: 4403 | M104: 4403 | N104: 38 | O104: 38 | P104: 1 | Q104: 1380 | R104: 1380 | S104: 6 | T104: 6
B105: FT 01 | C105: Flemington | D105: Urban | E105: 3649 | F105: 6.7075 | G105: 2.642 | H105: 6.992084 | I105: 1.806002031 | J105: 0.2055405488 | K105: 8 | L105: 165181 | M105: 114008 | N105: 3992 | O105: 3849 | P105: 5 | Q105: 62664 | R105: 62664 | S105: 201 | T105: 201
B106: FT 02 | C106: Flemington | D106: Urban | E106: 277 | F106: 1.5905 | G106: 5.529 | H106: 3.14358 | I106: 0.01531763572 | J106: 0.254971713 | K106: 0 | L106: 206 | M106: 206 | N106: 1 | O106: 1 | P106: 2 | Q106: 11430 | R106: 11430 | S106: 33 | T106: 33
B107: FT 04 | C107: Flemington | D107: Urban | E107: 1008 | F107: 3.1715 | G107: 2.5225 | H107: 4.00092 | I107: 0.09353793501 | J107: 0.622809681 | K107: 1 | L107: 3192 | M107: 3192 | N107: 13 | O107: 13 | P107: 5 | Q107: 70845 | R107: 70845 | S107: 166 | T107: 166
B108: FT 05 | C108: Flemington | D108: Urban | E108: 2404 | F108: 4.6735 | G108: 2.0345 | H108: 4.353382 | I108: 0.3026891458 | J108: 0 | K108: 4 | L108: 25500 | M108: 25500 | N108: 319 | O108: 319 | P108: 0 | Q108: 0 | R108: 0 | S108: 0 | T108: 0
B109: FT 06 | C109: Flemington | D109: Urban | E109: 246 | F109: 0.814 | G109: 1.2575 | H109: 2.171928 | I109: 0.5175050932 | J109: 0 | K109: 2 | L109: 9938 | M109: 9398 | N109: 249 | O109: 247 | P109: 0 | Q109: 0 | R109: 0 | S109: 0 | T109: 0
B110: FT 09 | C110: Flemington | D110: Urban | E110: 1711 | F110: 3.0965 | G110: 3.168 | H110: 5.14404 | I110: 2.842516862 | J110: 0.1307170447 | K110: 5 | L110: 128288 | M110: 120381 | N110: 3731 | O110: 3705 | P110: 3 | Q110: 19665 | R110: 19665 | S110: 50 | T110: 50
B111: FT 10 | C111: Flemington | D111: Urban | E111: 2061 | F111: 4.154 | G111: 1.7995 | H111: 4.019972 | I111: 0.5278008133 | J111: 0.01521284411 | K111: 3 | L111: 36502 | M111: 12936 | N111: 212 | O111: 57 | P111: 1 | Q111: 3507 | R111: 3507 | S111: 7 | T111: 7
B112: FT 13 | C112: Flemington | D112: Urban | E112: 1805 | F112: 2.6805 | G112: 5.5805 | H112: 5.81086 | I112: 1.8041276 | J112: 0.05536299609 | K112: 3 | L112: 107010 | M112: 107010 | N112: 1862 | O112: 1862 | P112: 2 | Q112: 10946 | R112: 10946 | S112: 38 | T112: 38
B113: FT 14 | C113: Flemington | D113: Urban | E113: 1595 | F113: 1.8825 | G113: 1.706 | H113: 4.648688 | I113: 4.058385857 | J113: 0.5882125756 | K113: 3 | L113: 176832 | M113: 176832 | N113: 835 | O113: 835 | P113: 3 | Q113: 85432 | R113: 85432 | S113: 220 | T113: 220
B114: FT 15 | C114: Flemington | D114: Urban | E114: 88 | F114: 0.1265 | G114: 0.9425 | H114: 3.42936 | I114: 0 | J114: 0 | K114: 0 | L114: 0 | M114: 0 | N114: 0 | O114: 0 | P114: 0 | Q114: 0 | R114: 0 | S114: 0 | T114: 0
B115: FW 04 | C115: Footscray West | D115: Urban | E115: 1498 | F115: 5.6315 | G115: 1.4765 | H115: 7.735112 | I115: 2.061126763 | J115: 0.7941843736 | K115: 7 | L115: 51388 | M115: 43209 | N115: 280 | O115: 249 | P115: 9 | Q115: 66002 | R115: 66002 | S115: 258 | T115: 258
B116: FW 05 | C116: Footscray West | D116: Urban | E116: 1637 | F116: 7.475 | G116: 1.135 | H116: 4.534376 | I116: 0.4132941904 | J116: 0.02931240224 | K116: 3 | L116: 25925 | M116: 25925 | N116: 1675 | O116: 1675 | P116: 1 | Q116: 6129 | R116: 6129 | S116: 27 | T116: 27
B117: FW 06 | C117: Footscray West | D117: Urban | E117: 959 | F117: 5.6225 | G117: 2.651 | H117: 4.801104 | I117: 1.752607143 | J117: 0.1034645553 | K117: 4 | L117: 52520 | M117: 28000 | N117: 1095 | O117: 122 | P117: 3 | Q117: 10335 | R117: 10335 | S117: 26 | T117: 26
B118: FW 08 | C118: Footscray West | D118: Urban | E118: 2879 | F118: 8.204 | G118: 1.0325 | H118: 8.306672 | I118: 2.25083408 | J118: 0.455007971 | K118: 14 | L118: 148594 | M118: 28633 | N118: 3104 | O118: 244 | P118: 9 | Q118: 100128 | R118: 100128 | S118: 346 | T118: 346
B119: FW 09 | C119: Footscray West | D119: Urban | E119: 1412 | F119: 9.0665 | G119: 3.665 | H119: 8.535296 | I119: 4.764455942 | J119: 0.5108340131 | K119: 10 | L119: 114524 | M119: 109424 | N119: 1229 | O119: 1218 | P119: 7 | Q119: 40930 | R119: 40930 | S119: 124 | T119: 124
B120: FW 13 | C120: Footscray West | D120: Urban | E120: 467 | F120: 5.1395 | G120: 0.644 | H120: 11.316888 | I120: 7.687368265 | J120: 0 | K120: 2 | L120: 39279 | M120: 39279 | N120: 789 | O120: 789 | P120: 0 | Q120: 0 | R120: 0 | S120: 0 | T120: 0
B121: FW 16 | C121: Footscray West | D121: Urban | E121: 2519 | F121: 9.1865 | G121: 0.3025 | H121: 4.763 | I121: 2.942611235 | J121: 0.9491714813 | K121: 9 | L121: 206720 | M121: 108549 | N121: 637 | O121: 458 | P121: 8 | Q121: 222266 | R121: 222266 | S121: 692 | T121: 692
B122: FW 17 | C122: Footscray West | D122: Urban | E122: 2267 | F122: 8.583 | G122: 0.305 | H122: 4.00092 | I122: 1.591730965 | J122: 0.136385583 | K122: 10 | L122: 154720 | M122: 75323 | N122: 469 | O122: 314 | P122: 4 | Q122: 44190 | R122: 44190 | S122: 133 | T122: 133
B123: HB 14 | C123: Heidelberg | D123: Urban | E123: 1709 | F123: 5.3065 | G123: 2.002 | H123: 5.105936 | I123: 5.231303711 | J123: 0.1768358803 | K123: 7 | L123: 294352 | M123: 294352 | N123: 5406 | O123: 5406 | P123: 3 | Q123: 33167 | R123: 33167 | S123: 145 | T123: 145
B124: HB 15 | C124: Heidelberg | D124: Urban | E124: 2393 | F124: 9.395 | G124: 1.2845 | H124: 6.010906 | I124: 0.4516337291 | J124: 0.2362591457 | K124: 6 | L124: 33411 | M124: 33411 | N124: 263 | O124: 263 | P124: 5 | Q124: 58260 | R124: 58260 | S124: 179 | T124: 179
B125: HB 22 | C125: Heidelberg | D125: Urban | E125: 1126 | F125: 5.009 | G125: 0.904 | H125: 3.915186 | I125: 2.13581894 | J125: 0 | K125: 9 | L125: 101457 | M125: 101457 | N125: 1916 | O125: 1916 | P125: 0 | Q125: 0 | R125: 0 | S125: 0 | T125: 0
B126: HB 23 | C126: Heidelberg | D126: Urban | E126: 1482 | F126: 5.4785 | G126: 0.5145 | H126: 3.781822 | I126: 3.374724945 | J126: 0.3351619917 | K126: 5 | L126: 281458 | M126: 52527 | N126: 1935 | O126: 397 | P126: 6 | Q126: 93177 | R126: 93177 | S126: 328 | T126: 328
B127: HB 24 | C127: Heidelberg | D127: Urban | E127: 869 | F127: 6.462 | G127: 0.346 | H127: 3.591302 | I127: 0.7212309938 | J127: 0.05242782161 | K127: 2 | L127: 33635 | M127: 10136 | N127: 129 | O127: 66 | P127: 4 | Q127: 8150 | R127: 8150 | S127: 29 | T127: 29
B128: HB 31 | C128: Heidelberg | D128: Urban | E128: 743 | F128: 1.51 | G128: 0.528 | H128: 3.734192 | I128: 0.1060816915 | J128: 0 | K128: 1 | L128: 3339 | M128: 3339 | N128: 62 | O128: 62 | P128: 0 | Q128: 0 | R128: 0 | S128: 0 | T128: 0
B129: HB 32 | C129: Heidelberg | D129: Urban | E129: 512 | F129: 2.118 | G129: 0.578 | H129: 3.09595 | I129: 0.6028151385 | J129: 0.3840110124 | K129: 1 | L129: 16657 | M129: 16657 | N129: 520 | O129: 520 | P129: 2 | Q129: 35370 | R129: 35370 | S129: 93 | T129: 93
B130: KLO22 | C130: Kalkallo | D130: Rural-short | E130: 1881 | F130: 12.2465 | G130: 16.3725 | H130: 4.19144 | I130: 0.07830358682 | J130: 0 | K130: 1 | L130: 6118 | M130: 6118 | N130: 23 | O130: 23 | P130: 0 | Q130: 0 | R130: 0 | S130: 0 | T130: 0
B131: NH 02 | C131: North Heidelberg | D131: Urban | E131: 4236 | F131: 16.302 | G131: 4.108 | H131: 9.183064 | I131: 6.772173144 | J131: 0.3331407081 | K131: 16 | L131: 609043 | M131: 607891 | N131: 7935 | O131: 7934 | P131: 8 | Q131: 99868 | R131: 99868 | S131: 480 | T131: 480
B132: NH 03 | C132: North Heidelberg | D132: Urban | E132: 1291 | F132: 9.161 | G132: 0.78 | H132: 7.697008 | I132: 2.365595922 | J132: 0.08332144618 | K132: 7 | L132: 71631 | M132: 64841 | N132: 460 | O132: 397 | P132: 3 | Q132: 8410 | R132: 8410 | S132: 38 | T132: 38
B133: NH 05 | C133: North Heidelberg | D133: Urban | E133: 4529 | F133: 16.184 | G133: 1.134 | H133: 6.85872 | I133: 6.30926437 | J133: 0.08808742928 | K133: 10 | L133: 701782 | M133: 537876 | N133: 12589 | O133: 10469 | P133: 6 | Q133: 32660 | R133: 32660 | S133: 226 | T133: 226
B134: NH 08 | C134: North Heidelberg | D134: Urban | E134: 2603 | F134: 11.44 | G134: 1.3335 | H134: 5.506028 | I134: 5.768749019 | J134: 0.09023399141 | K134: 9 | L134: 585544 | M134: 585544 | N134: 6296 | O134: 6296 | P134: 7 | Q134: 30530 | R134: 30530 | S134: 138 | T134: 138
B135: NH 09 | C135: North Heidelberg | D135: Urban | E135: 632 | F135: 6.5075 | G135: 1.2645 | H135: 9.526 | I135: 6.046316675 | J135: 0.2073875764 | K135: 10 | L135: 66840 | M135: 62714 | N135: 766 | O135: 735 | P135: 4 | Q135: 7642 | R135: 7642 | S135: 25 | T135: 25
B136: NH 12 | C136: North Heidelberg | D136: Urban | E136: 18 | F136: 0 | G136: 4.027880125 | H136: 4.648688 | I136: 0 | J136: 0.1050546317 | K136: 0 | L136: 0 | M136: 0 | N136: 0 | O136: 0 | P136: 1 | Q136: 176 | R136: 176 | S136: 1 | T136: 1
B137: NH 13 | C137: North Heidelberg | D137: Urban | E137: 405 | F137: 1.6885 | G137: 2.7275 | H137: 6.934928 | I137: 0.09293447305 | J137: 0 | K137: 0 | L137: 635 | M137: 635 | N137: 5 | O137: 5 | P137: 0 | Q137: 0 | R137: 0 | S137: 0 | T137: 0
B138: NH 16 | C138: North Heidelberg | D138: Urban | E138: 2557 | F138: 7.176 | G138: 4.486 | H138: 7.925632 | I138: 6.180987857 | J138: 0.2512233364 | K138: 10 | L138: 333329 | M138: 331760 | N138: 1282 | O138: 1269 | P138: 6 | Q138: 45160 | R138: 45160 | S138: 187 | T138: 187
B139: NH 17 | C139: North Heidelberg | D139: Urban | E139: 2240 | F139: 7.28 | G139: 2.1405 | H139: 7.087344 | I139: 1.310712909 | J139: 1.805402371 | K139: 6 | L139: 60864 | M139: 53423 | N139: 263 | O139: 245 | P139: 6 | Q139: 279451 | R139: 279451 | S139: 741 | T139: 741
B140: NH 20 | C140: North Heidelberg | D140: Urban | E140: 1962 | F140: 7.8525 | G140: 2.425 | H140: 6.76346 | I140: 3.323159895 | J140: 0.1902285688 | K140: 6 | L140: 149939 | M140: 142866 | N140: 2261 | O140: 2046 | P140: 2 | Q140: 28610 | R140: 28610 | S140: 96 | T140: 96
B141: NS 07 | C141: North Essendon | D141: Urban | E141: 1019 | F141: 3.713 | G141: 1.68 | H141: 4.448642 | I141: 3.46598809 | J141: 0 | K141: 1 | L141: 124503 | M141: 1071 | N141: 1058 | O141: 8 | P141: 0 | Q141: 0 | R141: 0 | S141: 0 | T141: 0
B142: NS 08 | C142: North Essendon | D142: Urban | E142: 1151 | F142: 2.945 | G142: 0.2625 | H142: 2.8578 | I142: 0.4149709423 | J142: 0.00779281702 | K142: 2 | L142: 30193 | M142: 29197 | N142: 104 | O142: 101 | P142: 1 | Q142: 1890 | R142: 1890 | S142: 6 | T142: 6
B143: NS 09 | C143: North Essendon | D143: Urban | E143: 1013 | F143: 3.659 | G143: 1.147 | H143: 4.248596 | I143: 0.08520957623 | J143: 0.0183307133 | K143: 1 | L143: 3319 | M143: 3319 | N143: 39 | O143: 39 | P143: 1 | Q143: 2380 | R143: 2380 | S143: 17 | T143: 17
B144: NS 11 | C144: North Essendon | D144: Rural-short | E144: 0 | F144: 0 | G144: 0.047 | I144: 0 | J144: 0 | K144: 0 | L144: 0 | M144: 0 | N144: 0 | O144: 0 | P144: 0 | Q144: 0 | R144: 0 | S144: 0 | T144: 0
B145: NS 12 | C145: North Essendon | D145: Urban | E145: 1232 | F145: 3.6765 | G145: 1.17 | H145: 3.115002 | I145: 1.046234182 | J145: 0.3076905112 | K145: 6 | L145: 95130 | M145: 95130 | N145: 1358 | O145: 1358 | P145: 6 | Q145: 93257 | R145: 93257 | S145: 268 | T145: 268
B146: NS 14 | C146: North Essendon | D146: Urban | E146: 1411 | F146: 5.6135 | G146: 1.263 | H146: 4.943994 | I146: 2.038770782 | J146: 0 | K146: 8 | L146: 123114 | M146: 123114 | N146: 1802 | O146: 1802 | P146: 0 | Q146: 0 | R146: 0 | S146: 0 | T146: 0
B147: NS 15 | C147: North Essendon | D147: Urban | E147: 1557 | F147: 4.404 | G147: 1.145 | H147: 4.448642 | I147: 0.2032397573 | J147: 0.01011942204 | K147: 5 | L147: 12653 | M147: 12653 | N147: 78 | O147: 78 | P147: 1 | Q147: 2100 | R147: 2100 | S147: 12 | T147: 12
B148: NS 16 | C148: North Essendon | D148: Urban | E148: 706 | F148: 3.1885 | G148: 0.422 | H148: 1.838518 | I148: 0.4567495832 | J148: 0 | K148: 3 | L148: 37427 | M148: 37334 | N148: 1262 | O148: 1261 | P148: 0 | Q148: 0 | R148: 0 | S148: 0 | T148: 0
B149: NS 17 | C149: North Essendon | D149: Urban | E149: 815 | F149: 3.576 | G149: 0.513 | H149: 2.600598 | I149: 0.3984850193 | J149: 0.08746962693 | K149: 3 | L149: 27054 | M149: 24050 | N149: 110 | O149: 97 | P149: 3 | Q149: 19795 | R149: 19795 | S149: 109 | T149: 109
B150: NS 18 | C150: North Essendon | D150: Urban | E150: 1723 | F150: 3.4465 | G150: 2.638 | H150: 4.924942 | I150: 3.19698437 | J150: 0.03463637835 | K150: 4 | L150: 164481 | M150: 164481 | N150: 3520 | O150: 3520 | P150: 2 | Q150: 5940 | R150: 5940 | S150: 16 | T150: 16
B151: NT 01 | C151: Newport | D151: Urban | E151: 2 | F151: 0.668 | G151: 5.645 | I151: 0 | J151: 0 | K151: 0 | L151: 0 | M151: 0 | N151: 0 | O151: 0 | P151: 0 | Q151: 0 | R151: 0 | S151: 0 | T151: 0
B152: NT 03 | C152: Newport | D152: Urban | E152: 3183 | F152: 10.963 | G152: 3.629 | H152: 10.116612 | I152: 7.271751487 | J152: 0.5673849557 | K152: 11 | L152: 462854 | M152: 158227 | N152: 3973 | O152: 454 | P152: 7 | Q152: 120382 | R152: 120382 | S152: 354 | T152: 354
B153: NT 04 | C153: Newport | D153: Urban | E153: 1566 | F153: 3.377 | G153: 1.946 | H153: 8.078048 | I153: 10.1610186 | J153: 0.2916611636 | K153: 5 | L153: 245820 | M153: 245630 | N153: 385 | O153: 384 | P153: 1 | Q153: 23520 | R153: 23520 | S153: 56 | T153: 56
B154: NT 10 | C154: Newport | D154: Urban | E154: 65 | F154: 1.897 | G154: 0.8375 | H154: 1.828992 | I154: 0.02411410562 | J154: 0.170378629 | K154: 0 | L154: 116 | M154: 116 | N154: 1 | O154: 1 | P154: 4 | Q154: 2732 | R154: 2732 | S154: 16 | T154: 16
B155: NT 11 | C155: Newport | D155: Urban | E155: 3506 | F155: 9.8595 | G155: 2.4275 | H155: 9.583156 | I155: 9.915632215 | J155: 1.526743396 | K155: 12 | L155: 795985 | M155: 538654 | N155: 10992 | O155: 7341 | P155: 8 | Q155: 408535 | R155: 408535 | S155: 896 | T155: 896
B156: NT 15 | C156: Newport | D156: Urban | E156: 1146 | F156: 5.381 | G156: 2.9365 | H156: 5.372664 | I156: 0.2783669389 | J156: 0.2282863313 | K156: 4 | L156: 12911 | M156: 7127 | N156: 84 | O156: 63 | P156: 3 | Q156: 35294 | R156: 35294 | S156: 147 | T156: 147
B157: NT 16 | C157: Newport | D157: Urban | E157: 213 | F157: 2.926 | G157: 1.609 | H157: 5.372664 | I157: 0.2091620106 | J157: 0.7731463295 | K157: 1 | L157: 3305 | M157: 3305 | N157: 534 | O157: 534 | P157: 3 | Q157: 40722 | R157: 40722 | S157: 107 | T157: 107
B158: NT 17 | C158: Newport | D158: Urban | E158: 2792 | F158: 8.6835 | G158: 2.885 | H158: 9.887988 | I158: 0.5859562823 | J158: 0.555989493 | K158: 7 | L158: 28423 | M158: 28423 | N158: 265 | O158: 265 | P158: 7 | Q158: 89898 | R158: 89898 | S158: 243 | T158: 243
B159: P 56 | C159: Preston | D159: Urban | E159: 2 | F159: 2.0495 | G159: 0.255 | I159: 1.291096907 | J159: 0 | K159: 1 | L159: 833 | M159: 833 | N159: 2 | O159: 2 | P159: 0 | Q159: 0 | R159: 0 | S159: 0 | T159: 0
B160: P 57 | C160: Preston | D160: Rural-short | E160: 101 | F160: 1.7845 | G160: 0.282 | H160: 0.2972112 | I160: 0.6357165943 | J160: 0 | K160: 2 | L160: 45815 | M160: 45815 | N160: 200 | O160: 200 | P160: 0 | Q160: 0 | R160: 0 | S160: 0 | T160: 0
B161: P 58 | C161: Preston | D161: Rural-short | E161: 0 | F161: 0.127 | G161: 0.041 | I161: 0 | J161: 0 | K161: 0 | L161: 0 | M161: 0 | N161: 0 | O161: 0 | P161: 0 | Q161: 0 | R161: 0 | S161: 0 | T161: 0
B162: P 59 | C162: Preston | D162: Rural-short | E162: 815 | F162: 2.8355 | G162: 1.607 | H162: 1.1259732 | I162: 0.3936150177 | J162: 0.01600603257 | K162: 1 | L162: 53118 | M162: 53118 | N162: 815 | O162: 815 | P162: 3 | Q162: 7200 | R162: 7200 | S162: 38 | T162: 38
B163: P 61 | C163: Preston | D163: Urban | E163: 82 | F163: 0.4185 | G163: 0.153 | H163: 0.28578 | I163: 0 | J163: 0 | K163: 0 | L163: 0 | M163: 0 | N163: 0 | O163: 0 | P163: 0 | Q163: 0 | R163: 0 | S163: 0 | T163: 0
B164: P 62 | C164: Preston | D164: Urban | E164: 664 | F164: 1.822 | G164: 0.81 | H164: 3.172158 | I164: 0.01674871753 | J164: 0.01203476397 | K164: 0 | L164: 620 | M164: 620 | N164: 5 | O164: 5 | P164: 2 | Q164: 1485 | R164: 1485 | S164: 7 | T164: 7
B165: P 63 | C165: Preston | D165: Urban | E165: 849 | F165: 2.8295 | G165: 0.154 | H165: 2.3891208 | I165: 0.8824404115 | J165: 0 | K165: 2 | L165: 57197 | M165: 57197 | N165: 923 | O165: 923 | P165: 0 | Q165: 0 | R165: 0 | S165: 0 | T165: 0
B166: P 65 | C166: Preston | D166: Urban | E166: 254 | F166: 0.363 | G166: 0.1645 | H166: 0.9830832 | I166: 0.3883270735 | J166: 0.6207884319 | K166: 1 | L166: 14157 | M166: 14157 | N166: 59 | O166: 59 | P166: 3 | Q166: 75439 | R166: 75439 | S166: 213 | T166: 213
B167: P 66 | C167: Preston | D167: Urban | E167: 728 | F167: 2.1525 | G167: 0.657 | H167: 3.200736 | I167: 0.09378437112 | J167: 0.5357892044 | K167: 2 | L167: 3926 | M167: 3926 | N167: 54 | O167: 54 | P167: 3 | Q167: 74764 | R167: 74764 | S167: 280 | T167: 280
B168: PV 12 | C168: Pascoe Vale | D168: Urban | E168: 468 | F168: 2.6145 | G168: 1.647 | H168: 2.276714 | I168: 0.1596108223 | J168: 0.1528789373 | K168: 1 | L168: 4851 | M168: 4126 | N168: 35 | O168: 34 | P168: 1 | Q168: 15488 | R168: 15488 | S168: 121 | T168: 121
B169: PV 13 | C169: Pascoe Vale | D169: Urban | E169: 3119 | F169: 10.0535 | G169: 0.527 | H169: 5.277404 | I169: 0.3943203019 | J169: 0.001050796923 | K169: 7 | L169: 45031 | M169: 44547 | N169: 363 | O169: 361 | P169: 1 | Q169: 400 | R169: 400 | S169: 2 | T169: 2
B170: PV 14 | C170: Pascoe Vale | D170: Urban | E170: 2749 | F170: 10.064 | G170: 0.934 | H170: 5.829912 | I170: 1.766773106 | J170: 0.03049878339 | K170: 2 | L170: 179436 | M170: 1476 | N170: 2793 | O170: 13 | P170: 4 | Q170: 10325 | R170: 10325 | S170: 43 | T170: 43
B171: PV 15 | C171: Pascoe Vale | D171: Urban | E171: 1724 | F171: 5.3925 | G171: 0.372 | H171: 3.638932 | I171: 0.9985588218 | J171: 0.3030745797 | K171: 4 | L171: 100712 | M171: 99630 | N171: 1807 | O171: 1804 | P171: 4 | Q171: 101891 | R171: 101891 | S171: 407 | T171: 407
B172: PV 21 | C172: Pascoe Vale | D172: Urban | E172: 1233 | F172: 5.5995 | G172: 0.181 | H172: 2.66728 | I172: 0.4134528585 | J172: 0 | K172: 3 | L172: 33435 | M172: 33435 | N172: 627 | O172: 627 | P172: 0 | Q172: 0 | R172: 0 | S172: 0 | T172: 0
B173: PV 22 | C173: Pascoe Vale | D173: Urban | E173: 2526 | F173: 9.8885 | G173: 0.428 | H173: 5.944224 | I173: 1.476880147 | J173: 0.03246274367 | K173: 7 | L173: 150064 | M173: 150064 | N173: 1922 | O173: 1922 | P173: 2 | Q173: 10995 | R173: 10995 | S173: 51 | T173: 51
B174: PV 23 | C174: Pascoe Vale | D174: Urban | E174: 2369 | F174: 8.1075 | G174: 0.176 | H174: 5.09641 | I174: 1.030710109 | J174: 0 | K174: 3 | L174: 104312 | M174: 103454 | N174: 2462 | O174: 2461 | P174: 0 | Q174: 0 | R174: 0 | S174: 0 | T174: 0
B175: PV 24 | C175: Pascoe Vale | D175: Urban | E175: 1661 | F175: 6.91 | G175: 0.535 | H175: 4.801104 | I175: 3.585841643 | J175: 0 | K175: 3 | L175: 227902 | M175: 227902 | N175: 1908 | O175: 1908 | P175: 0 | Q175: 0 | R175: 0 | S175: 0 | T175: 0
B176: PV 31 | C176: Pascoe Vale | D176: Urban | E176: 1964 | F176: 5.811 | G176: 1.471 | H176: 4.677266 | I176: 2.629737981 | J176: 0.00191008358 | K176: 5 | L176: 166451 | M176: 166451 | N176: 430 | O176: 430 | P176: 2 | Q176: 403 | R176: 403 | S176: 2 | T176: 2
B177: SA 02 | C177: St Alban | D177: Rural-short | E177: 62 | F177: 13.8135 | G177: 0 | H177: 0.457248 | I177: 0.07683044443 | J177: 0.2474525878 | K177: 2 | L177: 2283 | M177: 2283 | N177: 11 | O177: 11 | P177: 2 | Q177: 24510 | R177: 24510 | S177: 61 | T177: 61
B178: SA 06 | C178: St Alban | D178: Rural-short | E178: 144 | F178: 4.338 | G178: 1.203 | H178: 0.457248 | I178: 0.03777440762 | J178: 0.008346014112 | K178: 1 | L178: 2607 | M178: 1008 | N178: 9 | O178: 8 | P178: 1 | Q178: 1920 | R178: 1920 | S178: 16 | T178: 16
B179: SA 10 | C179: St Alban | D179: Rural-short | E179: 43 | F179: 1.262 | G179: 0.816 | H179: 0.038104 | I179: 0.003105493623 | J179: 0 | K179: 1 | L179: 768 | M179: 768 | N179: 43 | O179: 43 | P179: 0 | Q179: 0 | R179: 0 | S179: 0 | T179: 0
B180: SA 12 | C180: St Alban | D180: Urban | E180: 1835 | F180: 1.085 | G180: 6.188 | H180: 3.8104 | I180: 0.2743818468 | J180: 0 | K180: 2 | L180: 28957 | M180: 28957 | N180: 1998 | O180: 1998 | P180: 0 | Q180: 0 | R180: 0 | S180: 0 | T180: 0
B181: SBY11 | C181: Sunbury | D181: Rural-short | E181: 2965 | F181: 62.2295 | G181: 10.736 | H181: 6.744408 | I181: 3.823371585 | J181: 0.3531497117 | K181: 22 | L181: 259826 | M181: 257035 | N181: 5431 | O181: 5426 | P181: 23 | Q181: 79997 | R181: 79997 | S181: 347 | T181: 347
B182: SBY13 | C182: Sunbury | D182: Urban | E182: 0 | F182: 0 | G182: 0.1415 | I182: 0 | J182: 0 | K182: 0 | L182: 0 | M182: 0 | N182: 0 | O182: 0 | P182: 0 | Q182: 0 | R182: 0 | S182: 0 | T182: 0
B183: SBY14 | C183: Sunbury | D183: Rural-short | E183: 4095 | F183: 90.892 | G183: 23.138 | H183: 11.81224 | I183: 4.763701379 | J183: 0.3250649915 | K183: 13 | L183: 282771 | M183: 62489 | N183: 4452 | O183: 307 | P183: 18 | Q183: 64319 | R183: 64319 | S183: 278 | T183: 278
B184: SBY31 | C184: Sunbury | D184: Urban | E184: 2102 | F184: 6.558 | G184: 7.967 | H184: 7.52554 | I184: 0.3045421987 | J184: 0.4502945415 | K184: 6 | L184: 12782 | M184: 12782 | N184: 99 | O184: 99 | P184: 5 | Q184: 62998 | R184: 62998 | S184: 260 | T184: 260
B185: SBY32 | C185: Sunbury | D185: Rural-short | E185: 2902 | F185: 116.597 | G185: 10.2465 | H185: 6.401472 | I185: 4.571432034 | J185: 0.3551702378 | K185: 19 | L185: 356200 | M185: 356200 | N185: 3605 | O185: 3605 | P185: 45 | Q185: 92248 | R185: 92248 | S185: 372 | T185: 372
B186: SBY33 | C186: Sunbury | D186: Urban | E186: 2991 | F186: 14.13 | G186: 4.578 | H186: 6.820616 | I186: 2.319564789 | J186: 0.6408823367 | K186: 5 | L186: 187372 | M186: 186874 | N186: 3167 | O186: 3166 | P186: 13 | Q186: 172566 | R186: 172566 | S186: 783 | T186: 783
B187: SHM11 | C187: Sydenham | D187: Rural-short | E187: 1040 | F187: 64.442 | G187: 2.76565 | H187: 2.66728 | I187: 0.4405809212 | J187: 0.2328561818 | K187: 16 | L187: 20599 | M187: 20599 | N187: 308 | O187: 308 | P187: 20 | Q187: 36290 | R187: 36290 | S187: 202 | T187: 202
B188: SHM12 | C188: Sydenham | D188: Urban | E188: 2834 | F188: 4.712 | G188: 14.03895 | H188: 8.211412 | I188: 0.9628045666 | J188: 0.339737028 | K188: 5 | L188: 67875 | M188: 67875 | N188: 174 | O188: 174 | P188: 4 | Q188: 79835 | R188: 79835 | S188: 173 | T188: 173
B189: SHM14 | C189: Sydenham | D189: Rural-short | E189: 3841 | F189: 18.915 | G189: 21.95755 | H189: 10.935848 | I189: 8.910126995 | J189: 1.60109799 | K189: 6 | L189: 630573 | M189: 629216 | N189: 7554 | O189: 7544 | P189: 14 | Q189: 377701 | R189: 377701 | S189: 940 | T189: 940
B190: SHM21 | C190: Sydenham | D190: Urban | E190: 4882 | F190: 3.885 | G190: 19.57575 | H190: 10.57386 | I190: 2.235125574 | J190: 0 | K190: 6 | L190: 207082 | M190: 207082 | N190: 1431 | O190: 1431 | P190: 0 | Q190: 0 | R190: 0 | S190: 0 | T190: 0
B191: SHM24 | C191: Sydenham | D191: Urban | E191: 1 | F191: 0 | G191: 0.4035 | I191: 0 | J191: 0 | K191: 0 | L191: 0 | M191: 0 | N191: 0 | O191: 0 | P191: 0 | Q191: 0 | R191: 0 | S191: 0 | T191: 0
B192: ST 11 | C192: Somerton | D192: Urban | E192: 173 | F192: 6.951 | G192: 3.999 | H192: 6.973032 | I192: 18.08345111 | J192: 0.4473361707 | K192: 4 | L192: 56914 | M192: 56914 | N192: 651 | O192: 651 | P192: 1 | Q192: 4693 | R192: 4693 | S192: 13 | T192: 13
B193: ST 12 | C193: Somerton | D193: Urban | E193: 241 | F193: 9.5745 | G193: 3.136 | H193: 7.677956 | I193: 7.725961372 | J193: 0.1346439882 | K193: 4 | L193: 28369 | M193: 2105 | N193: 249 | O193: 9 | P193: 3 | Q193: 1648 | R193: 1648 | S193: 10 | T193: 10
B194: ST 13 | C194: Somerton | D194: Urban | E194: 191 | F194: 4.7885 | G194: 4.262 | H194: 6.363368 | I194: 4.435059447 | J194: 0 | K194: 4 | L194: 21457 | M194: 21457 | N194: 389 | O194: 389 | P194: 0 | Q194: 0 | R194: 0 | S194: 0 | T194: 0
B195: ST 14 | C195: Somerton | D195: Urban | E195: 82 | F195: 0 | G195: 4.985 | H195: 7.33502 | I195: 0 | J195: 0 | K195: 0 | L195: 0 | M195: 0 | N195: 0 | O195: 0 | P195: 0 | Q195: 0 | R195: 0 | S195: 0 | T195: 0
B196: ST 21 | C196: Somerton | D196: Rural-short | E196: 3 | F196: 0 | G196: 1.289 | H196: 0.38104 | I196: 0 | J196: 0 | K196: 0 | L196: 0 | M196: 0 | N196: 0 | O196: 0 | P196: 0 | Q196: 0 | R196: 0 | S196: 0 | T196: 0
B197: ST 22 | C197: Somerton | D197: Urban | E197: 4272 | F197: 6.828 | G197: 16.857 | H197: 14.441416 | I197: 9.905016512 | J197: 0.7809729551 | K197: 8 | L197: 495859 | M197: 495859 | N197: 10087 | O197: 10087 | P197: 11 | Q197: 130322 | R197: 130322 | S197: 446 | T197: 446
B198: ST 23 | C198: Somerton | D198: Urban | E198: 142 | F198: 7.1655 | G198: 3.503 | H198: 11.012056 | I198: 4.390594565 | J198: 0.05786968673 | K198: 3 | L198: 8194 | M198: 8194 | N198: 36 | O198: 36 | P198: 1 | Q198: 360 | R198: 360 | S198: 2 | T198: 2
B199: ST 24 | C199: Somerton | D199: Urban | E199: 1 | F199: 0 | G199: 3.765 | I199: 0 | J199: 0 | K199: 0 | L199: 0 | M199: 0 | N199: 0 | O199: 0 | P199: 0 | Q199: 0 | R199: 0 | S199: 0 | T199: 0
B200: ST 31 | C200: Somerton | D200: Urban | E200: 1 | F200: 0 | G200: 0.617 | I200: 1.448894579 | J200: 0 | K200: 1 | L200: 86 | M200: 86 | N200: 1 | O200: 1 | P200: 0 | Q200: 0 | R200: 0 | S200: 0 | T200: 0
B201: ST 32 | C201: Somerton | D201: Rural-short | E201: 5635 | F201: 10.0875 | G201: 30.046 | H201: 10.916796 | I201: 5.671021217 | J201: 0.1729088639 | K201: 10 | L201: 497919 | M201: 497919 | N201: 11579 | O201: 11579 | P201: 10 | Q201: 50605 | R201: 50125 | S201: 147 | T201: 146
B202: ST 33 | C202: Somerton | D202: Urban | E202: 3096 | F202: 10.652 | G202: 5.3245 | H202: 8.725816 | I202: 5.350352687 | J202: 0 | K202: 6 | L202: 334051 | M202: 277924 | N202: 6650 | O202: 6544 | P202: 0 | Q202: 0 | R202: 0 | S202: 0 | T202: 0
B203: ST 34 | C203: Somerton | D203: Urban | E203: 301 | F203: 7.025 | G203: 7.025 | H203: 9.011596 | I203: 7.404204644 | J203: 1.489883575 | K203: 3 | L203: 51585 | M203: 51585 | N203: 930 | O203: 930 | P203: 3 | Q203: 34600 | R203: 34600 | S203: 114 | T203: 114
B204: TH 11 | C204: Tottenham | D204: Urban | E204: 61 | F204: 3.1135 | G204: 0.8345 | H204: 3.848504 | I204: 1.837545081 | J204: 2.539620823 | K204: 2 | L204: 3358 | M204: 3358 | N204: 62 | O204: 62 | P204: 3 | Q204: 15470 | R204: 15470 | S204: 41 | T204: 41
... 21 more rows

Sheet 3.6.8 Network-feeders (2014-15)
B1: =INDEX(dms_Worksheet_List,MATCH(dms_Model,dms_Model_List)) -> HISTORICAL ANNUAL REPORTING - FINANCIAL YEARS
B2: =INDEX(dms_TradingNameFull_List,MATCH(dms_TradingName,dms_TradingName_List)) -> Jemena Electricity
B3: =dms_Header_Span -> 2011-12 to 2017-18
B4: 3.6 QUALITY OF SERVICES
B6: Did the MAIFI parameter of the STPIS apply during the period? | F6: No | G6: ** IMPORTANT Please ensure this question is answered correctly. Your response will affect other tables throughout this workbook and will determine which cells are grey and which are input cells.
B10: 3.6.8 - NETWORK FEEDER RELIABILITY
B11: Feeder ID / name | C11: Description of the service area for the feeder | D11: Feeder classification (drop down) | E11: Number of distribution customers | F11: Length of high voltage distribution lines | H11: Maximum demand (MVA) | I11: Energy not supplied (MWh) | K11: Unplanned Outages | P11: Planned Outages | U11: Momentary feeder outages
F12: Overhead | G12: Underground | I12: Unplanned | J12: Planned | K12: Total number of unplanned outages | L12: Unplanned customer minutes off-supply (SAIDI) | N12: Unplanned interruptions (SAIFI) | P12: Total number of planned outages | Q12: Planned customer minutes off-supply (SAIDI) | S12: Planned interruptions (SAIFI) | U12: Total number of momentary feeder outages | V12: Momentary interruptions due to feeder outages (MAIFI)
L13: Including excluded events and MEDs | M13: After removing excluded events and MED | N13: Including excluded events and MEDs | O13: After removing excluded events and MED | Q13: Including MEDs | R13: After removing MED | S13: Including MEDs | T13: After removing MED | V13: Including excluded events and MEDs | W13: After removing excluded events and MED
B14: AW 01 | C14: Airport West | D14: Urban | E14: 726 | F14: 4.67901 | G14: 4.323839995 | H14: 8.497192 | I14: 0.128679371 | J14: 0.1236150666 | K14: 1 | L14: 1677 | M14: 1677 | N14: 9 | O14: 9 | P14: 5 | Q14: 5370 | R14: 47 | S14: 0 | T14: 0
B15: AW 02 | C15: Airport West | D15: Urban | E15: 3743 | F15: 13.41812 | G15: 3.08537503 | H15: 11.63886727 | I15: 0.2849382337 | J15: 0.01055258938 | K15: 4 | L15: 15553 | M15: 15553 | N15: 225 | O15: 225 | P15: 1 | Q15: 1920 | R15: 8 | S15: 1 | T15: 1337
B16: AW 03 | C16: Airport West | D16: Urban | E16: 267 | F16: 6.095834797 | G16: 4.482653016 | H16: 12.98774863 | I16: 0.5563550151 | J16: 0.5305575479 | K16: 1 | L16: 1611 | M16: 1611 | N16: 12 | O16: 12 | P16: 3 | Q16: 5121 | R16: 14 | S16: 2 | T16: 538
B17: AW 04 | C17: Airport West | D17: Urban | E17: 1968 | F17: 11.46397906 | G17: 10.75584172 | H17: 14.10419595 | I17: 0.5106296738 | J17: 0.8018959626 | K17: 3 | L17: 10465 | M17: 10465 | N17: 45 | O17: 45 | P17: 5 | Q17: 54781 | R17: 177 | S17: 0 | T17: 0
B18: AW 05 | C18: Airport West | D18: Urban | E18: 549 | F18: 4.89763 | G18: 0.8748838325 | H18: 7.315968 | I18: 3.06325713 | J18: 0.6902306914 | K18: 3 | L18: 37069 | M18: 37069 | N18: 593 | O18: 593 | P18: 6 | Q18: 27842 | R18: 77 | S18: 0 | T18: 0
B19: AW 06 | C19: Airport West | D19: Urban | E19: 5042 | F19: 16.812165 | G19: 1.6461456 | H19: 11.92274195 | I19: 1.807504276 | J19: 0.7838152979 | K19: 7 | L19: 173764 | M19: 173764 | N19: 4481 | O19: 4481 | P19: 16 | Q19: 251173 | R19: 931 | S19: 0 | T19: 0
B20: AW 07 | C20: Airport West | D20: Urban | E20: 4676 | F20: 15.68146 | G20: 5.716550385 | H20: 10.802484 | I20: 6.196940276 | J20: 0.1910842109 | K20: 10 | L20: 615659 | M20: 615659 | N20: 8570 | O20: 8570 | P20: 9 | Q20: 63280 | R20: 273 | S20: 0 | T20: 0
B21: AW 08 | C21: Airport West | D21: Urban | E21: 2389 | F21: 14.6660777 | G21: 8.653933049 | H21: 10.26521766 | I21: 19.10971867 | J21: 0.4604942735 | K21: 13 | L21: 722319 | M21: 722319 | N21: 11582 | O21: 11582 | P21: 9 | Q21: 58020 | R21: 251 | S21: 3 | T21: 3734
B22: AW 09 | C22: Airport West | D22: Urban | E22: 2471 | F22: 9.485845 | G22: 7.260868018 | H22: 7.767500633 | I22: 1.11354847 | J22: 0.1935829892 | K22: 4 | L22: 63502 | M22: 63502 | N22: 414 | O22: 414 | P22: 6 | Q22: 36798 | R22: 87 | S22: 2 | T22: 4681
B23: AW 11 | C23: Airport West | D23: Urban | E23: 472 | F23: 5.99684 | G23: 3.320135249 | H23: 7.868476 | I23: 0.1090752644 | J23: 1.632220435 | K23: 1 | L23: 1080 | M23: 1080 | N23: 7 | O23: 7 | P23: 3 | Q23: 53871 | R23: 101 | S23: 1 | T23: 472
B24: AW 12 | C24: Airport West | D24: Urban | E24: 1807 | F24: 5.715603151 | G24: 6.955148302 | H24: 8.264757658 | I24: 1.182018137 | J24: 0.3334954887 | K24: 3 | L24: 32269 | M24: 32269 | N24: 420 | O24: 420 | P24: 10 | Q24: 30348 | R24: 192 | S24: 1 | T24: 2190
B25: AW 14 | C25: Airport West | D25: Urban | E25: 1250 | F25: 8.89873 | G25: 4.713029821 | H25: 7.988503658 | I25: 3.926148131 | J25: 0.2391178628 | K25: 6 | L25: 72616 | M25: 72616 | N25: 1341 | O25: 1341 | P25: 4 | Q25: 14742 | R25: 62 | S25: 2 | T25: 1521
B26: BD 01 | C26: Broadmeadows | D26: Urban | E26: 1695 | F26: 7.775115 | G26: 4.923461725 | H26: 9.278324 | I26: 1.18644708 | J26: 0.06508366762 | K26: 9 | L26: 35575 | M26: 35575 | N26: 1843 | O26: 1843 | P26: 4 | Q26: 6505 | R26: 41 | S26: 3 | T26: 5077
B27: BD 02 | C27: Broadmeadows | D27: Urban | E27: 1 | F27: 0.664875 | G27: 0.073199015 | I27: 0 | J27: 0 | K27: 0 | L27: 0 | M27: 0 | N27: 0 | O27: 0 | P27: 0 | Q27: 0 | R27: 0 | S27: 0 | T27: 0
B28: BD 03 | C28: Broadmeadows | D28: Urban | E28: 372 | F28: 4.01186 | G28: 6.328 | H28: 11.05778068 | I28: 0.1469917542 | J28: 0.1643226598 | K28: 1 | L28: 687 | M28: 687 | N28: 5 | O28: 5 | P28: 3 | Q28: 2560 | R28: 15 | S28: 0 | T28: 0
B29: BD 04 | C29: Broadmeadows | D29: Urban | E29: 1025 | F29: 8.063245 | G29: 4.128688414 | H29: 9.590776974 | I29: 3.04294377 | J29: 0.3208215476 | K29: 4 | L29: 67608 | M29: 67608 | N29: 1101 | O29: 1101 | P29: 13 | Q29: 23760 | R29: 180 | S29: 4 | T29: 3454
B30: BD 06 | C30: Broadmeadows | D30: Urban | E30: 1 | F30: 0.748905 | G30: 0.079860365 | I30: 0 | J30: 0 | K30: 0 | L30: 0 | M30: 0 | N30: 0 | O30: 0 | P30: 0 | Q30: 0 | R30: 0 | S30: 3 | T30: 3
B31: BD 07 | C31: Broadmeadows | D31: Urban | E31: 3341 | F31: 19.162 | G31: 1.84 | H31: 11.354992 | I31: 1.887701081 | J31: 0.8003534838 | K31: 6 | L31: 139969 | M31: 139969 | N31: 2722 | O31: 2722 | P31: 10 | Q31: 197815 | R31: 500 | S31: 1 | T31: 2449
B32: BD 08 | C32: Broadmeadows | D32: Urban | E32: 784 | F32: 9.376955 | G32: 1.520559345 | H32: 8.889663316 | I32: 2.763568055 | J32: 0.1183717039 | K32: 6 | L32: 42472 | M32: 42472 | N32: 857 | O32: 857 | P32: 2 | Q32: 6064 | R32: 16 | S32: 3 | T32: 1495
B33: BD 09 | C33: Broadmeadows | D33: Urban | E33: 689 | F33: 5.094125 | G33: 1.366157464 | H33: 5.464113658 | I33: 8.815136812 | J33: 0.4194584886 | K33: 9 | L33: 169570 | M33: 169570 | N33: 1553 | O33: 1553 | P33: 3 | Q33: 26896 | R33: 54 | S33: 2 | T33: 722
B34: BD 10 | C34: Broadmeadows | D34: Urban | E34: 1150 | F34: 6.613 | G34: 4.311 | H34: 11.46168332 | I34: 0.05122417562 | J34: 0.04317387461 | K34: 3 | L34: 929 | M34: 929 | N34: 9 | O34: 9 | P34: 2 | Q34: 2610 | R34: 6 | S34: 0 | T34: 0
B35: BD 11 | C35: Broadmeadows | D35: Urban | E35: 2856 | F35: 10.073 | G35: 1.72 | H35: 6.790132974 | I35: 0.6371338128 | J35: 1.072830817 | K35: 6 | L35: 38853 | M35: 38853 | N35: 324 | O35: 324 | P35: 18 | Q35: 218074 | R35: 833 | S35: 0 | T35: 0
B36: BD 13 | C36: Broadmeadows | D36: Urban | E36: 485 | F36: 8.78644 | G36: 2.509100018 | H36: 10.19663034 | I36: 2.357598032 | J36: 0.5363347731 | K36: 9 | L36: 21970 | M36: 21970 | N36: 134 | O36: 134 | P36: 2 | Q36: 16660 | R36: 42 | S36: 0 | T36: 0
B37: BD 14 | C37: Broadmeadows | D37: Urban | E37: 598 | F37: 6.671 | G37: 3.053 | H37: 10.53194595 | I37: 0.006886223673 | J37: 1.32817936 | K37: 0 | L37: 167 | M37: 167 | N37: 2 | O37: 2 | P37: 12 | Q37: 107367 | R37: 369 | S37: 0 | T37: 0
B38: BD 15 | C38: Broadmeadows | D38: Urban | E38: 807 | F38: 8.647105 | G38: 1.816970714 | H38: 10.59672263 | I38: 1.619939432 | J38: 0.3439206589 | K38: 1 | L38: 16636 | M38: 16636 | N38: 525 | O38: 525 | P38: 2 | Q38: 11773 | R38: 55 | S38: 2 | T38: 591
B39: BD 16 | C39: Broadmeadows | D39: Urban | E39: 1450 | F39: 9.177865 | G39: 2.420947835 | H39: 7.639852 | I39: 0.155425358 | J39: 0.3614840109 | K39: 4 | L39: 3981 | M39: 3981 | N39: 36 | O39: 36 | P39: 5 | Q39: 30863 | R39: 126 | S39: 0 | T39: 0
B40: BY 11 | C40: Braybrook | D40: Urban | E40: 4070 | F40: 16.207665 | G40: 2.436775335 | H40: 9.354532 | I40: 2.130518837 | J40: 0.1173121038 | K40: 10 | L40: 155441 | M40: 155441 | N40: 1697 | O40: 1697 | P40: 5 | Q40: 28530 | R40: 101 | S40: 1 | T40: 4043
B41: BY 12 | C41: Braybrook | D41: Urban | E41: 1273 | F41: 4.678345 | G41: 0.6959136515 | H41: 2.76254 | I41: 0.7331163599 | J41: 0 | K41: 2 | L41: 43623 | M41: 43623 | N41: 1296 | O41: 1296 | P41: 0 | Q41: 0 | R41: 0 | S41: 1 | T41: 1269
B42: BY 13 | C42: Braybrook | D42: Urban | E42: 741 | F42: 2.973825 | G42: 1.845954735 | H42: 13.412608 | I42: 14.35086934 | J42: 0.001854410316 | K42: 3 | L42: 139298 | M42: 139298 | N42: 2036 | O42: 2036 | P42: 1 | Q42: 60 | R42: 1 | S42: 0 | T42: 0
B43: BY 14 | C43: Braybrook | D43: Urban | E43: 2947 | F43: 12.214165 | G43: 3.323914194 | H43: 6.992084 | I43: 0.1330436393 | J43: 0.007636648641 | K43: 3 | L43: 9460 | M43: 9460 | N43: 88 | O43: 88 | P43: 2 | Q43: 1810 | R43: 12 | S43: 3 | T43: 7714
B44: BY 15 | C44: Braybrook | D44: Urban | E44: 1017 | F44: 6.142485 | G44: 2.210988315 | H44: 7.33502 | I44: 7.281575902 | J44: 0.09695899854 | K44: 10 | L44: 129772 | M44: 129772 | N44: 2308 | O44: 2308 | P44: 2 | Q44: 5760 | R44: 28 | S44: 0 | T44: 0
B45: CN 01 | C45: Coburg North | D45: Urban | E45: 103 | F45: 1.865365 | G45: 0.310055355 | H45: 7.575075316 | I45: 0.6212127232 | J45: 0.4747240472 | K45: 2 | L45: 888 | M45: 888 | N45: 8 | O45: 8 | P45: 1 | Q45: 2262 | R45: 13 | S45: 1 | T45: 103
B46: CN 02 | C46: Coburg North | D46: Urban | E46: 465 | F46: 4.853855 | G46: 0.9300532395 | H46: 8.222843316 | I46: 1.261988463 | J46: 0.8056374474 | K46: 3 | L46: 16482 | M46: 16482 | N46: 512 | O46: 512 | P46: 3 | Q46: 35073 | R46: 137 | S46: 1 | T46: 460
B47: CN 03 | C47: Coburg North | D47: Urban | E47: 1341 | F47: 4.78742 | G47: 1.1338695 | H47: 2.145255244 | I47: 1.071060942 | J47: 0.3342055365 | K47: 4 | L47: 125837 | M47: 125837 | N47: 2713 | O47: 2713 | P47: 17 | Q47: 130884 | R47: 573 | S47: 1 | T47: 1337
B48: CN 04 | C48: Coburg North | D48: Urban | E48: 1426 | F48: 7.43726 | G48: 5.8728565 | H48: 10.611964 | I48: 0.3670711812 | J48: 0.3066056927 | K48: 2 | L48: 5474 | M48: 5474 | N48: 66 | O48: 66 | P48: 4 | Q48: 15241 | R48: 104 | S48: 2 | T48: 2852
B49: CN 05 | C49: Coburg North | D49: Urban | E49: 4001 | F49: 13.04961 | G49: 1.57902043 | H49: 7.647472974 | I49: 7.926093133 | J49: 0.4410738811 | K49: 9 | L49: 680112 | M49: 680112 | N49: 10705 | O49: 10705 | P49: 15 | Q49: 126157 | R49: 495 | S49: 3 | T49: 9427
B50: CN 06 | C50: Coburg North | D50: Urban | E50: 2115 | F50: 9.86531 | G50: 1.332805094 | H50: 7.235949658 | I50: 4.716040185 | J50: 0.4292025149 | K50: 4 | L50: 205552 | M50: 205552 | N50: 3172 | O50: 3172 | P50: 13 | Q50: 62357 | R50: 375 | S50: 3 | T50: 6368
B51: CN 07 | C51: Coburg North | D51: Urban | E51: 5469 | F51: 16.07345683 | G51: 1.382059967 | H51: 8.470519316 | I51: 5.138424491 | J51: 0.9835244466 | K51: 12 | L51: 525473 | M51: 525473 | N51: 11776 | O51: 11776 | P51: 28 | Q51: 335262 | R51: 1225 | S51: 8 | T51: 31777
B52: CN 08 | C52: Coburg North | D52: Urban | E52: 2885 | F52: 11.639055 | G52: 2.495886335 | H52: 6.009000974 | I52: 2.703252696 | J52: 0.7850006791 | K52: 9 | L52: 184018 | M52: 184018 | N52: 4648 | O52: 4648 | P52: 28 | Q52: 178124 | R52: 935 | S52: 1 | T52: 2904
B53: CN 09 | C53: Coburg North | D53: Urban | E53: 47 | F53: 2.42951 | G53: 0.5418586555 | H53: 4.435305658 | I53: 3.100368223 | J53: 1.306107898 | K53: 2 | L53: 4235 | M53: 4235 | N53: 55 | O53: 55 | P53: 2 | Q53: 5947 | R53: 15 | S53: 0 | T53: 0
B54: CN 10 | C54: Coburg North | D54: Urban | E54: 1908 | F54: 6.251575 | G54: 1.05421088 | H54: 6.816805658 | I54: 4.97317205 | J54: 0.5171598124 | K54: 5 | L54: 157296 | M54: 157296 | N54: 3929 | O54: 3929 | P54: 7 | Q54: 54524 | R54: 298 | S54: 0 | T54: 0
B55: CN 11 | C55: Coburg North | D55: Urban | E55: 3934 | F55: 11.85331 | G55: 1.43154915 | H55: 8.133298974 | I55: 3.100187147 | J55: 0.2584263493 | K55: 10 | L55: 295655 | M55: 295655 | N55: 6149 | O55: 6149 | P55: 5 | Q55: 82151 | R55: 210 | S55: 0 | T55: 0
B56: COO11 | C56: Coolaroo | D56: Rural-short | E56: 1845 | F56: 134.20358 | G56: 26.49291927 | H56: 8.592452 | I56: 2.664981159 | J56: 5.201780252 | K56: 25 | L56: 74790 | M56: 74790 | N56: 954 | O56: 954 | P56: 38 | Q56: 486609 | R56: 1476 | S56: 6 | T56: 1746
B57: COO12 | C57: Coolaroo | D57: Urban | E57: 1 | F57: 0.269195 | G57: 0.548975 | I57: 0 | J57: 0 | K57: 0 | L57: 0 | M57: 0 | N57: 0 | O57: 0 | P57: 0 | Q57: 0 | R57: 0 | S57: 0 | T57: 0
B58: COO13 | C58: Coolaroo | D58: Urban | E58: 3933 | F58: 6.42752 | G58: 11.29698906 | H58: 10.688172 | I58: 2.868183338 | J58: 0.0770766945 | K58: 3 | L58: 237026 | M58: 237026 | N58: 3988 | O58: 3988 | P58: 6 | Q58: 21232 | R58: 112 | S58: 2 | T58: 7850
B59: COO14 | C59: Coolaroo | D59: Urban | E59: 2940 | F59: 1.38179 | G59: 14.11199273 | H59: 6.515784 | I59: 0.049004793 | J59: 0.3777640638 | K59: 2 | L59: 4348 | M59: 4348 | N59: 38 | O59: 38 | P59: 2 | Q59: 111725 | R59: 385 | S59: 0 | T59: 0
B60: COO21 | C60: Coolaroo | D60: Rural-short | E60: 1926 | F60: 16.354595 | G60: 10.8618795 | H60: 6.401472 | I60: 0.0155047043 | J60: 0.2818705758 | K60: 0 | L60: 940 | M60: 940 | N60: 7 | O60: 7 | P60: 6 | Q60: 56963 | R60: 170 | S60: 0 | T60: 0
B61: COO22 | C61: Coolaroo | D61: Urban | E61: 3509 | F61: 0.713015 | G61: 19.5383415 | H61: 8.725816 | I61: 3.31091244 | J61: 0.1151819407 | K61: 4 | L61: 198065 | M61: 198065 | N61: 3606 | O61: 3606 | P61: 3 | Q61: 22968 | R61: 69 | S61: 0 | T61: 0
B62: CS 02 | C62: Coburg South | D62: Urban | E62: 5664 | F62: 14.892445 | G62: 1.027124155 | H62: 10.059456 | I62: 0.2955543614 | J62: 0.2845856711 | K62: 2 | L62: 32496 | M62: 32496 | N62: 1567 | O62: 1567 | P62: 8 | Q62: 104300 | R62: 348 | S62: 2 | T62: 6932
B63: CS 03 | C63: Coburg South | D63: Urban | E63: 3981 | F63: 10.8046 | G63: 2.498678644 | H63: 8.325724 | I63: 1.76139141 | J63: 0.02416396585 | K63: 9 | L63: 127556 | M63: 127556 | N63: 1072 | O63: 1072 | P63: 3 | Q63: 5833 | R63: 22 | S63: 0 | T63: 0
B64: CS 05 | C64: Coburg South | D64: Urban | E64: 4738 | F64: 12.1206 | G64: 0.71092298 | H64: 8.268568 | I64: 3.679922224 | J64: 0.2658079264 | K64: 7 | L64: 354969 | M64: 354969 | N64: 3854 | O64: 3854 | P64: 5 | Q64: 85467 | R64: 315 | S64: 1 | T64: 1578
B65: CS 08 | C65: Coburg South | D65: Urban | E65: 2942 | F65: 8.65554 | G65: 2.40863776 | H65: 7.868476 | I65: 3.178149982 | J65: 0.6784141341 | K65: 4 | L65: 149473 | M65: 149473 | N65: 3722 | O65: 3722 | P65: 12 | Q65: 106356 | R65: 367 | S65: 0 | T65: 0
B66: CS 09 | C66: Coburg South | D66: Urban | E66: 1989 | F66: 4.036305 | G66: 1.82821 | H66: 4.229544 | I66: 0.6222011446 | J66: 0.08291295051 | K66: 5 | L66: 50969 | M66: 50969 | N66: 376 | O66: 376 | P66: 6 | Q66: 22640 | R66: 85 | S66: 0 | T66: 0
B67: CS 12 | C67: Coburg South | D67: Urban | E67: 1874 | F67: 9.24308 | G67: 1.0918085 | H67: 6.992084 | I67: 0.316107523 | J67: 0.340233982 | K67: 4 | L67: 10804 | M67: 10804 | N67: 81 | O67: 81 | P67: 7 | Q67: 38762 | R67: 181 | S67: 0 | T67: 0
B68: CS 13 | C68: Coburg South | D68: Urban | E68: 1731 | F68: 5.576005 | G68: 2.517981 | H68: 3.010216 | I68: 0.2117092491 | J68: 0.06506809043 | K68: 5 | L68: 15681 | M68: 15681 | N68: 191 | O68: 191 | P68: 1 | Q68: 16065 | R68: 35 | S68: 0 | T68: 0
B69: EP 02 | C69: East Preston | D69: Urban | E69: 58 | F69: 0.7734168854 | G69: 0.2597782378 | H69: 2.800644 | I69: 0 | J69: 0 | K69: 0 | L69: 0 | M69: 0 | N69: 0 | O69: 0 | P69: 0 | Q69: 0 | R69: 0 | S69: 0 | T69: 0
B70: EP 03 | C70: East Preston | D70: Urban | E70: 90 | F70: 1.035155 | G70: 0.45977595 | H70: 1.743258 | I70: 0 | J70: 0 | K70: 0 | L70: 0 | M70: 0 | N70: 0 | O70: 0 | P70: 0 | Q70: 0 | R70: 0 | S70: 0 | T70: 0
B71: EP 04 | C71: East Preston | D71: Urban | E71: 5 | F71: 1.125955 | G71: 0.367058567 | H71: 0.9945144 | I71: 0 | J71: 0 | K71: 0 | L71: 0 | M71: 0 | N71: 0 | O71: 0 | P71: 0 | Q71: 0 | R71: 0 | S71: 0 | T71: 0
B72: EP 07 | C72: East Preston | D72: Urban | E72: 45 | F72: 1.914925 | G72: 0.718767 | H72: 2.2405152 | I72: 0 | J72: 0 | K72: 0 | L72: 0 | M72: 0 | N72: 0 | O72: 0 | P72: 0 | Q72: 0 | R72: 0 | S72: 0 | T72: 0
B73: EP 09 | C73: East Preston | D73: Urban | E73: 239 | F73: 2.548345 | G73: 0.656960375 | H73: 2.8406532 | I73: 0.5565298459 | J73: 0.0820318559 | K73: 6 | L73: 7439 | M73: 7439 | N73: 39 | O73: 39 | P73: 2 | Q73: 3655 | R73: 11 | S73: 0 | T73: 0
B74: EP 11 | C74: East Preston | D74: Urban | E74: 432 | F74: 3.850188389 | G74: 0.5545414505 | H74: 1.7775516 | I74: 0.01261630767 | J74: 0.3429694715 | K74: 0 | L74: 650 | M74: 650 | N74: 4 | O74: 4 | P74: 3 | Q74: 58900 | R74: 147 | S74: 0 | T74: 0
B75: EP 16 | C75: East Preston | D75: Urban | E75: 59 | F75: 1.949435 | G75: 0.15081 | H75: 2.829222 | I75: 0.2237040786 | J75: 0.5189364678 | K75: 1 | L75: 785 | M75: 785 | N75: 5 | O75: 5 | P75: 2 | Q75: 6070 | R75: 19 | S75: 0 | T75: 0
B76: EP 17 | C76: East Preston | D76: Urban | E76: 131 | F76: 0.89944 | G76: 0.3306655255 | H76: 3.0235524 | I76: 0.5168319415 | J76: 0 | K76: 1 | L76: 3727 | M76: 3727 | N76: 133 | O76: 133 | P76: 0 | Q76: 0 | R76: 0 | S76: 0 | T76: 0
B77: EP 18 | C77: East Preston | D77: Urban | E77: 19 | F77: 1.270925 | G77: 0.32712121 | H77: 1.4746248 | I77: 0 | J77: 0 | K77: 0 | L77: 0 | M77: 0 | N77: 0 | O77: 0 | P77: 0 | Q77: 0 | R77: 0 | S77: 0 | T77: 0
B78: EP 20 | C78: East Preston | D78: Urban | E78: 359 | F78: 2.49717 | G78: 0.161290815 | H78: 2.8692312 | I78: 0.0549949161 | J78: 0.5856753869 | K78: 1 | L78: 1209 | M78: 1209 | N78: 5 | O78: 5 | P78: 4 | Q78: 42918 | R78: 119 | S78: 1 | T78: 354
B79: EP 27 | C79: East Preston | D79: Urban | E79: 26 | F79: 0.052855 | G79: 1.4901619 | H79: 2.0804784 | I79: 0 | J79: 0 | K79: 0 | L79: 0 | M79: 0 | N79: 0 | O79: 0 | P79: 0 | Q79: 0 | R79: 0 | S79: 0 | T79: 0
B80: EP 34 | C80: East Preston | D80: Urban | E80: 1435 | F80: 5.227595 | G80: 0.790323325 | H80: 2.6977632 | I80: 0.3255220491 | J80: 0.02654113658 | K80: 4 | L80: 35709 | M80: 35709 | N80: 212 | O80: 212 | P80: 2 | Q80: 9705 | R80: 82 | S80: 0 | T80: 0
B81: EP 35 | C81: East Preston | D81: Urban | E81: 31 | F81: 1.882435 | G81: 0.396828115 | H81: 2.2805244 | I81: 0 | J81: 0 | K81: 0 | L81: 0 | M81: 0 | N81: 0 | O81: 0 | P81: 0 | Q81: 0 | R81: 0 | S81: 1 | T81: 30
B82: EP 36 | C82: East Preston | D82: Urban | E82: 989 | F82: 5.216265 | G82: 0.263411155 | H82: 2.0347536 | I82: 0.06701728329 | J82: 0.4562114365 | K82: 1 | L82: 5726 | M82: 5726 | N82: 34 | O82: 34 | P82: 9 | Q82: 129930 | R82: 451 | S82: 0 | T82: 0
B83: EP 37 | C83: East Preston | D83: Urban | E83: 847 | F83: 3.670275 | G83: 0.325905515 | H83: 3.1893048 | I83: 0.02694180788 | J83: 0.2990611203 | K83: 0 | L83: 1146 | M83: 1146 | N83: 8 | O83: 8 | P83: 7 | Q83: 42403 | R83: 208 | S83: 0 | T83: 0
B84: EP 41 | C84: East Preston | D84: Urban | E84: 56 | F84: 1.404225 | G84: 0.535769567 | H84: 3.1092864 | I84: 0 | J84: 0 | K84: 0 | L84: 0 | M84: 0 | N84: 0 | O84: 0 | P84: 0 | Q84: 0 | R84: 0 | S84: 0 | T84: 0
B85: EP 42 | C85: East Preston | D85: Urban | E85: 296 | F85: 2.66 | G85: 0.539984495 | H85: 2.8406532 | I85: 0.03509544769 | J85: 0 | K85: 0 | L85: 565 | M85: 565 | N85: 4 | O85: 4 | P85: 0 | Q85: 0 | R85: 0 | S85: 0 | T85: 0
B86: ES 11 | C86: Essendon | D86: Urban | E86: 1150 | F86: 4.332215 | G86: 0.557464 | H86: 4.848734 | I86: 0.01166020852 | J86: 0 | K86: 0 | L86: 547 | M86: 547 | N86: 6 | O86: 6 | P86: 0 | Q86: 0 | R86: 0 | S86: 0 | T86: 0
B87: ES 12 | C87: Essendon | D87: Urban | E87: 1001 | F87: 3.91913 | G87: 0.3621255 | H87: 2.295766 | I87: 0.2230462324 | J87: 0 | K87: 4 | L87: 17044 | M87: 17044 | N87: 123 | O87: 123 | P87: 0 | Q87: 0 | R87: 0 | S87: 1 | T87: 1007
B88: ES 13 | C88: Essendon | D88: Urban | E88: 2637 | F88: 7.483860191 | G88: 1.139115913 | H88: 6.449102 | I88: 0.2287495138 | J88: 0.2838579736 | K88: 3 | L88: 20048 | M88: 20048 | N88: 284 | O88: 284 | P88: 3 | Q88: 82926 | R88: 307 | S88: 2 | T88: 5272
B89: ES 15 | C89: Essendon | D89: Urban | E89: 2026 | F89: 5.728965 | G89: 2.0093675 | H89: 5.077358 | I89: 0.006110378311 | J89: 0 | K89: 0 | L89: 423 | M89: 423 | N89: 4 | O89: 4 | P89: 0 | Q89: 0 | R89: 0 | S89: 0 | T89: 0
B90: ES 16 | C90: Essendon | D90: Urban | E90: 1343 | F90: 3.799345 | G90: 0.4523705 | H90: 2.753014 | I90: 1.575770171 | J90: 0.1057791639 | K90: 1 | L90: 126295 | M90: 126295 | N90: 1349 | O90: 1349 | P90: 2 | Q90: 28260 | R90: 72 | S90: 2 | T90: 1974
B91: ES 21 | C91: Essendon | D91: Urban | E91: 1552 | F91: 3.425195 | G91: 0.569785 | H91: 4.515324 | I91: 0.1404271744 | J91: 0.1216958901 | K91: 2 | L91: 9776 | M91: 9776 | N91: 95 | O91: 95 | P91: 2 | Q91: 28240 | R91: 146 | S91: 0 | T91: 0
B92: ES 23 | C92: Essendon | D92: Urban | E92: 482 | F92: 1.103755 | G92: 0.427016 | H92: 1.124068 | I92: 0.007430324696 | J92: 0 | K92: 0 | L92: 505 | M92: 505 | N92: 3 | O92: 3 | P92: 0 | Q92: 0 | R92: 0 | S92: 0 | T92: 0
B93: ES 24 | C93: Essendon | D93: Urban | E93: 1879 | F93: 4.239765 | G93: 1.111313 | H93: 5.363138 | I93: 0.08984526696 | J93: 0.1016018488 | K93: 2 | L93: 4920 | M93: 4920 | N93: 41 | O93: 41 | P93: 2 | Q93: 18546 | R93: 51 | S93: 0 | T93: 0
B94: ES 25 | C94: Essendon | D94: Urban | E94: 1070 | F94: 3.860075 | G94: 1.9972235 | H94: 4.543902 | I94: 0.9392690814 | J94: 0.01643362222 | K94: 2 | L94: 50411 | M94: 50411 | N94: 1088 | O94: 1088 | P94: 1 | Q94: 2940 | R94: 6 | S94: 0 | T94: 0
B95: ES 26 | C95: Essendon | D95: Urban | E95: 1285 | F95: 2.7048 | G95: 1.862121 | H95: 4.724896 | I95: 0.00969714573 | J95: 0.1575898939 | K95: 0 | L95: 516 | M95: 516 | N95: 4 | O95: 4 | P95: 4 | Q95: 27952 | R95: 97 | S95: 1 | T95: 1281
B96: FE 02 | C96: Footscray | D96: Urban | E96: 75 | F96: 0.748025 | G96: 1.944712 | H96: 6.249056 | I96: 0 | J96: 0 | K96: 0 | L96: 0 | M96: 0 | N96: 0 | O96: 0 | P96: 0 | Q96: 0 | R96: 0 | S96: 2 | T96: 146
B97: FE 05 | C97: Footscray | D97: Urban | E97: 3187 | F97: 8.419855 | G97: 0.85290792 | H97: 7.506488 | I97: 0.1790528898 | J97: 0.116651861 | K97: 2 | L97: 13388 | M97: 13388 | N97: 69 | O97: 69 | P97: 3 | Q97: 29074 | R97: 124 | S97: 3 | T97: 8193
B98: FE 06 | C98: Footscray | D98: Urban | E98: 3880 | F98: 9.04619 | G98: 7.272109262 | H98: 9.983248 | I98: 1.758560031 | J98: 0.07902405225 | K98: 8 | L98: 87810 | M98: 87810 | N98: 439 | O98: 439 | P98: 4 | Q98: 13153 | R98: 53 | S98: 1 | T98: 1408
B99: FE 08 | C99: Footscray | D99: Urban | E99: 2234 | F99: 3.814685 | G99: 5.15344829 | H99: 8.306672 | I99: 1.375067323 | J99: 0.1343920352 | K99: 5 | L99: 48121 | M99: 48121 | N99: 227 | O99: 227 | P99: 2 | Q99: 15677 | R99: 41 | S99: 3 | T99: 6764
B100: FE 09 | C100: Footscray | D100: Urban | E100: 4209 | F100: 7.403875 | G100: 1.1481105 | H100: 6.058536 | I100: 3.565265164 | J100: 0.1946411953 | K100: 13 | L100: 378917 | M100: 378917 | N100: 7320 | O100: 7320 | P100: 4 | Q100: 68955 | R100: 305 | S100: 4 | T100: 10814
B101: FF 87 | C101: Fairfield | D101: Urban | E101: 738 | F101: 2.658675 | G101: 0.2379028525 | H101: 1.862142497 | I101: 0.03385253339 | J101: 0.1752770764 | K101: 1 | L101: 1773 | M101: 1773 | N101: 13 | O101: 13 | P101: 1 | Q101: 30600 | R101: 102 | S101: 0 | T101: 0
B102: FF 88 | C102: Fairfield | D102: Urban | E102: 1287 | F102: 3.9489 | G102: 0.4704193775 | H102: 1.963880195 | I102: 0.06787123259 | J102: 0 | K102: 0 | L102: 6670 | M102: 6670 | N102: 14 | O102: 14 | P102: 0 | Q102: 0 | R102: 0 | S102: 0 | T102: 0
B103: FF 89 | C103: Fairfield | D103: Urban | E103: 602 | F103: 3.9118 | G103: 0.836238933 | H103: 2.235942703 | I103: 0.3323490167 | J103: 0 | K103: 1 | L103: 14962 | M103: 14962 | N103: 36 | O103: 36 | P103: 0 | Q103: 0 | R103: 0 | S103: 0 | T103: 0
B104: FF 90 | C104: Fairfield | D104: Urban | E104: 1051 | F104: 3.383595 | G104: 0.393896486 | H104: 2.493144703 | I104: 0.4241350385 | J104: 0 | K104: 1 | L104: 30016 | M104: 30016 | N104: 1050 | O104: 1050 | P104: 0 | Q104: 0 | R104: 0 | S104: 0 | T104: 0
B105: FF 95 | C105: Fairfield | D105: Urban | E105: 1648 | F105: 4.799865 | G105: 0.0648859925 | H105: 2.9321028 | I105: 1.067760643 | J105: 0.4036168468 | K105: 2 | L105: 106015 | M105: 106015 | N105: 1160 | O105: 1160 | P105: 4 | Q105: 133580 | R105: 364 | S105: 0 | T105: 0
B106: FF 96 | C106: Fairfield | D106: Urban | E106: 1056 | F106: 3.690665 | G106: 0.385827701 | H106: 2.191361092 | I106: 0.02829949801 | J106: 0.04109344072 | K106: 1 | L106: 2511 | M106: 2511 | N106: 21 | O106: 21 | P106: 2 | Q106: 12154 | R106: 50 | S106: 0 | T106: 0
B107: FT 01 | C107: Flemington | D107: Urban | E107: 3572 | F107: 6.71783 | G107: 2.638870029 | H107: 6.020432 | I107: 0.3622153423 | J107: 0 | K107: 5 | L107: 32728 | M107: 32728 | N107: 251 | O107: 251 | P107: 0 | Q107: 0 | R107: 0 | S107: 0 | T107: 0
B108: FT 02 | C108: Flemington | D108: Urban | E108: 335 | F108: 1.589875 | G108: 5.677021772 | H108: 3.781822 | I108: 0.005015481895 | J108: 0.1319299715 | K108: 0 | L108: 88 | M108: 88 | N108: 1 | O108: 1 | P108: 2 | Q108: 7716 | R108: 58 | S108: 0 | T108: 0
B109: FT 04 | C109: Flemington | D109: Urban | E109: 1528 | F109: 3.49414 | G109: 2.860136014 | H109: 4.172388 | I109: 0.09697111812 | J109: 0.1329275679 | K109: 2 | L109: 4400 | M109: 4400 | N109: 44 | O109: 44 | P109: 2 | Q109: 20105 | R109: 85 | S109: 0 | T109: 0
B110: FT 05 | C110: Flemington | D110: Urban | E110: 2406 | F110: 4.66808 | G110: 2.037187291 | H110: 3.886608 | I110: 2.864390691 | J110: 0.02761517709 | K110: 8 | L110: 237676 | M110: 237676 | N110: 2649 | O110: 2649 | P110: 4 | Q110: 7638 | R110: 31 | S110: 0 | T110: 0
B111: FT 06 | C111: Flemington | D111: Urban | E111: 245 | F111: 0.6742 | G111: 1.259848099 | H111: 2.067142 | I111: 1.627399099 | J111: 0 | K111: 1 | L111: 29138 | M111: 29138 | N111: 247 | O111: 247 | P111: 0 | Q111: 0 | R111: 0 | S111: 0 | T111: 0
B112: FT 09 | C112: Flemington | D112: Urban | E112: 1795 | F112: 3.25463 | G112: 3.120275804 | H112: 5.00115 | I112: 0.2292774646 | J112: 0.1376958129 | K112: 1 | L112: 12232 | M112: 12232 | N112: 121 | O112: 121 | P112: 2 | Q112: 24487 | R112: 61 | S112: 1 | T112: 1786
B113: FT 10 | C113: Flemington | D113: Urban | E113: 2091 | F113: 4.150830601 | G113: 1.837328888 | H113: 5.782282 | I113: 0.3718573582 | J113: 0 | K113: 1 | L113: 21451 | M113: 21451 | N113: 129 | O113: 129 | P113: 0 | Q113: 0 | R113: 0 | S113: 1 | T113: 2075
B114: FT 13 | C114: Flemington | D114: Urban | E114: 1286 | F114: 2.358815 | G114: 5.578874617 | H114: 6.058536 | I114: 0.08908887791 | J114: 0.01101217008 | K114: 2 | L114: 4223 | M114: 4223 | N114: 39 | O114: 39 | P114: 1 | Q114: 1740 | R114: 6 | S114: 1 | T114: 769
B115: FT 14 | C115: Flemington | D115: Urban | E115: 1596 | F115: 1.88295 | G115: 1.711907931 | H115: 4.296226 | I115: 0.5074482597 | J115: 0.004694153381 | K115: 4 | L115: 22215 | M115: 22215 | N115: 160 | O115: 160 | P115: 2 | Q115: 685 | R115: 2 | S115: 0 | T115: 0
B116: FT 15 | C116: Flemington | D116: Urban | E116: 86 | F116: 0.12683 | G116: 0.943245751 | H116: 3.267418 | I116: 3.361157343 | J116: 0 | K116: 1 | L116: 11068 | M116: 11068 | N116: 86 | O116: 86 | P116: 0 | Q116: 0 | R116: 0 | S116: 0 | T116: 0
B117: FW 04 | C117: Footscray West | D117: Urban | E117: 1606 | F117: 5.781975 | G117: 1.448108903 | H117: 7.563644 | I117: 6.775023053 | J117: 0.3188778566 | K117: 5 | L117: 172160 | M117: 172160 | N117: 4881 | O117: 4881 | P117: 1 | Q117: 27010 | R117: 74 | S117: 4 | T117: 1665
B118: FW 05 | C118: Footscray West | D118: Urban | E118: 1642 | F118: 7.48654 | G118: 1.1348773 | H118: 4.058076 | I118: 1.937565741 | J118: 0.09583419185 | K118: 1 | L118: 118396 | M118: 118396 | N118: 1668 | O118: 1668 | P118: 1 | Q118: 19520 | R118: 61 | S118: 0 | T118: 0
B119: FW 06 | C119: Footscray West | D119: Urban | E119: 975 | F119: 5.62033 | G119: 2.651132619 | H119: 4.343856 | I119: 0.0237055904 | J119: 1.573825587 | K119: 1 | L119: 746 | M119: 746 | N119: 21 | O119: 21 | P119: 4 | Q119: 165091 | R119: 449 | S119: 0 | T119: 0
B120: FW 08 | C120: Footscray West | D120: Urban | E120: 2852 | F120: 7.8101 | G120: 1.237121989 | H120: 6.973032 | I120: 1.060557393 | J120: 0.6673432627 | K120: 7 | L120: 65729 | M120: 65729 | N120: 509 | O120: 509 | P120: 2 | Q120: 137864 | R120: 270 | S120: 2 | T120: 5684
B121: FW 09 | C121: Footscray West | D121: Urban | E121: 1397 | F121: 9.05701 | G121: 3.640741803 | H121: 7.735112 | I121: 0.20532273 | J121: 0.7614877436 | K121: 4 | L121: 4991 | M121: 4991 | N121: 31 | O121: 31 | P121: 7 | Q121: 61701 | R121: 174 | S121: 2 | T121: 2535
B122: FW 13 | C122: Footscray West | D122: Urban | E122: 451 | F122: 5.140195 | G122: 0.644118236 | H122: 11.354992 | I122: 5.801264783 | J122: 0 | K122: 5 | L122: 28043 | M122: 28043 | N122: 207 | O122: 207 | P122: 0 | Q122: 0 | R122: 0 | S122: 0 | T122: 0
B123: FW 16 | C123: Footscray West | D123: Urban | E123: 2554 | F123: 9.195145 | G123: 0.359463205 | H123: 5.734652 | I123: 2.133145152 | J123: 0 | K123: 5 | L123: 159541 | M123: 159541 | N123: 1084 | O123: 1084 | P123: 0 | Q123: 0 | R123: 0 | S123: 4 | T123: 9306
B124: FW 17 | C124: Footscray West | D124: Urban | E124: 2293 | F124: 8.58706 | G124: 0.3462939285 | H124: 4.724896 | I124: 1.849017124 | J124: 0 | K124: 5 | L124: 136318 | M124: 136318 | N124: 1477 | O124: 1477 | P124: 0 | Q124: 0 | R124: 0 | S124: 1 | T124: 1132
B125: HB 14 | C125: Heidelberg | D125: Urban | E125: 1714 | F125: 5.31777 | G125: 2.002247 | H125: 4.66774 | I125: 2.871476734 | J125: 0 | K125: 4 | L125: 163120 | M125: 163120 | N125: 2633 | O125: 2633 | P125: 0 | Q125: 0 | R125: 0 | S125: 1 | T125: 1712
B126: HB 15 | C126: Heidelberg | D126: Urban | E126: 2411 | F126: 9.398145 | G126: 1.301799 | H126: 5.439346 | I126: 0.7583690968 | J126: 0.05218881195 | K126: 4 | L126: 56018 | M126: 56018 | N126: 1261 | O126: 1261 | P126: 2 | Q126: 12850 | R126: 50 | S126: 2 | T126: 2204
B127: HB 22 | C127: Heidelberg | D127: Urban | E127: 1120 | F127: 5.004835 | G127: 0.903895 | H127: 3.581776 | I127: 4.596674389 | J127: 0.1115303746 | K127: 6 | L127: 215820 | M127: 215820 | N127: 4347 | O127: 4347 | P127: 3 | Q127: 17455 | R127: 52 | S127: 2 | T127: 1512
B128: HB 23 | C128: Heidelberg | D128: Urban | E128: 1477 | F128: 5.48028 | G128: 0.511925 | H128: 3.486516 | I128: 1.296091589 | J128: 0.1550600233 | K128: 2 | L128: 107162 | M128: 107162 | N128: 1574 | O128: 1574 | P128: 1 | Q128: 42735 | R128: 77 | S128: 0 | T128: 0
B129: HB 24 | C129: Heidelberg | D129: Urban | E129: 870 | F129: 6.45478 | G129: 0.346185 | H129: 3.257892 | I129: 0.07329013616 | J129: 0.176878699 | K129: 3 | L129: 3402 | M129: 3402 | N129: 30 | O129: 30 | P129: 2 | Q129: 27368 | R129: 110 | S129: 2 | T129: 1746
B130: HB 31 | C130: Heidelberg | D130: Urban | E130: 745 | F130: 1.50989 | G130: 0.52794 | H130: 3.562724 | I130: 0.01354299558 | J130: 0.08872723684 | K130: 0 | L130: 427 | M130: 427 | N130: 1 | O130: 1 | P130: 2 | Q130: 9325 | R130: 35 | S130: 0 | T130: 0
B131: HB 32 | C131: Heidelberg | D131: Urban | E131: 523 | F131: 2.166875 | G131: 0.578045 | H131: 2.934008 | I131: 1.402171451 | J131: 0.6735097104 | K131: 2 | L131: 39778 | M131: 39778 | N131: 609 | O131: 609 | P131: 4 | Q131: 63689 | R131: 227 | S131: 0 | T131: 0
B132: KLO13 | C132: Kalkallo | D132: Rural-short | E132: 62 | F132: 0.31975 | G132: 3.27862 | H132: 0.38104 | I132: 0.05653750898 | J132: 0.8910482542 | K132: 1 | L132: 859 | M132: 859 | N132: 75 | O132: 75 | P132: 6 | Q132: 45127 | R132: 87 | S132: 2 | T132: 47
B133: KLO21 | C133: Kalkallo | D133: Rural-short | E133: 4 | F133: 0 | G133: 2.84822 | H133: 0.495352 | I133: 0.01809879178 | J133: 0 | K133: 1 | L133: 20 | M133: 20 | N133: 2 | O133: 2 | P133: 0 | Q133: 0 | R133: 0 | S133: 1 | T133: 1
B134: KLO22 | C134: Kalkallo | D134: Rural-short | E134: 2015 | F134: 12.250175 | G134: 17.305578 | H134: 4.362908 | I134: 0.3621677892 | J134: 0.3217178802 | K134: 3 | L134: 25718 | M134: 25718 | N134: 2149 | O134: 2149 | P134: 4 | Q134: 76152 | R134: 194 | S134: 2 | T134: 4006
B135: NH 02 | C135: North Heidelberg | D135: Urban | E135: 4244 | F135: 16.313555 | G135: 4.144528364 | H135: 8.706764 | I135: 1.071855714 | J135: 0.1360183931 | K135: 6 | L135: 96123 | M135: 96123 | N135: 2617 | O135: 2617 | P135: 9 | Q135: 40660 | R135: 168 | S135: 2 | T135: 2353
B136: NH 03 | C136: North Heidelberg | D136: Urban | E136: 1310 | F136: 9.15992 | G136: 0.780157954 | H136: 7.315968 | I136: 2.080509311 | J136: 0.3561580674 | K136: 7 | L136: 65181 | M136: 65181 | N136: 588 | O136: 588 | P136: 2 | Q136: 37194 | R136: 83 | S136: 3 | T136: 3528
B137: NH 05 | C137: North Heidelberg | D137: Urban | E137: 4582 | F137: 16.26691054 | G137: 1.133934598 | H137: 6.401472 | I137: 6.921479647 | J137: 0.3654278143 | K137: 13 | L137: 756992 | M137: 756992 | N137: 8898 | O137: 8898 | P137: 9 | Q137: 133221 | R137: 409 | S137: 8 | T137: 14159
B138: NH 08 | C138: North Heidelberg | D138: Urban | E138: 2589 | F138: 11.16062 | G138: 1.423378725 | H138: 4.934468 | I138: 4.689509955 | J138: 0.2252309232 | K138: 7 | L138: 483861 | M138: 483861 | N138: 6850 | O138: 6850 | P138: 5 | Q138: 77464 | R138: 240 | S138: 5 | T138: 10213
B139: NH 09 | C139: North Heidelberg | D139: Urban | E139: 733 | F139: 6.506175 | G139: 1.254865515 | H139: 8.935388 | I139: 4.83605957 | J139: 2.389460986 | K139: 7 | L139: 66086 | M139: 66086 | N139: 929 | O139: 929 | P139: 9 | Q139: 108842 | R139: 220 | S139: 1 | T139: 641
B140: NH 12 | C140: North Heidelberg | D140: Urban | E140: 17 | F140: 0 | G140: 4.2534975 | H140: 4.47722 | I140: 0 | J140: 0 | K140: 0 | L140: 0 | M140: 0 | N140: 0 | O140: 0 | P140: 0 | Q140: 0 | R140: 0 | S140: 0 | T140: 0
B141: NH 13 | C141: North Heidelberg | D141: Urban | E141: 788 | F141: 1.2815 | G141: 3.251835 | H141: 5.391716 | I141: 7.616212479 | J141: 0 | K141: 3 | L141: 125326 | M141: 125326 | N141: 2367 | O141: 2367 | P141: 0 | Q141: 0 | R141: 0 | S141: 0 | T141: 0
B142: NH 16 | C142: North Heidelberg | D142: Urban | E142: 2592 | F142: 7.166135 | G142: 4.485803 | H142: 7.487436 | I142: 9.738316828 | J142: 0.2599763047 | K142: 9 | L142: 496632 | M142: 496632 | N142: 5539 | O142: 5539 | P142: 6 | Q142: 44194 | R142: 199 | S142: 0 | T142: 0
B143: NH 17 | C143: North Heidelberg | D143: Urban | E143: 2481 | F143: 7.70445 | G143: 2.2281245 | H143: 6.249056 | I143: 1.824927579 | J143: 0.2698595293 | K143: 4 | L143: 91726 | M143: 91726 | N143: 4099 | O143: 4099 | P143: 7 | Q143: 45213 | R143: 234 | S143: 3 | T143: 4072
B144: NH 20 | C144: North Heidelberg | D144: Urban | E144: 2013 | F144: 8.123725 | G144: 2.442712412 | H144: 8.440036 | I144: 12.96166891 | J144: 0.403267751 | K144: 6 | L144: 474921 | M144: 474921 | N144: 4665 | O144: 4665 | P144: 6 | Q144: 49253 | R144: 111 | S144: 1 | T144: 2096
B145: NS 07 | C145: North Essendon | D145: Urban | E145: 1120 | F145: 3.71187 | G145: 1.84997148 | H145: 4.109516487 | I145: 0 | J145: 0.224209762 | K145: 0 | L145: 0 | M145: 0 | N145: 0 | O145: 0 | P145: 2 | Q145: 29380 | R145: 114 | S145: 0 | T145: 0
B146: NS 08 | C146: North Essendon | D146: Urban | E146: 1171 | F146: 2.928985 | G146: 0.438052044 | H146: 2.568209585 | I146: 0.4344545628 | J146: 0.3562276246 | K146: 2 | L146: 32519 | M146: 32519 | N146: 835 | O146: 835 | P146: 4 | Q146: 88879 | R146: 226 | S146: 1 | T146: 382
B147: NS 09 | C147: North Essendon | D147: Urban | E147: 1098 | F147: 3.633255 | G147: 1.147223665 | H147: 4.932562974 | I147: 1.155918243 | J147: 0.934016363 | K147: 2 | L147: 48893 | M147: 48893 | N147: 1127 | O147: 1127 | P147: 7 | Q147: 131690 | R147: 431 | S147: 1 | T147: 1114
B148: NS 11 | C148: North Essendon | D148: Rural-short | E148: 0 | F148: 0 | G148: 0.04711237 | I148: 0 | J148: 0 | K148: 0 | L148: 0 | M148: 0 | N148: 0 | O148: 0 | P148: 0 | Q148: 0 | R148: 0 | S148: 0 | T148: 0
B149: NS 12 | C149: North Essendon | D149: Urban | E149: 1160 | F149: 3.70081 | G149: 1.170151676 | H149: 3.116907171 | I149: 0.05133515151 | J149: 0.009697494887 | K149: 1 | L149: 4669 | M149: 4669 | N149: 32 | O149: 32 | P149: 1 | Q149: 2940 | R149: 21 | S149: 1 | T149: 1155
B150: NS 14 | C150: North Essendon | D150: Urban | E150: 1428 | F150: 5.6119 | G150: 1.263126209 | H150: 4.553428 | I150: 1.795366159 | J150: 0 | K150: 3 | L150: 108884 | M150: 108884 | N150: 1497 | O150: 1497 | P150: 0 | Q150: 0 | R150: 0 | S150: 0 | T150: 0
B151: NS 15 | C151: North Essendon | D151: Urban | E151: 1558 | F151: 4.353375 | G151: 1.213920438 | H151: 4.107611171 | I151: 2.97555068 | J151: 0.3829986755 | K151: 4 | L151: 185083 | M151: 185083 | N151: 3262 | O151: 3262 | P151: 2 | Q151: 79410 | R151: 184 | S151: 0 | T151: 0
B152: NS 16 | C152: North Essendon | D152: Urban | E152: 703 | F152: 3.188535 | G152: 0.4219681505 | H152: 1.668955244 | I152: 0.2704852848 | J152: 0 | K152: 2 | L152: 21483 | M152: 21483 | N152: 139 | O152: 139 | P152: 0 | Q152: 0 | R152: 0 | S152: 1 | T152: 699
B153: NS 17 | C153: North Essendon | D153: Urban | E153: 810 | F153: 3.57697 | G153: 0.5129769725 | H153: 2.331964829 | I153: 0.06950526274 | J153: 0.03158381173 | K153: 1 | L153: 4661 | M153: 4661 | N153: 23 | O153: 23 | P153: 3 | Q153: 7060 | R153: 38 | S153: 0 | T153: 0
B154: NS 18 | C154: North Essendon | D154: Urban | E154: 1714 | F154: 3.44706 | G154: 2.63796577 | H154: 4.395296487 | I154: 0.05605943632 | J154: 0 | K154: 0 | L154: 2940 | M154: 2940 | N154: 16 | O154: 16 | P154: 0 | Q154: 0 | R154: 0 | S154: 0 | T154: 0
B155: NT 03 | C155: Newport | D155: Urban | E155: 2890 | F155: 10.16614 | G155: 3.323914505 | H155: 8.47814 | I155: 5.713691542 | J155: 0.2151628823 | K155: 10 | L155: 364709 | M155: 364709 | N155: 6881 | O155: 6881 | P155: 3 | Q155: 45780 | R155: 147 | S155: 4 | T155: 8367
B156: NT 04 | C156: Newport | D156: Urban | E156: 1541 | F156: 3.37593 | G156: 1.949900165 | H156: 7.677956 | I156: 0.1218548023 | J156: 0.1835539792 | K156: 0 | L156: 2842 | M156: 2842 | N156: 18 | O156: 18 | P156: 3 | Q156: 14270 | R156: 70 | S156: 0 | T156: 0
B157: NT 08 | C157: Newport | D157: Rural-short | E157: 0 | F157: 0 | G157: 0.066956715 | I157: 0 | J157: 0 | K157: 0 | L157: 0 | M157: 0 | N157: 0 | O157: 0 | P157: 0 | Q157: 0 | R157: 0 | S157: 0 | T157: 0
B158: NT 10 | C158: Newport | D158: Urban | E158: 65 | F158: 1.899995 | G158: 0.8411065985 | H158: 1.828992 | I158: 3.587045056 | J158: 0 | K158: 1 | L158: 15331 | M158: 15331 | N158: 65 | O158: 65 | P158: 0 | Q158: 0 | R158: 0 | S158: 0 | T158: 0
B159: NT 11 | C159: Newport | D159: Urban | E159: 3506 | F159: 9.21593 | G159: 2.557661395 | H159: 8.535296 | I159: 1.123100092 | J159: 0.09193176366 | K159: 8 | L159: 88759 | M159: 88759 | N159: 502 | O159: 502 | P159: 4 | Q159: 24218 | R159: 107 | S159: 4 | T159: 8829
B160: NT 15 | C160: Newport | D160: Urban | E160: 1869 | F160: 7.601 | G160: 3.28533 | H160: 5.944224 | I160: 7.203610035 | J160: 0.1750339155 | K160: 2 | L160: 408168 | M160: 408168 | N160: 2598 | O160: 2598 | P160: 4 | Q160: 33059 | R160: 169 | S160: 1 | T160: 2
B161: NT 16 | C161: Newport | D161: Urban | E161: 215 | F161: 2.912055 | G161: 1.609043586 | H161: 5.448872 | I161: 0.03542793071 | J161: 0 | K161: 1 | L161: 642 | M161: 642 | N161: 5 | O161: 5 | P161: 0 | Q161: 0 | R161: 0 | S161: 0 | T161: 0
B162: NT 17 | C162: Newport | D162: Urban | E162: 2538 | F162: 7.76712 | G162: 2.804039555 | H162: 8.516244 | I162: 0.7466654789 | J162: 0.1846446574 | K162: 7 | L162: 34384 | M162: 34384 | N162: 404 | O162: 404 | P162: 4 | Q162: 28343 | R162: 139 | S162: 2 | T162: 3631
B163: P 56 | C163: Preston | D163: Urban | E163: 2 | F163: 1.91805 | G163: 0.25554749 | I163: 0.009507638279 | J163: 0 | K163: 1 | L163: 6 | M163: 6 | N163: 2 | O163: 2 | P163: 0 | Q163: 0 | R163: 0 | S163: 0 | T163: 0
B164: P 57 | C164: Preston | D164: Rural-short | E164: 99 | F164: 1.551715 | G164: 0.242997535 | H164: 0.3063561622 | I164: 0.001831517219 | J164: 0 | K164: 0 | L164: 115 | M164: 115 | N164: 1 | O164: 1 | P164: 0 | Q164: 0 | R164: 0 | S164: 0 | T164: 0
B165: P 58 | C165: Preston | D165: Rural-short | E165: 0 | F165: 0.12695 | G165: 0.040969 | I165: 0 | J165: 0 | K165: 0 | L165: 0 | M165: 0 | N165: 0 | O165: 0 | P165: 0 | Q165: 0 | R165: 0 | S165: 0 | T165: 0
B166: P 59 | C166: Preston | D166: Rural-short | E166: 810 | F166: 2.78285 | G166: 1.606939277 | H166: 1.041382346 | I166: 0.003193653672 | J166: 0.06586801327 | K166: 0 | L166: 438 | M166: 438 | N166: 1 | O166: 1 | P166: 3 | Q166: 30112 | R166: 155 | S166: 0 | T166: 0
B167: P 61 | C167: Preston | D167: Urban | E167: 79 | F167: 0.279655 | G167: 0.15291 | H167: 0.2720625622 | I167: 0 | J167: 0.1927925062 | K167: 0 | L167: 0 | M167: 0 | N167: 0 | O167: 0 | P167: 1 | Q167: 49770 | R167: 79 | S167: 0 | T167: 0
B168: P 62 | C168: Preston | D168: Urban | E168: 653 | F168: 1.82186 | G168: 0.810035 | H168: 2.9549652 | I168: 0.08172681034 | J168: 0 | K168: 2 | L168: 3119 | M168: 3119 | N168: 16 | O168: 16 | P168: 0 | Q168: 0 | R168: 0 | S168: 0 | T168: 0
B169: P 63 | C169: Preston | D169: Urban | E169: 854 | F169: 2.829915 | G169: 0.15738629 | H169: 2.273665697 | I169: 0.06607697686 | J169: 0.2288280267 | K169: 1 | L169: 4436 | M169: 4436 | N169: 91 | O169: 91 | P169: 4 | Q169: 51207 | R169: 162 | S169: 0 | T169: 0
B170: P 65 | C170: Preston | D170: Urban | E170: 255 | F170: 0.32017 | G170: 0.201591 | H170: 0.9533620974 | I170: 0.03384313582 | J170: 0.07364743247 | K170: 2 | L170: 1249 | M170: 1249 | N170: 115 | O170: 115 | P170: 2 | Q170: 9060 | R170: 42 | S170: 0 | T170: 0
B171: P 66 | C171: Preston | D171: Urban | E171: 744 | F171: 2.131985 | G171: 0.6469702335 | H171: 2.956108303 | I171: 1.6150852 | J171: 0.006196516242 | K171: 2 | L171: 69201 | M171: 69201 | N171: 830 | O171: 830 | P171: 1 | Q171: 885 | R171: 3 | S171: 0 | T171: 0
B172: PV 12 | C172: Pascoe Vale | D172: Urban | E172: 470 | F172: 2.61376 | G172: 1.646911 | H172: 2.267188 | I172: 0.4178100426 | J172: 0 | K172: 1 | L172: 12815 | M172: 12815 | N172: 95 | O172: 95 | P172: 0 | Q172: 0 | R172: 0 | S172: 0 | T172: 0
B173: PV 13 | C173: Pascoe Vale | D173: Urban | E173: 3189 | F173: 10.051865 | G173: 0.5267685 | H173: 5.039254 | I173: 1.199603486 | J173: 0.07782646992 | K173: 4 | L173: 135543 | M173: 135543 | N173: 3323 | O173: 3323 | P173: 2 | Q173: 29312 | R173: 80 | S173: 1 | T173: 1176
B174: PV 14 | C174: Pascoe Vale | D174: Urban | E174: 2782 | F174: 10.04851 | G174: 0.934035 | H174: 5.38219 | I174: 0.07815681697 | J174: 0 | K174: 2 | L174: 7948 | M174: 7948 | N174: 75 | O174: 75 | P174: 0 | Q174: 0 | R174: 0 | S174: 0 | T174: 0
B175: PV 15 | C175: Pascoe Vale | D175: Urban | E175: 1766 | F175: 5.23577 | G175: 0.39941 | H175: 3.52462 | I175: 0.1077858547 | J175: 0.1992653632 | K175: 1 | L175: 10820 | M175: 10820 | N175: 83 | O175: 83 | P175: 6 | Q175: 66677 | R175: 232 | S175: 1 | T175: 1773
B176: PV 21 | C176: Pascoe Vale | D176: Urban | E176: 1260 | F176: 5.5984 | G176: 0.1807555 | H176: 2.457708 | I176: 0.06668366191 | J176: 0.006005051596 | K176: 1 | L176: 5680 | M176: 5680 | N176: 182 | O176: 182 | P176: 1 | Q176: 1705 | R176: 11 | S176: 0 | T176: 0
B177: PV 22 | C177: Pascoe Vale | D177: Urban | E177: 2588 | F177: 9.87353 | G177: 0.428018 | H177: 5.553658 | I177: 3.939850532 | J177: 0.1342617634 | K177: 7 | L177: 401451 | M177: 401451 | N177: 7125 | O177: 7125 | P177: 5 | Q177: 45602 | R177: 222 | S177: 4 | T177: 2658
B178: PV 23 | C178: Pascoe Vale | D178: Urban | E178: 2429 | F178: 8.014825 | G178: 0.184791 | H178: 4.90589 | I178: 0.1728735233 | J178: 0.1791994913 | K178: 3 | L178: 17476 | M178: 17476 | N178: 148 | O178: 148 | P178: 2 | Q178: 60385 | R178: 146 | S178: 0 | T178: 0
B179: PV 24 | C179: Pascoe Vale | D179: Urban | E179: 1696 | F179: 6.929575 | G179: 0.534925 | H179: 3.943764 | I179: 3.223266288 | J179: 0.1470369801 | K179: 3 | L179: 253456 | M179: 253456 | N179: 5085 | O179: 5085 | P179: 1 | Q179: 38540 | R179: 82 | S179: 2 | T179: 3393
B180: PV 31 | C180: Pascoe Vale | D180: Urban | E180: 2000 | F180: 5.831695 | G180: 1.4710673 | H180: 4.42959 | I180: 0.04012951633 | J180: 0.02079185426 | K180: 0 | L180: 2594 | M180: 2594 | N180: 16 | O180: 16 | P180: 1 | Q180: 4480 | R180: 14 | S180: 0 | T180: 0
B181: SA 02 | C181: St Alban | D181: Rural-short | E181: 61 | F181: 13.591 | G181: 0 | H181: 0.6687252 | I181: 0.5594999605 | J181: 0.1242987416 | K181: 8 | L181: 12044 | M181: 12044 | N181: 181 | O181: 181 | P181: 5 | Q181: 8919 | R181: 33 | S181: 0 | T181: 0
B182: SA 06 | C182: St Alban | D182: Rural-short | E182: 145 | F182: 4.366 | G182: 1.202970415 | H182: 0.438196 | I182: 0.02958174885 | J182: 0 | K182: 3 | L182: 2310 | M182: 2310 | N182: 153 | O182: 153 | P182: 0 | Q182: 0 | R182: 0 | S182: 1 | T182: 148
B183: SA 10 | C183: St Alban | D183: Rural-short | E183: 43 | F183: 1.262 | G183: 0.8162073885 | H183: 0.019052 | I183: 0.001744354541 | J183: 0 | K183: 1 | L183: 1874 | M183: 1874 | N183: 43 | O183: 43 | P183: 0 | Q183: 0 | R183: 0 | S183: 0 | T183: 0
B184: SA 12 | C184: St Alban | D184: Urban | E184: 1843 | F184: 1.085 | G184: 6.186667587 | H184: 3.51452244 | I184: 0.372062635 | J184: 0.0009599948099 | K184: 3 | L184: 46043 | M184: 46043 | N184: 3787 | O184: 3787 | P184: 1 | Q184: 396 | R184: 2 | S184: 0 | T184: 0
B185: SBY11 | C185: Sunbury | D185: Rural-short | E185: 3107 | F185: 62.64496 | G185: 11.58740509 | H185: 6.458628 | I185: 1.529238507 | J185: 1.285488278 | K185: 16 | L185: 106593 | M185: 106593 | N185: 644 | O185: 644 | P185: 31 | Q185: 298676 | R185: 1434 | S185: 2 | T185: 864
B186: SBY13 | C186: Sunbury | D186: Urban | E186: 1 | F186: 0 | G186: 0.14145 | I186: 0 | J186: 0 | K186: 0 | L186: 0 | M186: 0 | N186: 0 | O186: 0 | P186: 0 | Q186: 0 | R186: 0 | S186: 0 | T186: 0
B187: SBY14 | C187: Sunbury | D187: Rural-short | E187: 4108 | F187: 90.91816 | G187: 23.10726635 | H187: 11.164472 | I187: 1.336932104 | J187: 1.549033814 | K187: 15 | L187: 79694 | M187: 79694 | N187: 487 | O187: 487 | P187: 27 | Q187: 307791 | R187: 1109 | S187: 1 | T187: 1218
B188: SBY31 | C188: Sunbury | D188: Urban | E188: 1991 | F188: 5.81586 | G188: 7.426221008 | H188: 7.262622342 | I188: 0.3796700604 | J188: 0.2941352522 | K188: 3 | L188: 15581 | M188: 15581 | N188: 39 | O188: 39 | P188: 1 | Q188: 40236 | R188: 84 | S188: 0 | T188: 0
B189: SBY32 | C189: Sunbury | D189: Rural-short | E189: 2917 | F189: 116.621225 | G189: 10.23311942 | H189: 6.00138 | I189: 1.278287261 | J189: 0.4339065965 | K189: 17 | L189: 98837 | M189: 98837 | N189: 811 | O189: 811 | P189: 51 | Q189: 111832 | R189: 482 | S189: 4 | T189: 7068
B190: SBY33 | C190: Sunbury | D190: Urban | E190: 3036 | F190: 14.166025 | G190: 5.062080908 | H190: 6.873961658 | I190: 1.336599305 | J190: 0.4343632478 | K190: 4 | L190: 109171 | M190: 109171 | N190: 325 | O190: 325 | P190: 6 | Q190: 118260 | R190: 450 | S190: 2 | T190: 5964
B191: SHM11 | C191: Sydenham | D191: Rural-short | E191: 1087 | F191: 65.11392 | G191: 3.752767795 | H191: 2.800644 | I191: 4.321700086 | J191: 1.705581677 | K191: 13 | L191: 192189 | M191: 192189 | N191: 1301 | O191: 1301 | P191: 16 | Q191: 252828 | R191: 993 | S191: 0 | T191: 0
B192: SHM12 | C192: Sydenham | D192: Urban | E192: 2844 | F192: 4.71124 | G192: 14.03848405 | H192: 7.754164 | I192: 0.5759168297 | J192: 0.4399372136 | K192: 3 | L192: 40723 | M192: 40723 | N192: 187 | O192: 187 | P192: 3 | Q192: 103693 | R192: 391 | S192: 0 | T192: 0
B193: SHM14 | C193: Sydenham | D193: Rural-short | E193: 3942 | F193: 18.86805 | G193: 22.51744542 | H193: 10.135664 | I193: 0.208472696 | J193: 0.2896879804 | K193: 4 | L193: 14980 | M193: 14980 | N193: 27 | O193: 27 | P193: 4 | Q193: 69386 | R193: 245 | S193: 0 | T193: 0
B194: SHM21 | C194: Sydenham | D194: Urban | E194: 4934 | F194: 3.88499 | G194: 19.708877 | H194: 11.354992 | I194: 3.75282403 | J194: 0.8004954685 | K194: 8 | L194: 350760 | M194: 350760 | N194: 7081 | O194: 7081 | P194: 2 | Q194: 249396 | R194: 654 | S194: 1 | T194: 2414
B195: SHM24 | C195: Sydenham | D195: Urban | E195: 1 | F195: 0 | G195: 0.4034 | I195: 0 | J195: 0 | K195: 0 | L195: 0 | M195: 0 | N195: 0 | O195: 0 | P195: 0 | Q195: 0 | R195: 0 | S195: 0 | T195: 0
B196: ST 11 | C196: Somerton | D196: Urban | E196: 178 | F196: 7.01058 | G196: 4.10963893 | H196: 6.95398 | I196: 0.4808295778 | J196: 1.513763537 | K196: 2 | L196: 1528 | M196: 1528 | N196: 8 | O196: 8 | P196: 3 | Q196: 16035 | R196: 85 | S196: 0 | T196: 0
B197: ST 12 | C197: Somerton | D197: Urban | E197: 242 | F197: 9.540205 | G197: 3.131165605 | H197: 7.449332 | I197: 3.262921972 | J197: 0.3376564206 | K197: 8 | L197: 11973 | M197: 11973 | N197: 256 | O197: 256 | P197: 3 | Q197: 4130 | R197: 36 | S197: 0 | T197: 0
B198: ST 13 | C198: Somerton | D198: Urban | E198: 195 | F198: 4.78599 | G198: 4.258296028 | H198: 6.249056 | I198: 0.2541134731 | J198: 0 | K198: 1 | L198: 1242 | M198: 1242 | N198: 7 | O198: 7 | P198: 0 | Q198: 0 | R198: 0 | S198: 0 | T198: 0
B199: ST 14 | C199: Somerton | D199: Urban | E199: 90 | F199: 0 | G199: 5.006320653 | H199: 7.201656 | I199: 8.703515764 | J199: 0 | K199: 2 | L199: 11797 | M199: 11797 | N199: 15 | O199: 15 | P199: 0 | Q199: 0 | R199: 0 | S199: 0 | T199: 0
B200: ST 21 | C200: Somerton | D200: Urban | E200: 4 | F200: 0 | G200: 1.41016989 | H200: 0.647768 | I200: 0 | J200: 0 | K200: 0 | L200: 0 | M200: 0 | N200: 0 | O200: 0 | P200: 0 | Q200: 0 | R200: 0 | S200: 0 | T200: 0
B201: ST 22 | C201: Somerton | D201: Urban | E201: 3376 | F201: 6.847455 | G201: 16.24892756 | H201: 12.402852 | I201: 0.8954010858 | J201: 0.1073804995 | K201: 4 | L201: 40513 | M201: 40513 | N201: 3389 | O201: 3389 | P201: 5 | Q201: 16195 | R201: 99 | S201: 0 | T201: 0
B202: ST 23 | C202: Somerton | D202: Urban | E202: 150 | F202: 7.21396 | G202: 3.511122185 | H202: 10.497652 | I202: 0.2555969403 | J202: 0 | K202: 3 | L202: 530 | M202: 530 | N202: 9 | O202: 9 | P202: 0 | Q202: 0 | R202: 0 | S202: 0 | T202: 0
B203: ST 24 | C203: Somerton | D203: Urban | E203: 1 | F203: 0 | G203: 3.764958546 | I203: 0 | J203: 0 | K203: 0 | L203: 0 | M203: 0 | N203: 0 | O203: 0 | P203: 0 | Q203: 0 | R203: 0 | S203: 0 | T203: 0
B204: ST 31 | C204: Somerton | D204: Urban | E204: 1 | F204: 0 | G204: 0.6168739 | I204: 0 | J204: 0 | K204: 0 | L204: 0 | M204: 0 | N204: 0 | O204: 0 | P204: 0 | Q204: 0 | R204: 0 | S204: 0 | T204: 0
... 26 more rows

Sheet 3.6.8 Network-feeders (2015-16)
B1: =INDEX(dms_Worksheet_List,MATCH(dms_Model,dms_Model_List)) -> HISTORICAL ANNUAL REPORTING - FINANCIAL YEARS
B2: =INDEX(dms_TradingNameFull_List,MATCH(dms_TradingName,dms_TradingName_List)) -> Jemena Electricity
B3: =dms_Header_Span -> 2011-12 to 2017-18
B4: 3.6 QUALITY OF SERVICES
B6: Did the MAIFI parameter of the STPIS apply during the period? | F6: No | G6: ** IMPORTANT Please ensure this question is answered correctly. Your response will affect other tables throughout this workbook and will determine which cells are grey and which are input cells.
B10: 3.6.8 - NETWORK FEEDER RELIABILITY
B11: Feeder ID / name | C11: Description of the service area for the feeder | D11: Feeder classification (drop down) | E11: Number of distribution customers | F11: Length of high voltage distribution lines | H11: Maximum demand (MVA) | I11: Energy not supplied (MWh) | K11: Unplanned Outages | P11: Planned Outages | U11: Momentary feeder outages
F12: Overhead | G12: Underground | I12: Unplanned | J12: Planned | K12: Total number of unplanned outages | L12: Unplanned customer minutes off-supply (SAIDI) | N12: Unplanned interruptions (SAIFI) | P12: Total number of planned outages | Q12: Planned customer minutes off-supply (SAIDI) | S12: Planned interruptions (SAIFI) | U12: Total number of momentary feeder outages | V12: Momentary interruptions due to feeder outages (MAIFI)
L13: Including excluded events and MEDs | M13: After removing excluded events and MED | N13: Including excluded events and MEDs | O13: After removing excluded events and MED | Q13: Including MEDs | R13: After removing MED | S13: Including MEDs | T13: After removing MED | V13: Including excluded events and MEDs | W13: After removing excluded events and MED
B14: AW 01 | C14: Airport West | D14: Urban | E14: 768 | F14: 4.669116848 | G14: 4.842287933 | H14: 9.221168 | I14: 0.7171552884 | J14: 0.2881058532 | K14: 3 | L14: 10725 | M14: 10725 | N14: 811 | O14: 811 | P14: 6 | Q14: 14362 | R14: 14362 | S14: 47 | T14: 47
B15: AW 02 | C15: Airport West | D15: Urban | E15: 3075 | F15: 10.52987662 | G15: 2.777403587 | H15: 8.247611265 | I15: 1.458646515 | J15: 0.03369527891 | K15: 7 | L15: 105297 | M15: 105297 | N15: 5045 | O15: 5045 | P15: 2 | Q15: 8108 | R15: 8108 | S15: 31 | T15: 31
B16: AW 03 | C16: Airport West | D16: Urban | E16: 195 | F16: 4.097107266 | G16: 2.4589559 | H16: 9.996584633 | I16: 6.150687805 | J16: 1.337326551 | K16: 3 | L16: 19768 | M16: 19768 | N16: 144 | O16: 144 | P16: 5 | Q16: 14327 | R16: 14327 | S16: 36 | T16: 36
B17: AW 04 | C17: Airport West | D17: Urban | E17: 1736 | F17: 8.740787922 | G17: 4.328860943 | H17: 12.31330795 | I17: 1.317279204 | J17: 0.4089916028 | K17: 4 | L17: 30824 | M17: 30824 | N17: 1598 | O17: 1598 | P17: 7 | Q17: 31901 | R17: 31901 | S17: 149 | T17: 149
B18: AW 05 | C18: Airport West | D18: Urban | E18: 555 | F18: 2.44863 | G18: 0.5141160636 | H18: 6.801564 | I18: 0.8933875186 | J18: 0.1356548773 | K18: 7 | L18: 12939 | M18: 12939 | N18: 694 | O18: 694 | P18: 4 | Q18: 6549 | R18: 6549 | S18: 19 | T18: 19
B19: AW 06 | C19: Airport West | D19: Urban | E19: 5120 | F19: 17.03631399 | G19: 1.640311422 | H19: 9.960385949 | I19: 0.8947910038 | J19: 0.17356905 | K19: 12 | L19: 97878 | M19: 97878 | N19: 5435 | O19: 5435 | P19: 6 | Q19: 63287 | R19: 63287 | S19: 270 | T19: 270
B20: AW 07 | C20: Airport West | D20: Urban | E20: 4781 | F20: 15.67614381 | G20: 5.855301633 | H20: 10.5624288 | I20: 1.627618672 | J20: 0.0506863058 | K20: 12 | L20: 162276 | M20: 162276 | N20: 6112 | O20: 6112 | P20: 4 | Q20: 16845 | R20: 16845 | S20: 82 | T20: 82
B21: AW 08 | C21: Airport West | D21: Urban | E21: 2332 | F21: 8.829041677 | G21: 1.747781185 | H21: 7.148310458 | I21: 4.118286004 | J21: 0.1971587337 | K21: 5 | L21: 204631 | M21: 204631 | N21: 3984 | O21: 3984 | P21: 2 | Q21: 32655 | R21: 32655 | S21: 67 | T21: 67
B22: AW 09 | C22: Airport West | D22: Urban | E22: 2502 | F22: 11.09874242 | G22: 8.088800664 | H22: 7.430280291 | I22: 2.895281725 | J22: 0.1424907087 | K22: 4 | L22: 172631 | M22: 172631 | N22: 2602 | O22: 2602 | P22: 3 | Q22: 28320 | R22: 28320 | S22: 205 | T22: 205
B23: AW 11 | C23: Airport West | D23: Urban | E23: 473 | F23: 5.998488748 | G23: 3.315122588 | H23: 7.568407 | I23: 4.417162209 | J23: 0 | K23: 3 | L23: 44333 | M23: 44333 | N23: 572 | O23: 572 | P23: 0 | Q23: 0 | R23: 0 | S23: 0 | T23: 0
B24: AW 12 | C24: Airport West | D24: Urban | E24: 1824 | F24: 5.550503163 | G24: 6.891859772 | H24: 8.430510058 | I24: 0.8121915317 | J24: 0.7146129848 | K24: 1 | L24: 22490 | M24: 22490 | N24: 1818 | O24: 1818 | P24: 2 | Q24: 65960 | R24: 65960 | S24: 120 | T24: 120
B25: AW 14 | C25: Airport West | D25: Urban | E25: 1248 | F25: 8.920627496 | G25: 4.613385227 | H25: 7.074960258 | I25: 4.624216696 | J25: 0.3795504574 | K25: 6 | L25: 90915 | M25: 90915 | N25: 1847 | O25: 1847 | P25: 3 | Q25: 24874 | R25: 24874 | S25: 58 | T25: 58
B26: BD 01 | C26: Broadmeadows | D26: Urban | E26: 1013 | F26: 4.339215666 | G26: 4.414865366 | H26: 8.058996 | I26: 1.142737875 | J26: 0.07718148893 | K26: 8 | L26: 24785 | M26: 24785 | N26: 421 | O26: 421 | P26: 2 | Q26: 5580 | R26: 5580 | S26: 14 | T26: 14
B27: BD 02 | C27: Broadmeadows | D27: Urban | E27: 1 | F27: 0.6647797995 | G27: 0.07339803157 | I27: 0 | J27: 0 | K27: 0 | L27: 0 | M27: 0 | N27: 0 | O27: 0 | P27: 0 | Q27: 0 | R27: 0 | S27: 0 | T27: 0
B28: BD 03 | C28: Broadmeadows | D28: Urban | E28: 363 | F28: 4.008421019 | G28: 4.489410001 | H28: 10.76819063 | I28: 0.13199127 | J28: 0 | K28: 0 | L28: 615 | M28: 615 | N28: 4 | O28: 4 | P28: 0 | Q28: 0 | R28: 0 | S28: 0 | T28: 0
B29: BD 04 | C29: Broadmeadows | D29: Urban | E29: 988 | F29: 7.90999159 | G29: 3.827104182 | H29: 9.632691607 | I29: 2.53601389 | J29: 0.1588604288 | K29: 3 | L29: 58188 | M29: 58188 | N29: 975 | O29: 975 | P29: 1 | Q29: 12150 | R29: 12150 | S29: 75 | T29: 75
B30: BD 06 | C30: Broadmeadows | D30: Urban | E30: 1 | F30: 0.748796139 | G30: 0.07972073564 | I30: 9.677048246 | J30: 0 | K30: 1 | L30: 232 | M30: 232 | N30: 1 | O30: 1 | P30: 0 | Q30: 0 | R30: 0 | S30: 0 | T30: 0
B31: BD 07 | C31: Broadmeadows | D31: Urban | E31: 2679 | F31: 17.17255283 | G31: 1.78150667 | H31: 8.821076 | I31: 1.262894527 | J31: 0.207985326 | K31: 5 | L31: 92720 | M31: 92720 | N31: 1616 | O31: 1616 | P31: 3 | Q31: 50900 | R31: 50900 | S31: 121 | T31: 121
B32: BD 08 | C32: Broadmeadows | D32: Urban | E32: 807 | F32: 9.255911823 | G32: 1.544792138 | H32: 10.11661212 | I32: 2.148879679 | J32: 0.2174358271 | K32: 3 | L32: 30953 | M32: 30953 | N32: 439 | O32: 439 | P32: 1 | Q32: 10440 | R32: 10440 | S32: 36 | T32: 36
B33: BD 09 | C33: Broadmeadows | D33: Urban | E33: 685 | F33: 5.020711031 | G33: 1.422530272 | H33: 5.753704058 | I33: 0.7827748673 | J33: 0.1537616543 | K33: 4 | L33: 13339 | M33: 13339 | N33: 100 | O33: 100 | P33: 2 | Q33: 8734 | R33: 8734 | S33: 27 | T33: 27
B34: BD 10 | C34: Broadmeadows | D34: Urban | E34: 1008 | F34: 6.385576131 | G34: 2.915542595 | H34: 10.37190897 | I34: 0.08204372974 | J34: 0.9768591951 | K34: 2 | L34: 1477 | M34: 1477 | N34: 29 | O34: 29 | P34: 2 | Q34: 58620 | R34: 58620 | S34: 168 | T34: 168
B35: BD 11 | C35: Broadmeadows | D35: Urban | E35: 1499 | F35: 6.194119641 | G35: 1.425277842 | H35: 5.566994574 | I35: 1.120316516 | J35: 0.02214563104 | K35: 1 | L35: 40567 | M35: 40567 | N35: 377 | O35: 377 | P35: 2 | Q35: 2673 | R35: 2673 | S35: 9 | T35: 9
B36: BD 13 | C36: Broadmeadows | D36: Urban | E36: 467 | F36: 8.726956101 | G36: 2.565618262 | H36: 8.851559142 | I36: 1.700632713 | J36: 0.9738368023 | K36: 1 | L36: 17758 | M36: 17758 | N36: 482 | O36: 482 | P36: 5 | Q36: 33896 | R36: 33896 | S36: 75 | T36: 75
B37: BD 14 | C37: Broadmeadows | D37: Urban | E37: 708 | F37: 9.248165073 | G37: 2.011255969 | H37: 6.470059549 | I37: 0.009478922229 | J37: 0.01526954787 | K37: 0 | L37: 257 | M37: 257 | N37: 2 | O37: 2 | P37: 2 | Q37: 1380 | R37: 1380 | S37: 5 | T37: 5
B38: BD 15 | C38: Broadmeadows | D38: Urban | E38: 809 | F38: 8.662738417 | G38: 2.024479632 | H38: 10.61577463 | I38: 0.06153473638 | J38: 1.151650738 | K38: 0 | L38: 634 | M38: 634 | N38: 7 | O38: 7 | P38: 3 | Q38: 39552 | R38: 39552 | S38: 102 | T38: 102
B39: BD 16 | C39: Broadmeadows | D39: Urban | E39: 1446 | F39: 9.315721581 | G39: 2.441218737 | H39: 7.487436 | I39: 2.865003931 | J39: 0.02138958769 | K39: 6 | L39: 76348 | M39: 76348 | N39: 1581 | O39: 1581 | P39: 2 | Q39: 1900 | R39: 1900 | S39: 18 | T39: 18
B40: BMS11 | C40: Broadmeadows South | D40: Urban | E40: 1 | F40: 0 | G40: 0.7204975236 | I40: 0 | J40: 0 | K40: 0 | L40: 0 | M40: 0 | N40: 0 | O40: 0 | P40: 0 | Q40: 0 | R40: 0 | S40: 0 | T40: 0
B41: BMS12 | C41: Broadmeadows South | D41: Urban | E41: 1462 | F41: 7.781447392 | G41: 1.781494843 | H41: 11.62172 | I41: 3.986578176 | J41: 0.006634115226 | K41: 4 | L41: 157922 | M41: 157922 | N41: 7088 | O41: 7088 | P41: 2 | Q41: 876 | R41: 876 | S41: 3 | T41: 3
B42: BMS21 | C42: Broadmeadows South | D42: Urban | E42: 40 | F42: 0.8210603084 | G42: 2.914140236 | H42: 1.943304 | I42: 0.04159000955 | J42: 0 | K42: 0 | L42: 113 | M42: 113 | N42: 1 | O42: 1 | P42: 0 | Q42: 0 | R42: 0 | S42: 0 | T42: 0
B43: BMS23 | C43: Broadmeadows South | D43: Urban | E43: 2019 | F43: 11.2344576 | G43: 1.783228743 | H43: 8.211412 | I43: 3.175649179 | J43: 0.04645403583 | K43: 6 | L43: 162467 | M43: 162467 | N43: 2540 | O43: 2540 | P43: 2 | Q43: 7922 | R43: 7922 | S43: 50 | T43: 50
B44: BMS25 | C44: Broadmeadows South | D44: Urban | E44: 17 | F44: 0 | G44: 1.458986887 | H44: 2.876852 | I44: 0 | J44: 0 | K44: 0 | L44: 0 | M44: 0 | N44: 0 | O44: 0 | P44: 0 | Q44: 0 | R44: 0 | S44: 0 | T44: 0
B45: BY 11 | C45: Braybrook | D45: Urban | E45: 4152 | F45: 16.31420589 | G45: 2.456608285 | H45: 9.411688 | I45: 1.533668819 | J45: 0.8345611447 | K45: 16 | L45: 113612 | M45: 113612 | N45: 732 | O45: 732 | P45: 11 | Q45: 206077 | R45: 206077 | S45: 624 | T45: 624
B46: BY 12 | C46: Braybrook | D46: Urban | E46: 1283 | F46: 4.683207452 | G46: 0.6958268422 | H46: 2.76254 | I46: 0.6769024786 | J46: 0 | K46: 3 | L46: 41644 | M46: 41644 | N46: 1334 | O46: 1334 | P46: 0 | Q46: 0 | R46: 0 | S46: 0 | T46: 0
B47: BY 13 | C47: Braybrook | D47: Urban | E47: 738 | F47: 2.974123123 | G47: 2.006117748 | H47: 12.231384 | I47: 6.544739861 | J47: 0.04242574403 | K47: 5 | L47: 68169 | M47: 68169 | N47: 1675 | O47: 1675 | P47: 4 | Q47: 1473 | R47: 1473 | S47: 6 | T47: 6
B48: BY 14 | C48: Braybrook | D48: Urban | E48: 3011 | F48: 12.2160948 | G48: 3.560257251 | H48: 7.449332 | I48: 0.2872228976 | J48: 0.07538008524 | K48: 3 | L48: 18261 | M48: 18261 | N48: 95 | O48: 95 | P48: 2 | Q48: 15975 | R48: 15975 | S48: 73 | T48: 73
B49: BY 15 | C49: Braybrook | D49: Urban | E49: 1049 | F49: 6.144941631 | G49: 2.210981359 | H49: 6.934928 | I49: 1.821583869 | J49: 0.564133097 | K49: 3 | L49: 33826 | M49: 33826 | N49: 1153 | O49: 1153 | P49: 7 | Q49: 34919 | R49: 34919 | S49: 142 | T49: 142
B50: CN 01 | C50: Coburg North | D50: Urban | E50: 103 | F50: 1.864793594 | G50: 0.3101107282 | H50: 7.281674516 | I50: 0.07766993979 | J50: 0.4851597311 | K50: 0 | L50: 112 | M50: 112 | N50: 1 | O50: 1 | P50: 2 | Q50: 2332 | R50: 2332 | S50: 8 | T50: 8
B51: CN 02 | C51: Coburg North | D51: Urban | E51: 493 | F51: 4.853201715 | G51: 0.8794529945 | H51: 7.727491316 | I51: 2.786225035 | J51: 0.1595160871 | K51: 4 | L51: 41611 | M51: 41611 | N51: 626 | O51: 626 | P51: 3 | Q51: 7941 | R51: 7941 | S51: 44 | T51: 44
B52: CN 03 | C52: Coburg North | D52: Urban | E52: 1377 | F52: 4.752841925 | G52: 1.31572587 | H52: 2.072857644 | I52: 0.05160175034 | J52: 0.004454362936 | K52: 2 | L52: 5995 | M52: 5995 | N52: 46 | O52: 46 | P52: 1 | Q52: 1725 | R52: 1725 | S52: 5 | T52: 5
B53: CN 04 | C53: Coburg North | D53: Urban | E53: 1477 | F53: 7.502399238 | G53: 5.965060905 | H53: 7.6055584 | I53: 0.08593429296 | J53: 0.1957991855 | K53: 0 | L53: 2086 | M53: 2086 | N53: 13 | O53: 13 | P53: 5 | Q53: 15843 | R53: 15843 | S53: 101 | T53: 101
B54: CN 05 | C54: Coburg North | D54: Urban | E54: 4065 | F54: 13.06699763 | G54: 1.579054193 | H54: 7.441711374 | I54: 5.966092151 | J54: 1.466426081 | K54: 10 | L54: 518483 | M54: 518483 | N54: 8555 | O54: 8555 | P54: 14 | Q54: 424799 | R54: 424799 | S54: 1271 | T54: 1271
B55: CN 06 | C55: Coburg North | D55: Urban | E55: 2140 | F55: 9.863200326 | G55: 1.332649279 | H55: 6.473869658 | I55: 0.1546916799 | J55: 0.1173053526 | K55: 1 | L55: 6691 | M55: 6691 | N55: 36 | O55: 36 | P55: 2 | Q55: 16913 | R55: 16913 | S55: 118 | T55: 118
B56: CN 07 | C56: Coburg North | D56: Urban | E56: 6431 | F56: 14.5449108 | G56: 0.6445436961 | H56: 8.405742633 | I56: 0.5664344485 | J56: 0.2007209799 | K56: 8 | L56: 65719 | M56: 65719 | N56: 462 | O56: 462 | P56: 10 | Q56: 77627 | R56: 77627 | S56: 365 | T56: 365
B57: CN 08 | C57: Coburg North | D57: Urban | E57: 2998 | F57: 11.66081102 | G57: 2.763137887 | H57: 5.959465774 | I57: 6.988759555 | J57: 0.7038109012 | K57: 8 | L57: 481642 | M57: 481642 | N57: 8236 | O57: 8236 | P57: 9 | Q57: 161681 | R57: 161681 | S57: 591 | T57: 591
B58: CN 09 | C58: Coburg North | D58: Urban | E58: 57 | F58: 2.440227544 | G58: 0.5317169099 | H58: 4.469599258 | I58: 0 | J58: 0.9299913551 | K58: 0 | L58: 0 | M58: 0 | N58: 0 | O58: 0 | P58: 3 | Q58: 4830 | R58: 4830 | S58: 16 | T58: 16
